Workbook

Sheet __FDSCACHE__ (hidden)
B1: This sheet contains FactSet XML data for use with this workbook's =FDS codes. Modifying the worksheet's contents may damage the workbook's =FDS functionality.

Sheet Summary
A1: ="Equities Summary ~ " & ltcma_year & " Long-Term Capital Market Assumptions" -> Equities Summary ~ 2021 Long-Term Capital Market Assumptions
CZ2: To be checked versus weights in Spectrum
A3: 2021 | C3: Contribution to total returns, % ann. | U3: Subtotals | Y3: Terminal assumptions | AD3: Conversion to USD | AI3: Free float market caps (USD trillions) & weights (MSCI-based) | CZ3: Y | DA3: Y | DB3: Y | DC3: Y | DD3: Y | DE3: Y | DF3: Y | DG3: Y | DH3: Y | DI3: Y | DJ3: Y | DK3: Y | DL3: Y | DM3: Y | DN3: Y | DO3: Y | DP3: Y | DQ3: Y | DR3: Y | DS3: Y
A5: Market | C5: Dom. growth | D5: Int'l contrib. | E5: Sales % GDP | F5: Revenue growth | G5: Margins impact | H5: Earnings growth | I5: Gross dilution | J5: Buybacks | K5: EPS growth | L5: Valuation impact | M5: Dividend yield | N5: Extra-ordinary | O5: Total Return | P5: Loc. ret., rounded | R5: Net dilution | S5: Payout yield | U5: Earnings growth | V5: EPS growth | W5: Price return | Y5: Target margins | Z5: Target P/E | AA5: Target ROE | AD5: Currency | AE5: App. vs. USD | AF5: USD total return | AG5: USD ret., rounded | AI5: MSCI Index | AJ5: Currency | AK5: FX to USD | AL5: USD Cap | AO5: ACWI | AP5: ACWI ex-US | AQ5: ACWI ex-EMU | AR5: ACWI ex-Japan | AS5: ACWI ex-UK | AT5: Developed World | AU5: Developed World ex Japan | AV5: EAFE | AW5: European Large Cap | AX5: European Small Cap | AY5: UK All Cap | AZ5: Emerging Markets | BA5: Emerging Markets LATAM | BB5: Emerging Markets Asia | BC5: Emerging Markets EMEA | BD5: AC Asia ex Japan | BE5: AC Asia-Pacifc ex Japan | BF5: Pacific ex Japan | BG5: Zhong Hua (MSCI) | BH5: U.S. total market | BJ5: ACWI | BK5: ACWI ex-US | BL5: ACWI ex-EMU | BM5: ACWI ex-Japan | BN5: ACWI ex-UK | BO5: Developed World | BP5: Developed World ex Japan | BQ5: EAFE | BR5: European Large Cap | BS5: European Small Cap | BT5: UK All Cap | BU5: Emerging Markets | BV5: Emerging Markets LATAM | BW5: Emerging Markets Asia | BX5: Emerging Markets EMEA | BY5: AC Asia ex Japan | BZ5: AC Asia-Pacifc ex Japan | CA5: Pacific ex Japan | CB5: Zhong Hua (MSCI) | CC5: U.S. total market | CE5: ACWI | CF5: ACWI ex-US | CG5: ACWI ex-EMU | CH5: ACWI ex-Japan | CI5: ACWI ex-UK | CJ5: Developed World | CK5: Developed World ex Japan | CL5: EAFE | CM5: European Large Cap | CN5: European Small Cap | CO5: UK All Cap | CP5: Emerging Markets | CQ5: Emerging Markets LATAM | CR5: Emerging Markets Asia | CS5: Emerging Markets EMEA | CT5: AC Asia ex Japan | CU5: AC Asia-Pacifc ex Japan | CV5: Pacific ex Japan | CW5: Zhong Hua (MSCI) | CX5: U.S. total market | CZ5: ACWI | DA5: ACWI ex-US | DB5: ACWI ex-EMU | DC5: ACWI ex-Japan | DD5: ACWI ex-UK | DE5: Developed World | DF5: Developed World ex Japan | DG5: EAFE | DH5: European Large Cap | DI5: European Small Cap | DJ5: UK All Cap | DK5: Emerging Markets | DL5: Emerging Markets LATAM | DM5: Emerging Markets Asia | DN5: Emerging Markets EMEA | DO5: AC Asia ex Japan | DP5: AC Asia-Pacifc ex Japan | DQ5: Pacific ex Japan | DR5: Zhong Hua (MSCI) | DS5: U.S. total market
A6: U.S. large | C6: =IFERROR(INDEX(model_data,MATCH($A6,model_countries,0),MATCH(C$5,model_fields,0))*100,"") -> 3.80 | D6: 0.30 | E6: 1.00 | F6: =IFERROR((PRODUCT(1+$C6:$E6/100)-1)*100,"") -> 5.15 | G6: =IFERROR(INDEX(model_data,MATCH($A6,model_countries,0),MATCH(G$5,model_fields,0))*100,"") -> 0.10 | H6: =(1+F6/100)*(1+G6/100)*100-100 -> 5.26 | I6: -2.00 | J6: 2.14 | K6: =(1+H6/100)*(1+(I6+J6)/100)*100-100 -> 5.41 | L6: -3.00 | M6: 1.80 | N6: 0.00 | O6: 4.09 | P6: =IFERROR(ROUND(O6,1),"") -> 4.10 | R6: =IFERROR(INDEX(model_data,MATCH($A6,model_countries,0),MATCH(R$5,model_fields,0))*100,"") -> 0.14 | S6: =IFERROR(M6+J6,"") -> 3.94 | U6: =PRODUCT(1+F6:G6/100)*100-100 -> 5.3 | V6: =((1+U6/100)*(1+(I6+N6)/100)*(1+J6/100)-1)*100 -> 5.4 | W6: =((1+V6/100)*(1+L6/100)-1)*100 -> 2.2 | Y6: =IFERROR(INDEX(model_data,MATCH($A6,model_countries,0),MATCH(Y$5,model_fields,0))*100,"") -> 8.25 | Z6: =IFERROR(INDEX(model_data,MATCH($A6,model_countries,0),MATCH(Z$5,model_fields,0)),"") -> 20.50 | AA6: =IFERROR(INDEX(model_data,MATCH($A6,model_countries,0),MATCH(AA$5,model_fields,0))*100,"") -> 10.97 | AD6: USD | AE6: =VLOOKUP($AD6,fx_table,MATCH(ltcma_year,fx_table_years,0),FALSE) -> 0.00% | AF6: =IF(ISBLANK(AE6),#N/A,O6+AE6*100) -> 4.09 | AG6: =IFERROR(ROUND(AF6,1),"") -> 4.10 | AI6: MXUSLC Index | AJ6: =_xll.BDP(AI6,"CRNCY") -> USD | AK6: =IF(AJ6="USD",1,_xll.BDH(AJ6&"USD CMPL Curncy","Px Last",end_date,end_date)) -> 1.000000 | AL6: =_xll.BDH(AI6,"Indx market cap",end_date,end_date)/10^6*AK6 -> 25.943685 | AO6: =IF(BJ6="YES",$AL6/SUM($AL$6:$AL$29),"") -> 44.99% | AP6: =IF(BK6="YES",$AL6/SUM($AL$6:$AL$29),"") ->  | AQ6: =IF(BL6="YES",$AL6/SUM($AL$6:$AL$29),"") -> 44.99% | AR6: =IF(BM6="YES",$AL6/SUM($AL$6:$AL$29),"") -> 44.99% | AS6: =IF(BN6="YES",$AL6/SUM($AL$6:$AL$29),"") -> 44.99% | AT6: =IF(BO6="YES",$AL6/SUM($AL$6:$AL$29),"") -> 44.99% | AU6: =IF(BP6="YES",$AL6/SUM($AL$6:$AL$29),"") -> 44.99% | AV6: =IF(BQ6="YES",$AL6/SUM($AL$6:$AL$29),"") ->  | AW6: =IF(BR6="YES",$AL6/SUM($AL$6:$AL$29),"") ->  | AX6: =IF(BS6="YES",$AL6/SUM($AL$6:$AL$29),"") ->  | AY6: =IF(BT6="YES",$AL6/SUM($AL$6:$AL$29),"") ->  | AZ6: =IF(BU6="YES",$AL6/SUM($AL$6:$AL$29),"") ->  | BA6: =IF(BV6="YES",$AL6/SUM($AL$6:$AL$29),"") ->  | BB6: =IF(BW6="YES",$AL6/SUM($AL$6:$AL$29),"") ->  | BC6: =IF(BX6="YES",$AL6/SUM($AL$6:$AL$29),"") ->  | BD6: =IF(BY6="YES",$AL6/SUM($AL$6:$AL$29),"") ->  | BE6: =IF(BZ6="YES",$AL6/SUM($AL$6:$AL$29),"") ->  | BF6: =IF(CA6="YES",$AL6/SUM($AL$6:$AL$29),"") ->  | BG6: =IF(CB6="YES",$AL6/SUM($AL$6:$AL$29),"") ->  | BH6: =IF(CC6="YES",$AL6/SUM($AL$6:$AL$29),"") -> 44.99% | BJ6: YES | BK6: NO | BL6: YES | BM6: YES | BN6: YES | BO6: YES | BP6: YES | BQ6: NO | BR6: NO | BS6: NO | BT6: NO | BU6: NO | BV6: NO | BW6: NO | BX6: NO | BY6: NO | BZ6: NO | CA6: NO | CB6: NO | CC6: YES | CE6: =IF(BJ6="YES",$AL6,"") -> 25.94 | CF6: =IF(BK6="YES",$AL6,"") ->  | CG6: =IF(BL6="YES",$AL6,"") -> 25.94 | CH6: =IF(BM6="YES",$AL6,"") -> 25.94 | CI6: =IF(BN6="YES",$AL6,"") -> 25.94 | CJ6: =IF(BO6="YES",$AL6,"") -> 25.94 | CK6: =IF(BP6="YES",$AL6,"") -> 25.94 | CX6: 25.94 | CZ6: =IF(BJ6="YES",(CE6/SUM(CE$6:CE$29)),"") -> 48.63% | DA6: =IF(BK6="YES",(CF6/SUM(CF$6:CF$29)),"") ->  | DB6: =IF(BL6="YES",(CG6/SUM(CG$6:CG$29)),"") -> 53.00% | DC6: =IF(BM6="YES",(CH6/SUM(CH$6:CH$29)),"") -> 52.08% | DD6: =IF(BN6="YES",(CI6/SUM(CI$6:CI$29)),"") -> 50.34% | DE6: =IF(BO6="YES",(CJ6/SUM(CJ$6:CJ$29)),"") -> 54.33% | DF6: =IF(BP6="YES",(CK6/SUM(CK$6:CK$29)),"") -> 58.68% | DG6: =IF(BQ6="YES",(CL6/SUM(CL$6:CL$29)),"") ->  | DH6: =IF(BR6="YES",(CM6/SUM(CM$6:CM$29)),"") ->  | DI6: =IF(BS6="YES",(CN6/SUM(CN$6:CN$29)),"") ->  | DJ6: =IF(BT6="YES",(CO6/SUM(CO$6:CO$29)),"") ->  | DK6: =IF(BU6="YES",(CP6/SUM(CP$6:CP$29)),"") ->  | DL6: =IF(BV6="YES",(CQ6/SUM(CQ$6:CQ$29)),"") ->  | DM6: =IF(BW6="YES",(CR6/SUM(CR$6:CR$29)),"") ->  | DN6: =IF(BX6="YES",(CS6/SUM(CS$6:CS$29)),"") ->  | DO6: =IF(BY6="YES",(CT6/SUM(CT$6:CT$29)),"") ->  | DP6: =IF(BZ6="YES",(CU6/SUM(CU$6:CU$29)),"") ->  | DQ6: =IF(CA6="YES",(CV6/SUM(CV$6:CV$29)),"") ->  | DR6: =IF(CB6="YES",(CW6/SUM(CW$6:CW$29)),"") ->  | DS6: =IF(CC6="YES",(CX6/SUM(CX$6:CX$29)),"") -> 78.09%
A7: U.S. mid | C7: 3.80 | D7: 0.20 | E7: 2.00 | F7: =IFERROR((PRODUCT(1+$C7:$E7/100)-1)*100,"") -> 6.09 | G7: =IFERROR(INDEX(model_data,MATCH($A7,model_countries,0),MATCH(G$5,model_fields,0))*100,"") -> -0.20 | H7: =(1+F7/100)*(1+G7/100)*100-100 -> 5.88 | I7: -2.50 | J7: 1.84 | K7: =(1+H7/100)*(1+(I7+J7)/100)*100-100 -> 5.18 | L7: -2.44 | M7: 1.75 | N7: 0.00 | O7: 4.42 | P7: =IFERROR(ROUND(O7,1),"") -> 4.40 | R7: -0.66 | S7: =IFERROR(M7+J7,"") -> 3.59 | U7: =PRODUCT(1+F7:G7/100)*100-100 -> 5.9 | V7: =((1+U7/100)*(1+(I7+N7)/100)*(1+J7/100)-1)*100 -> 5.1 | W7: =((1+V7/100)*(1+L7/100)-1)*100 -> 2.6 | Y7: 7.00 | Z7: 19.00 | AA7: 8.82 | AD7: USD | AE7: =VLOOKUP($AD7,fx_table,MATCH(ltcma_year,fx_table_years,0),FALSE) -> 0.00% | AF7: 4.42 | AG7: =IFERROR(ROUND(AF7,1),"") -> 4.40 | AI7: MXUSMC Index | AJ7: =_xll.BDP(AI7,"CRNCY") -> USD | AK7: =IF(AJ7="USD",1,_xll.BDH(AJ7&"USD CMPL Curncy","Px Last",end_date,end_date)) -> 1.000000 | AL7: =_xll.BDH(AI7,"Indx market cap",end_date,end_date)/10^6*AK7 -> 3.977972 | AO7: 6.90% | AQ7: 6.90% | AR7: 6.90% | AS7: 6.90% | AT7: 6.90% | AU7: 6.90% | BH7: 6.90% | BJ7: YES | BK7: NO | BL7: YES | BM7: YES | BN7: YES | BO7: YES | BP7: YES | BQ7: NO | BR7: NO | BS7: NO | BT7: NO | BU7: NO | BV7: NO | BW7: NO | BX7: NO | BY7: NO | BZ7: NO | CA7: NO | CB7: NO | CC7: YES | CE7: 3.98 | CG7: 3.98 | CH7: 3.98 | CI7: 3.98 | CJ7: 3.98 | CK7: 3.98 | CX7: 3.98 | CZ7: 7.46% | DB7: 8.13% | DC7: 7.99% | DD7: 7.72% | DE7: 8.33% | DF7: 9.00% | DS7: 11.97%
A8: U.S. small | C8: 3.80 | D8: 0.10 | E8: 1.75 | F8: =IFERROR((PRODUCT(1+$C8:$E8/100)-1)*100,"") -> 5.72 | G8: =IFERROR(INDEX(model_data,MATCH($A8,model_countries,0),MATCH(G$5,model_fields,0))*100,"") -> 4.39 | H8: 10.37 | I8: -2.50 | J8: 0.92 | K8: 8.62 | L8: -5.17 | M8: 1.50 | N8: 0.00 | O8: 4.58 | P8: 4.60 | R8: -1.58 | S8: 2.42 | U8: =PRODUCT(1+F8:G8/100)*100-100 -> 10.4 | V8: 8.6 | W8: 3.0 | Y8: 4.00 | Z8: 30.00 | AA8: 6.40 | AD8: USD | AE8: 0.00% | AF8: 4.58 | AG8: 4.60 | AI8: MXUSSC Index | AJ8: =_xll.BDP(AI8,"CRNCY") -> USD | AK8: =IF(AJ8="USD",1,_xll.BDH(AJ8&"USD CMPL Curncy","Px Last",end_date,end_date)) -> 1.000000 | AL8: =_xll.BDH(AI8,"Indx market cap",end_date,end_date)/10^6*AK8 -> 3.303251 | AO8: 5.73% | AQ8: 5.73% | AR8: 5.73% | AS8: 5.73% | AT8: 5.73% | AU8: 5.73% | BH8: 5.73% | BJ8: YES | BK8: NO | BL8: YES | BM8: YES | BN8: YES | BO8: YES | BP8: YES | BQ8: NO | BR8: NO | BS8: NO | BT8: NO | BU8: NO | BV8: NO | BW8: NO | BX8: NO | BY8: NO | BZ8: NO | CA8: NO | CB8: NO | CC8: YES | CE8: 3.30 | CG8: 3.30 | CH8: 3.30 | CI8: 3.30 | CJ8: 3.30 | CK8: 3.30 | CX8: 3.30 | CZ8: 6.19% | DB8: 6.75% | DC8: 6.63% | DD8: 6.41% | DE8: 6.92% | DF8: 7.47% | DS8: 9.94%
A9: Eurozone | C9: 2.60 | D9: 0.70 | E9: 1.00 | F9: =IFERROR((PRODUCT(1+$C9:$E9/100)-1)*100,"") -> 4.35 | G9: 1.52 | H9: 5.93 | I9: -2.00 | J9: 1.07 | K9: 4.95 | L9: -2.23 | M9: 2.50 | N9: 0.00 | O9: 5.20 | P9: 5.20 | R9: -0.93 | S9: 3.57 | U9: =PRODUCT(1+F9:G9/100)*100-100 -> 5.9 | V9: 4.9 | W9: 2.6 | Y9: 5.50 | Z9: 16.00 | AA9: 7.51 | AD9: EUR | AE9: 1.40% | AF9: 6.60 | AG9: 6.60 | AI9: MXEM Index | AJ9: =_xll.BDP(AI9,"CRNCY") -> EUR | AK9: =IF(AJ9="USD",1,_xll.BDH(AJ9&"USD Curncy","Px Last",end_date,end_date)) -> 1.172100 | AL9: =_xll.BDH(AI9,"Indx market cap",end_date,end_date)/10^6*AK9 -> 4.404182 | AO9: 7.64% | AP9: 7.64% | AR9: 7.64% | AS9: 7.64% | AT9: 7.64% | AU9: 7.64% | AV9: 7.64% | AW9: 7.64% | BJ9: YES | BK9: YES | BL9: NO | BM9: YES | BN9: YES | BO9: YES | BP9: YES | BQ9: YES | BR9: YES | BS9: NO | BT9: NO | BU9: NO | BV9: NO | BW9: NO | BX9: NO | BY9: NO | BZ9: NO | CA9: NO | CB9: NO | CC9: NO | CE9: 4.40 | CF9: 4.40 | CH9: 4.40 | CI9: 4.40 | CJ9: 4.40 | CK9: 4.40 | CL9: 4.40 | CM9: 4.40 | CZ9: 8.26% | DA9: 21.88% | DC9: 8.84% | DD9: 8.55% | DE9: 9.22% | DF9: 9.96% | DG9: 33.54% | DH9: 54.37%
A10: Eurozone Small Cap | C10: 2.60 | D10: 0.50 | E10: 2.50 | F10: =IFERROR((PRODUCT(1+$C10:$E10/100)-1)*100,"") -> 5.69 | G10: 0.89 | H10: =(1+F10/100)*(1+G10/100)*100-100 -> 6.63 | I10: -2.00 | J10: 0.86 | K10: =(1+H10/100)*(1+(I10+J10)/100)*100-100 -> 5.42 | L10: -2.04 | M10: 3.00 | N10: 0.00 | O10: 6.40 | P10: =IFERROR(ROUND(O10,1),"") -> 6.40 | R10: -1.14 | S10: =IFERROR(M10+J10,"") -> 3.86 | U10: =PRODUCT(1+F10:G10/100)*100-100 -> 6.6 | V10: =((1+U10/100)*(1+(I10+N10)/100)*(1+J10/100)-1)*100 -> 5.4 | W10: =((1+V10/100)*(1+L10/100)-1)*100 -> 3.2 | Y10: 6.50 | Z10: 20.00 | AA10: 9.56 | AD10: EUR | AE10: 1.40% | AF10: 7.80 | AG10: 7.80 | AI10: MXEMSC Index | AJ10: =_xll.BDP(AI10,"CRNCY") -> USD | AK10: =IF(AJ10="USD",1,_xll.BDH(AJ10&"USD CMPL Curncy","Px Last",end_date,end_date)) -> 1.000000 | AL10: =_xll.BDH(AI10,"Indx market cap",end_date,end_date)/10^6*AK10 -> 0.471642 | AX10: 0.82% | BJ10: NO | BK10: NO | BL10: NO | BM10: NO | BN10: NO | BO10: NO | BP10: NO | BQ10: NO | BR10: NO | BS10: YES | BT10: NO | BU10: NO | BV10: NO | BW10: NO | BX10: NO | BY10: NO | BZ10: NO | CA10: NO | CB10: NO | CC10: NO | CN10: 0.47 | DI10: 55.32%
A11: U.K. | C11: 3.60 | D11: 0.60 | E11: 1.00 | F11: =IFERROR((PRODUCT(1+$C11:$E11/100)-1)*100,"") -> 5.26 | G11: 0.20 | H11: 5.47 | I11: -2.00 | J11: 1.23 | K11: 4.66 | L11: -1.54 | M11: 3.50 | N11: 0.00 | O11: 6.68 | P11: 6.70 | R11: -0.77 | S11: 4.73 | U11: =PRODUCT(1+F11:G11/100)*100-100 -> 5.5 | V11: 4.6 | W11: 3.0 | Y11: 5.75 | Z11: 14.50 | AA11: 8.30 | AD11: GBP | AE11: 0.80% | AF11: 7.48 | AG11: 7.50 | AI11: MXGB Index | AJ11: =_xll.BDP(AI11,"CRNCY") -> GBP | AK11: =IF(AJ11="USD",1,_xll.BDH(AJ11&"USD Curncy","Px Last",end_date,end_date)) -> 1.292000 | AL11: =_xll.BDH(AI11,"Indx market cap",end_date,end_date)/10^6*AK11 -> 1.819489 | AO11: 3.16% | AP11: 3.16% | AQ11: 3.16% | AR11: 3.16% | AT11: 3.16% | AU11: 3.16% | AV11: 3.16% | AW11: 3.16% | AY11: 3.16% | BJ11: YES | BK11: YES | BL11: YES | BM11: YES | BN11: NO | BO11: YES | BP11: YES | BQ11: YES | BR11: YES | BS11: NO | BT11: YES | BU11: NO | BV11: NO | BW11: NO | BX11: NO | BY11: NO | BZ11: NO | CA11: NO | CB11: NO | CC11: NO | CE11: 1.82 | CF11: 1.82 | CG11: 1.82 | CH11: 1.82 | CJ11: 1.82 | CK11: 1.82 | CL11: 1.82 | CM11: 1.82 | CO11: 1.82 | CZ11: 3.41% | DA11: 9.04% | DB11: 3.72% | DC11: 3.65% | DE11: 3.81% | DF11: 4.12% | DG11: 13.85% | DH11: 22.46% | DJ11: 82.69%
A12: UK Small Cap | C12: 3.60 | D12: 0.20 | E12: 2.50 | F12: =IFERROR((PRODUCT(1+$C12:$E12/100)-1)*100,"") -> 6.40 | G12: 0.62 | H12: =(1+F12/100)*(1+G12/100)*100-100 -> 7.06 | I12: -2.50 | J12: 2.16 | K12: =(1+H12/100)*(1+(I12+J12)/100)*100-100 -> 6.69 | L12: -2.51 | M12: 3.00 | N12: 0.00 | O12: =IFERROR(INDEX(model_data,MATCH($A12,model_countries,0),MATCH(O$5,model_fields,0))*100,"") -> 7.14 | P12: =IFERROR(ROUND(O12,1),"") -> 7.10 | R12: -0.34 | S12: =IFERROR(M12+J12,"") -> 5.16 | U12: =PRODUCT(1+F12:G12/100)*100-100 -> 7.1 | V12: =((1+U12/100)*(1+(I12+N12)/100)*(1+J12/100)-1)*100 -> 6.6 | W12: =((1+V12/100)*(1+L12/100)-1)*100 -> 4.0 | Y12: 6.25 | Z12: 15.00 | AA12: 10.50 | AD12: GBP | AE12: 0.80% | AF12: 7.94 | AG12: 7.90 | AI12: MXGBSC Index | AJ12: USD | AK12: =IF(AJ12="USD",1,_xll.BDH(AJ12&"USD CMPL Curncy","Px Last",end_date,end_date)) -> 1.000000 | AL12: =_xll.BDH(AI12,"Indx market cap",end_date,end_date)/10^6*AK12 -> 0.380983 | AX12: 0.66% | AY12: 0.66% | BJ12: NO | BK12: NO | BL12: NO | BM12: NO | BN12: NO | BO12: NO | BP12: NO | BQ12: NO | BR12: NO | BS12: YES | BT12: YES | BU12: NO | BV12: NO | BW12: NO | BX12: NO | BY12: NO | BZ12: NO | CA12: NO | CB12: NO | CC12: NO | CN12: 0.38 | CO12: 0.38 | DI12: 44.68% | DJ12: 17.31%
A13: Japan | C13: 1.70 | D13: 0.70 | E13: 1.00 | F13: =IFERROR((PRODUCT(1+$C13:$E13/100)-1)*100,"") -> 3.44 | G13: 1.47 | H13: 4.95 | I13: -2.00 | J13: 1.51 | K13: 4.43 | L13: -1.87 | M13: 2.50 | N13: 0.00 | O13: 5.06 | P13: 5.10 | R13: -0.49 | S13: 4.01 | U13: =PRODUCT(1+F13:G13/100)*100-100 -> 5.0 | V13: 4.4 | W13: 2.5 | Y13: 5.25 | Z13: 16.00 | AA13: 6.93 | AD13: JPY | AE13: 1.40% | AF13: 6.46 | AG13: 6.50 | AI13: MXJP Index | AJ13: =_xll.BDP(AI13,"CRNCY") -> JPY | AK13: =IF(AJ13="USD",1,_xll.BDH(AJ13&"USD Curncy","Px Last",end_date,end_date)) -> 0.009483 | AL13: =_xll.BDH(AI13,"Indx market cap",end_date,end_date)/10^6*AK13 -> 3.537149 | AO13: 6.13% | AP13: 6.13% | AQ13: 6.13% | AS13: 6.13% | AT13: 6.13% | AV13: 6.13% | BJ13: YES | BK13: YES | BL13: YES | BM13: NO | BN13: YES | BO13: YES | BP13: NO | BQ13: YES | BR13: NO | BS13: NO | BT13: NO | BU13: NO | BV13: NO | BW13: NO | BX13: NO | BY13: NO | BZ13: NO | CA13: NO | CB13: NO | CC13: NO | CE13: 3.54 | CF13: 3.54 | CG13: 3.54 | CI13: 3.54 | CJ13: 3.54 | CL13: 3.54 | CZ13: 6.63% | DA13: 17.57% | DB13: 7.23% | DD13: 6.86% | DE13: 7.41% | DG13: 26.93%
A14: Japan Small Cap | C14: 1.70 | D14: 0.40 | E14: 2.00 | F14: =IFERROR((PRODUCT(1+$C14:$E14/100)-1)*100,"") -> 4.15 | G14: 0.38 | H14: =(1+F14/100)*(1+G14/100)*100-100 -> 4.54 | I14: -2.00 | J14: 1.99 | K14: =(1+H14/100)*(1+(I14+J14)/100)*100-100 -> 4.54 | L14: -1.39 | M14: 2.25 | N14: 0.00 | O14: 5.40 | P14: =IFERROR(ROUND(O14,1),"") -> 5.40 | R14: -0.01 | S14: =IFERROR(M14+J14,"") -> 4.24 | U14: =PRODUCT(1+F14:G14/100)*100-100 -> 4.5 | V14: =((1+U14/100)*(1+(I14+N14)/100)*(1+J14/100)-1)*100 -> 4.5 | W14: =((1+V14/100)*(1+L14/100)-1)*100 -> 3.0 | Y14: 6.00 | Z14: 18.00 | AA14: 7.80 | AD14: JPY | AE14: 1.40% | AF14: 6.80 | AG14: 6.80 | AI14: MXJPSC Index | AJ14: =_xll.BDP(AI14,"CRNCY") -> USD | AK14: =IF(AJ14="USD",1,_xll.BDH(AJ14&"USD CMPL Curncy","Px Last",end_date,end_date)) -> 1.000000 | AL14: =_xll.BDH(AI14,"Indx market cap",end_date,end_date)/10^6*AK14 -> 0.725919 | BJ14: NO | BK14: NO | BL14: NO | BM14: NO | BN14: NO | BO14: NO | BP14: NO | BQ14: NO | BR14: NO | BS14: NO | BT14: NO | BU14: NO | BV14: NO | BW14: NO | BX14: NO | BY14: NO | BZ14: NO | CA14: NO | CB14: NO | CC14: NO
A15: Australia | C15: 4.70 | D15: 0.20 | E15: 0.25 | F15: =IFERROR((PRODUCT(1+$C15:$E15/100)-1)*100,"") -> 5.17 | G15: 0.79 | H15: 6.00 | I15: -2.00 | J15: 0.37 | K15: 4.27 | L15: -2.01 | M15: 4.00 | N15: 0.00 | O15: 6.34 | P15: 6.30 | R15: -1.63 | S15: 4.37 | U15: =PRODUCT(1+F15:G15/100)*100-100 -> 6.0 | V15: 4.3 | W15: 2.2 | Y15: 9.00 | Z15: 17.00 | AA15: 9.07 | AD15: AUD | AE15: -0.10% | AF15: 6.24 | AG15: 6.20 | AI15: MXAU Index | AJ15: =_xll.BDP(AI15,"CRNCY") -> AUD | AK15: =IF(AJ15="USD",1,_xll.BDH(AJ15&"USD Curncy","Px Last",end_date,end_date)) -> 0.716200 | AL15: =_xll.BDH(AI15,"Indx market cap",end_date,end_date)/10^6*AK15 -> 0.898260 | AO15: 1.56% | AP15: 1.56% | AQ15: 1.56% | AR15: 1.56% | AS15: 1.56% | AT15: 1.56% | AU15: 1.56% | AV15: 1.56% | BE15: 1.56% | BF15: 1.56% | BJ15: YES | BK15: YES | BL15: YES | BM15: YES | BN15: YES | BO15: YES | BP15: YES | BQ15: YES | BR15: NO | BS15: NO | BT15: NO | BU15: NO | BV15: NO | BW15: NO | BX15: NO | BY15: NO | BZ15: YES | CA15: YES | CB15: NO | CC15: NO | CE15: 0.90 | CF15: 0.90 | CG15: 0.90 | CH15: 0.90 | CI15: 0.90 | CJ15: 0.90 | CK15: 0.90 | CL15: 0.90 | CU15: 0.90 | CV15: 0.90 | CZ15: 1.68% | DA15: 4.46% | DB15: 1.84% | DC15: 1.80% | DD15: 1.74% | DE15: 1.88% | DF15: 2.03% | DG15: 6.84% | DP15: 14.30% | DQ15: 60.09%
A16: Canada | C16: 3.50 | D16: 0.20 | E16: 0.50 | F16: =IFERROR((PRODUCT(1+$C16:$E16/100)-1)*100,"") -> 4.23 | G16: 0.20 | H16: 4.43 | I16: -2.00 | J16: 1.33 | K16: 3.73 | L16: -0.58 | M16: 3.00 | N16: 0.00 | O16: 6.24 | P16: 6.20 | R16: -0.67 | S16: 4.33 | U16: =PRODUCT(1+F16:G16/100)*100-100 -> 4.4 | V16: 3.7 | W16: 3.1 | Y16: 8.00 | Z16: 18.00 | AA16: 8.11 | AD16: CAD | AE16: 0.80% | AF16: 7.04 | AG16: 7.00 | AI16: MXCA Index | AJ16: =_xll.BDP(AI16,"CRNCY") -> CAD | AK16: =IF(AJ16="USD",1,_xll.BDH(AJ16&"USD CMPL Curncy","Px Last",end_date,end_date)) -> 0.751200 | AL16: =_xll.BDH(AI16,"Indx market cap",end_date,end_date)/10^6*AK16 -> 1.393306 | AO16: 2.42% | AP16: 2.42% | AQ16: 2.42% | AR16: 2.42% | AS16: 2.42% | AT16: 2.42% | AU16: 2.42% | BJ16: YES | BK16: YES | BL16: YES | BM16: YES | BN16: YES | BO16: YES | BP16: YES | BQ16: NO | BR16: NO | BS16: NO | BT16: NO | BU16: NO | BV16: NO | BW16: NO | BX16: NO | BY16: NO | BZ16: NO | CA16: NO | CB16: NO | CC16: NO | CE16: 1.39 | CF16: 1.39 | CG16: 1.39 | CH16: 1.39 | CI16: 1.39 | CJ16: 1.39 | CK16: 1.39 | CZ16: 2.61% | DA16: 6.92% | DB16: 2.85% | DC16: 2.80% | DD16: 2.70% | DE16: 2.92% | DF16: 3.15%
A17: Sweden | C17: 3.60 | D17: 0.00 | E17: 0.75 | F17: =IFERROR((PRODUCT(1+$C17:$E17/100)-1)*100,"") -> 4.38 | G17: -2.03 | H17: 2.25 | I17: -2.00 | J17: 2.65 | K17: 2.92 | L17: -0.76 | M17: 1.80 | N17: 0.00 | O17: 3.96 | P17: 4.00 | R17: 0.65 | S17: 4.45 | U17: =PRODUCT(1+F17:G17/100)*100-100 -> 2.3 | V17: 2.9 | W17: 2.1 | Y17: 9.25 | Z17: 17.00 | AA17: 8.16 | AD17: SEK | AE17: 1.50% | AF17: 5.46 | AG17: 5.50 | AI17: MXSE Index | AJ17: =_xll.BDP(AI17,"CRNCY") -> SEK | AK17: =IF(AJ17="USD",1,_xll.BDH(AJ17&"USD CMPL Curncy","Px Last",end_date,end_date)) -> 0.111709 | AL17: =_xll.BDH(AI17,"Indx market cap",end_date,end_date)/10^6*AK17 -> 0.457197 | AO17: 0.79% | AP17: 0.79% | AQ17: 0.79% | AR17: 0.79% | AS17: 0.79% | AT17: 0.79% | AU17: 0.79% | AV17: 0.79% | AW17: 0.79% | BJ17: YES | BK17: YES | BL17: YES | BM17: YES | BN17: YES | BO17: YES | BP17: YES | BQ17: YES | BR17: YES | BS17: NO | BT17: NO | BU17: NO | BV17: NO | BW17: NO | BX17: NO | BY17: NO | BZ17: NO | CA17: NO | CB17: NO | CC17: NO | CE17: 0.46 | CF17: 0.46 | CG17: 0.46 | CH17: 0.46 | CI17: 0.46 | CJ17: 0.46 | CK17: 0.46 | CL17: 0.46 | CM17: 0.46 | CZ17: 0.86% | DA17: 2.27% | DB17: 0.93% | DC17: 0.92% | DD17: 0.89% | DE17: 0.96% | DF17: 1.03% | DG17: 3.48% | DH17: 5.64%
A18: Singapore | C18: 4.20 | D18: 0.10 | E18: 0.75 | F18: =IFERROR((PRODUCT(1+$C18:$E18/100)-1)*100,"") -> 5.09 | G18: 3.13 | H18: 8.38 | I18: -2.00 | J18: 0.22 | K18: 6.44 | L18: -1.32 | M18: 3.25 | N18: 0.00 | O18: 8.51 | P18: 8.50 | R18: -1.78 | S18: 3.47 | U18: =PRODUCT(1+F18:G18/100)*100-100 -> 8.4 | V18: 6.4 | W18: 5.0 | Y18: 10.75 | Z18: 13.50 | AA18: 7.74 | AD18: SGD | AE18: 0.50% | AF18: 9.01 | AG18: 9.00 | AI18: MXSG Index | AJ18: =_xll.BDP(AI18,"CRNCY") -> SGD | AK18: =IF(AJ18="USD",1,_xll.BDH(AJ18&"USD CMPL Curncy","Px Last",end_date,end_date)) -> 0.732700 | AL18: =_xll.BDH(AI18,"Indx market cap",end_date,end_date)/10^6*AK18 -> 0.142646 | AO18: 0.25% | AP18: 0.25% | AQ18: 0.25% | AR18: 0.25% | AS18: 0.25% | AT18: 0.25% | AU18: 0.25% | AV18: 0.25% | BD18: 0.25% | BE18: 0.25% | BF18: 0.25% | BJ18: YES | BK18: YES | BL18: YES | BM18: YES | BN18: YES | BO18: YES | BP18: YES | BQ18: YES | BR18: NO | BS18: NO | BT18: NO | BU18: NO | BV18: NO | BW18: NO | BX18: NO | BY18: YES | BZ18: YES | CA18: YES | CB18: NO | CC18: NO | CE18: 0.14 | CF18: 0.14 | CG18: 0.14 | CH18: 0.14 | CI18: 0.14 | CJ18: 0.14 | CK18: 0.14 | CL18: 0.14 | CT18: =IF(BY18="YES",$AL18,"") -> 0.14 | CU18: =IF(BZ18="YES",$AL18,"") -> 0.14 | CV18: =IF(CA18="YES",$AL18,"") -> 0.14 | CW18: =IF(CB18="YES",$AL18,"") ->  | CX18: =IF(CC18="YES",$AL18,"") ->  | CZ18: 0.27% | DA18: 0.71% | DB18: 0.29% | DC18: 0.29% | DD18: 0.28% | DE18: 0.30% | DF18: 0.32% | DG18: 1.09% | DO18: 2.65% | DP18: 2.27% | DQ18: 9.54%
A19: Hong Kong (MSCI) | C19: 4.50 | D19: 0.60 | E19: 1.00 | F19: =IFERROR((PRODUCT(1+$C19:$E19/100)-1)*100,"") -> 6.18 | G19: 1.10 | H19: =(1+F19/100)*(1+G19/100)*100-100 -> 7.34 | I19: -2.00 | J19: 0.78 | K19: 6.03 | L19: -1.53 | M19: 3.00 | N19: 0.00 | O19: 7.58 | P19: 7.60 | R19: -1.22 | S19: 3.78 | U19: =PRODUCT(1+F19:G19/100)*100-100 -> 7.3 | V19: 6.0 | W19: 4.4 | Y19: 28.00 | Z19: 15.50 | AA19: 10.19 | AD19: HKD | AE19: 0.00% | AF19: 7.58 | AG19: 7.60 | AI19: MXHK Index | AJ19: =_xll.BDP(AI19,"CRNCY") -> HKD | AK19: =IF(AJ19="USD",1,_xll.BDH(AJ19&"USD CMPL Curncy","Px Last",end_date,end_date)) -> 0.129030 | AL19: =_xll.BDH(AI19,"Indx market cap",end_date,end_date)/10^6*AK19 -> 0.453858 | AO19: 0.79% | AP19: 0.79% | AQ19: 0.79% | AR19: 0.79% | AS19: 0.79% | AT19: 0.79% | AU19: 0.79% | AV19: 0.79% | BD19: 0.79% | BE19: 0.79% | BF19: 0.79% | BG19: 0.79% | BJ19: YES | BK19: YES | BL19: YES | BM19: YES | BN19: YES | BO19: YES | BP19: YES | BQ19: YES | BR19: NO | BS19: NO | BT19: NO | BU19: NO | BV19: NO | BW19: NO | BX19: NO | BY19: YES | BZ19: YES | CA19: YES | CB19: YES | CC19: NO | CE19: 0.45 | CF19: 0.45 | CG19: 0.45 | CH19: 0.45 | CI19: 0.45 | CJ19: 0.45 | CK19: =IF(BP19="YES",$AL19,"") -> 0.45 | CL19: =IF(BQ19="YES",$AL19,"") -> 0.45 | CM19: =IF(BR19="YES",$AL19,"") ->  | CN19: =IF(BS19="YES",$AL19,"") ->  | CO19: =IF(BT19="YES",$AL19,"") ->  | CP19: =IF(BU19="YES",$AL19,"") ->  | CQ19: =IF(BV19="YES",$AL19,"") ->  | CR19: =IF(BW19="YES",$AL19,"") ->  | CS19: =IF(BX19="YES",$AL19,"") ->  | CT19: 0.45 | CU19: 0.45 | CV19: 0.45 | CW19: 0.45 | CZ19: 0.85% | DA19: 2.26% | DB19: 0.93% | DC19: 0.91% | DD19: 0.88% | DE19: 0.95% | DF19: 1.03% | DG19: 3.46% | DO19: 8.43% | DP19: 7.23% | DQ19: 30.36% | DR19: 14.52%
A20: Switzerland | C20: 2.00 | D20: 0.60 | E20: 0.25 | F20: =IFERROR((PRODUCT(1+$C20:$E20/100)-1)*100,"") -> 2.87 | G20: -0.49 | H20: 2.36 | I20: -2.00 | J20: 1.90 | K20: 2.26 | L20: -1.30 | M20: 2.75 | N20: 0.00 | O20: 3.71 | P20: 3.70 | R20: -0.10 | S20: 4.65 | U20: =PRODUCT(1+F20:G20/100)*100-100 -> 2.4 | V20: 2.2 | W20: 0.9 | Y20: 9.50 | Z20: 18.50 | AA20: 8.11 | AD20: CHF | AE20: 1.10% | AF20: 4.81 | AG20: 4.80 | AI20: MXCH Index | AJ20: =_xll.BDP(AI20,"CRNCY") -> CHF | AK20: =IF(AJ20="USD",1,_xll.BDH(AJ20&"USD CMPL Curncy","Px Last",end_date,end_date)) -> 1.085300 | AL20: =_xll.BDH(AI20,"Indx market cap",end_date,end_date)/10^6*AK20 -> 1.420055 | AO20: 2.46% | AP20: 2.46% | AQ20: 2.46% | AR20: 2.46% | AS20: 2.46% | AT20: 2.46% | AU20: 2.46% | AV20: 2.46% | AW20: 2.46% | BJ20: YES | BK20: YES | BL20: YES | BM20: YES | BN20: YES | BO20: YES | BP20: YES | BQ20: YES | BR20: YES | BS20: NO | BT20: NO | BU20: NO | BV20: NO | BW20: NO | BX20: NO | BY20: NO | BZ20: NO | CA20: NO | CB20: NO | CC20: NO | CE20: 1.42 | CF20: 1.42 | CG20: 1.42 | CH20: 1.42 | CI20: 1.42 | CJ20: 1.42 | CK20: 1.42 | CL20: 1.42 | CM20: 1.42 | CZ20: 2.66% | DA20: 7.06% | DB20: 2.90% | DC20: 2.85% | DD20: 2.76% | DE20: 2.97% | DF20: 3.21% | DG20: 10.81% | DH20: 17.53%
A21: Brazil | C21: 6.70 | D21: 0.10 | E21: 1.25 | F21: =IFERROR((PRODUCT(1+$C21:$E21/100)-1)*100,"") -> 8.14 | G21: 2.89 | H21: 11.27 | I21: -3.96 | J21: 0.75 | K21: 7.70 | L21: -4.02 | M21: 3.50 | N21: 0.00 | O21: 7.10 | P21: 7.10 | R21: -3.21 | S21: 4.25 | U21: =PRODUCT(1+F21:G21/100)*100-100 -> 11.3 | V21: 7.7 | W21: 3.3 | Y21: 7.75 | Z21: 12.75 | AA21: 9.77 | AD21: BRL | AE21: 1.00% | AF21: 8.10 | AG21: 8.10 | AI21: MXBR Index | AJ21: =_xll.BDP(AI21,"CRNCY") -> USD | AK21: =IF(AJ21="USD",1,_xll.BDH(AJ21&"USD CMPL Curncy","Px Last",end_date,end_date)) -> 1.000000 | AL21: =_xll.BDH(AI21,"Indx market cap",end_date,end_date)/10^6*AK21 -> 0.290409 | AO21: 0.50% | AP21: 0.50% | AQ21: 0.50% | AR21: 0.50% | AS21: 0.50% | AZ21: 0.50% | BA21: 0.50% | BJ21: YES | BK21: YES | BL21: YES | BM21: YES | BN21: YES | BO21: NO | BP21: NO | BQ21: NO | BR21: NO | BS21: NO | BT21: NO | BU21: YES | BV21: YES | BW21: NO | BX21: NO | BY21: NO | BZ21: NO | CA21: NO | CB21: NO | CC21: NO | CE21: 0.29 | CF21: 0.29 | CG21: 0.29 | CH21: 0.29 | CI21: 0.29 | CP21: 0.29 | CQ21: 0.29 | CZ21: 0.54% | DA21: 1.44% | DB21: 0.59% | DC21: 0.58% | DD21: 0.56% | DK21: 5.19% | DL21: 73.62%
A22: Russia | C22: 6.40 | D22: 0.40 | E22: 1.25 | F22: =IFERROR((PRODUCT(1+$C22:$E22/100)-1)*100,"") -> 8.16 | G22: -0.41 | H22: 7.72 | I22: -6.30 | J22: 0.80 | K22: 1.79 | L22: -1.66 | M22: 6.00 | N22: 0.00 | O22: 6.45 | P22: 6.50 | R22: -5.50 | S22: 6.80 | U22: =PRODUCT(1+F22:G22/100)*100-100 -> 7.7 | V22: 1.7 | W22: 0.0 | Y22: 8.75 | Z22: 8.00 | AA22: 7.88 | AD22: RUB | AE22: 0.10% | AF22: 6.55 | AG22: 6.60 | AI22: MXRU Index | AJ22: =_xll.BDP(AI22,"CRNCY") -> USD | AK22: =IF(AJ22="USD",1,_xll.BDH(AJ22&"USD CMPL Curncy","Px Last",end_date,end_date)) -> 1.000000 | AL22: =_xll.BDH(AI22,"Indx market cap",end_date,end_date)/10^6*AK22 -> 0.194261 | AO22: 0.34% | AP22: 0.34% | AQ22: 0.34% | AR22: 0.34% | AS22: 0.34% | AZ22: 0.34% | BC22: 0.34% | BJ22: YES | BK22: YES | BL22: YES | BM22: YES | BN22: YES | BO22: NO | BP22: NO | BQ22: NO | BR22: NO | BS22: NO | BT22: NO | BU22: YES | BV22: NO | BW22: NO | BX22: YES | BY22: NO | BZ22: NO | CA22: NO | CB22: NO | CC22: NO | CE22: 0.19 | CF22: 0.19 | CG22: 0.19 | CH22: 0.19 | CI22: 0.19 | CP22: 0.19 | CS22: 0.19 | CZ22: 0.36% | DA22: 0.97% | DB22: 0.40% | DC22: 0.39% | DD22: 0.38% | DK22: 3.47% | DN22: 46.29%
A23: India | C23: 11.90 | D23: -1.70 | E23: 2.00 | F23: =IFERROR((PRODUCT(1+$C23:$E23/100)-1)*100,"") -> 12.20 | G23: 0.85 | H23: 13.15 | I23: -2.67 | J23: 0.50 | K23: 10.70 | L23: -3.13 | M23: 1.50 | N23: 0.00 | O23: 8.87 | P23: 8.90 | R23: -2.17 | S23: 2.00 | U23: =PRODUCT(1+F23:G23/100)*100-100 -> 13.2 | V23: 10.7 | W23: 7.2 | Y23: 8.00 | Z23: 17.00 | AA23: 10.37 | AD23: INR | AE23: 0.50% | AF23: 9.37 | AG23: 9.40 | AI23: MXIN Index | AJ23: =_xll.BDP(AI23,"CRNCY") -> INR | AK23: =IF(AJ23="USD",1,_xll.BDH(AJ23&"USD CMPL Curncy","Px Last",end_date,end_date)) -> 0.013593 | AL23: =_xll.BDH(AI23,"Indx market cap",end_date,end_date)/10^6*AK23 -> 0.527074 | AO23: 0.91% | AP23: 0.91% | AQ23: 0.91% | AR23: 0.91% | AS23: 0.91% | AZ23: 0.91% | BB23: 0.91% | BD23: 0.91% | BE23: 0.91% | BJ23: YES | BK23: YES | BL23: YES | BM23: YES | BN23: YES | BO23: NO | BP23: NO | BQ23: NO | BR23: NO | BS23: NO | BT23: NO | BU23: YES | BV23: NO | BW23: YES | BX23: NO | BY23: YES | BZ23: YES | CA23: NO | CB23: NO | CC23: NO | CE23: 0.53 | CF23: 0.53 | CG23: 0.53 | CH23: 0.53 | CI23: 0.53 | CP23: 0.53 | CR23: 0.53 | CT23: 0.53 | CU23: 0.53 | CZ23: 0.99% | DA23: 2.62% | DB23: 1.08% | DC23: 1.06% | DD23: 1.02% | DK23: 9.41% | DM23: 11.01% | DO23: 9.79% | DP23: 8.39%
A24: China (MSCI) | C24: 6.90 | D24: -0.20 | E24: 2.50 | F24: =IFERROR((PRODUCT(1+$C24:$E24/100)-1)*100,"") -> 9.35 | G24: -0.39 | H24: 8.93 | I24: -3.43 | J24: 0.25 | K24: 5.47 | L24: -1.02 | M24: 2.50 | N24: -0.50 | O24: 6.59 | P24: 6.60 | R24: -3.18 | S24: 2.75 | U24: =PRODUCT(1+F24:G24/100)*100-100 -> 8.9 | V24: 4.9 | W24: 3.8 | Y24: 12.25 | Z24: 13.80 | AA24: 8.92 | AD24: HKD | AE24: 0.00% | AF24: 6.59 | AG24: 6.60 | AI24: MXCN Index | AJ24: =_xll.BDP(AI24,"CRNCY") -> HKD | AK24: =IF(AJ24="USD",1,_xll.BDH(AJ24&"USD CMPL Curncy","Px Last",end_date,end_date)) -> 0.129030 | AL24: =_xll.BDH(AI24,"Indx market cap",end_date,end_date)/10^6*AK24 -> 2.671737 | AO24: 4.63% | AP24: 4.63% | AQ24: 4.63% | AR24: 4.63% | AS24: 4.63% | AZ24: 4.63% | BB24: 4.63% | BD24: 4.63% | BE24: 4.63% | BG24: 4.63% | BJ24: YES | BK24: YES | BL24: YES | BM24: YES | BN24: YES | BO24: NO | BP24: NO | BQ24: NO | BR24: NO | BS24: NO | BT24: NO | BU24: YES | BV24: NO | BW24: YES | BX24: NO | BY24: YES | BZ24: YES | CA24: NO | CB24: YES | CC24: NO | CE24: 2.67 | CF24: 2.67 | CG24: 2.67 | CH24: 2.67 | CI24: 2.67 | CP24: 2.67 | CR24: 2.67 | CT24: 2.67 | CU24: 2.67 | CW24: 2.67 | CZ24: 5.01% | DA24: 13.27% | DB24: 5.46% | DC24: 5.36% | DD24: 5.18% | DK24: 47.71% | DM24: 55.82% | DO24: 49.63% | DP24: 42.54% | DR24: 85.48%
A25: China A (DS) | C25: =IFERROR(INDEX(model_data,MATCH($A25,model_countries,0),MATCH(C$5,model_fields,0))*100,"") -> 6.90 | D25: =IFERROR(INDEX(model_data,MATCH($A25,model_countries,0),MATCH(D$5,model_fields,0))*100,"") -> -0.20 | E25: =IFERROR(INDEX(model_data,MATCH($A25,model_countries,0),MATCH(E$5,model_fields,0))*100,"") -> 2.00 | F25: =IFERROR((PRODUCT(1+$C25:$E25/100)-1)*100,"") -> 8.82 | G25: 0.24 | H25: 9.08 | I25: -3.27 | J25: 0.25 | K25: 5.79 | L25: -1.12 | M25: 2.25 | N25: -0.75 | O25: 6.28 | P25: 6.30 | R25: =IFERROR(INDEX(model_data,MATCH($A25,model_countries,0),MATCH(R$5,model_fields,0))*100,"") -> -3.02 | S25: 2.50 | U25: =PRODUCT(1+F25:G25/100)*100-100 -> 9.1 | V25: 5.0 | W25: 3.8 | Y25: 7.70 | Z25: 15.50 | AA25: 7.97 | AD25: CNY | AE25: 1.20% | AF25: 7.48 | AG25: 7.50 | AI25: MXCN1A Index | AJ25: =_xll.BDP(AI25,"CRNCY") -> CNY | AK25: =IF(AJ25="USD",1,_xll.BDH(AJ25&"USD CMPL Curncy","Px Last",end_date,end_date)) -> 0.147250 | AL25: =_xll.BDH(AI25,"Indx market cap",end_date,end_date)/10^6*AK25 -> 2.729442 | BJ25: NO | BK25: NO | BL25: NO | BM25: NO | BN25: NO | BO25: NO | BP25: NO | BQ25: NO | BR25: NO | BS25: NO | BT25: NO | BU25: NO | BV25: NO | BW25: NO | BX25: NO | BY25: NO | BZ25: NO | CA25: NO | CB25: NO | CC25: NO
A26: South Africa | C26: =IFERROR(INDEX(model_data,MATCH($A26,model_countries,0),MATCH(C$5,model_fields,0))*100,"") -> 7.80 | D26: -0.30 | E26: 1.50 | F26: =IFERROR((PRODUCT(1+$C26:$E26/100)-1)*100,"") -> 9.09 | G26: -0.21 | H26: 8.85 | I26: -2.31 | J26: 0.50 | K26: 6.89 | L26: -0.19 | M26: 3.50 | N26: 0.00 | O26: 10.48 | P26: 10.50 | R26: =IFERROR(INDEX(model_data,MATCH($A26,model_countries,0),MATCH(R$5,model_fields,0))*100,"") -> -1.81 | S26: 4.00 | U26: =PRODUCT(1+F26:G26/100)*100-100 -> 8.9 | V26: 6.9 | W26: 6.7 | Y26: 9.00 | Z26: 15.00 | AA26: 11.25 | AD26: ZAR | AE26: -1.20% | AF26: 9.28 | AG26: 9.30 | AI26: MXZA Index | AJ26: =_xll.BDP(AI26,"CRNCY") -> ZAR | AK26: =IF(AJ26="USD",1,_xll.BDH(AJ26&"USD CMPL Curncy","Px Last",end_date,end_date)) -> 0.059930 | AL26: =_xll.BDH(AI26,"Indx market cap",end_date,end_date)/10^6*AK26 -> 0.225355 | AO26: 0.39% | AP26: 0.39% | AQ26: 0.39% | AR26: 0.39% | AS26: 0.39% | AZ26: 0.39% | BC26: 0.39% | BJ26: YES | BK26: YES | BL26: YES | BM26: YES | BN26: YES | BO26: NO | BP26: NO | BQ26: NO | BR26: NO | BS26: NO | BT26: NO | BU26: YES | BV26: NO | BW26: NO | BX26: YES | BY26: NO | BZ26: NO | CA26: NO | CB26: NO | CC26: NO | CE26: 0.23 | CF26: 0.23 | CG26: 0.23 | CH26: 0.23 | CI26: 0.23 | CP26: 0.23 | CS26: 0.23 | CZ26: 0.42% | DA26: 1.12% | DB26: 0.46% | DC26: 0.45% | DD26: 0.44% | DK26: 4.02% | DN26: 53.71%
A27: Korea | C27: 3.90 | D27: 0.30 | E27: 0.50 | F27: =IFERROR((PRODUCT(1+$C27:$E27/100)-1)*100,"") -> 4.73 | G27: =IFERROR(INDEX(model_data,MATCH($A27,model_countries,0),MATCH(G$5,model_fields,0))*100,"") -> 2.62 | H27: 7.47 | I27: =IFERROR(INDEX(model_data,MATCH($A27,model_countries,0),MATCH(I$5,model_fields,0))*100,"") -> -1.49 | J27: 1.00 | K27: 6.94 | L27: -3.23 | M27: 2.00 | N27: 0.00 | O27: 5.57 | P27: 5.60 | R27: -0.49 | S27: 3.00 | U27: =PRODUCT(1+F27:G27/100)*100-100 -> 7.5 | V27: 6.9 | W27: 3.5 | Y27: 5.50 | Z27: 13.50 | AA27: 7.04 | AD27: KRW | AE27: 0.80% | AF27: 6.37 | AG27: 6.40 | AI27: MXKR Index | AJ27: =_xll.BDP(AI27,"CRNCY") -> KRW | AK27: =IF(AJ27="USD",1,_xll.BDH(AJ27&"USD CMPL Curncy","Px Last",end_date,end_date)) -> 0.085850 | AL27: =_xll.BDH(AI27,"Indx market cap",end_date-1,end_date-1)/10^6*AK27/100 -> 0.773207 | AO27: 1.34% | AP27: 1.34% | AQ27: 1.34% | AR27: 1.34% | AS27: 1.34% | AZ27: 1.34% | BB27: 1.34% | BD27: 1.34% | BE27: 1.34% | BJ27: YES | BK27: YES | BL27: YES | BM27: YES | BN27: YES | BO27: NO | BP27: NO | BQ27: NO | BR27: NO | BS27: NO | BT27: NO | BU27: YES | BV27: NO | BW27: YES | BX27: NO | BY27: YES | BZ27: YES | CA27: NO | CB27: NO | CC27: NO | CE27: 0.77 | CF27: 0.77 | CG27: 0.77 | CH27: 0.77 | CI27: 0.77 | CP27: 0.77 | CR27: 0.77 | CT27: 0.77 | CU27: 0.77 | CZ27: 1.45% | DA27: 3.84% | DB27: 1.58% | DC27: 1.55% | DD27: 1.50% | DK27: 13.81% | DM27: 16.15% | DO27: 14.36% | DP27: 12.31%
A28: Taiwan | C28: 2.60 | D28: 0.70 | E28: 0.50 | F28: =IFERROR((PRODUCT(1+$C28:$E28/100)-1)*100,"") -> 3.83 | G28: 0.14 | H28: 3.98 | I28: -0.72 | J28: 0.25 | K28: 3.48 | L28: -1.78 | M28: 3.75 | N28: 0.00 | O28: 5.47 | P28: 5.50 | R28: -0.47 | S28: 4.00 | U28: =PRODUCT(1+F28:G28/100)*100-100 -> 4.0 | V28: 3.5 | W28: 1.6 | Y28: 7.25 | Z28: 15.50 | AA28: 10.37 | AD28: TWD | AE28: 1.60% | AF28: 7.07 | AG28: 7.10 | AI28: MXTW Index | AJ28: =_xll.BDP(AI28,"CRNCY") -> TWD | AK28: =IF(AJ28="USD",1,_xll.BDH(AJ28&"USD CMPL Curncy","Px Last",end_date,end_date)) -> 0.034521 | AL28: =_xll.BDH(AI28,"Indx market cap",end_date,end_date)/10^6*AK28 -> 0.814291 | AO28: 1.41% | AP28: 1.41% | AQ28: 1.41% | AR28: 1.41% | AS28: 1.41% | AZ28: 1.41% | BB28: 1.41% | BD28: 1.41% | BE28: 1.41% | BJ28: YES | BK28: YES | BL28: YES | BM28: YES | BN28: YES | BO28: NO | BP28: NO | BQ28: NO | BR28: NO | BS28: NO | BT28: NO | BU28: YES | BV28: NO | BW28: YES | BX28: NO | BY28: YES | BZ28: YES | CA28: NO | CB28: NO | CC28: NO | CE28: 0.81 | CF28: 0.81 | CG28: 0.81 | CH28: 0.81 | CI28: 0.81 | CP28: 0.81 | CR28: 0.81 | CT28: 0.81 | CU28: 0.81 | CZ28: 1.53% | DA28: 4.05% | DB28: 1.66% | DC28: 1.63% | DD28: 1.58% | DK28: 14.54% | DM28: 17.01% | DO28: 15.13% | DP28: 12.96%
A29: Mexico | C29: 6.20 | D29: -0.20 | E29: 1.75 | F29: =IFERROR((PRODUCT(1+$C29:$E29/100)-1)*100,"") -> 7.84 | G29: 3.44 | H29: 11.55 | I29: -3.21 | J29: 1.50 | K29: 9.64 | L29: -1.88 | M29: 2.75 | N29: 0.00 | O29: 10.59 | P29: 10.60 | R29: -1.71 | S29: 4.25 | U29: =PRODUCT(1+F29:G29/100)*100-100 -> 11.5 | V29: 9.6 | W29: 7.5 | Y29: 7.50 | Z29: 15.25 | AA29: 10.71 | AD29: MXN | AE29: 0.00% | AF29: 10.59 | AG29: 10.60 | AI29: MXMX Index | AJ29: =_xll.BDP(AI29,"CRNCY") -> USD | AK29: =IF(AJ29="USD",1,_xll.BDH(AJ29&"USD CMPL Curncy","Px Last",end_date,end_date)) -> 1.000000 | AL29: =_xll.BDH(AI29,"Indx market cap",end_date,end_date)/10^6*AK29 -> 0.104039 | AO29: 0.18% | AP29: 0.18% | AQ29: 0.18% | AR29: 0.18% | AS29: 0.18% | AZ29: 0.18% | BA29: 0.18% | BJ29: YES | BK29: YES | BL29: YES | BM29: YES | BN29: YES | BO29: NO | BP29: NO | BQ29: NO | BR29: NO | BS29: NO | BT29: NO | BU29: YES | BV29: YES | BW29: NO | BX29: NO | BY29: NO | BZ29: NO | CA29: NO | CB29: NO | CC29: NO | CE29: 0.10 | CF29: 0.10 | CG29: 0.10 | CH29: 0.10 | CI29: 0.10 | CP29: 0.10 | CQ29: 0.10 | CZ29: 0.20% | DA29: 0.52% | DB29: 0.21% | DC29: 0.21% | DD29: 0.20% | DK29: 1.86% | DL29: 26.38%
A31: Aggregates
A32: ACWI | C32: =SUMPRODUCT(C$6:C$30,INDEX($AO$6:$BH$30,0,MATCH($A32,$AO$5:$BH$5,0)))/SUM(INDEX($AO$6:$BH$30,0,MATCH($A32,$AO$5:$BH$5,0))) -> 3.78 | D32: 0.31 | E32: 1.15 | F32: 5.30 | G32: 0.59 | H32: 5.92 | I32: -2.15 | J32: 1.63 | K32: 5.36 | L32: -2.62 | M32: 2.15 | N32: -0.03 | O32: 4.79 | P32: =IFERROR(ROUND(O32,1),"") -> 4.80 | R32: =SUMPRODUCT(R$6:R$30,INDEX($AO$6:$BC$30,0,MATCH($A32,$AO$5:$BC$5,0)))/SUM(INDEX($AO$6:$BC$30,0,MATCH($A32,$AO$5:$BC$5,0))) -> -0.51 | S32: 3.78 | U32: =SUMPRODUCT(U$6:U$30,INDEX($AO$6:$BC$30,0,MATCH($A32,$AO$5:$BC$5,0)))/SUM(INDEX($AO$6:$BC$30,0,MATCH($A32,$AO$5:$BC$5,0))) -> 5.9 | V32: 5.3 | W32: 2.5 | Y32: =SUMPRODUCT(Y$6:Y$30,INDEX($AO$6:$BH$30,0,MATCH($A32,$AO$5:$BH$5,0)))/SUM(INDEX($AO$6:$BH$30,0,MATCH($A32,$AO$5:$BH$5,0))) -> 7.75 | Z32: 19.16 | AA32: 9.47 | AF32: =SUMPRODUCT(AF$6:AF$29,INDEX($AO$6:$BH$29,0,MATCH($A32,$AO$5:$BH$5,0)))/SUM(INDEX($AO$6:$BH$29,0,MATCH($A32,$AO$5:$BH$5,0))) -> 5.13 | AG32: 5.10
A33: ACWI ex-US | C33: 3.76 | D33: 0.38 | E33: 1.07 | F33: 5.27 | G33: 0.75 | H33: 6.05 | I33: -2.22 | J33: 1.06 | K33: 4.81 | L33: -1.74 | M33: 2.78 | N33: -0.07 | O33: 5.81 | P33: =IFERROR(ROUND(O33,1),"") -> 5.80 | R33: -1.16 | S33: 3.83 | U33: 6.1 | V33: 4.7 | W33: 2.9 | Y33: 7.87 | Z33: 15.70 | AA33: 8.16 | AF33: 6.71 | AG33: 6.70
A34: ACWI ex-EMU | C34: 3.89 | D34: 0.28 | E34: 1.16 | F34: 5.39 | G34: 0.51 | H34: 5.92 | I34: -2.16 | J34: 1.69 | K34: 5.40 | L34: -2.65 | M34: 2.11 | N34: -0.03 | O34: 4.75 | P34: 4.80 | R34: -0.48 | S34: 3.80 | U34: 5.9 | V34: 5.3 | W34: 2.5 | Y34: 7.95 | Z34: 19.45 | AA34: 9.65 | AF34: 5.00 | AG34: 5.00
A35: ACWI ex-Japan | C35: 3.93 | D35: 0.28 | E35: 1.16 | F35: 5.43 | G35: 0.53 | H35: 5.99 | I35: -2.16 | J35: 1.64 | K35: 5.43 | L35: -2.67 | M35: 2.12 | N35: -0.03 | O35: 4.77 | P35: 4.80 | R35: -0.52 | S35: 3.76 | U35: 6.0 | V35: 5.4 | W35: 2.5 | Y35: 7.93 | Z35: 19.39 | AA35: 9.65 | AF35: 5.04 | AG35: 5.00
A36: ACWI ex-UK | C36: 3.79 | D36: 0.30 | E36: 1.15 | F36: 5.30 | G36: 0.60 | H36: 5.94 | I36: -2.15 | J36: 1.65 | K36: 5.39 | L36: -2.65 | M36: 2.10 | N36: -0.03 | O36: 4.72 | P36: 4.70 | R36: -0.51 | S36: 3.75 | U36: 5.9 | V36: 5.3 | W36: 2.5 | Y36: 7.82 | Z36: 19.33 | AA36: 9.51 | AF36: 5.05 | AG36: 5.00
A37: Developed World | C37: 3.49 | D37: 0.36 | E37: 1.08 | F37: 4.98 | G37: 0.61 | H37: 5.62 | I37: -2.08 | J37: 1.77 | K37: 5.29 | L37: -2.71 | M37: 2.08 | N37: 0.00 | O37: 4.56 | P37: 4.60 | R37: -0.30 | S37: 3.85 | U37: 5.6 | V37: 5.3 | W37: 2.4 | Y37: 7.53 | Z37: 19.76 | AA37: 9.51 | AF37: 4.89 | AG37: 4.90
A38: Developed World ex Japan | C38: 3.63 | D38: 0.33 | E38: 1.09 | F38: 5.10 | G38: 0.54 | H38: 5.67 | I38: -2.08 | J38: 1.79 | K38: 5.36 | L38: -2.78 | M38: 2.04 | N38: 0.00 | O38: 4.52 | P38: 4.50 | R38: -0.29 | S38: 3.84 | U38: 5.7 | V38: 5.3 | W38: 2.4 | Y38: 7.71 | Z38: 20.06 | AA38: 9.71 | AF38: 4.77 | AG38: 4.80
A39: EAFE | C39: 2.69 | D39: 0.61 | E39: 0.86 | F39: 4.20 | G39: 0.93 | H39: 5.17 | I39: -2.00 | J39: 1.29 | K39: 4.42 | L39: -1.84 | M39: 2.77 | N39: 0.00 | O39: 5.36 | P39: 5.40 | R39: -0.71 | S39: 4.06 | U39: 5.2 | V39: 4.4 | W39: 2.5 | Y39: 7.10 | Z39: 16.12 | AA39: 7.75 | AF39: 6.49 | AG39: 6.50
A40: European Large Cap | C40: 2.78 | D40: 0.62 | E40: 0.85 | F40: 4.30 | G40: 0.67 | H40: 5.00 | I40: -2.00 | J40: 1.34 | K40: 4.30 | L40: -1.83 | M40: 2.73 | N40: 0.00 | O40: 5.20 | P40: 5.20 | R40: -0.66 | S40: 4.07 | U40: 5.0 | V40: 4.3 | W40: 2.4 | Y40: 6.47 | Z40: 16.16 | AA40: 7.83 | AF40: 6.42 | AG40: 6.40
A41: European Small Cap | C41: 3.05 | D41: 0.37 | E41: 2.50 | F41: 6.01 | G41: 0.77 | H41: 6.82 | I41: -2.22 | J41: 1.44 | K41: 5.99 | L41: -2.25 | M41: 3.00 | N41: 0.00 | O41: 6.73 | P41: 6.70 | R41: -0.78 | S41: 4.44 | U41: 6.8 | V41: 6.0 | W41: 3.6 | Y41: 6.39 | Z41: 17.77 | AA41: 9.98 | AF41: 7.87 | AG41: 7.90
A42: UK All Cap | C42: =SUMPRODUCT(C$6:C$30,INDEX($AO$6:$BH$30,0,MATCH($A42,$AO$5:$BH$5,0)))/SUM(INDEX($AO$6:$BH$30,0,MATCH($A42,$AO$5:$BH$5,0))) -> 3.60 | D42: 0.53 | E42: 1.26 | F42: 5.46 | G42: 0.27 | H42: 5.75 | I42: -2.09 | J42: 1.39 | K42: 5.01 | L42: -1.71 | M42: 3.41 | N42: 0.00 | O42: 6.76 | P42: =IFERROR(ROUND(O42,1),"") -> 6.80 | R42: -0.70 | S42: 4.80 | U42: 5.7 | V42: 5.0 | W42: 3.2 | Y42: 5.84 | Z42: 14.59 | AA42: 8.68 | AF42: 7.56 | AG42: 7.60
A43: Emerging Markets | C43: 6.33 | D43: -0.11 | E43: 1.72 | F43: 8.04 | G43: 0.47 | H43: 8.53 | I43: -2.77 | J43: 0.46 | K43: 6.00 | L43: -1.79 | M43: 2.74 | N43: -0.24 | O43: 6.76 | P43: 6.80 | R43: -2.32 | S43: 3.19 | U43: 8.5 | V43: 5.7 | W43: 3.8 | Y43: 9.62 | Z43: 14.13 | AA43: 9.14 | AF43: 7.15 | AG43: 7.20
A44: Emerging Markets LATAM | C44: 6.57 | D44: 0.02 | E44: 1.38 | F44: 8.06 | G44: 3.03 | H44: 11.34 | I44: -3.76 | J44: 0.95 | K44: 8.21 | L44: -3.46 | M44: 3.30 | N44: 0.00 | O44: 8.02 | P44: 8.00 | R44: -2.81 | S44: 4.25 | U44: 11.3 | V44: 8.2 | W44: 4.4 | Y44: 7.68 | Z44: 13.41 | AA44: 10.01 | AF44: 8.76 | AG44: 8.80
A45: Emerging Markets Asia | C45: 6.23 | D45: -0.13 | E45: 1.78 | F45: 7.98 | G45: 0.32 | H45: 8.32 | I45: -2.57 | J45: 0.40 | K45: 5.95 | L45: -1.74 | M45: 2.52 | N45: -0.28 | O45: 6.49 | P45: 6.50 | R45: -2.172279893 | S45: 2.92 | U45: 8.3 | V45: 5.6 | W45: 3.8 | Y45: 9.84 | Z45: 14.39 | AA45: 9.02 | AF45: 6.95 | AG45: 6.90
A46: Emerging Markets EMEA | C46: 7.15 | D46: 0.02 | E46: 1.38 | F46: 8.66 | G46: -0.31 | H46: 8.33 | I46: -4.16 | J46: 0.64 | K46: 4.53 | L46: -0.87 | M46: 4.66 | N46: 0.00 | O46: 8.62 | P46: 8.60 | R46: -3.516397302 | S46: 5.30 | U46: 8.3 | V46: 4.5 | W46: 3.6 | Y46: 8.88 | Z46: 11.76 | AA46: 9.69 | AF46: 8.02 | AG46: 8.00
A47: AC Asia ex Japan | C47: 6.03 | D47: -0.06 | E47: 1.69 | F47: 7.75 | G47: 0.46 | H47: 8.24 | I47: -2.51 | J47: 0.43 | K47: 5.97 | L47: -1.71 | M47: 2.58 | N47: -0.25 | O47: 6.64 | P47: 6.60 | Y47: 11.40 | Z47: 14.46 | AA47: 9.09 | AF47: 7.05 | AG47: 7.10
A48: AC Asia-Pacifc ex Japan | C48: 5.84 | D48: -0.03 | E48: 1.48 | F48: 7.38 | G48: 0.51 | H48: 7.92 | I48: -2.44 | J48: 0.42 | K48: 5.73 | L48: -1.75 | M48: 2.78 | N48: -0.21 | O48: 6.59 | P48: 6.60 | Y48: 11.05 | Z48: 14.83 | AA48: 9.08 | AF48: 6.94 | AG48: 6.90
A49: Pacific ex Japan | C49: 4.59 | D49: 0.31 | E49: 0.53 | F49: 5.47 | G49: 1.11 | H49: 6.64 | I49: -2.00 | J49: 0.48 | K49: 5.02 | L49: -1.80 | M49: 3.62 | N49: 0.00 | O49: 6.92 | P49: 6.90 | Y49: 14.94 | Z49: 16.21 | AA49: 9.28 | AF49: 6.91 | AG49: 6.90
A50: Zhong Hua (MSCI) | C50: 6.55 | D50: -0.08 | E50: 2.28 | F50: 8.89 | G50: -0.17 | H50: 8.70 | I50: -3.22 | J50: 0.33 | K50: 5.55 | L50: -1.09 | M50: 2.57 | N50: -0.43 | O50: 6.74 | P50: 6.70 | Y50: 14.54 | Z50: 14.05 | AA50: 9.10 | AF50: 6.74 | AG50: 6.70
A51: U.S. total market | C51: 3.80 | D51: 0.27 | E51: 1.19 | F51: 5.32 | G51: 0.49 | H51: 5.84 | I51: -2.11 | J51: 1.98 | K51: 5.70 | L51: -3.15 | M51: 1.76 | N51: 0.00 | O51: 4.18 | P51: 4.20 | Y51: 7.68 | Z51: 21.26 | AA51: 10.26 | AF51: 4.18 | AG51: 4.20
A53: Mark to Market | C53: Contribution to total returns, % ann. | U53: Subtotals | Y53: Terminal assumptions | AD53: Conversion to USD
A55: Market | C55: Dom. growth | D55: Int'l contrib. | E55: Sales % GDP | F55: Revenue growth | G55: Margins impact | H55: Earnings growth | I55: Gross dilution | J55: Buybacks | K55: EPS growth | L55: Valuation impact | M55: Dividend yield | N55: Extra-ordinary | O55: Total Return | P55: Loc. ret., rounded | R55: Net dilution | S55: Payout yield | U55: Earnings growth | V55: EPS growth | W55: Price return | Y55: Target margins | Z55: Target P/E | AA55: Target ROE | AD55: Currency | AE55: App. vs. USD | AF55: USD total return | AG55: USD ret., rounded
A56: U.S. large | C56: 3.80 | D56: 0.25 | E56: 1.00 | F56: 5.10 | G56: -1.02 | H56: 4.02 | I56: -2.00 | J56: 2.69 | K56: 4.74 | L56: 0.32 | M56: 2.00 | N56: 0.00 | O56: 7.16 | P56: 7.20 | R56: 0.69 | S56: 4.69 | U56: 4.0 | V56: 4.7 | W56: 5.0 | Y56: 8.25 | Z56: 19.40 | AA56: 10.97 | AD56: USD | AE56: 0.00% | AF56: 7.16 | AG56: =IFERROR(ROUND(AF56,1),"") -> 7.20
A57: U.S. mid | C57: 3.80 | D57: 0.00 | E57: 2.00 | F57: 5.88 | G57: -1.50 | H57: 4.29 | I57: -2.50 | J57: 2.50 | K57: 4.29 | L57: 0.55 | M57: 1.75 | N57: 0.00 | O57: 6.69 | P57: 6.70 | R57: -0.00 | S57: 4.25 | U57: 4.3 | V57: 4.2 | W57: 4.8 | Y57: 7.00 | Z57: 18.50 | AA57: 8.82 | AD57: USD | AE57: 0.00% | AF57: 6.69 | AG57: 6.70
A58: U.S. small | C58: 3.80 | D58: 0.00 | E58: 1.75 | F58: 5.62 | G58: 0.10 | H58: 5.72 | I58: -2.50 | J58: 1.37 | K58: 4.53 | L58: 1.00 | M58: 1.50 | N58: 0.00 | O58: 7.18 | P58: 7.20 | R58: -1.13 | S58: 2.87 | U58: 5.7 | V58: 4.5 | W58: 5.5 | Y58: 4.00 | Z58: 29.00 | AA58: 6.40 | AD58: USD | AE58: 0.00% | AF58: 7.18 | AG58: 7.20
A59: Eurozone | C59: 2.50 | D59: 0.50 | E59: 1.00 | F59: 4.04 | G59: -0.67 | H59: 3.35 | I59: -2.50 | J59: 2.80 | K59: 3.66 | L59: 1.36 | M59: 3.00 | N59: 0.00 | O59: 8.21 | P59: 8.20 | R59: 0.30 | S59: 5.80 | U59: 3.3 | V59: 3.6 | W59: 5.0 | Y59: 5.50 | Z59: 15.50 | AA59: 8.09 | AD59: EUR | AE59: 1.80% | AF59: 10.01 | AG59: 10.00
A60: Eurozone Small Cap | C60: 2.50 | D60: 0.50 | E60: 2.50 | F60: 5.59 | G60: 0.37 | H60: 5.97 | I60: -2.00 | J60: 0.21 | K60: 4.08 | L60: -0.54 | M60: 2.00 | N60: 0.00 | O60: 6.69 | P60: 6.70 | R60: -1.79 | S60: 2.21 | U60: 6.0 | V60: 4.1 | W60: 3.5 | Y60: 5.00 | Z60: 16.00 | AA60: 7.35 | AD60: EUR | AE60: 1.80% | AF60: 8.49 | AG60: 8.50
A61: U.K. | C61: 3.20 | D61: 0.25 | E61: 1.00 | F61: 4.49 | G61: 0.40 | H61: 4.91 | I61: -2.00 | J61: 0.48 | K61: 3.31 | L61: 1.24 | M61: 3.50 | N61: 0.00 | O61: 8.31 | P61: 8.30 | R61: -1.52 | S61: 3.98 | U61: 4.9 | V61: 3.3 | W61: 4.6 | Y61: 6.25 | Z61: 15.50 | AA61: 7.83 | AD61: GBP | AE61: 1.80% | AF61: 10.11 | AG61: 10.10
A62: UK Small Cap | C62: 3.20 | D62: 0.25 | E62: 2.50 | F62: 6.04 | G62: -1.98 | H62: 3.95 | I62: -2.50 | J62: 2.12 | K62: 3.55 | L62: 1.46 | M62: 3.00 | N62: 0.00 | O62: 8.23 | P62: 8.20 | R62: -0.38 | S62: 5.12 | U62: 3.9 | V62: 3.5 | W62: 5.0 | Y62: 6.25 | Z62: 15.50 | AA62: 8.75 | AD62: GBP | AE62: 1.80% | AF62: 10.03 | AG62: 10.00
A63: Japan | C63: 1.40 | D63: 0.75 | E63: 1.00 | F63: 3.18 | G63: -0.07 | H63: 3.11 | I63: -2.00 | J63: 1.67 | K63: 2.77 | L63: 1.08 | M63: 2.50 | N63: 0.00 | O63: 6.49 | P63: 6.50 | R63: -0.33 | S63: 4.17 | U63: 3.1 | V63: 2.7 | W63: 3.8 | Y63: 5.25 | Z63: 15.50 | AA63: 6.44 | AD63: JPY | AE63: 1.70% | AF63: 8.19 | AG63: 8.20
A64: Japan Small Cap | C64: 1.40 | D64: 0.75 | E64: 1.00 | F64: 3.18 | G64: 2.21 | H64: 5.46 | I64: -2.00 | J64: 0.96 | K64: 4.37 | L64: 0.43 | M64: 2.25 | N64: 0.00 | O64: 7.20 | P64: 7.20 | R64: -1.04 | S64: 3.21 | U64: 5.5 | V64: 4.3 | W64: 4.8 | Y64: 5.00 | Z64: 16.20 | AA64: 6.63 | AD64: JPY | AE64: 1.70% | AF64: 8.90 | AG64: 8.90
A65: Australia | C65: 4.50 | D65: 0.25 | E65: 0.50 | F65: 5.29 | G65: -1.39 | H65: 3.82 | I65: -2.00 | J65: 0.79 | K65: 2.56 | L65: 1.74 | M65: 4.00 | N65: 0.00 | O65: 8.57 | P65: 8.60 | R65: -1.21 | S65: 4.79 | U65: 3.8 | V65: 2.5 | W65: 4.3 | Y65: 9.00 | Z65: 16.50 | AA65: 8.64 | AD65: AUD | AE65: 1.20% | AF65: 9.77 | AG65: 9.80
A66: Canada | C66: 3.40 | D66: 0.50 | E66: 0.50 | F66: 4.44 | G66: -1.25 | H66: 3.14 | I66: -2.00 | J66: 1.94 | K66: 3.07 | L66: 3.13 | M66: 2.50 | N66: 0.00 | O66: 8.96 | P66: 9.00 | R66: -0.06 | S66: 4.44 | U66: 3.1 | V66: 3.0 | W66: 6.3 | Y66: 8.50 | Z66: 18.00 | AA66: 8.07 | AD66: CAD | AE66: 1.70% | AF66: 10.66 | AG66: 10.70
A67: Sweden | C67: 3.30 | D67: 0.50 | E67: 0.75 | F67: 4.60 | G67: -4.08 | H67: 0.33 | I67: -2.00 | J67: 2.61 | K67: 0.94 | L67: 3.69 | M67: 3.00 | N67: 0.00 | O67: 7.78 | P67: 7.80 | R67: 0.61 | S67: 5.61 | U67: 0.3 | V67: 0.9 | W67: 4.6 | Y67: 9.00 | Z67: 17.00 | AA67: 8.44 | AD67: SEK | AE67: 2.50% | AF67: 10.28 | AG67: 10.30
A68: Singapore | C68: 3.90 | D68: 1.50 | E68: 0.75 | F68: 6.25 | G68: -0.51 | H68: 5.71 | I68: -2.50 | J68: 1.15 | K68: 4.28 | L68: 2.94 | M68: 3.50 | N68: 0.00 | O68: 11.15 | P68: 11.20 | R68: -1.35 | S68: 4.65 | U68: 5.7 | V68: 4.2 | W68: 7.3 | Y68: 10.75 | Z68: 13.50 | AA68: 8.17 | AD68: SGD | AE68: 0.70% | AF68: 11.85 | AG68: 11.90
A69: Hong Kong (MSCI) | C69: 4.00 | D69: 1.00 | E69: 1.00 | F69: 6.09 | G69: -0.60 | H69: 5.46 | I69: -2.00 | J69: -0.26 | K69: 3.07 | L69: 0.47 | M69: 3.00 | N69: 0.00 | O69: 6.73 | P69: 6.70 | R69: -2.26 | S69: 2.74 | U69: 5.5 | V69: 3.1 | W69: 3.6 | Y69: 15.00 | Z69: 16.00 | AA69: 6.48 | AD69: HKD | AE69: 0.00% | AF69: 6.73 | AG69: 6.70
A70: Switzerland | C70: 1.60 | D70: 0.75 | E70: 0.25 | F70: 2.62 | G70: -0.34 | H70: 2.27 | I70: -2.00 | J70: 2.89 | K70: 3.18 | L70: -0.09 | M70: 2.75 | N70: 0.00 | O70: 5.90 | P70: 5.90 | R70: 0.89 | S70: 5.64 | U70: 2.3 | V70: 3.1 | W70: 3.0 | Y70: 9.25 | Z70: 18.50 | AA70: 9.47 | AD70: CHF | AE70: 1.30% | AF70: 7.20 | AG70: 7.20
A71: Brazil | C71: 6.90 | D71: 0.00 | E71: 1.50 | F71: 8.50 | G71: -2.75 | H71: 5.52 | I71: -1.79 | J71: 0.75 | K71: 4.42 | L71: 1.39 | M71: 3.50 | N71: 0.00 | O71: 9.62 | P71: 9.60 | R71: -1.04 | S71: 4.25 | U71: 5.5 | V71: 4.4 | W71: 5.9 | Y71: 7.75 | Z71: 12.75 | AA71: 9.98 | AD71: BRL | AE71: 2.40% | AF71: 12.02 | AG71: 12.00
A72: Russia | C72: 6.70 | D72: 0.00 | E72: 1.25 | F72: 8.03 | G72: -4.48 | H72: 3.20 | I72: -1.62 | J72: 1.00 | K72: 2.56 | L72: 4.30 | M72: 4.00 | N72: 0.00 | O72: 11.27 | P72: 11.30 | R72: -0.62 | S72: 5.00 | U72: 3.2 | V72: 2.5 | W72: 6.9 | Y72: 8.75 | Z72: 8.00 | AA72: 7.88 | AD72: RUB | AE72: 0.80% | AF72: 12.07 | AG72: 12.10
A73: India | C73: 12.00 | D73: -0.50 | E73: 2.00 | F73: 13.67 | G73: 0.19 | H73: 13.88 | I73: -3.13 | J73: 0.25 | K73: 10.61 | L73: -0.00 | M73: 1.50 | N73: 0.00 | O73: 12.31 | P73: 12.30 | R73: -2.88 | S73: 1.75 | U73: 13.9 | V73: 10.6 | W73: 10.6 | Y73: 8.00 | Z73: 16.50 | AA73: 10.37 | AD73: INR | AE73: 1.80% | AF73: 14.11 | AG73: 14.10
A74: China (MSCI) | C74: 6.90 | D74: -0.25 | E74: 2.50 | F74: 9.30 | G74: 0.09 | H74: 9.39 | I74: -3.43 | J74: 0.25 | K74: 5.92 | L74: 0.48 | M74: 2.50 | N74: -0.50 | O74: 8.68 | P74: 8.70 | R74: -3.18 | S74: 2.75 | U74: 9.4 | V74: 5.4 | W74: 5.9 | Y74: 12.25 | Z74: 13.80 | AA74: 8.92 | AD74: HKD | AE74: 0.00% | AF74: 8.68 | AG74: 8.70
A75: China A (DS) | C75: 6.90 | D75: -0.25 | E75: 2.00 | F75: 8.77 | G75: 0.08 | H75: 8.85 | I75: -3.53 | J75: 0.25 | K75: 5.28 | L75: 1.30 | M75: 2.25 | N75: -0.75 | O75: 8.38 | P75: 8.40 | R75: -3.28 | S75: 2.50 | U75: 8.9 | V75: 4.5 | W75: 5.8 | Y75: 7.50 | Z75: 15.50 | AA75: 7.76 | AD75: CNY | AE75: 2.20% | AF75: 10.58 | AG75: 10.60
A76: South Africa | C76: 7.50 | D76: 0.00 | E76: 1.50 | F76: 9.11 | G76: -2.03 | H76: 6.90 | I76: -0.59 | J76: 0.50 | K76: 6.80 | L76: 2.83 | M76: 3.00 | N76: 0.00 | O76: 13.13 | P76: 13.10 | R76: -0.09 | S76: 3.50 | U76: 6.9 | V76: 6.8 | W76: 9.8 | Y76: 9.00 | Z76: 14.50 | AA76: 11.75 | AD76: ZAR | AE76: -0.50% | AF76: 12.63 | AG76: 12.60
A77: Korea | C77: 4.20 | D77: 0.25 | E77: 0.75 | F77: 5.24 | G77: 2.35 | H77: 7.72 | I77: -2.13 | J77: 1.25 | K77: 6.77 | L77: -0.33 | M77: 1.75 | N77: 0.00 | O77: 8.30 | P77: 8.30 | R77: -0.88 | S77: 3.00 | U77: 7.7 | V77: 6.7 | W77: 6.4 | Y77: 5.75 | Z77: 13.50 | AA77: 7.13 | AD77: KRW | AE77: 1.50% | AF77: 9.80 | AG77: 9.80
A78: Taiwan | C78: 2.70 | D78: 0.75 | E78: 0.75 | F78: 4.25 | G78: 0.63 | H78: 4.90 | I78: -1.36 | J78: 0.50 | K78: 4.00 | L78: 0.31 | M78: 3.75 | N78: 0.00 | O78: 8.27 | P78: 8.30 | R78: -0.86 | S78: 4.25 | U78: 4.9 | V78: 4.0 | W78: 4.3 | Y78: 7.50 | Z78: 15.50 | AA78: 9.75 | AD78: TWD | AE78: 1.70% | AF78: 9.97 | AG78: 10.00
A79: Mexico | C79: 5.90 | D79: -0.50 | E79: 1.75 | F79: 7.21 | G79: 0.49 | H79: 7.74 | I79: -1.70 | J79: 1.75 | K79: 7.79 | L79: 1.27 | M79: 2.00 | N79: 0.00 | O79: 11.35 | P79: 11.30 | R79: 0.05 | S79: 3.75 | U79: 7.7 | V79: 7.8 | W79: 9.1 | Y79: 7.50 | Z79: 15.25 | AA79: 10.71 | AD79: MXN | AE79: 0.60% | AF79: 11.95 | AG79: 11.90
A81: Aggregates
A82: ACWI | C82: 3.70 | D82: 0.28 | E82: 1.15 | F82: 5.18 | G82: -0.75 | H82: 4.39 | I82: -2.17 | J82: 2.13 | K82: 4.33 | L82: 0.76 | M82: 2.30 | N82: -0.02 | O82: 7.52 | P82: 7.50 | R82: -0.04 | S82: 4.43 | U82: 4.4 | V82: 4.3 | W82: 5.1 | Y82: 7.54 | Z82: 18.47 | AA82: 9.34 | AF82: 8.11 | AG82: =IFERROR(ROUND(AF82,1),"") -> 8.10
A83: ACWI ex-US | C83: 3.55 | D83: 0.41 | E83: 1.06 | F83: 5.07 | G83: -0.45 | H83: 4.59 | I83: -2.24 | J83: 1.55 | K83: 3.85 | L83: 1.25 | M83: 2.88 | N83: -0.05 | O83: 8.15 | P83: 8.10 | R83: -0.68 | S83: 4.43 | U83: 4.6 | V83: 3.8 | W83: 5.1 | Y83: 7.46 | Z83: 15.59 | AA83: 8.12 | AF83: 9.60 | AG83: 9.60
A84: ACWI ex-EMU | C84: 3.82 | D84: 0.26 | E84: 1.17 | F84: 5.30 | G84: -0.76 | H84: 4.50 | I84: -2.13 | J84: 2.06 | K84: 4.40 | L84: 0.70 | M84: 2.23 | N84: -0.02 | O84: 7.45 | P84: 7.50 | R84: -0.08 | S84: 4.29 | U84: 4.5 | V84: 4.3 | W84: 5.1 | Y84: 7.75 | Z84: 18.77 | AA84: 9.47 | AF84: 7.92 | AG84: 7.90
A85: ACWI ex-Japan | C85: 3.87 | D85: 0.24 | E85: 1.16 | F85: 5.34 | G85: -0.80 | H85: 4.49 | I85: -2.18 | J85: 2.16 | K85: 4.45 | L85: 0.73 | M85: 2.28 | N85: -0.02 | O85: 7.60 | P85: 7.60 | R85: -0.02 | S85: 4.44 | U85: 4.5 | V85: 4.4 | W85: 5.1 | Y85: 7.72 | Z85: 18.70 | AA85: 9.57 | AF85: 8.10 | AG85: 8.10
A86: ACWI ex-UK | C86: 3.72 | D86: 0.28 | E86: 1.16 | F86: 5.22 | G86: -0.81 | H86: 4.37 | I86: -2.18 | J86: 2.20 | K86: 4.38 | L86: 0.74 | M86: 2.24 | N86: -0.02 | O86: 7.48 | P86: 7.50 | R86: 0.03 | S86: 4.45 | U86: 4.4 | V86: 4.3 | W86: 5.1 | Y86: 7.60 | Z86: 18.61 | AA86: 9.42 | AF86: 8.01 | AG86: 8.00
A87: Developed World | C87: 3.39 | D87: 0.31 | E87: 1.09 | F87: 4.84 | G87: -0.81 | H87: 3.99 | I87: -2.13 | J87: 2.29 | K87: 4.15 | L87: 0.76 | M87: 2.26 | N87: 0.00 | O87: 7.31 | P87: 7.30 | R87: 0.16 | S87: 4.55 | U87: 4.0 | V87: 4.1 | W87: 4.9 | Y87: 7.35 | Z87: 18.95 | AA87: 9.36 | AF87: 7.86 | AG87: 7.90
A88: Developed World ex Japan | C88: 3.56 | D88: 0.28 | E88: 1.10 | F88: 4.98 | G88: -0.87 | H88: 4.06 | I88: -2.14 | J88: 2.34 | K88: 4.26 | L88: 0.73 | M88: 2.24 | N88: 0.00 | O88: 7.38 | P88: 7.40 | R88: 0.20 | S88: 4.59 | U88: 4.1 | V88: 4.2 | W88: 5.0 | Y88: 7.53 | Z88: 19.24 | AA88: 9.61 | AF88: 7.83 | AG88: 7.80
A89: EAFE | C89: 2.49 | D89: 0.56 | E89: 0.88 | F89: 3.97 | G89: -0.45 | H89: 3.50 | I89: -2.17 | J89: 1.85 | K89: 3.16 | L89: 1.20 | M89: 3.01 | N89: 0.00 | O89: 7.56 | P89: 7.60 | R89: -0.32 | S89: 4.86 | U89: 3.5 | V89: 3.1 | W89: 4.4 | Y89: 6.69 | Z89: 15.90 | AA89: 7.74 | AF89: 9.18 | AG89: 9.20
A90: European Large Cap | C90: 2.58 | D90: 0.47 | E90: 0.87 | F90: 3.96 | G90: -0.48 | H90: 3.47 | I90: -2.27 | J90: 2.19 | K90: 3.37 | L90: 1.20 | M90: 3.09 | N90: 0.00 | O90: 7.85 | P90: 7.90 | R90: -0.08 | S90: 5.28 | U90: 3.5 | V90: 3.3 | W90: 4.6 | Y90: 6.44 | Z90: 16.03 | AA90: 8.25 | AF90: 9.61 | AG90: 9.60
A91: European Small Cap | C91: 2.80 | D91: 0.39 | E91: 2.50 | F91: 5.79 | G91: -0.65 | H91: 5.09 | I91: -2.22 | J91: 1.04 | K91: 3.85 | L91: 0.33 | M91: 2.43 | N91: 0.00 | O91: 7.36 | P91: 7.40 | R91: -1.18 | S91: 3.48 | U91: 5.1 | V91: 3.8 | W91: 4.2 | Y91: 5.54 | Z91: 15.78 | AA91: 7.96 | AF91: 9.16 | AG91: 9.20
A92: UK All Cap | C92: 3.20 | D92: 0.25 | E92: 1.23 | F92: 4.73 | G92: 0.03 | H92: 4.76 | I92: -2.08 | J92: 0.73 | K92: 3.35 | L92: 1.27 | M92: 3.42 | N92: 0.00 | O92: 8.30 | P92: 8.30 | R92: -1.34 | S92: 4.16 | U92: 4.8 | V92: 3.3 | W92: 4.6 | Y92: 6.25 | Z92: 15.50 | AA92: 7.97 | AF92: 10.10 | AG92: 10.10
A93: Emerging Markets | C93: 6.67 | D93: -0.05 | E93: 1.76 | F93: 8.48 | G93: -0.21 | H93: 8.24 | I93: -2.50 | J93: 0.57 | K93: 6.12 | L93: 0.77 | M93: 2.63 | N93: -0.19 | O93: 9.59 | P93: 9.60 | R93: -1.94 | S93: 3.20 | U93: 8.2 | V93: 5.9 | W93: 6.7 | Y93: 9.36 | Z93: 13.91 | AA93: 9.21 | AF93: 10.48 | AG93: 10.50
A94: Emerging Markets LATAM | C94: 6.65 | D94: -0.12 | E94: 1.56 | F94: 8.19 | G94: -1.95 | H94: 6.07 | I94: -1.77 | J94: 1.00 | K94: 5.25 | L94: 1.36 | M94: 3.13 | N94: 0.00 | O94: 10.04 | P94: 10.00 | R94: -0.77 | S94: 4.13 | U94: 6.1 | V94: 5.2 | W94: 6.7 | Y94: 7.69 | Z94: 13.36 | AA94: 10.16 | AF94: 12.00 | AG94: 12.00
A95: Emerging Markets Asia | C95: 6.61 | D95: -0.05 | E95: 1.85 | F95: 8.53 | G95: 0.57 | H95: 9.13 | I95: -2.83 | J95: 0.46 | K95: 6.52 | L95: 0.24 | M95: 2.41 | N95: -0.26 | O95: 9.13 | P95: 9.10 | R95: -2.376906591 | S95: 2.87 | U95: 9.1 | V95: 6.2 | W95: 6.5 | Y95: 9.73 | Z95: 14.45 | AA95: 8.98 | AF95: 9.94 | AG95: 9.90
A96: Emerging Markets EMEA | C96: 7.06 | D96: 0.00 | E96: 1.36 | F96: 8.52 | G96: -3.38 | H96: 4.86 | I96: -1.15 | J96: 0.78 | K96: 4.47 | L96: 3.64 | M96: 3.55 | N96: 0.00 | O96: 12.11 | P96: 12.10 | R96: -0.378180444 | S96: 4.33 | U96: 4.9 | V96: 4.5 | W96: 8.2 | Y96: 8.86 | Z96: 10.92 | AA96: 9.62 | AF96: 12.32 | AG96: 12.30
A97: AC Asia ex Japan | C97: 6.19 | D97: 0.14 | E97: 1.70 | F97: 8.14 | G97: 0.39 | H97: 8.55 | I97: -2.72 | J97: 0.40 | K97: 6.02 | L97: 0.38 | M97: 2.52 | N97: -0.22 | O97: 8.94 | P97: 8.90 | Y97: 10.39 | Z97: 14.59 | AA97: 8.65 | AF97: 9.65 | AG97: 9.60
A98: AC Asia-Pacifc ex Japan | C98: 5.86 | D98: 0.16 | E98: 1.47 | F98: 7.59 | G98: 0.04 | H98: 7.63 | I98: -2.58 | J98: 0.48 | K98: 5.34 | L98: 0.65 | M98: 2.81 | N98: -0.17 | O98: 8.86 | P98: 8.90 | Y98: 10.12 | Z98: 14.96 | AA98: 8.65 | AF98: 9.67 | AG98: 9.70
A99: Pacific ex Japan | C99: 4.29 | D99: 0.60 | E99: 0.67 | F99: 5.62 | G99: -1.07 | H99: 4.50 | I99: -2.05 | J99: 0.52 | K99: 2.89 | L99: 1.49 | M99: 3.65 | N99: 0.00 | O99: 8.30 | P99: 8.30 | Y99: 10.94 | Z99: 16.04 | AA99: 7.96 | AF99: 9.10 | AG99: 9.10
A100: Zhong Hua (MSCI) | C100: 6.28 | D100: 0.02 | E100: 2.18 | F100: 8.61 | G100: -0.06 | H100: 8.55 | I100: -3.12 | J100: 0.14 | K100: 5.31 | L100: 0.48 | M100: 2.61 | N100: -0.39 | O100: 8.26 | P100: 8.30 | Y100: 12.84 | Z100: 14.27 | AA100: 8.40 | AF100: 8.26 | AG100: 8.30
A101: U.S. total market | C101: 3.80 | D101: 0.19 | E101: 1.22 | F101: 5.26 | G101: -0.95 | H101: 4.26 | I101: -2.12 | J101: 2.51 | K101: 4.66 | L101: 0.43 | M101: 1.91 | N101: 0.00 | O101: 7.11 | P101: 7.10 | Y101: 7.60 | Z101: 20.40 | AA101: 10.17 | AF101: 7.11 | AG101: 7.10
A103: 2020 | C103: Contribution to total returns, % ann. | U103: Subtotals | Y103: Terminal assumptions | AD103: Conversion to USD
A105: Market | C105: Dom. growth | D105: Int'l contrib. | E105: Sales % GDP | F105: Revenue growth | G105: Margins impact | H105: Earnings growth | I105: Gross dilution | J105: Buybacks | K105: EPS growth | L105: Valuation impact | M105: Dividend yield | N105: Extra-ordinary | O105: Total Return | P105: Loc. ret., rounded | R105: Net dilution | S105: Payout yield | U105: Earnings growth | V105: EPS growth | W105: Price return | Y105: Target margins | Z105: Target P/E | AA105: Target ROE | AD105: Currency | AE105: App. vs. USD | AF105: USD total return | AG105: USD ret., rounded
A106: U.S. large | C106: 3.80 | D106: 0.25 | E106: 1.00 | F106: 5.10 | G106: -1.08 | H106: 3.97 | I106: -2.00 | J106: 2.48 | K106: 4.47 | L106: -0.91 | M106: 2.00 | N106: 0.00 | O106: 5.58 | P106: 5.60 | R106: 0.48 | S106: 4.48 | U106: 4.0 | V106: 4.4 | W106: 3.5 | Y106: 8.25 | Z106: 19.40 | AA106: 10.97 | AD106: USD | AE106: 0.00% | AF106: 5.58 | AG106: =IFERROR(ROUND(AF106,1),"") -> 5.60
A107: U.S. mid | C107: 3.80 | D107: 0.00 | E107: 2.00 | F107: 5.88 | G107: -1.83 | H107: 3.94 | I107: -2.50 | J107: 2.52 | K107: 3.96 | L107: 0.10 | M107: 1.75 | N107: 0.00 | O107: 5.89 | P107: 5.90 | R107: 0.02 | S107: 4.27 | U107: 3.9 | V107: 3.9 | W107: 4.0 | Y107: 7.00 | Z107: 18.50 | AA107: 8.82 | AD107: USD | AE107: 0.00% | AF107: 5.89 | AG107: =IFERROR(ROUND(AF107,1),"") -> 5.90
A108: U.S. small | C108: 3.80 | D108: 0.00 | E108: 1.75 | F108: 5.62 | G108: -0.25 | H108: 5.35 | I108: -2.50 | J108: 1.40 | K108: 4.19 | L108: 0.68 | M108: 1.50 | N108: 0.00 | O108: 6.49 | P108: 6.50 | R108: -1.10 | S108: 2.90 | U108: 5.3 | V108: 4.2 | W108: 4.9 | Y108: 4.00 | Z108: 29.00 | AA108: 6.40 | AD108: USD | AE108: 0.00% | AF108: 6.49 | AG108: 6.50
A109: Eurozone | C109: 2.50 | D109: 0.50 | E109: 1.00 | F109: 4.04 | G109: -0.46 | H109: 3.57 | I109: -2.00 | J109: 2.40 | K109: 3.46 | L109: -0.56 | M109: 3.00 | N109: 0.00 | O109: 5.97 | P109: 6.00 | R109: -0.10 | S109: 5.40 | U109: 3.6 | V109: 3.4 | W109: 2.8 | Y109: 5.50 | Z109: 15.50 | AA109: 8.09 | AD109: EUR | AE109: 1.90% | AF109: 7.87 | AG109: 7.90
A110: Eurozone Small Cap | C110: 2.50 | D110: 0.50 | E110: 2.50 | F110: 5.59 | G110: -0.04 | H110: 5.54 | I110: -2.00 | J110: 0.15 | K110: 3.59 | L110: -0.70 | M110: 3.00 | N110: 0.00 | O110: 6.01 | P110: 6.00 | R110: -1.85 | S110: 3.15 | U110: 5.5 | V110: 3.6 | W110: 2.9 | Y110: 5.00 | Z110: 16.00 | AA110: 7.35 | AD110: EUR | AE110: 1.90% | AF110: 7.91 | AG110: 7.90
A111: U.K. | C111: 3.20 | D111: 0.25 | E111: 1.00 | F111: 4.49 | G111: -1.02 | H111: 3.43 | I111: -2.00 | J111: 1.03 | K111: 2.42 | L111: 0.08 | M111: 3.50 | N111: 0.00 | O111: 6.13 | P111: 6.10 | R111: -0.97 | S111: 4.53 | U111: 3.4 | V111: 2.4 | W111: 2.5 | Y111: 6.25 | Z111: 15.50 | AA111: 7.83 | AD111: GBP | AE111: 1.50% | AF111: 7.63 | AG111: 7.60
A112: UK Small Cap | C112: 3.20 | D112: 0.25 | E112: 2.50 | F112: 6.04 | G112: -1.77 | H112: 4.17 | I112: -2.50 | J112: 1.80 | K112: 3.43 | L112: 0.52 | M112: 3.00 | N112: 0.00 | O112: 7.12 | P112: 7.10 | R112: -0.70 | S112: 4.80 | U112: 4.2 | V112: 3.4 | W112: 3.9 | Y112: 6.25 | Z112: 15.50 | AA112: 8.75 | AD112: GBP | AE112: 1.50% | AF112: 8.62 | AG112: 8.60
A113: Japan | C113: 1.40 | D113: 0.75 | E113: 1.00 | F113: 3.18 | G113: -0.59 | H113: 2.57 | I113: -2.00 | J113: 1.64 | K113: 2.20 | L113: 0.69 | M113: 2.50 | N113: 0.00 | O113: 5.49 | P113: 5.50 | R113: -0.36 | S113: 4.14 | U113: 2.6 | V113: 2.2 | W113: 2.9 | Y113: 5.25 | Z113: 15.50 | AA113: 6.44 | AD113: JPY | AE113: 1.70% | AF113: 7.19 | AG113: 7.20
A114: Japan Small Cap | C114: 1.40 | D114: 0.75 | E114: 1.00 | F114: 3.18 | G114: 1.33 | H114: 4.55 | I114: -2.00 | J114: 1.03 | K114: 3.54 | L114: 0.07 | M114: 2.25 | N114: 0.00 | O114: 5.97 | P114: 6.00 | R114: -0.97 | S114: 3.28 | U114: 4.6 | V114: 3.5 | W114: 3.6 | Y114: 5.00 | Z114: 16.20 | AA114: 6.63 | AD114: JPY | AE114: 1.70% | AF114: 7.67 | AG114: 7.70
A115: Australia | C115: 4.50 | D115: 0.25 | E115: 0.50 | F115: 5.29 | G115: -1.67 | H115: 3.53 | I115: -2.00 | J115: 0.58 | K115: 2.06 | L115: -0.41 | M115: 4.00 | N115: 0.00 | O115: 5.76 | P115: 5.80 | R115: -1.42 | S115: 4.58 | U115: 3.5 | V115: 2.0 | W115: 1.6 | Y115: 9.00 | Z115: 16.50 | AA115: 8.64 | AD115: AUD | AE115: 0.50% | AF115: 6.26 | AG115: 6.30
A116: Canada | C116: 3.40 | D116: 0.50 | E116: 0.50 | F116: 4.44 | G116: -0.91 | H116: 3.49 | I116: -2.00 | J116: 1.59 | K116: 3.06 | L116: 1.12 | M116: 2.50 | N116: 0.00 | O116: 6.83 | P116: 6.80 | R116: -0.41 | S116: 4.09 | U116: 3.5 | V116: 3.0 | W116: 4.2 | Y116: 8.50 | Z116: 18.00 | AA116: 8.07 | AD116: CAD | AE116: 1.20% | AF116: 8.03 | AG116: 8.00
A117: Sweden | C117: 3.30 | D117: 0.50 | E117: 0.75 | F117: 4.60 | G117: -1.20 | H117: 3.34 | I117: -2.00 | J117: 1.15 | K117: 2.46 | L117: 0.06 | M117: 3.00 | N117: 0.00 | O117: 5.62 | P117: 5.60 | R117: -0.85 | S117: 4.15 | U117: 3.3 | V117: 2.4 | W117: 2.5 | Y117: 9.00 | Z117: 17.00 | AA117: 8.44 | AD117: SEK | AE117: 2.50% | AF117: 8.12 | AG117: 8.10
A118: Singapore | C118: 4.20 | D118: 1.50 | E118: 0.75 | F118: 6.56 | G118: -0.81 | H118: 5.69 | I118: -2.50 | J118: 0.83 | K118: 3.92 | L118: 1.33 | M118: 3.50 | N118: 0.00 | O118: 9.05 | P118: 9.10 | R118: -1.67 | S118: 4.33 | U118: 5.7 | V118: 3.9 | W118: 5.3 | Y118: 10.75 | Z118: 13.50 | AA118: 8.17 | AD118: SGD | AE118: 0.60% | AF118: 9.65 | AG118: 9.70
A119: Hong Kong (MSCI) | C119: 4.00 | D119: 1.00 | E119: 1.00 | F119: 6.09 | G119: -1.57 | H119: 4.42 | I119: -2.00 | J119: 0.28 | K119: 2.63 | L119: 0.53 | M119: 3.00 | N119: 0.00 | O119: 6.32 | P119: 6.30 | R119: -1.72 | S119: 3.28 | U119: 4.4 | V119: 2.6 | W119: 3.2 | Y119: 15.00 | Z119: 16.00 | AA119: 6.48 | AD119: HKD | AE119: 0.00% | AF119: 6.32 | AG119: 6.30
A120: Switzerland | C120: 1.60 | D120: 0.75 | E120: 0.25 | F120: 2.62 | G120: 0.13 | H120: 2.75 | I120: -2.00 | J120: 1.87 | K120: 2.61 | L120: -1.80 | M120: 2.75 | N120: 0.00 | O120: 3.54 | P120: 3.50 | R120: -0.13 | S120: 4.62 | U120: 2.8 | V120: 2.6 | W120: 0.7 | Y120: 9.25 | Z120: 18.50 | AA120: 9.47 | AD120: CHF | AE120: 1.50% | AF120: 5.04 | AG120: 5.00
A121: Brazil | C121: 6.90 | D121: 0.00 | E121: 1.50 | F121: 8.50 | G121: -3.04 | H121: 5.21 | I121: -1.96 | J121: 0.75 | K121: 3.94 | L121: -0.98 | M121: 3.50 | N121: 0.00 | O121: 6.57 | P121: 6.60 | R121: -1.21 | S121: 4.25 | U121: 5.2 | V121: 3.9 | W121: 2.9 | Y121: 7.75 | Z121: 12.75 | AA121: 9.98 | AD121: BRL | AE121: 0.60% | AF121: 7.17 | AG121: 7.20
A122: Russia | C122: 6.70 | D122: 0.00 | E122: 1.25 | F122: 8.03 | G122: -4.28 | H122: 3.41 | I122: -2.26 | J122: 1.00 | K122: 2.11 | L122: 2.97 | M122: 4.00 | N122: 0.00 | O122: 9.40 | P122: 9.40 | R122: -1.26 | S122: 5.00 | U122: 3.4 | V122: 2.1 | W122: 5.1 | Y122: 8.75 | Z122: 8.00 | AA122: 7.88 | AD122: RUB | AE122: -0.60% | AF122: 8.80 | AG122: 8.80
A123: India | C123: 12.00 | D123: -0.50 | E123: 2.00 | F123: 13.67 | G123: 0.63 | H123: 14.38 | I123: -3.13 | J123: 0.25 | K123: 11.08 | L123: -2.23 | M123: 1.50 | N123: 0.00 | O123: 10.28 | P123: 10.30 | R123: -2.88 | S123: 1.75 | U123: 14.4 | V123: 11.1 | W123: 8.6 | Y123: 8.00 | Z123: 16.50 | AA123: 10.37 | AD123: INR | AE123: 1.40% | AF123: 11.68 | AG123: 11.70
A124: China (MSCI) | C124: 6.90 | D124: -0.25 | E124: 2.50 | F124: 9.30 | G124: 0.16 | H124: 9.48 | I124: -3.50 | J124: 0.25 | K124: 5.92 | L124: 0.84 | M124: 2.50 | N124: -0.50 | O124: 9.07 | P124: 9.10 | R124: -3.25 | S124: 2.75 | U124: 9.5 | V124: 5.4 | W124: 6.2 | Y124: 12.25 | Z124: 13.80 | AA124: 8.92 | AD124: HKD | AE124: 0.00% | AF124: 9.07 | AG124: 9.10
A125: China A (DS) | C125: 6.90 | D125: -0.25 | E125: 2.00 | F125: 8.77 | G125: 0.04 | H125: 8.81 | I125: -3.54 | J125: 0.25 | K125: 5.24 | L125: 1.07 | M125: 2.25 | N125: -0.75 | O125: 8.08 | P125: 8.10 | R125: -3.29 | S125: 2.50 | U125: 8.8 | V125: 4.4 | W125: 5.5 | Y125: 7.50 | Z125: 15.50 | AA125: 7.76 | AD125: CNY | AE125: 2.00% | AF125: 10.08 | AG125: 10.10
A126: South Africa | C126: 7.50 | D126: 0.00 | E126: 1.50 | F126: 9.11 | G126: -1.32 | H126: 7.67 | I126: -1.12 | J126: 0.50 | K126: 7.00 | L126: -0.26 | M126: 3.00 | N126: 0.00 | O126: 9.94 | P126: 9.90 | R126: -0.62 | S126: 3.50 | U126: 7.7 | V126: 7.0 | W126: 6.7 | Y126: 9.00 | Z126: 14.50 | AA126: 11.75 | AD126: ZAR | AE126: -1.80% | AF126: 8.14 | AG126: 8.10
A127: Korea | C127: 4.20 | D127: 0.25 | E127: 0.75 | F127: 5.24 | G127: 0.28 | H127: 5.53 | I127: -1.49 | J127: 1.25 | K127: 5.28 | L127: 0.69 | M127: 1.75 | N127: 0.00 | O127: 7.87 | P127: 7.90 | R127: -0.24 | S127: 3.00 | U127: 5.5 | V127: 5.3 | W127: 6.0 | Y127: 5.75 | Z127: 13.50 | AA127: 7.13 | AD127: KRW | AE127: 1.40% | AF127: 9.27 | AG127: 9.30
A128: Taiwan | C128: 2.70 | D128: 0.75 | E128: 0.75 | F128: 4.25 | G128: 1.32 | H128: 5.62 | I128: -1.82 | J128: 0.50 | K128: 4.23 | L128: -0.66 | M128: 3.75 | N128: 0.00 | O128: 7.48 | P128: 7.50 | R128: -1.32 | S128: 4.25 | U128: 5.6 | V128: 4.2 | W128: 3.5 | Y128: 7.50 | Z128: 15.50 | AA128: 9.75 | AD128: TWD | AE128: 2.00% | AF128: 9.48 | AG128: 9.50
A129: Mexico | C129: 5.90 | D129: -0.50 | E129: 1.75 | F129: 7.21 | G129: 0.35 | H129: 7.59 | I129: -1.80 | J129: 1.75 | K129: 7.54 | L129: -0.02 | M129: 2.00 | N129: 0.00 | O129: 9.68 | P129: 9.70 | R129: -0.05 | S129: 3.75 | U129: 7.6 | V129: 7.5 | W129: 7.5 | Y129: 7.50 | Z129: 15.25 | AA129: 10.71 | AD129: MXN | AE129: -0.80% | AF129: 8.88 | AG129: 8.90
A131: Aggregates
A132: ACWI | C132: 3.70 | D132: 0.28 | E132: 1.15 | F132: 5.19 | G132: -0.89 | H132: 4.25 | I132: -2.18 | J132: 1.97 | K132: 4.03 | L132: -0.35 | M132: 2.30 | N132: -0.02 | O132: 6.03 | P132: 6.00 | R132: -0.20 | S132: 4.27 | U132: 4.2 | V132: 4.0 | W132: 3.6 | Y132: 7.54 | Z132: 18.47 | AA132: 9.34 | AF132: 6.54 | AG132: 6.50
A133: ACWI ex-US | C133: 3.55 | D133: 0.41 | E133: 1.06 | F133: 5.08 | G133: -0.61 | H133: 4.44 | I133: -2.26 | J133: 1.39 | K133: 3.51 | L133: 0.01 | M133: 2.88 | N133: -0.05 | O133: 6.48 | P133: 6.50 | R133: -0.86 | S133: 4.28 | U133: 4.4 | V133: 3.4 | W133: 3.4 | Y133: 7.46 | Z133: 15.59 | AA133: 8.11 | AF133: 7.76 | AG133: 7.80
A134: ACWI ex-EMU | C134: 3.82 | D134: 0.26 | E134: 1.17 | F134: 5.30 | G134: -0.93 | H134: 4.32 | I134: -2.14 | J134: 1.93 | K134: 4.09 | L134: -0.33 | M134: 2.23 | N134: -0.02 | O134: 6.04 | P134: 6.00 | R134: -0.21 | S134: 4.16 | U134: 4.3 | V134: 4.0 | W134: 3.7 | Y134: 7.75 | Z134: 18.77 | AA134: 9.47 | AF134: 6.41 | AG134: 6.40
A135: ACWI ex-Japan | C135: 3.88 | D135: 0.24 | E135: 1.16 | F135: 5.34 | G135: -0.91 | H135: 4.38 | I135: -2.19 | J135: 2.00 | K135: 4.17 | L135: -0.43 | M135: 2.28 | N135: -0.02 | O135: 6.07 | P135: 6.10 | R135: -0.19 | S135: 4.28 | U135: 4.4 | V135: 4.1 | W135: 3.7 | Y135: 7.72 | Z135: 18.70 | AA135: 9.57 | AF135: 6.50 | AG135: 6.50
A136: ACWI ex-UK | C136: 3.72 | D136: 0.28 | E136: 1.16 | F136: 5.22 | G136: -0.88 | H136: 4.29 | I136: -2.18 | J136: 2.02 | K136: 4.11 | L136: -0.37 | M136: 2.24 | N136: -0.02 | O136: 6.02 | P136: 6.00 | R136: -0.16 | S136: 4.26 | U136: 4.3 | V136: 4.0 | W136: 3.6 | Y136: 7.60 | Z136: 18.61 | AA136: 9.42 | AF136: 6.49 | AG136: 6.50
A137: Developed World | C137: 3.39 | D137: 0.31 | E137: 1.09 | F137: 4.84 | G137: -0.95 | H137: 3.84 | I137: -2.13 | J137: 2.12 | K137: 3.83 | L137: -0.40 | M137: 2.26 | N137: 0.00 | O137: 5.75 | P137: 5.70 | R137: -0.01 | S137: 4.39 | U137: 3.8 | V137: 3.8 | W137: 3.4 | Y137: 7.35 | Z137: 18.95 | AA137: 9.36 | AF137: 6.27 | AG137: 6.30
A138: Developed World ex Japan | C138: 3.56 | D138: 0.28 | E138: 1.10 | F138: 4.98 | G138: -0.98 | H138: 3.95 | I138: -2.14 | J138: 2.16 | K138: 3.97 | L138: -0.50 | M138: 2.24 | N138: 0.00 | O138: 5.77 | P138: 5.80 | R138: 0.02 | S138: 4.41 | U138: 3.9 | V138: 3.9 | W138: 3.4 | Y138: 7.53 | Z138: 19.24 | AA138: 9.61 | AF138: 6.19 | AG138: 6.20
A139: EAFE | C139: 2.49 | D139: 0.56 | E139: 0.88 | F139: 3.97 | G139: -0.68 | H139: 3.26 | I139: -2.17 | J139: 1.66 | K139: 2.73 | L139: -0.16 | M139: 3.01 | N139: 0.00 | O139: 5.67 | P139: 5.70 | R139: -0.51 | S139: 4.67 | U139: 3.3 | V139: 2.7 | W139: 2.5 | Y139: 6.69 | Z139: 15.90 | AA139: 7.74 | AF139: 7.24 | AG139: 7.20
A140: European Large Cap | C140: 2.58 | D140: 0.47 | E140: 0.87 | F140: 3.96 | G140: -0.55 | H140: 3.39 | I140: -2.27 | J140: 1.90 | K140: 3.01 | L140: -0.56 | M140: 3.09 | N140: 0.00 | O140: 5.62 | P140: 5.60 | R140: -0.37 | S140: 4.99 | U140: 3.4 | V140: 3.0 | W140: 2.4 | Y140: 6.44 | Z140: 16.03 | AA140: 8.25 | AF140: 7.38 | AG140: 7.40
A141: European Small Cap | C141: 2.80 | D141: 0.39 | E141: 2.50 | F141: 5.79 | G141: -0.79 | H141: 4.95 | I141: -2.22 | J141: 0.87 | K141: 3.53 | L141: -0.17 | M141: 3.00 | N141: 0.00 | O141: 6.49 | P141: 6.50 | R141: -1.35 | S141: 3.87 | U141: 4.9 | V141: 3.5 | W141: 3.3 | Y141: 5.54 | Z141: 15.78 | AA141: 7.96 | AF141: 8.22 | AG141: 8.20
A142: UK All Cap | C142: 3.20 | D142: 0.25 | E142: 1.23 | F142: 4.73 | G142: -1.13 | H142: 3.54 | I142: -2.08 | J142: 1.14 | K142: 2.58 | L142: 0.15 | M142: 3.42 | N142: 0.00 | O142: 6.28 | P142: 6.30 | R142: -0.93 | S142: 4.57 | U142: 3.5 | V142: 2.6 | W142: 2.7 | Y142: 6.25 | Z142: 15.50 | AA142: 7.97 | AF142: 7.78 | AG142: 7.80
A143: Emerging Markets | C143: 6.66 | D143: -0.05 | E143: 1.75 | F143: 8.47 | G143: -0.29 | H143: 8.15 | I143: -2.59 | J143: 0.57 | K143: 5.94 | L143: 0.14 | M143: 2.63 | N143: -0.19 | O143: 8.71 | P143: 8.70 | R143: -2.02 | S143: 3.20 | U143: 8.2 | V143: 5.7 | W143: 5.8 | Y143: 9.34 | Z143: 13.91 | AA143: 9.20 | AF143: 9.20 | AG143: 9.20
A144: Emerging Markets LATAM | C144: 6.65 | D144: -0.12 | E144: 1.56 | F144: 8.19 | G144: -2.20 | H144: 5.79 | I144: -1.92 | J144: 1.00 | K144: 4.82 | L144: -0.74 | M144: 3.13 | N144: 0.00 | O144: 7.33 | P144: 7.30 | R144: -0.92 | S144: 4.13 | U144: 5.8 | V144: 4.8 | W144: 4.0 | Y144: 7.69 | Z144: 13.36 | AA144: 10.16 | AF144: 7.59 | AG144: 7.60
A145: Emerging Markets Asia | C145: 6.60 | D145: -0.05 | E145: 1.85 | F145: 8.52 | G145: 0.44 | H145: 8.99 | I145: -2.83 | J145: 0.46 | K145: 6.38 | L145: 0.09 | M145: 2.40 | N145: -0.26 | O145: 8.81 | P145: 8.80 | R145: -2.367796668 | S145: 2.87 | U145: 9.0 | V145: 6.1 | W145: 6.2 | Y145: 9.71 | Z145: 14.45 | AA145: 8.97 | AF145: 9.59 | AG145: 9.60
A146: Emerging Markets EMEA | C146: 7.06 | D146: 0.00 | E146: 1.36 | F146: 8.52 | G146: -2.95 | H146: 5.33 | I146: -1.75 | J146: 0.78 | K146: 4.31 | L146: 1.51 | M146: 3.55 | N146: 0.00 | O146: 9.64 | P146: 9.60 | R146: -0.9743185015 | S146: 4.33 | U146: 5.3 | V146: 4.3 | W146: 5.8 | Y146: 8.86 | Z146: 10.92 | AA146: 9.62 | AF146: 8.50 | AG146: 8.50
A147: AC Asia ex Japan | C147: 6.19 | D147: 0.14 | E147: 1.70 | F147: 8.15 | G147: 0.15 | H147: 8.31 | I147: -2.72 | J147: 0.46 | K147: 5.83 | L147: 0.19 | M147: 2.52 | N147: -0.21 | O147: 8.53 | P147: 8.50 | Y147: 10.37 | Z147: 14.59 | AA147: 8.64 | AF147: 9.21 | AG147: 9.20
A148: AC Asia-Pacifc ex Japan | C148: 5.86 | D148: 0.16 | E148: 1.47 | F148: 7.59 | G148: -0.21 | H148: 7.38 | I148: -2.58 | J148: 0.48 | K148: 5.10 | L148: 0.08 | M148: 2.81 | N148: -0.17 | O148: 7.99 | P148: 8.00 | Y148: 10.11 | Z148: 14.96 | AA148: 8.64 | AF148: 8.64 | AG148: 8.60
A149: Pacific ex Japan | C149: 4.32 | D149: 0.60 | E149: 0.67 | F149: 5.66 | G149: -1.55 | H149: 4.02 | I149: -2.05 | J149: 0.52 | K149: 2.43 | L149: 0.05 | M149: 3.65 | N149: 0.00 | O149: 6.28 | P149: 6.30 | Y149: 10.95 | Z149: 16.03 | AA149: 7.96 | AF149: 6.65 | AG149: 6.60
A150: Zhong Hua (MSCI) | C150: 6.28 | D150: 0.02 | E150: 2.18 | F150: 8.61 | G150: -0.21 | H150: 8.39 | I150: -3.17 | J150: 0.26 | K150: 5.21 | L150: 0.77 | M150: 2.61 | N150: -0.39 | O150: 8.48 | P150: 8.50 | Y150: 12.84 | Z150: 14.27 | AA150: 8.39 | AF150: 8.48 | AG150: 8.50
A151: U.S. total market | C151: 3.80 | D151: 0.19 | E151: 1.22 | F151: 5.26 | G151: -1.08 | H151: 4.13 | I151: -2.12 | J151: 2.36 | K151: 4.37 | L151: -0.59 | M151: 1.91 | N151: 0.00 | O151: 5.73 | P151: 5.70 | Y151: 7.60 | Z151: 20.40 | AA151: 10.17 | AF151: 5.73 | AG151: 5.70
A153: 2021 vs. Mark to Market | C153: Contribution to total returns, % ann. | U153: Subtotals | Y153: Terminal assumptions | AD153: Conversion to USD
A155: Market | C155: Dom. growth | D155: Int'l contrib. | E155: Sales % GDP | F155: Revenue growth | G155: Margins impact | H155: Earnings growth | I155: Gross dilution | J155: Buybacks | K155: EPS growth | L155: Valuation impact | M155: Dividend yield | N155: Extra-ordinary | O155: Total Return | P155: Loc. ret., rounded | R155: Net dilution | S155: Payout yield | U155: Earnings growth | V155: EPS growth | W155: Price return | Y155: Target margins | Z155: Target P/E | AA155: Target ROE | AD155: Currency | AE155: App. vs. USD | AF155: USD total return | AG155: USD ret., rounded
A156: U.S. large | C156: =C6-C56 -> 0.00 | D156: 0.05 | E156: 0.00 | F156: 0.05 | G156: 1.13 | H156: 1.24 | I156: 0.00 | J156: -0.54 | K156: 0.67 | L156: -3.32 | M156: -0.20 | N156: 0.00 | O156: -3.08 | P156: -3.10 | R156: =R6-R56 -> -0.54 | S156: -0.74 | T156: 0.00 | U156: 1.24 | V156: 0.68 | W156: -2.81 | X156: 0.00 | Y156: 0.00 | Z156: 1.10 | AA156: 0.00 | AD156: USD | AE156: =AE6-AE56 -> 0.00% | AF156: -3.08 | AG156: -3.10
A157: U.S. mid | C157: =C7-C57 -> 0.00 | D157: 0.20 | E157: 0.00 | F157: 0.21 | G157: 1.30 | H157: 1.59 | I157: 0.00 | J157: -0.66 | K157: 0.89 | L157: -2.99 | M157: 0.00 | N157: 0.00 | O157: -2.27 | P157: -2.30 | R157: =R7-R57 -> -0.66 | S157: -0.66 | T157: 0.00 | U157: 1.59 | V157: 0.91 | W157: -2.23 | X157: 0.00 | Y157: 0.00 | Z157: 0.50 | AA157: 0.00 | AD157: USD | AE157: 0.00% | AF157: -2.27 | AG157: -2.30
A158: U.S. small | C158: =C8-C58 -> 0.00 | D158: 0.10 | E158: 0.00 | F158: 0.11 | G158: 4.29 | H158: 4.65 | I158: 0.00 | J158: -0.46 | K158: 4.09 | L158: -6.17 | M158: 0.00 | N158: 0.00 | O158: -2.60 | P158: -2.60 | R158: =R8-R58 -> -0.46 | S158: -0.46 | T158: 0.00 | U158: 4.65 | V158: 4.10 | W158: -2.56 | X158: 0.00 | Y158: 0.00 | Z158: 1.00 | AA158: 0.00 | AD158: USD | AE158: 0.00% | AF158: -2.60 | AG158: -2.60
A159: Eurozone | C159: =C9-C59 -> 0.10 | D159: 0.20 | E159: 0.00 | F159: 0.31 | G159: 2.18 | H159: 2.59 | I159: 0.50 | J159: -1.73 | K159: 1.29 | L159: -3.59 | M159: -0.50 | N159: 0.00 | O159: -3.01 | P159: -3.00 | R159: =R9-R59 -> -1.23 | S159: -2.23 | T159: 0.00 | U159: 2.59 | V159: 1.34 | W159: -2.40 | X159: 0.00 | Y159: 0.00 | Z159: 0.50 | AA159: -0.58 | AD159: EUR | AE159: -0.40% | AF159: -3.41 | AG159: -3.40
A160: Eurozone Small Cap | C160: =C10-C60 -> 0.10 | D160: 0.00 | E160: 0.00 | F160: 0.10 | G160: 0.52 | H160: 0.66 | I160: 0.00 | J160: 0.65 | K160: 1.34 | L160: -1.50 | M160: 1.00 | N160: 0.00 | O160: -0.28 | P160: -0.30 | R160: =R10-R60 -> 0.65 | S160: 1.65 | T160: 0.00 | U160: 0.66 | V160: 1.32 | W160: -0.27 | X160: 0.00 | Y160: 1.50 | Z160: 4.00 | AA160: 2.21 | AD160: EUR | AE160: -0.40% | AF160: -0.68 | AG160: -0.70
A161: U.K. | C161: =C11-C61 -> 0.40 | D161: 0.35 | E161: 0.00 | F161: 0.77 | G161: -0.20 | H161: 0.57 | I161: 0.00 | J161: 0.75 | K161: 1.35 | L161: -2.78 | M161: 0.00 | N161: 0.00 | O161: -1.63 | P161: -1.60 | R161: =R11-R61 -> 0.75 | S161: 0.75 | T161: 0.00 | U161: 0.57 | V161: 1.33 | W161: -1.56 | X161: 0.00 | Y161: -0.50 | Z161: -1.00 | AA161: 0.48 | AD161: GBP | AE161: -1.00% | AF161: -2.63 | AG161: -2.60
A162: UK Small Cap | C162: =C12-C62 -> 0.40 | D162: -0.05 | E162: 0.00 | F162: 0.36 | G162: 2.59 | H162: 3.11 | I162: 0.00 | J162: 0.04 | K162: 3.14 | L162: -3.97 | M162: 0.00 | N162: 0.00 | O162: -1.08 | P162: -1.10 | R162: =R12-R62 -> 0.04 | S162: 0.04 | T162: 0.00 | U162: 3.11 | V162: 3.14 | W162: -1.05 | X162: 0.00 | Y162: 0.00 | Z162: -0.50 | AA162: 1.75 | AD162: GBP | AE162: -1.00% | AF162: -2.08 | AG162: -2.10
A163: Japan | C163: =C13-C63 -> 0.30 | D163: -0.05 | E163: 0.00 | F163: 0.25 | G163: 1.54 | H163: 1.84 | I163: 0.00 | J163: -0.17 | K163: 1.66 | L163: -2.95 | M163: 0.00 | N163: 0.00 | O163: -1.43 | P163: -1.40 | R163: =R13-R63 -> -0.17 | S163: -0.17 | T163: 0.00 | U163: 1.84 | V163: 1.66 | W163: -1.40 | X163: 0.00 | Y163: 0.00 | Z163: 0.50 | AA163: 0.50 | AD163: JPY | AE163: -0.30% | AF163: -1.73 | AG163: -1.70
A164: Japan Small Cap | C164: =C14-C64 -> 0.30 | D164: -0.35 | E164: 1.00 | F164: 0.97 | G164: -1.83 | H164: -0.92 | I164: 0.00 | J164: 1.03 | K164: 0.17 | L164: -1.82 | M164: 0.00 | N164: 0.00 | O164: -1.80 | P164: -1.80 | R164: =R14-R64 -> 1.03 | S164: 1.03 | T164: 0.00 | U164: -0.92 | V164: 0.15 | W164: -1.76 | X164: 0.00 | Y164: 1.00 | Z164: 1.80 | AA164: 1.17 | AD164: JPY | AE164: -0.30% | AF164: -2.10 | AG164: -2.10
A165: Australia | C165: =C15-C65 -> 0.20 | D165: -0.05 | E165: -0.25 | F165: -0.11 | G165: 2.18 | H165: 2.19 | I165: 0.00 | J165: -0.42 | K165: 1.71 | L165: -3.74 | M165: 0.00 | N165: 0.00 | O165: -2.23 | P165: -2.30 | R165: =R15-R65 -> -0.42 | S165: -0.42 | T165: 0.00 | U165: 2.19 | V165: 1.72 | W165: -2.15 | X165: 0.00 | Y165: 0.00 | Z165: 0.50 | AA165: 0.43 | AD165: AUD | AE165: -1.30% | AF165: -3.53 | AG165: -3.60
A166: Canada | C166: =C16-C66 -> 0.10 | D166: -0.30 | E166: 0.00 | F166: -0.21 | G166: 1.44 | H166: 1.29 | I166: 0.00 | J166: -0.61 | K166: 0.65 | L166: -3.71 | M166: 0.50 | N166: 0.00 | O166: -2.72 | P166: -2.80 | R166: =R16-R66 -> -0.61 | S166: -0.11 | T166: 0.00 | U166: 1.29 | V166: 0.67 | W166: -3.16 | X166: 0.00 | Y166: -0.50 | Z166: 0.00 | AA166: 0.05 | AD166: CAD | AE166: -0.90% | AF166: -3.62 | AG166: -3.70
A167: Sweden | C167: =C17-C67 -> 0.30 | D167: -0.50 | E167: 0.00 | F167: -0.22 | G167: 2.05 | H167: 1.93 | I167: 0.00 | J167: 0.04 | K167: 1.98 | L167: -4.45 | M167: -1.20 | N167: 0.00 | O167: -3.82 | P167: -3.80 | R167: =R17-R67 -> 0.04 | S167: -1.16 | T167: 0.00 | U167: 1.93 | V167: 1.98 | W167: -2.53 | X167: 0.00 | Y167: 0.25 | Z167: 0.00 | AA167: -0.28 | AD167: SEK | AE167: -1.00% | AF167: -4.82 | AG167: -4.80
A168: Singapore | C168: =C18-C68 -> 0.30 | D168: -1.40 | E168: 0.00 | F168: -1.16 | G168: 3.64 | H168: 2.67 | I168: 0.50 | J168: -0.93 | K168: 2.17 | L168: -4.26 | M168: -0.25 | N168: 0.00 | O168: -2.64 | P168: -2.70 | R168: =R18-R68 -> -0.43 | S168: -1.18 | T168: 0.00 | U168: 2.67 | V168: 2.19 | W168: -2.28 | X168: 0.00 | Y168: 0.00 | Z168: 0.00 | AA168: -0.43 | AD168: SGD | AE168: -0.20% | AF168: -2.84 | AG168: -2.90
A169: Hong Kong (MSCI) | C169: =C19-C69 -> 0.50 | D169: -0.40 | E169: 0.00 | F169: 0.09 | G169: 1.70 | H169: 1.89 | I169: 0.00 | J169: 1.04 | K169: 2.97 | L169: -2.00 | M169: 0.00 | N169: 0.00 | O169: 0.85 | P169: 0.90 | R169: =R19-R69 -> 1.04 | S169: 1.04 | T169: 0.00 | U169: 1.89 | V169: 2.94 | W169: 0.83 | X169: 0.00 | Y169: 13.00 | Z169: -0.50 | AA169: 3.71 | AD169: HKD | AE169: 0.00% | AF169: 0.85 | AG169: 0.90
A170: Switzerland | C170: =C20-C70 -> 0.40 | D170: -0.15 | E170: 0.00 | F170: 0.25 | G170: -0.15 | H170: 0.09 | I170: 0.00 | J170: -0.99 | K170: -0.92 | L170: -1.21 | M170: 0.00 | N170: 0.00 | O170: -2.19 | P170: -2.20 | R170: =R20-R70 -> -0.99 | S170: -0.99 | T170: 0.00 | U170: 0.09 | V170: -0.90 | W170: -2.14 | X170: 0.00 | Y170: 0.25 | Z170: 0.00 | AA170: -1.36 | AD170: CHF | AE170: -0.20% | AF170: -2.39 | AG170: -2.40
A171: Brazil | C171: =C21-C71 -> -0.20 | D171: 0.10 | E171: -0.25 | F171: -0.36 | G171: 5.64 | H171: 5.75 | I171: -2.17 | J171: 0.00 | K171: 3.28 | L171: -5.41 | M171: 0.00 | N171: 0.00 | O171: -2.52 | P171: -2.50 | R171: =R21-R71 -> -2.17 | S171: 0.00 | T171: 0.00 | U171: 5.75 | V171: 3.26 | W171: -2.53 | X171: 0.00 | Y171: 0.00 | Z171: 0.00 | AA171: -0.22 | AD171: BRL | AE171: -1.40% | AF171: -3.92 | AG171: -3.90
A172: Russia | C172: =C22-C72 -> -0.30 | D172: 0.40 | E172: 0.00 | F172: 0.13 | G172: 4.07 | H172: 4.52 | I172: -4.68 | J172: -0.20 | K172: -0.77 | L172: -5.96 | M172: 2.00 | N172: 0.00 | O172: -4.82 | P172: -4.80 | R172: =R22-R72 -> -4.88 | S172: 1.80 | T172: 0.00 | U172: 4.52 | V172: -0.81 | W172: -6.90 | X172: 0.00 | Y172: 0.00 | Z172: 0.00 | AA172: 0.00 | AD172: RUB | AE172: -0.70% | AF172: -5.52 | AG172: -5.50
A173: India | C173: =C23-C73 -> -0.10 | D173: -1.20 | E173: 0.00 | F173: -1.47 | G173: 0.66 | H173: -0.73 | I173: 0.46 | J173: 0.25 | K173: 0.09 | L173: -3.13 | M173: 0.00 | N173: 0.00 | O173: -3.44 | P173: -3.40 | R173: =R23-R73 -> 0.71 | S173: 0.25 | T173: 0.00 | U173: -0.73 | V173: 0.08 | W173: -3.38 | X173: 0.00 | Y173: 0.00 | Z173: 0.50 | AA173: 0.00 | AD173: INR | AE173: -1.30% | AF173: -4.74 | AG173: -4.70
A174: China (MSCI) | C174: =C24-C74 -> 0.00 | D174: 0.05 | E174: 0.00 | F174: 0.05 | G174: -0.47 | H174: -0.46 | I174: 0.00 | J174: 0.00 | K174: -0.45 | L174: -1.50 | M174: 0.00 | N174: 0.00 | O174: -2.08 | P174: -2.10 | R174: =R24-R74 -> 0.00 | S174: 0.00 | T174: 0.00 | U174: -0.46 | V174: -0.45 | W174: -2.02 | X174: 0.00 | Y174: 0.00 | Z174: 0.00 | AA174: 0.00 | AD174: HKD | AE174: 0.00% | AF174: -2.08 | AG174: -2.10
A175: China A (DS) | C175: =C25-C75 -> 0.00 | D175: 0.05 | E175: 0.00 | F175: 0.05 | G175: 0.16 | H175: 0.23 | I175: 0.26 | J175: 0.00 | K175: 0.51 | L175: -2.41 | M175: 0.00 | N175: 0.00 | O175: -2.09 | P175: -2.10 | R175: =R25-R75 -> 0.26 | S175: 0.00 | T175: 0.00 | U175: 0.23 | V175: 0.50 | W175: -2.02 | X175: 0.00 | Y175: 0.20 | Z175: 0.00 | AA175: 0.21 | AD175: CNY | AE175: -1.00% | AF175: -3.09 | AG175: -3.10
A176: South Africa | C176: =C26-C76 -> 0.30 | D176: -0.30 | E176: 0.00 | F176: -0.02 | G176: 1.82 | H176: 1.96 | I176: -1.72 | J176: 0.00 | K176: 0.08 | L176: -3.03 | M176: 0.50 | N176: 0.00 | O176: -2.64 | P176: -2.60 | R176: =R26-R76 -> -1.72 | S176: 0.50 | T176: 0.00 | U176: 1.96 | V176: 0.07 | W176: -3.16 | X176: 0.00 | Y176: 0.00 | Z176: 0.50 | AA176: -0.50 | AD176: ZAR | AE176: -0.70% | AF176: -3.34 | AG176: -3.30
A177: Korea | C177: =C27-C77 -> -0.30 | D177: 0.05 | E177: -0.25 | F177: -0.51 | G177: 0.27 | H177: -0.24 | I177: 0.63 | J177: -0.25 | K177: 0.17 | L177: -2.89 | M177: 0.25 | N177: 0.00 | O177: -2.72 | P177: -2.70 | R177: =R27-R77 -> 0.38 | S177: 0.00 | T177: 0.00 | U177: -0.24 | V177: 0.19 | W177: -2.91 | X177: 0.00 | Y177: -0.25 | Z177: 0.00 | AA177: -0.09 | AD177: KRW | AE177: -0.70% | AF177: -3.42 | AG177: -3.40
A178: Taiwan | C178: =C28-C78 -> -0.10 | D178: -0.05 | E178: -0.25 | F178: -0.41 | G178: -0.49 | H178: -0.92 | I178: 0.63 | J178: -0.25 | K178: -0.52 | L178: -2.09 | M178: 0.00 | N178: 0.00 | O178: -2.79 | P178: -2.80 | R178: =R28-R78 -> 0.38 | S178: -0.25 | T178: 0.00 | U178: -0.92 | V178: -0.51 | W178: -2.67 | X178: 0.00 | Y178: -0.25 | Z178: 0.00 | AA178: 0.62 | AD178: TWD | AE178: -0.10% | AF178: -2.89 | AG178: -2.90
A179: Mexico | C179: =C29-C79 -> 0.30 | D179: 0.30 | E179: 0.00 | F179: 0.63 | G179: 2.95 | H179: 3.81 | I179: -1.52 | J179: -0.25 | K179: 1.84 | L179: -3.15 | M179: 0.75 | N179: 0.00 | O179: -0.76 | P179: -0.70 | R179: =R29-R79 -> -1.77 | S179: 0.50 | T179: 0.00 | U179: 3.81 | V179: 1.82 | W179: -1.61 | X179: 0.00 | Y179: 0.00 | Z179: 0.00 | AA179: 0.00 | AD179: MXN | AE179: -0.60% | AF179: -1.36 | AG179: -1.30
A181: Aggregates
A182: ACWI | C182: =C32-C82 -> 0.09 | D182: 0.03 | E182: -0.00 | F182: 0.12 | G182: 1.34 | H182: 1.53 | I182: 0.02 | J182: -0.49 | K182: 1.03 | L182: -3.37 | M182: -0.15 | N182: -0.01 | O182: -2.73 | P182: -2.70 | R182: =R32-R82 -> -0.47 | S182: -0.64 | T182: 0.00 | U182: 1.53 | V182: 1.03 | W182: -2.52 | X182: 0.00 | Y182: 0.21 | Z182: 0.69 | AA182: 0.13 | AE182: =AE32-AE82 -> 0.00% | AF182: -2.97 | AG182: -3.00
A183: ACWI ex-US | C183: =C33-C83 -> 0.21 | D183: -0.03 | E183: 0.01 | F183: 0.20 | G183: 1.21 | H183: 1.46 | I183: 0.02 | J183: -0.49 | K183: 0.96 | L183: -2.99 | M183: -0.11 | N183: -0.02 | O183: -2.34 | P183: -2.30 | R183: =R33-R83 -> -0.47 | S183: -0.60 | T183: 0.00 | U183: 1.46 | V183: 0.95 | W183: -2.17 | X183: 0.00 | Y183: 0.41 | Z183: 0.11 | AA183: 0.05 | AE183: 0.00% | AF183: -2.89 | AG183: -2.90
A184: ACWI ex-EMU | C184: =C34-C84 -> 0.07 | D184: 0.02 | E184: -0.01 | F184: 0.09 | G184: 1.27 | H184: 1.43 | I184: -0.03 | J184: -0.37 | K184: 1.00 | L184: -3.35 | M184: -0.12 | N184: -0.01 | O184: -2.70 | P184: -2.70 | R184: =R34-R84 -> -0.40 | S184: -0.49 | T184: 0.00 | U184: 1.43 | V184: 1.00 | W184: -2.53 | X184: 0.00 | Y184: 0.21 | Z184: 0.68 | AA184: 0.18 | AE184: 0.00% | AF184: -2.92 | AG184: -2.90
A185: ACWI ex-Japan | C185: =C35-C85 -> 0.06 | D185: 0.04 | E185: -0.00 | F185: 0.10 | G185: 1.33 | H185: 1.50 | I185: 0.02 | J185: -0.52 | K185: 0.98 | L185: -3.40 | M185: -0.16 | N185: -0.01 | O185: -2.83 | P185: -2.80 | R185: =R35-R85 -> -0.50 | S185: -0.68 | T185: 0.00 | U185: 1.50 | V185: 0.98 | W185: -2.60 | X185: 0.00 | Y185: 0.21 | Z185: 0.69 | AA185: 0.08 | AE185: 0.00% | AF185: -3.06 | AG185: -3.10
A186: ACWI ex-UK | C186: =C36-C86 -> 0.07 | D186: 0.02 | E186: -0.01 | F186: 0.09 | G186: 1.41 | H186: 1.57 | I186: 0.02 | J186: -0.55 | K186: 1.01 | L186: -3.39 | M186: -0.14 | N186: -0.01 | O186: -2.76 | P186: -2.80 | R186: =R36-R86 -> -0.53 | S186: -0.70 | T186: 0.00 | U186: 1.57 | V186: 1.01 | W186: -2.56 | X186: 0.00 | Y186: 0.22 | Z186: 0.72 | AA186: 0.09 | AE186: 0.00% | AF186: -2.96 | AG186: -3.00
A187: Developed World | C187: =C37-C87 -> 0.10 | D187: 0.05 | E187: -0.01 | F187: 0.14 | G187: 1.41 | H187: 1.63 | I187: 0.06 | J187: -0.52 | K187: 1.14 | L187: -3.47 | M187: -0.19 | N187: 0.00 | O187: -2.74 | P187: -2.70 | R187: =R37-R87 -> -0.46 | S187: -0.70 | T187: 0.00 | U187: 1.63 | V187: 1.16 | W187: -2.49 | X187: 0.00 | Y187: 0.18 | Z187: 0.80 | AA187: 0.15 | AE187: 0.00% | AF187: -2.96 | AG187: -3.00
A188: Developed World ex Japan | C188: =C38-C88 -> 0.07 | D188: 0.06 | E188: -0.01 | F188: 0.12 | G188: 1.41 | H188: 1.61 | I188: 0.06 | J188: -0.55 | K188: 1.09 | L188: -3.51 | M188: -0.20 | N188: 0.00 | O188: -2.85 | P188: -2.90 | R188: =R38-R88 -> -0.48 | S188: -0.75 | T188: 0.00 | U188: 1.61 | V188: 1.11 | W188: -2.59 | X188: 0.00 | Y188: 0.18 | Z188: 0.81 | AA188: 0.11 | AE188: 0.00% | AF188: -3.06 | AG188: -3.00
A189: EAFE | C189: =C39-C89 -> 0.20 | D189: 0.05 | E189: -0.02 | F189: 0.23 | G189: 1.38 | H189: 1.67 | I189: 0.17 | J189: -0.56 | K189: 1.26 | L189: -3.04 | M189: -0.24 | N189: 0.00 | O189: -2.20 | P189: -2.20 | R189: =R39-R89 -> -0.39 | S189: -0.80 | T189: 0.00 | U189: 1.67 | V189: 1.27 | W189: -1.89 | X189: 0.00 | Y189: 0.41 | Z189: 0.22 | AA189: 0.01 | AE189: 0.00% | AF189: -2.69 | AG189: -2.70
A190: European Large Cap | C190: =C40-C90 -> 0.20 | D190: 0.15 | E190: -0.02 | F190: 0.33 | G190: 1.15 | H190: 1.53 | I190: 0.27 | J190: -0.85 | K190: 0.92 | L190: -3.03 | M190: -0.37 | N190: 0.00 | O190: -2.65 | P190: -2.70 | R190: =R40-R90 -> -0.58 | S190: -1.21 | T190: 0.00 | U190: 1.53 | V190: 0.95 | W190: -2.20 | X190: 0.00 | Y190: 0.03 | Z190: 0.12 | AA190: -0.42 | AE190: 0.00% | AF190: -3.19 | AG190: -3.20
A191: European Small Cap | C191: =C41-C91 -> 0.24 | D191: -0.03 | E191: 0.00 | F191: 0.22 | G191: 1.42 | H191: 1.73 | I191: -0.01 | J191: 0.40 | K191: 2.14 | L191: -2.58 | M191: 0.57 | N191: 0.00 | O191: -0.62 | P191: -0.70 | R191: =R41-R91 -> 0.39 | S191: 0.96 | T191: 0.00 | U191: 1.73 | V191: 2.13 | W191: -0.60 | X191: 0.00 | Y191: 0.85 | Z191: 1.98 | AA191: 2.02 | AE191: 0.00% | AF191: -1.29 | AG191: -1.30
A192: UK All Cap | C192: =C42-C92 -> 0.40 | D192: 0.28 | E192: 0.03 | F192: 0.73 | G192: 0.24 | H192: 0.99 | I192: -0.01 | J192: 0.66 | K192: 1.66 | L192: -2.98 | M192: -0.01 | N192: 0.00 | O192: -1.54 | P192: -1.50 | R192: =R42-R92 -> 0.65 | S192: 0.65 | T192: 0.00 | U192: 0.99 | V192: 1.65 | W192: -1.46 | X192: 0.00 | Y192: -0.41 | Z192: -0.91 | AA192: 0.71 | AE192: 0.00% | AF192: -2.54 | AG192: -2.50
A193: Emerging Markets | C193: =C43-C93 -> -0.34 | D193: -0.06 | E193: -0.03 | F193: -0.44 | G193: 0.68 | H193: 0.29 | I193: -0.27 | J193: -0.11 | K193: -0.12 | L193: -2.57 | M193: 0.10 | N193: -0.04 | O193: -2.83 | P193: -2.80 | R193: =R43-R93 -> -0.38 | S193: -0.01 | T193: 0.00 | U193: 0.29 | V193: -0.17 | W193: -2.88 | X193: 0.00 | Y193: 0.26 | Z193: 0.22 | AA193: -0.07 | AE193: 0.00% | AF193: -3.33 | AG193: -3.30
A194: Emerging Markets LATAM | C194: =C44-C94 -> -0.09 | D194: 0.14 | E194: -0.18 | F194: -0.12 | G194: 4.99 | H194: 5.28 | I194: -1.99 | J194: -0.05 | K194: 2.96 | L194: -4.82 | M194: 0.17 | N194: 0.00 | O194: -2.02 | P194: -2.00 | R194: =R44-R94 -> -2.04 | S194: 0.12 | T194: 0.00 | U194: 5.28 | V194: 2.94 | W194: -2.22 | X194: 0.00 | Y194: -0.00 | Z194: 0.04 | AA194: -0.15 | AE194: 0.00% | AF194: -3.24 | AG194: -3.20
A195: Emerging Markets Asia | C195: =C45-C95 -> -0.37 | D195: -0.08 | E195: -0.07 | F195: -0.55 | G195: -0.24 | H195: -0.81 | I195: 0.26 | J195: -0.06 | K195: -0.57 | L195: -1.98 | M195: 0.11 | N195: -0.02 | O195: -2.64 | P195: -2.60 | R195: =R45-R95 -> 0.20 | S195: 0.05 | T195: 0.00 | U195: -0.81 | V195: -0.59 | W195: -2.69 | X195: 0.00 | Y195: 0.11 | Z195: -0.06 | AA195: 0.04 | AE195: 0.00% | AF195: -3.00 | AG195: -3.00
A196: Emerging Markets EMEA | C196: =C46-C96 -> 0.09 | D196: 0.02 | E196: 0.02 | F196: 0.14 | G196: 3.07 | H196: 3.47 | I196: -3.00 | J196: -0.14 | K196: 0.06 | L196: -4.51 | M196: 1.11 | N196: 0.00 | O196: -3.49 | P196: -3.50 | R196: =R46-R96 -> -3.14 | S196: 0.97 | T196: 0.00 | U196: 3.47 | V196: 0.04 | W196: -4.64 | X196: 0.00 | Y196: 0.02 | Z196: 0.84 | AA196: 0.07 | AE196: 0.00% | AF196: -4.30 | AG196: -4.30
A197: AC Asia ex Japan | C197: =C47-C97 -> -0.15 | D197: -0.20 | E197: -0.02 | F197: -0.39 | G197: 0.08 | H197: -0.32 | I197: 0.21 | J197: 0.02 | K197: -0.05 | L197: -2.09 | M197: 0.06 | N197: -0.03 | O197: -2.30 | P197: -2.30 | R197: =R47-R97 ->  | T197: 0.00 | X197: 0.00 | Y197: 1.01 | Z197: -0.13 | AA197: 0.44 | AE197: 0.00% | AF197: -2.59 | AG197: -2.50
A198: AC Asia-Pacifc ex Japan | C198: =C48-C98 -> -0.01 | D198: -0.19 | E198: 0.01 | F198: -0.20 | G198: 0.47 | H198: 0.29 | I198: 0.15 | J198: -0.06 | K198: 0.38 | L198: -2.40 | M198: -0.03 | N198: -0.04 | O198: -2.27 | P198: -2.30 | R198: =R48-R98 ->  | T198: 0.00 | X198: 0.00 | Y198: 0.93 | Z198: -0.14 | AA198: 0.44 | AE198: 0.00% | AF198: -2.73 | AG198: -2.80
A199: Pacific ex Japan | C199: =C49-C99 -> 0.30 | D199: -0.29 | E199: -0.15 | F199: -0.15 | G199: 2.17 | H199: 2.14 | I199: 0.05 | J199: -0.04 | K199: 2.12 | L199: -3.29 | M199: -0.03 | N199: 0.00 | O199: -1.38 | P199: -1.40 | R199: =R49-R99 ->  | T199: 0.00 | X199: 0.00 | Y199: 3.99 | Z199: 0.17 | AA199: 1.33 | AE199: 0.00% | AF199: -2.19 | AG199: -2.20
A200: Zhong Hua (MSCI) | C200: =C50-C100 -> 0.27 | D200: -0.10 | E200: 0.10 | F200: 0.28 | G200: -0.11 | H200: 0.15 | I200: -0.10 | J200: 0.19 | K200: 0.24 | L200: -1.57 | M200: -0.03 | N200: -0.03 | O200: -1.52 | P200: -1.60 | R200: =R50-R100 ->  | T200: 0.00 | X200: 0.00 | Y200: 1.70 | Z200: -0.22 | AA200: 0.71 | AE200: 0.00% | AF200: -1.52 | AG200: -1.60
A201: U.S. total market | C201: =C51-C101 -> 0.00 | D201: 0.08 | E201: -0.02 | F201: 0.06 | G201: 1.45 | H201: 1.59 | I201: 0.01 | J201: -0.53 | K201: 1.04 | L201: -3.58 | M201: -0.15 | N201: 0.00 | O201: -2.93 | P201: -2.90 | R201: =R51-R101 ->  | T201: 0.00 | X201: 0.00 | Y201: 0.08 | Z201: 0.86 | AA201: 0.09 | AE201: 0.00% | AF201: -2.93 | AG201: -2.90
A203: 2021 vs. 2020 | C203: Contribution to total returns, % ann. | U203: Subtotals | Y203: Terminal assumptions | AD203: Conversion to USD
A205: Market | C205: Dom. growth | D205: Int'l contrib. | E205: Sales % GDP | F205: Revenue growth | G205: Margins impact | H205: Earnings growth | I205: Gross dilution | J205: Buybacks | K205: EPS growth | L205: Valuation impact | M205: Dividend yield | N205: Extra-ordinary | O205: Total Return | P205: Loc. ret., rounded | R205: Net dilution | S205: Payout yield | U205: Earnings growth | V205: EPS growth | W205: Price return | Y205: Target margins | Z205: Target P/E | AA205: Target ROE | AD205: Currency | AE205: App. vs. USD | AF205: USD total return | AG205: USD ret., rounded
A206: U.S. large | C206: =C6-C106 -> 0.00 | D206: 0.05 | E206: 0.00 | F206: 0.05 | G206: 1.18 | H206: 1.29 | I206: 0.00 | J206: -0.34 | K206: 0.94 | L206: -2.09 | M206: -0.20 | N206: 0.00 | O206: -1.50 | P206: -1.50 | R206: =R6-R106 -> -0.34 | S206: -0.54 | T206: 0.00 | U206: 1.29 | V206: 0.94 | W206: -1.27 | X206: 0.00 | Y206: 0.00 | Z206: 1.10 | AA206: 0.00 | AD206: USD | AE206: =AE6-AE106 -> 0.00% | AF206: -1.50 | AG206: -1.50
A207: U.S. mid | C207: =C7-C107 -> 0.00 | D207: 0.20 | E207: 0.00 | F207: 0.21 | G207: 1.63 | H207: 1.94 | I207: 0.00 | J207: -0.68 | K207: 1.22 | L207: -2.54 | M207: 0.00 | N207: 0.00 | O207: -1.47 | P207: -1.50 | R207: =R7-R107 -> -0.68 | S207: -0.68 | T207: 0.00 | U207: 1.94 | V207: 1.23 | W207: -1.44 | X207: 0.00 | Y207: 0.00 | Z207: 0.50 | AA207: 0.00 | AD207: USD | AE207: 0.00% | AF207: -1.47 | AG207: -1.50
A208: U.S. small | C208: =C8-C108 -> 0.00 | D208: 0.10 | E208: 0.00 | F208: 0.11 | G208: 4.65 | H208: 5.02 | I208: 0.00 | J208: -0.48 | K208: 4.43 | L208: -5.84 | M208: 0.00 | N208: 0.00 | O208: -1.91 | P208: -1.90 | R208: =R8-R108 -> -0.48 | S208: -0.48 | T208: 0.00 | U208: 5.02 | V208: 4.44 | W208: -1.88 | X208: 0.00 | Y208: 0.00 | Z208: 1.00 | AA208: 0.00 | AD208: USD | AE208: 0.00% | AF208: -1.91 | AG208: -1.90
A209: Eurozone | C209: =C9-C109 -> 0.10 | D209: 0.20 | E209: 0.00 | F209: 0.31 | G209: 1.97 | H209: 2.37 | I209: 0.00 | J209: -1.33 | K209: 1.49 | L209: -1.67 | M209: -0.50 | N209: 0.00 | O209: -0.77 | P209: -0.80 | R209: =R9-R109 -> -0.83 | S209: -1.83 | T209: 0.00 | U209: 2.37 | V209: 1.53 | W209: -0.23 | X209: 0.00 | Y209: 0.00 | Z209: 0.50 | AA209: -0.58 | AD209: EUR | AE209: -0.50% | AF209: -1.27 | AG209: -1.30
A210: Eurozone Small Cap | C210: =C10-C110 -> 0.10 | D210: 0.00 | E210: 0.00 | F210: 0.10 | G210: 0.93 | H210: 1.09 | I210: 0.00 | J210: 0.71 | K210: 1.82 | L210: -1.34 | M210: 0.00 | N210: 0.00 | O210: 0.39 | P210: 0.40 | R210: =R10-R110 -> 0.71 | S210: 0.71 | T210: 0.00 | U210: 1.09 | V210: 1.81 | W210: 0.38 | X210: 0.00 | Y210: 1.50 | Z210: 4.00 | AA210: 2.21 | AD210: EUR | AE210: -0.50% | AF210: -0.11 | AG210: -0.10
A211: U.K. | C211: =C11-C111 -> 0.40 | D211: 0.35 | E211: 0.00 | F211: 0.77 | G211: 1.22 | H211: 2.04 | I211: 0.00 | J211: 0.20 | K211: 2.24 | L211: -1.63 | M211: 0.00 | N211: 0.00 | O211: 0.55 | P211: 0.60 | R211: =R11-R111 -> 0.20 | S211: 0.20 | T211: 0.00 | U211: 2.04 | V211: 2.23 | W211: 0.53 | X211: 0.00 | Y211: -0.50 | Z211: -1.00 | AA211: 0.48 | AD211: GBP | AE211: -0.70% | AF211: -0.15 | AG211: -0.10
A212: UK Small Cap | C212: =C12-C112 -> 0.40 | D212: -0.05 | E212: 0.00 | F212: 0.36 | G212: 2.39 | H212: 2.89 | I212: 0.00 | J212: 0.36 | K212: 3.26 | L212: -3.04 | M212: 0.00 | N212: 0.00 | O212: 0.03 | P212: 0.00 | R212: =R12-R112 -> 0.36 | S212: 0.36 | T212: 0.00 | U212: 2.89 | V212: 3.25 | W212: 0.03 | X212: 0.00 | Y212: 0.00 | Z212: -0.50 | AA212: 1.75 | AD212: GBP | AE212: -0.70% | AF212: -0.67 | AG212: -0.70
A213: Japan | C213: =C13-C113 -> 0.30 | D213: -0.05 | E213: 0.00 | F213: 0.25 | G213: 2.06 | H213: 2.38 | I213: 0.00 | J213: -0.14 | K213: 2.23 | L213: -2.56 | M213: 0.00 | N213: 0.00 | O213: -0.44 | P213: -0.40 | R213: =R13-R113 -> -0.14 | S213: -0.14 | T213: 0.00 | U213: 2.38 | V213: 2.23 | W213: -0.43 | X213: 0.00 | Y213: 0.00 | Z213: 0.50 | AA213: 0.50 | AD213: JPY | AE213: -0.30% | AF213: -0.74 | AG213: -0.70
... 37 more rows

Sheet Core Markets
H2: EURUSD | I2: GBPUSD | M2: EURUSD | N2: GBPUSD
H3: =FX!B6*100 -> 1.40 | I3: =FX!B7*100 -> 0.80 | M3: =FX!C6*100 -> 1.90 | N3: =FX!C7*100 -> 1.50
C5: Lookup Value | F5: 2021 | K5: 2020 | P5: Change
F6: Local | G6: USD | H6: EUR | I6: GBP | K6: Local | L6: USD | M6: EUR | N6: GBP | P6: Local | Q6: USD | R6: EUR | S6: GBP
C7: ACWI | E7: ACWI | F7: =VLOOKUP(C7,Summary!$A$5:$AG$51,16,0) -> 4.8 | G7: =VLOOKUP(C7,Summary!$A$5:$AG$51,33,0) -> 5.1 | H7: =G7-$H$3 -> 3.7 | I7: =G7-$I$3 -> 4.3 | K7: =VLOOKUP(C7,Summary!$A$106:$AG$151,16,0) -> 6.0 | L7: =VLOOKUP(C7,Summary!$A$106:$AG$151,33,0) -> 6.5 | M7: =L7-$M$3 -> 4.6 | N7: =L7-$N$3 -> 5.0 | P7: =F7-K7 -> -1.2 | Q7: =G7-L7 -> -1.4 | R7: =H7-M7 -> -0.9 | S7: =I7-N7 -> -0.7
C8: ACWI Ex-US | E8: ACWI Ex-U.S. | F8: =VLOOKUP(C8,Summary!$A$5:$AG$51,16,0) -> 5.8 | G8: =VLOOKUP(C8,Summary!$A$5:$AG$51,33,0) -> 6.7 | H8: =G8-$H$3 -> 5.3 | I8: =G8-$I$3 -> 5.9 | K8: =VLOOKUP(C8,Summary!$A$106:$AG$151,16,0) -> 6.5 | L8: =VLOOKUP(C8,Summary!$A$106:$AG$151,33,0) -> 7.8 | M8: =L8-$M$3 -> 5.9 | N8: =L8-$N$3 -> 6.3 | P8: =F8-K8 -> -0.7 | Q8: =G8-L8 -> -1.1 | R8: =H8-M8 -> -0.6 | S8: =I8-N8 -> -0.4
C9: Developed World | E9: DM | F9: =VLOOKUP(C9,Summary!$A$5:$AG$51,16,0) -> 4.6 | G9: =VLOOKUP(C9,Summary!$A$5:$AG$51,33,0) -> 4.9 | H9: 3.5 | I9: 4.1 | K9: =VLOOKUP(C9,Summary!$A$106:$AG$151,16,0) -> 5.7 | L9: =VLOOKUP(C9,Summary!$A$106:$AG$151,33,0) -> 6.3 | M9: 4.4 | N9: 4.8 | P9: -1.1 | Q9: -1.4 | R9: -0.9 | S9: -0.7
C10: U.S. Large | E10: U.S. Large | F10: =VLOOKUP(C10,Summary!$A$5:$AG$51,16,0) -> 4.1 | G10: =VLOOKUP(C10,Summary!$A$5:$AG$51,33,0) -> 4.1 | H10: 2.7 | I10: 3.3 | K10: =VLOOKUP(C10,Summary!$A$106:$AG$151,16,0) -> 5.6 | L10: =VLOOKUP(C10,Summary!$A$106:$AG$151,33,0) -> 5.6 | M10: 3.7 | N10: 4.1 | P10: -1.5 | Q10: -1.5 | R10: -1.0 | S10: -0.8
C11: U.S. Small | E11: U.S. Small | F11: =VLOOKUP(C11,Summary!$A$5:$AG$51,16,0) -> 4.6 | G11: =VLOOKUP(C11,Summary!$A$5:$AG$51,33,0) -> 4.6 | H11: 3.2 | I11: 3.8 | K11: =VLOOKUP(C11,Summary!$A$106:$AG$151,16,0) -> 6.5 | L11: =VLOOKUP(C11,Summary!$A$106:$AG$151,33,0) -> 6.5 | M11: 4.6 | N11: 5.0 | P11: -1.9 | Q11: -1.9 | R11: -1.4 | S11: -1.2
C12: Eurozone | E12: Eurozone | F12: =VLOOKUP(C12,Summary!$A$5:$AG$51,16,0) -> 5.2 | G12: =VLOOKUP(C12,Summary!$A$5:$AG$51,33,0) -> 6.6 | H12: 5.2 | I12: 5.8 | K12: =VLOOKUP(C12,Summary!$A$106:$AG$151,16,0) -> 6.0 | L12: =VLOOKUP(C12,Summary!$A$106:$AG$151,33,0) -> 7.9 | M12: 6.0 | N12: 6.4 | P12: -0.8 | Q12: -1.3 | R12: -0.8 | S12: -0.6
C13: U.K. | E13: U.K. | F13: =VLOOKUP(C13,Summary!$A$5:$AG$51,16,0) -> 6.7 | G13: =VLOOKUP(C13,Summary!$A$5:$AG$51,33,0) -> 7.5 | H13: 6.1 | I13: 6.7 | K13: =VLOOKUP(C13,Summary!$A$106:$AG$151,16,0) -> 6.1 | L13: =VLOOKUP(C13,Summary!$A$106:$AG$151,33,0) -> 7.6 | M13: 5.7 | N13: 6.1 | P13: 0.6 | Q13: -0.1 | R13: 0.4 | S13: 0.6
C14: Japan | E14: Japan | F14: =VLOOKUP(C14,Summary!$A$5:$AG$51,16,0) -> 5.1 | G14: =VLOOKUP(C14,Summary!$A$5:$AG$51,33,0) -> 6.5 | H14: 5.1 | I14: 5.7 | K14: =VLOOKUP(C14,Summary!$A$106:$AG$151,16,0) -> 5.5 | L14: =VLOOKUP(C14,Summary!$A$106:$AG$151,33,0) -> 7.2 | M14: 5.3 | N14: 5.7 | P14: -0.4 | Q14: -0.7 | R14: -0.2 | S14: 0.0
C15: Emerging Markets | E15: EM | F15: =VLOOKUP(C15,Summary!$A$5:$AG$51,16,0) -> 6.8 | G15: =VLOOKUP(C15,Summary!$A$5:$AG$51,33,0) -> 7.2 | H15: 5.8 | I15: 6.4 | K15: =VLOOKUP(C15,Summary!$A$106:$AG$151,16,0) -> 8.7 | L15: =VLOOKUP(C15,Summary!$A$106:$AG$151,33,0) -> 9.2 | M15: 7.3 | N15: 7.7 | P15: -1.9 | Q15: -2.0 | R15: -1.5 | S15: -1.3
C16: China (MSCI) | E16: China (MSCI) | F16: =VLOOKUP(C16,Summary!$A$5:$AG$51,16,0) -> 6.6 | G16: =VLOOKUP(C16,Summary!$A$5:$AG$51,33,0) -> 6.6 | H16: 5.2 | I16: 5.8 | K16: =VLOOKUP(C16,Summary!$A$106:$AG$151,16,0) -> 9.1 | L16: =VLOOKUP(C16,Summary!$A$106:$AG$151,33,0) -> 9.1 | M16: 7.2 | N16: 7.6 | P16: -2.5 | Q16: -2.5 | R16: -2.0 | S16: -1.8
C17: Emerging Markets LATAM | E17: LATAM | F17: =VLOOKUP(C17,Summary!$A$5:$AG$51,16,0) -> 8.0 | G17: =VLOOKUP(C17,Summary!$A$5:$AG$51,33,0) -> 8.8 | H17: 7.4 | I17: 8.0 | K17: =VLOOKUP(C17,Summary!$A$106:$AG$151,16,0) -> 7.3 | L17: =VLOOKUP(C17,Summary!$A$106:$AG$151,33,0) -> 7.6 | M17: 5.7 | N17: 6.1 | P17: 0.7 | Q17: 1.2 | R17: 1.7 | S17: 1.9
C18: Brazil | E18: Brazil | F18: =VLOOKUP(C18,Summary!$A$5:$AG$51,16,0) -> 7.1 | G18: =VLOOKUP(C18,Summary!$A$5:$AG$51,33,0) -> 8.1 | H18: 6.7 | I18: 7.3 | K18: =VLOOKUP(C18,Summary!$A$106:$AG$151,16,0) -> 6.6 | L18: =VLOOKUP(C18,Summary!$A$106:$AG$151,33,0) -> 7.2 | M18: 5.3 | N18: 5.7 | P18: 0.5 | Q18: 0.9 | R18: 1.4 | S18: 1.6
C19: India | E19: India | F19: =VLOOKUP(C19,Summary!$A$5:$AG$51,16,0) -> 8.9 | G19: =VLOOKUP(C19,Summary!$A$5:$AG$51,33,0) -> 9.4 | H19: 8.0 | I19: 8.6 | K19: =VLOOKUP(C19,Summary!$A$106:$AG$151,16,0) -> 10.3 | L19: =VLOOKUP(C19,Summary!$A$106:$AG$151,33,0) -> 11.7 | M19: 9.8 | N19: 10.2 | P19: -1.4 | Q19: -2.3 | R19: -1.8 | S19: -1.6

Sheet Charts

Sheet Blocks
A1: ="Equity Building Blocks ~ " & ltcma_year & " LTCMAs" -> Equity Building Blocks ~ 2021 LTCMAs
D3: U.S. large | E3: Eurozone | F3: U.K. | G3: Japan | J3: China (MSCI) | K3: Korea | L3: Taiwan | M3: India | N3: South Africa | O3: Brazil | Q3: U.S. small | R3: Australia | S3: Canada | T3: Sweden | U3: Singapore | V3: Switzerland | W3: Russia | X3: Mexico | Y3: Turkey
C4: EXHIBIT XX: SELECTED DEVELOPED MARKET EQUITY LONG-TERM RETURN ASSUMPTIONS AND BUILDING BLOCKS | I4: EXHIBIT XX: SELECTED EMERGING MARKET EQUITY LONG-TERM RETURN ASSUMPTIONS AND BUILDING BLOCKS
A5: Column name | C5: Equity assumptions | D5: U.S. large | E5: Europe ex-UK | F5: U.K. | G5: Japan | I5: Equity assumptions | J5: =J3 -> China (MSCI) | K5: Korea | L5: Taiwan | M5: India | N5: South Africa | O5: Brazil | Q5: =Q3 -> U.S. small | R5: Australia | S5: Canada | T5: Sweden | U5: Singapore | V5: Switzerland | W5: Russia | X5: Mexico | Y5: Turkey
A6: Dom. growth | C6: Dom. growth | D6: =IFERROR(INDEX(model_data,MATCH(D$3,model_countries,0),MATCH($A6,model_fields,0)),"")*100 -> 3.8 | E6: 2.6 | F6: 3.6 | G6: 1.7 | I6: Dom. growth | J6: =IFERROR(INDEX(model_data,MATCH(J$3,model_countries,0),MATCH($A6,model_fields,0)),"")*100 -> 6.9 | K6: 3.9 | L6: 2.6 | M6: 11.9 | N6: 7.8 | O6: 6.7 | Q6: =IFERROR(INDEX(model_data,MATCH(Q$3,model_countries,0),MATCH($A6,model_fields,0)),"")*100 -> 3.8 | R6: 4.7 | S6: 3.5 | T6: 3.6 | U6: 4.2 | V6: 2.0 | W6: 6.4 | X6: 6.2
A7: Int'l contrib. | C7: Int'l contrib. | D7: 0.3 | E7: 0.7 | F7: 0.6 | G7: 0.7 | I7: Int'l contrib. | J7: -0.2 | K7: 0.3 | L7: 0.7 | M7: -1.7 | N7: -0.3 | O7: 0.1 | Q7: 0.1 | R7: 0.2 | S7: 0.2 | T7: 0.0 | U7: 0.1 | V7: 0.6 | W7: 0.4 | X7: -0.2
A8: Sales % GDP | C8: Sales % GDP | D8: 1.0 | E8: 1.0 | F8: 1.0 | G8: 1.0 | I8: Sales % GDP | J8: 2.5 | K8: 0.5 | L8: 0.5 | M8: 2.0 | N8: 1.5 | O8: 1.3 | Q8: 1.8 | R8: 0.3 | S8: 0.5 | T8: 0.8 | U8: 0.8 | V8: 0.3 | W8: 1.3 | X8: 1.8
C9: Revenue growth | D9: =PRODUCT(1+D$6:D$8/100)*100-100 -> 5.2 | E9: =PRODUCT(1+E$6:E$8/100)*100-100 -> 4.4 | F9: =PRODUCT(1+F$6:F$8/100)*100-100 -> 5.3 | G9: =PRODUCT(1+G$6:G$8/100)*100-100 -> 3.4 | I9: Revenue growth | J9: =PRODUCT(1+J$6:J$8/100)*100-100 -> 9.4 | K9: =PRODUCT(1+K$6:K$8/100)*100-100 -> 4.7 | L9: =PRODUCT(1+L$6:L$8/100)*100-100 -> 3.8 | M9: =PRODUCT(1+M$6:M$8/100)*100-100 -> 12.2 | N9: =PRODUCT(1+N$6:N$8/100)*100-100 -> 9.1 | O9: =PRODUCT(1+O$6:O$8/100)*100-100 -> 8.1 | Q9: =PRODUCT(1+Q$6:Q$8/100)*100-100 -> 5.7 | R9: =PRODUCT(1+R$6:R$8/100)*100-100 -> 5.2 | S9: =PRODUCT(1+S$6:S$8/100)*100-100 -> 4.2 | T9: =PRODUCT(1+T$6:T$8/100)*100-100 -> 4.4 | U9: =PRODUCT(1+U$6:U$8/100)*100-100 -> 5.1 | V9: =PRODUCT(1+V$6:V$8/100)*100-100 -> 2.9 | W9: =PRODUCT(1+W$6:W$8/100)*100-100 -> 8.2 | X9: =PRODUCT(1+X$6:X$8/100)*100-100 -> 7.8 | Y9: =PRODUCT(1+Y$6:Y$8/100)*100-100 -> 
A10: Margins | C10: + Margins impact | D10: =IFERROR(INDEX(model_data,MATCH(D$3,model_countries,0),MATCH($A10,model_fields,0)),"")*100 -> 0.1 | E10: 1.5 | F10: 0.2 | G10: 1.5 | I10: + Margins impact | J10: =IFERROR(INDEX(model_data,MATCH(J$3,model_countries,0),MATCH($A10,model_fields,0)),"")*100 -> -0.4 | K10: 2.6 | L10: 0.1 | M10: 0.9 | N10: -0.2 | O10: 2.9 | Q10: =IFERROR(INDEX(model_data,MATCH(Q$3,model_countries,0),MATCH($A10,model_fields,0)),"")*100 -> 4.4 | R10: 0.8 | S10: 0.2 | T10: -2.0 | U10: 3.1 | V10: -0.5 | W10: -0.4 | X10: 3.4
A11: Gross dilution | C11: Gross dilution (raw) | D11: -2.0 | E11: -2.0 | F11: -2.0 | G11: -2.0 | I11: Gross dilution (raw) | J11: -3.4 | K11: -1.5 | L11: -0.7 | M11: -2.7 | N11: -2.3 | O11: -4.0 | Q11: -2.5 | R11: -2.0 | S11: -2.0 | T11: -2.0 | U11: -2.0 | V11: -2.0 | W11: -6.3 | X11: -3.2
A12: Extra-ordinary | C12: Adjustments | D12: 0.0 | E12: 0.0 | F12: 0.0 | G12: 0.0 | I12: Adjustments | J12: -0.5 | K12: 0.0 | L12: 0.0 | M12: 0.0 | N12: 0.0 | O12: 0.0 | Q12: 0.0 | R12: 0.0 | S12: 0.0 | T12: 0.0 | U12: 0.0 | V12: 0.0 | W12: 0.0 | X12: 0.0
C13: Earnings growth | D13: =PRODUCT(1+D$9:D$10/100)*100-100 -> 5.3 | E13: =PRODUCT(1+E$9:E$10/100)*100-100 -> 5.9 | F13: =PRODUCT(1+F$9:F$10/100)*100-100 -> 5.5 | G13: =PRODUCT(1+G$9:G$10/100)*100-100 -> 5.0 | I13: Earnings growth | J13: =PRODUCT(1+J$9:J$10/100)*100-100 -> 8.9 | K13: =PRODUCT(1+K$9:K$10/100)*100-100 -> 7.5 | L13: =PRODUCT(1+L$9:L$10/100)*100-100 -> 4.0 | M13: =PRODUCT(1+M$9:M$10/100)*100-100 -> 13.2 | N13: =PRODUCT(1+N$9:N$10/100)*100-100 -> 8.9 | O13: =PRODUCT(1+O$9:O$10/100)*100-100 -> 11.3 | Q13: =PRODUCT(1+Q$9:Q$10/100)*100-100 -> 10.4 | R13: =PRODUCT(1+R$9:R$10/100)*100-100 -> 6.0 | S13: =PRODUCT(1+S$9:S$10/100)*100-100 -> 4.4 | T13: =PRODUCT(1+T$9:T$10/100)*100-100 -> 2.3 | U13: =PRODUCT(1+U$9:U$10/100)*100-100 -> 8.4 | V13: =PRODUCT(1+V$9:V$10/100)*100-100 -> 2.4 | W13: =PRODUCT(1+W$9:W$10/100)*100-100 -> 7.7 | X13: =PRODUCT(1+X$9:X$10/100)*100-100 -> 11.5 | Y13: =PRODUCT(1+Y$9:Y$10/100)*100-100 -> 
C14: + Gross dilution | D14: =SUM(D11:D12) -> -2.0 | E14: =SUM(E11:E12) -> -2.0 | F14: =SUM(F11:F12) -> -2.0 | G14: =SUM(G11:G12) -> -2.0 | I14: + Gross dilution | J14: =SUM(J11:J12) -> -3.9 | K14: -1.5 | L14: -0.7 | M14: -2.7 | N14: -2.3 | O14: -4.0 | Q14: =SUM(Q11:Q12) -> -2.5 | R14: =SUM(R11:R12) -> -2.0 | S14: -2.0 | T14: -2.0 | U14: -2.0 | V14: -2.0 | W14: -6.3 | X14: -3.2
A15: Buybacks | C15: + Buybacks | D15: =IFERROR(INDEX(model_data,MATCH(D$3,model_countries,0),MATCH($A15,model_fields,0)),"")*100 -> 2.1 | E15: =IFERROR(INDEX(model_data,MATCH(E$3,model_countries,0),MATCH($A15,model_fields,0)),"")*100 -> 1.1 | F15: =IFERROR(INDEX(model_data,MATCH(F$3,model_countries,0),MATCH($A15,model_fields,0)),"")*100 -> 1.2 | G15: =IFERROR(INDEX(model_data,MATCH(G$3,model_countries,0),MATCH($A15,model_fields,0)),"")*100 -> 1.5 | I15: + Buybacks | J15: =IFERROR(INDEX(model_data,MATCH(J$3,model_countries,0),MATCH($A15,model_fields,0)),"")*100 -> 0.3 | K15: 1.0 | L15: 0.3 | M15: 0.5 | N15: 0.5 | O15: 0.8 | Q15: =IFERROR(INDEX(model_data,MATCH(Q$3,model_countries,0),MATCH($A15,model_fields,0)),"")*100 -> 0.9 | R15: 0.4 | S15: 1.3 | T15: 2.6 | U15: 0.2 | V15: 1.9 | W15: 0.8 | X15: 1.5
C16: EPS growth | D16: =(1+D$13/100)*(1+SUM(D$14:D$15)/100)*100-100 -> 5.4 | E16: =(1+E$13/100)*(1+SUM(E$14:E$15)/100)*100-100 -> 4.9 | F16: =(1+F$13/100)*(1+SUM(F$14:F$15)/100)*100-100 -> 4.7 | G16: =(1+G$13/100)*(1+SUM(G$14:G$15)/100)*100-100 -> 4.4 | I16: EPS growth | J16: =(1+J$13/100)*(1+SUM(J$14:J$15)/100)*100-100 -> 4.9 | K16: 6.9 | L16: 3.5 | M16: 10.7 | N16: 6.9 | O16: 7.7 | Q16: =(1+Q$13/100)*(1+SUM(Q$14:Q$15)/100)*100-100 -> 8.6 | R16: =(1+R$13/100)*(1+SUM(R$14:R$15)/100)*100-100 -> 4.3 | S16: 3.7 | T16: 2.9 | U16: 6.4 | V16: 2.3 | W16: 1.8 | X16: 9.6
A17: Valuation impact | C17: + Valuation impact | D17: =IFERROR(INDEX(model_data,MATCH(D$3,model_countries,0),MATCH($A17,model_fields,0)),"")*100 -> -3.0 | E17: =IFERROR(INDEX(model_data,MATCH(E$3,model_countries,0),MATCH($A17,model_fields,0)),"")*100 -> -2.2 | F17: =IFERROR(INDEX(model_data,MATCH(F$3,model_countries,0),MATCH($A17,model_fields,0)),"")*100 -> -1.5 | G17: =IFERROR(INDEX(model_data,MATCH(G$3,model_countries,0),MATCH($A17,model_fields,0)),"")*100 -> -1.9 | I17: + Valuation impact | J17: =IFERROR(INDEX(model_data,MATCH(J$3,model_countries,0),MATCH($A17,model_fields,0)),"")*100 -> -1.0 | K17: -3.2 | L17: -1.8 | M17: -3.1 | N17: -0.2 | O17: -4.0 | Q17: =IFERROR(INDEX(model_data,MATCH(Q$3,model_countries,0),MATCH($A17,model_fields,0)),"")*100 -> -5.2 | R17: -2.0 | S17: -0.6 | T17: -0.8 | U17: -1.3 | V17: -1.3 | W17: -1.7 | X17: -1.9
C18: Price return | D18: =PRODUCT(1+D$16:D$17/100)*100-100 -> 2.2 | E18: =PRODUCT(1+E$16:E$17/100)*100-100 -> 2.6 | F18: =PRODUCT(1+F$16:F$17/100)*100-100 -> 3.0 | G18: =PRODUCT(1+G$16:G$17/100)*100-100 -> 2.5 | I18: Price return | J18: =PRODUCT(1+J$16:J$17/100)*100-100 -> 3.9 | K18: =PRODUCT(1+K$16:K$17/100)*100-100 -> 3.5 | L18: =PRODUCT(1+L$16:L$17/100)*100-100 -> 1.6 | M18: =PRODUCT(1+M$16:M$17/100)*100-100 -> 7.2 | N18: =PRODUCT(1+N$16:N$17/100)*100-100 -> 6.7 | O18: =PRODUCT(1+O$16:O$17/100)*100-100 -> 3.4 | Q18: =PRODUCT(1+Q$16:Q$17/100)*100-100 -> 3.0 | R18: =PRODUCT(1+R$16:R$17/100)*100-100 -> 2.2 | S18: =PRODUCT(1+S$16:S$17/100)*100-100 -> 3.1 | T18: =PRODUCT(1+T$16:T$17/100)*100-100 -> 2.1 | U18: =PRODUCT(1+U$16:U$17/100)*100-100 -> 5.0 | V18: =PRODUCT(1+V$16:V$17/100)*100-100 -> 0.9 | W18: =PRODUCT(1+W$16:W$17/100)*100-100 -> 0.1 | X18: =PRODUCT(1+X$16:X$17/100)*100-100 -> 7.6 | Y18: =PRODUCT(1+Y$16:Y$17/100)*100-100 -> 
A19: Dividend yield | C19: + Dividend yield (DY) | D19: =IFERROR(INDEX(model_data,MATCH(D$3,model_countries,0),MATCH($A19,model_fields,0)),"")*100 -> 1.8 | E19: 2.5 | F19: 3.5 | G19: 2.5 | I19: + Dividend yield (DY) | J19: =IFERROR(INDEX(model_data,MATCH(J$3,model_countries,0),MATCH($A19,model_fields,0)),"")*100 -> 2.5 | K19: 2.0 | L19: 3.8 | M19: 1.5 | N19: 3.5 | O19: 3.5 | Q19: =IFERROR(INDEX(model_data,MATCH(Q$3,model_countries,0),MATCH($A19,model_fields,0)),"")*100 -> 1.5 | R19: 4.0 | S19: 3.0 | T19: 1.8 | U19: 3.3 | V19: 2.8 | W19: 6.0 | X19: 2.8
A20: Total return | C20: Total return, local currency | D20: 4.1 | E20: 5.2 | F20: 6.7 | G20: 5.1 | I20: Total return, local currency | J20: 6.6 | K20: 5.6 | L20: 5.5 | M20: 8.9 | N20: 10.5 | O20: 7.1 | Q20: 4.6 | R20: 6.3 | S20: 6.2 | T20: 4.0 | U20: 8.5 | V20: 3.7 | W20: 6.5 | X20: 10.6
C21: Total return, local currency | D21: =IFERROR(ROUND(D20*4/100,2)/4,"") -> 4.00% | E21: =IFERROR(ROUND(E20*4/100,2)/4,"") -> 5.25% | F21: =IFERROR(ROUND(F20*4/100,2)/4,"") -> 6.75% | G21: =IFERROR(ROUND(G20*4/100,2)/4,"") -> 5.00% | I21: Total return, local currency | J21: =IFERROR(ROUND(J20*4/100,2)/4,"") -> 6.50% | K21: =IFERROR(ROUND(K$20*4/100,2)/4,"") -> 5.50% | L21: =IFERROR(ROUND(L$20*4/100,2)/4,"") -> 5.50% | M21: =IFERROR(ROUND(M20*4/100,2)/4,"") -> 8.75% | N21: =IFERROR(ROUND(N$20*4/100,2)/4,"") -> 10.50% | O21: =IFERROR(ROUND(O20*4/100,2)/4,"") -> 7.00% | Q21: =IFERROR(ROUND(Q20*4/100,2)/4,"") -> 4.50% | R21: 6.25% | S21: 6.25% | T21: 4.00% | U21: 8.50% | V21: 3.75% | W21: 6.50% | X21: =IFERROR(ROUND(X$20*4/100,2)/4,"") -> 10.50% | Y21: =IFERROR(ROUND(Y$20*4/100,2)/4,"") -> 
C23: ="Source: J.P. Morgan Asset Management; estimates are as of September "&(ltcma_year-1)&"." -> Source: J.P. Morgan Asset Management; estimates are as of September 2020. | I23: ="Source: J.P. Morgan Asset Management; estimates are as of September "&(ltcma_year-1)&"." -> Source: J.P. Morgan Asset Management; estimates are as of September 2020.
C25: SELECTED EQUITY LONG-TERM RETURN ASSUMPTIONS AND BUILDING BLOCKS -- OLD METHODOLOGY
C26: Equity assumptions | D26: U.S. large | E26: Europe ex-UK | F26: U.K. | G26: Japan | I26: Equity assumptions | J26: =J5 -> China (MSCI) | K26: Korea | L26: Taiwan | M26: India | N26: South Africa | O26: Brazil | Q26: =Q5 -> U.S. small | R26: Australia | S26: Canada | T26: Sweden | U26: Singapore | V26: Switzerland | W26: Russia | X26: Mexico | Y26: Turkey
C27: Domestic growth | D27: =D6 -> 3.8 | E27: =E6 -> 2.6 | F27: =F6 -> 3.6 | G27: =G6 -> 1.7 | I27: Domestic growth | J27: 6.9 | K27: 3.9 | L27: 2.6 | M27: 11.9 | N27: 7.8 | O27: 6.7 | Q27: =Q6 -> 3.8 | R27: 4.7 | S27: 3.5 | T27: 3.6 | U27: 4.2 | V27: 2.0 | W27: 6.4 | X27: 6.2
C28: Dividend yield* | D28: =D19+1 -> 2.8 | E28: =E19+0.5 -> 3.0 | F28: =F19+0.5 -> 4.0 | G28: =G19+0.5 -> 3.0 | I28: Dividend yield* | J28: =J19+0.5 -> 3.0 | K28: 2.5 | L28: 4.3 | M28: 2.0 | N28: 4.0 | O28: 4.0 | Q28: =Q19+0.5 -> 2.0 | R28: 4.5 | S28: 3.5 | T28: 2.3 | U28: 3.8 | V28: 3.3 | W28: 6.5 | X28: =X19+0.5 -> 3.3 | Y28: =Y19+0.5 -> 
C29: Valuations impact | D29: =D17 -> -3.0 | E29: =E17 -> -2.2 | F29: =F17 -> -1.5 | G29: =G17 -> -1.9 | I29: Valuations impact | J29: =J17 -> -1.0 | K29: -3.2 | L29: -1.8 | M29: -3.1 | N29: -0.2 | O29: -4.0 | Q29: =Q17 -> -5.2 | R29: -2.0 | S29: -0.6 | T29: -0.8 | U29: -1.3 | V29: -1.3 | W29: -1.7 | X29: =X17 -> -1.9 | Y29: =Y17 -> 
C30: Total return, lcl, unrounded | D30: =SUM(D27:D28) -> 6.6 | E30: =SUM(E27:E28) -> 5.6 | F30: =SUM(F27:F28) -> 7.6 | G30: =SUM(G27:G28) -> 4.7 | I30: Total return, lcl, unrounded | J30: =SUM(J27:J28) -> 9.9 | K30: 6.4 | L30: 6.9 | M30: 13.9 | N30: 11.8 | O30: 10.7 | Q30: =SUM(Q27:Q28) -> 5.8 | R30: 9.2 | S30: 7.0 | T30: 5.9 | U30: 8.0 | V30: 5.3 | W30: =SUM(W27:W28) -> 12.9 | X30: =SUM(X27:X28) -> 9.5 | Y30: =SUM(Y27:Y28) -> 
C31: Total return, local currency | D31: =IFERROR(ROUND(D30*4/100,2)/4,"") -> 6.50% | E31: =IFERROR(ROUND(E30*4/100,2)/4,"") -> 5.50% | F31: =IFERROR(ROUND(F30*4/100,2)/4,"") -> 7.50% | G31: =IFERROR(ROUND(G30*4/100,2)/4,"") -> 4.75% | I31: Total return, local currency | J31: =IFERROR(ROUND(J30*4/100,2)/4,"") -> 10.00% | K31: 6.50% | L31: 6.75% | M31: 14.00% | N31: 11.75% | O31: 10.75% | Q31: =IFERROR(ROUND(Q30*4/100,2)/4,"") -> 5.75% | R31: 9.25% | S31: 7.00% | T31: 6.00% | U31: 8.00% | V31: 5.25% | W31: =IFERROR(ROUND(W30*4/100,2)/4,"") -> 13.00% | X31: =IFERROR(ROUND(X30*4/100,2)/4,"") -> 9.50% | Y31: =IFERROR(ROUND(Y30*4/100,2)/4,"") -> 
C32: * Capture buybacks by adding 1% for the U.S., 0.5% everywhere else | I32: * Capture buybacks by adding 1% for the U.S., 0.5% everywhere else

Sheet Sensitivity (hidden)
A1: ="Input sensitivity analysis ~ " & ltcma_year & " LTCMAs" -> Input sensitivity analysis ~ 2021 LTCMAs
E3: TR vs. top-line revenue growth
E5: =selected_tr -> 5.20% | F5: Total return
E6: 5.30% | F6: 6.41%
E7: =E8-0.002 -> 3.90% | F7: 6.41%
E8: 4.10% | F8: 6.41%
E9: 4.30% | F9: 6.41%
E10: 4.50% | F10: 6.41%
E11: 4.70% | F11: 6.41%
E12: 4.90% | F12: 6.41%
E13: =E14-0.002 -> 5.10% | F13: 6.41%
E14: =E6 -> 5.30% | F14: 6.41%
E15: =E14+0.002 -> 5.50% | F15: 6.41%
E16: =E15+0.002 -> 5.70% | F16: 6.41%
E17: 5.90% | F17: 6.41%
E18: 6.10% | F18: 6.41%
E19: 6.30% | F19: 6.41%
E20: 6.50% | F20: 6.41%
E21: 6.70% | F21: 6.41%
E26: TR vs. margins
E28: =selected_tr -> 5.20% | F28: Total return
E29: 8.25% | F29: 6.41%
E30: =E31-0.002 -> 6.85% | F30: 6.41%
E31: 7.05% | F31: 6.41%
E32: 7.25% | F32: 6.41%
E33: 7.45% | F33: 6.41%
E34: 7.65% | F34: 6.41%
E35: 7.85% | F35: 6.41%
E36: =E37-0.002 -> 8.05% | F36: 6.41%
E37: =E29 -> 8.25% | F37: 6.41%
E38: =E37+0.002 -> 8.45% | F38: 6.41%
E39: =E38+0.002 -> 8.65% | F39: 6.41%
E40: 8.85% | F40: 6.41%
E41: 9.05% | F41: 6.41%
E42: 9.25% | F42: 6.41%
E43: 9.45% | F43: 6.41%
E44: 9.65% | F44: 6.41%
E49: TR vs. ROE (constant margins)
E51: =selected_tr -> 5.20% | F51: Total return
E52: 10.24% | F52: 6.41%
E53: =E54-0.002 -> 8.84% | F53: 6.41%
E54: 9.04% | F54: 6.42%
E55: 9.24% | F55: 6.42%
E56: 9.44% | F56: 6.42%
E57: 9.64% | F57: 6.42%
E58: 9.84% | F58: 6.42%
E59: =E60-0.002 -> 10.04% | F59: 6.41%
E60: =E52 -> 10.24% | F60: 6.41%
E61: =E60+0.002 -> 10.44% | F61: 6.41%
E62: =E61+0.002 -> 10.64% | F62: 6.40%
E63: 10.84% | F63: 6.39%
E64: 11.04% | F64: 6.38%
E65: 11.24% | F65: 6.37%
E66: 11.44% | F66: 6.36%
E67: 11.64% | F67: 6.35%
E72: TR vs. valuations
E74: =selected_tr -> 5.20% | F74: Total return
E75: 19.10 | F75: 6.41%
E76: =E77-0.2 -> 17.70 | F76: 6.41%
E77: 17.90 | F77: 6.41%
E78: 18.10 | F78: 6.41%
E79: 18.30 | F79: 6.41%
E80: 18.50 | F80: 6.41%
E81: 18.70 | F81: 6.41%
E82: =E83-0.2 -> 18.90 | F82: 6.41%
E83: =E75 -> 19.10 | F83: 6.41%
E84: =E83+0.2 -> 19.30 | F84: 6.41%
E85: =E84+0.2 -> 19.50 | F85: 6.41%
E86: 19.70 | F86: 6.41%
E87: 19.90 | F87: 6.41%
E88: 20.10 | F88: 6.41%
E89: 20.30 | F89: 6.41%
E90: 20.50 | F90: 6.41%

Sheet Model
A1: ="Equities return calculation ~ " & ltcma_year & " LTCMAs" -> Equities return calculation ~ 2021 LTCMAs
A2: ="Calculated over "&calc_yrs&" years; all figures are in domestic currency terms" -> Calculated over 13 years; all figures are in domestic currency terms | O2: =INDEX(buybacks_data,MATCH(ltcma_year-2,buybacks_years,0),MATCH(selected_market,buybacks_markets,0)) -> 0.01537831081
G3: Key: | H3: Adj. years (#) | J3: Market type | L3: Total required net dilution (%)
B4: Eurozone | C4: =O35 -> 5.20% | G4: Adj. ratio applies | H4: =INDEX(D$40:D$72,MATCH(selected_market,model_countries,0)) -> 13 | J4: =INDEX($C$40:$C$72,MATCH(selected_market,model_countries,0)) -> DM | L4: =(W10+SUM(I11:I30)-SUM(N11:N30)-W33) -> -1.01
Q5: Return indices | U5: Implied valuation | W5: Balance sheet | Z5: DuPont decomposition | AD5: Payout ratios….
B6: Lookup code ► | E6: Nominal GDP | F6: Int'l contrib. | G6: Revenue | H6: Margins | I6: Earnings | J6: Gross dilution | K6: Buybacks | L6: Net dilution | M6: Price / EPS | N6: Dividend yield | O6: Extraordinary | Q6: Price Index | R6: Total return | S6: Market value | U6: Price-to-book | W6: Book value | X6: Total assets | Z6: Asset turn | AA6: Leverage | AB6: ROE | AD6: Dividends | AE6: Buyback | AF6: Total | AH6: Total yield
L7: = EPS growth | M7: = Price return | O7: = Total return | R7: (ex extraordinary) | S7: (ex extraordinary)
G8: (DWSL) | I8: (PE-derived)
B9: Years | C9: Adj. ratio | E9: Currency | G9: Currency | H9: Ratio (%) | I9: Currency | J9: Currency | K9: Currency | L9: Curency | M9: Ratio | N9: Currency | O9: - | Q9: Index | R9: Index | S9: Curency | U9: Ratio | W9: Currency | X9: Currency | Z9: Ratio | AA9: Ratio | AB9: Ratio | AD9: Ratio (%) | AE9: Ratio (%) | AF9: Ratio (%) | AH9: Ratio (%)
B10: 0 | C10: n/a | E10: =E32 -> 10.46 | G10: =G32 -> 6.64 | H10: =H32 -> 4.52% | I10: =G10*H10 -> 0.30 | J10: =J32*S10 -> -0.18 | K10: =K32*S10 -> 0.09 | L10: =SUM(J10:K10) -> -0.08 | M10: =M32 -> 21.45 | N10: =S10*N32 -> 0.15 | Q10: 100 | R10: 100 | S10: =IF(B10<=calc_yrs,M10*I10,"") -> 6.44 | U10: =IF(B10<=calc_yrs,S10/W10,"") -> 1.54 | W10: =W32 -> 4.17 | X10: =X32 -> 33.83 | Z10: =IF($B10<=calc_yrs,G10/X10,"") -> 0.20 | AA10: =AA32 -> 8.10 | AB10: =IF(B10<=calc_yrs,I10/W10,"") -> 7.19% | AD10: =IF(B10<=calc_yrs,N10/$I10,"") -> 52% | AE10: =IF(B10<=calc_yrs,K10/$I10,"") -> 31% | AF10: =IF(B10<=calc_yrs,SUM(AD10:AE10),"") -> 82% | AH10: =IF(B10<=calc_yrs,(K10+N10)/S10,"") -> 3.8%
B11: 1 | C11: =IF(B11<=calc_yrs,MIN(B11/adj_yrs,1),"") -> 0.08 | E11: =IF(B11<=calc_yrs,E10*(1+$E$34),"") -> 10.73 | G11: =IF(B11<=calc_yrs,G10*(1+$G$35),"") -> 6.93 | H11: =IF($B11<=calc_yrs,H$32*(1-$C11)+H$33*$C11,"") -> 4.60% | I11: =IF(B11<=calc_yrs,G11*H11,"") -> 0.32 | J11: =IF(B11<=calc_yrs,IF(selected_dmem="DM",$S11*$J$34,$J$34*$S11),"") -> -0.13 | K11: =IF(B11<=calc_yrs,IF(selected_dmem="DM",$K$34*$S11,$S11*$K$34),"") -> 0.07 | L11: =IF(B11<=calc_yrs,SUM(J11:K11),"") -> -0.06 | M11: =IF($B11<=calc_yrs,M$32*(1-$C11)+M$33*$C11,"") -> 21.03 | N11: =IF(B11<=calc_yrs,S11*$N$33,"") -> 0.17 | Q11: =IF(B11<=calc_yrs,(S11+L11)/S10*Q10,"") -> 103.05 | R11: =IF(B11<=calc_yrs,(S11+N11+L11)/S10*R10,"") -> 105.65 | S11: =IF(B11<=calc_yrs,M11*I11,"") -> 6.70 | U11: 1.53 | W11: =IF(B11<=calc_yrs,W10+(I11-K11-N11)+J11*-1,"") -> 4.39 | X11: =IF(B11<=calc_yrs,W11*AA11,"") -> 35.02 | Z11: 0.20 | AA11: =IF($B11<=calc_yrs,AA$32*(1-$C11)+AA$33*$C11,"") -> 7.98 | AB11: 7.26% | AD11: 53% | AE11: 23% | AF11: 75% | AH11: 3.6%
B12: =B11+1 -> 2 | C12: 0.15 | E12: 11.01 | G12: 7.23 | H12: 4.67% | I12: 0.34 | J12: =IF(B12<=calc_yrs,IF(selected_dmem="DM",$S12*$J$34,$J$34*$S12),"") -> -0.14 | K12: 0.07 | L12: =IF(B12<=calc_yrs,SUM(J12:K12),"") -> -0.06 | M12: 20.61 | N12: 0.17 | Q12: =IF(B12<=calc_yrs,(S12+L12)/S11*Q11,"") -> 106.12 | R12: 111.54 | S12: 6.96 | U12: 1.51 | W12: 4.62 | X12: 36.27 | Z12: 0.20 | AA12: 7.86 | AB12: 7.32% | AD12: 52% | AE12: 22% | AF12: 74% | AH12: 3.6%
B13: =B12+1 -> 3 | C13: 0.23 | E13: 11.30 | G13: 7.54 | H13: 4.75% | I13: 0.36 | J13: -0.14 | K13: 0.08 | L13: -0.07 | M13: 20.19 | N13: 0.18 | Q13: 109.20 | R13: 117.68 | S13: 7.23 | U13: 1.49 | W13: 4.86 | X13: 37.59 | Z13: 0.20 | AA13: 7.73 | AB13: 7.37% | AD13: 50% | AE13: 22% | AF13: 72% | AH13: 3.6%
B14: =B13+1 -> 4 | C14: 0.31 | E14: 11.59 | G14: 7.87 | H14: 4.82% | I14: 0.38 | J14: -0.15 | K14: 0.08 | L14: -0.07 | M14: 19.77 | N14: 0.19 | Q14: 112.30 | R14: 124.07 | S14: 7.51 | U14: 1.47 | W14: 5.12 | X14: 38.98 | Z14: 0.20 | AA14: 7.61 | AB14: 7.41% | AD14: 49% | AE14: 21% | AF14: 71% | AH14: 3.6%
B15: 5 | C15: 0.38 | E15: 11.89 | G15: 8.21 | H15: 4.90% | I15: 0.40 | J15: -0.16 | K15: 0.08 | L15: -0.07 | M15: 19.35 | N15: 0.19 | Q15: 115.41 | R15: 130.73 | S15: 7.79 | U15: 1.44 | W15: 5.40 | X15: 40.45 | Z15: 0.20 | AA15: 7.49 | AB15: 7.45% | AD15: 48% | AE15: 21% | AF15: 69% | AH15: 3.6%
B16: 6 | C16: 0.46 | E16: 12.20 | G16: 8.57 | H16: 4.97% | I16: 0.43 | J16: -0.16 | K16: 0.09 | L16: -0.07 | M16: 18.93 | N16: 0.20 | Q16: 118.52 | R16: 137.64 | S16: 8.07 | U16: 1.42 | W16: 5.70 | X16: 41.99 | Z16: 0.20 | AA16: 7.36 | AB16: 7.47% | AD16: 47% | AE16: 20% | AF16: 68% | AH16: 3.6%
B17: 7 | C17: 0.54 | E17: 12.52 | G17: 8.94 | H17: 5.05% | I17: 0.45 | J17: -0.17 | K17: 0.09 | L17: -0.08 | M17: 18.51 | N17: 0.21 | Q17: 121.63 | R17: 144.81 | S17: 8.36 | U17: 1.39 | W17: 6.02 | X17: 43.60 | Z17: 0.21 | AA17: 7.24 | AB17: 7.50% | AD17: 46% | AE17: 20% | AF17: 66% | AH17: 3.6%
B18: 8 | C18: 0.62 | E18: 12.85 | G18: 9.33 | H18: 5.12% | I18: 0.48 | J18: -0.17 | K18: 0.09 | L18: -0.08 | M18: 18.10 | N18: 0.22 | Q18: 124.72 | R18: 152.24 | S18: 8.65 | U18: 1.36 | W18: 6.36 | X18: 45.29 | Z18: 0.21 | AA18: 7.12 | AB18: 7.51% | AD18: 45% | AE18: 19% | AF18: 65% | AH18: 3.6%
B19: 9 | C19: 0.69 | E19: 13.18 | G19: 9.74 | H19: 5.20% | I19: 0.51 | J19: -0.18 | K19: 0.10 | L19: -0.08 | M19: 17.68 | N19: 0.22 | Q19: 127.80 | R19: 159.94 | S19: 8.95 | U19: 1.33 | W19: 6.73 | X19: 47.06 | Z19: 0.21 | AA19: 6.99 | AB19: 7.52% | AD19: 44% | AE19: 19% | AF19: 63% | AH19: 3.6%
B20: 10 | C20: 0.77 | E20: 13.52 | G20: 10.16 | H20: 5.27% | I20: 0.54 | J20: -0.18 | K20: 0.10 | L20: -0.09 | M20: 17.26 | N20: 0.23 | Q20: 130.86 | R20: 167.89 | S20: 9.25 | U20: 1.30 | W20: 7.12 | X20: 48.92 | Z20: 0.21 | AA20: 6.87 | AB20: 7.53% | AD20: 43% | AE20: 18% | AF20: 62% | AH20: 3.6%
B21: 11 | C21: 0.85 | E21: 13.87 | G21: 10.60 | H21: 5.35% | I21: 0.57 | J21: -0.19 | K21: 0.10 | L21: -0.09 | M21: 16.84 | N21: 0.24 | Q21: 133.88 | R21: 176.10 | S21: 9.55 | U21: 1.27 | W21: 7.54 | X21: 50.85 | Z21: 0.21 | AA21: 6.75 | AB21: 7.53% | AD21: 42% | AE21: 18% | AF21: 60% | AH21: 3.6%
B22: 12 | C22: 0.92 | E22: 14.24 | G22: 11.06 | H22: 5.42% | I22: 0.60 | J22: -0.20 | K22: 0.11 | L22: -0.09 | M22: 16.42 | N22: 0.25 | Q22: 136.86 | R22: 184.57 | S22: 9.86 | U22: 1.23 | W22: 7.98 | X22: 52.87 | Z22: 0.21 | AA22: 6.62 | AB22: 7.52% | AD22: 41% | AE22: 18% | AF22: 59% | AH22: 3.6%
B23: 13 | C23: 1.00 | E23: 14.61 | G23: 11.55 | H23: 5.50% | I23: =IF(B23<=calc_yrs,G23*H23,"") -> 0.64 | J23: -0.20 | K23: 0.11 | L23: -0.09 | M23: 16.00 | N23: 0.25 | Q23: 139.79 | R23: 193.27 | S23: 10.16 | U23: 1.20 | W23: 8.46 | X23: 54.98 | Z23: 0.21 | AA23: 6.50 | AB23: 7.51% | AD23: 40% | AE23: 17% | AF23: 57% | AH23: 3.6%
B24: 14
B25: 15
B26: 16
B27: 17
B28: 18
B29: 19
B30: 20
B32: =TEXT(end_date,"mmm yyyy") & " starting value" -> Sep 2020 starting value | E32: =INDEX(AH$40:AH$72,MATCH(selected_market,model_countries,0))/10^3 -> 10.46 | G32: =VLOOKUP(YEAR(end_date)&"-"&MONTH(end_date),MData!$A:$NJ,MATCH(INDEX(IdxMapTable,MATCH(selected_market,IdxNames,0)+1,MATCH(G$6,IdxFields,0)+1),MData!$7:$7,0),FALSE)/10^9 -> 6.64 | H32: =I32/G32 -> 4.52% | I32: =S32/M32 -> 0.30 | J32: =L32-K32 -> -2.73% | K32: =AVERAGE(INDEX(buybacks_data,MATCH(ltcma_year-2,buybacks_years,0),MATCH(selected_market,buybacks_markets,0)),INDEX(buybacks_data,MATCH(ltcma_year-3,buybacks_years,0),MATCH(selected_market,buybacks_markets,0)),INDEX(buybacks_data,MATCH(ltcma_year-4,buybacks_years,0),MATCH(selected_market,buybacks_markets,0))) -> 1.43% | L32: =INDEX(Dilution!$D$28:$X$28,MATCH(selected_market,dilution_countries,0)) -> -1.30% | M32: =VLOOKUP(YEAR(end_date)&"-"&MONTH(end_date),MData!$A:$NJ,MATCH(INDEX(IdxMapTable,MATCH(selected_market,IdxNames,0)+1,MATCH(M$6,IdxFields,0)+1),MData!$7:$7,0),FALSE) -> 21.45 | N32: =VLOOKUP(YEAR(end_date)&"-"&MONTH(end_date),MData!$A:$NJ,MATCH(INDEX(IdxMapTable,MATCH(selected_market,IdxNames,0)+1,MATCH(N$6,IdxFields,0)+1),MData!$7:$7,0),FALSE)/100 -> 2.40% | S32: =VLOOKUP(YEAR(end_date)&"-"&MONTH(end_date),MData!$A:$NJ,MATCH(INDEX(IdxMapTable,MATCH(selected_market,IdxNames,0)+1,MATCH(S$6,IdxFields,0)+1),MData!$7:$7,0),FALSE)/10^6 -> 6.44 | U32: =S32/W32 -> 1.54 | W32: =VLOOKUP(YEAR(end_date)&"-"&MONTH(end_date),MData!$A:$NJ,MATCH(INDEX(IdxMapTable,MATCH(selected_market,IdxNames,0)+1,MATCH(W$6,IdxFields,0)+1),MData!$7:$7,0),FALSE)/10^9 -> 4.17 | X32: =VLOOKUP(YEAR(end_date)&"-"&MONTH(end_date),MData!$A:$NJ,MATCH(INDEX(IdxMapTable,MATCH(selected_market,IdxNames,0)+1,MATCH(X$6,IdxFields,0)+1),MData!$7:$7,0),FALSE)/10^9 -> 33.83 | Z32: =G32/X32 -> 0.20 | AA32: =X32/W32 -> 8.10 | AB32: =I32/W32 -> 7.19% | AE32: Averages, excluding year 0:
B33: CMA end value | E33: =INDEX(E11:E30,calc_yrs) -> 14.61 | G33: =INDEX(G11:G30,calc_yrs) -> 11.55 | H33: =INDEX(J$40:J$72,MATCH(selected_market,model_countries,0)) -> 5.50% | I33: =INDEX(I11:I30,calc_yrs) -> 0.64 | M33: =INDEX(P$40:P$72,MATCH(selected_market,model_countries,0)) -> 16.00 | N33: =INDEX(R$40:R$72,MATCH(selected_market,model_countries,0)) -> 2.50% | S33: =INDEX(S11:S30,calc_yrs) -> 10.16 | U33: =INDEX(U11:U30,calc_yrs) -> 1.20 | W33: =I33/AB33 -> 8.46 | X33: =INDEX(X11:X30,calc_yrs) -> 54.98 | Z33: =INDEX(W$40:W$72,MATCH(selected_market,model_countries,0)) -> 0.21 | AA33: =INDEX(Z$40:Z$72,MATCH(selected_market,model_countries,0)) -> 6.50 | AB33: =H33*Z33*AA33 -> 7.51% | AD33: =AVERAGE(AD11:AD23) -> 46% | AE33: =AVERAGE(AE11:AE23) -> 20% | AF33: =AVERAGE(AF11:AF23) -> 66%
B34: Contribution to CMA return | E34: =INDEX(E$40:E$72,MATCH(selected_market,model_countries,0)) -> 2.60% | F34: =INDEX(F$40:F$72,MATCH(selected_market,model_countries,0)) -> 0.70% | G34: =INDEX(G$40:G$72,MATCH(selected_market,model_countries,0)) -> 1.00% | H34: =(1+H35)/(1+G35)-1 -> 1.52% | J34: =IF( selected_dmem="DM", INDEX(L$40:L$72,MATCH(selected_market,model_countries,0)), (L4/calc_yrs-AVERAGE(K11:K30))/AVERAGE(S11:S23) ) -> -2.00% | K34: =IF( selected_dmem="DM", (L4/calc_yrs-AVERAGE(J11:J30))/AVERAGE(S11:S23), INDEX(M$40:M$72,MATCH(selected_market,model_countries,0)) ) -> 1.07% | L34: =((INDEX(Q11:Q30,calc_yrs)/Q10)/(INDEX(S11:S30,calc_yrs)/S10))^(1/calc_yrs)-1 -> -0.93% | M34: =(1+M35)/(1+L35)-1 -> -2.23% | N34: =((INDEX(R11:R30,calc_yrs)/R10)/(INDEX(Q11:Q30,calc_yrs)/Q10))^(1/calc_yrs)-1 -> 2.52% | O34: =INDEX(S$40:S$72,MATCH(selected_market,model_countries,0)) -> 0.00%
B35: Cum. contrib. to CMA return | F35: =PRODUCT(1+$E34:F34)-1 -> 3.32% | G35: =PRODUCT(1+E34:G34)-1 -> 4.35% | H35: =(INDEX($I$11:$I$30,calc_yrs)/I10)^(1/calc_yrs)-1 -> 5.93% | L35: =(1+H35)*(1+L34)-1 -> 4.95% | M35: =(INDEX(Q11:Q30,calc_yrs)/Q10)^(1/calc_yrs)-1 -> 2.61% | O35: =(INDEX(R11:R30,calc_yrs)/R10)^(1/calc_yrs)-1+O34 -> 5.20%
A37: Inputs & results
E38: Revenues | I38: Margins | L38: Net dilution | O38: Valuations | V38: Asset turnover | Y38: Leverage | AB38: Return on equity | AF38: Raw starting values | AP38: Net dilution | AQ38: YoY calculation lookup
B39: Market | C39: DM/EM? | D39: Adj. yrs. | E39: Dom. growth | F39: Int'l contrib. | G39: Sales % GDP | H39: Total revenue growth | I39: Current margins | J39: Target margins | K39: Margins impact | L39: Gross dilution | M39: Buybacks | N39: Net dilution | O39: Current P/E | P39: Target P/E | Q39: Valuation impact | R39: Dividend yield | S39: Extra-ordinary | T39: Total Return | V39: Current asset turnover | W39: Target asset turnover | X39: % Change | Y39: Current leverage | Z39: Target leverage | AA39: % Change | AB39: Current ROE | AC39: Target ROE | AD39: % Change | AF39: GDP code | AG39: GDP factor | AH39: Nominal GDP | AI39: Dividend Yield | AJ39: Revenue | AK39: Earnings (PE-derived) | AL39: Market Value | AM39: Total Assets | AN39: Book Value | AP39: =IF($AP$38=$AT$39,$O$35,INDEX($C$34:$V$34,MATCH($AP$38,$C$6:$W$6,0))) -> -0.009286357553 | AQ39: Margins | AR39: Net dilution | AS39: Price / EPS | AT39: Total return
B40: U.S. large | C40: DM | D40: 13 | E40: =INDEX(nGDP_values,MATCH(VLOOKUP(B40,IdxCountryMap,2,FALSE),econ_countries,0),MATCH(ltcma_year,nGDP_years,0))/100 -> 3.80% | F40: 0.30% | G40: 1.00% | H40: =IF(NOT(ISBLANK($B40)),(1+E40)*(1+F40)*(1+G40)-1,"") -> 5.15% | I40: =IF(NOT(ISBLANK($B40)),IFERROR(AK40/AJ40,#N/A),"") -> 8.14% | J40: 8.25% | K40: =IF(NOT(ISBLANK($B40)),AQ40,"") -> 0.10% | L40: -2.00% | M40: =IF(NOT(ISBLANK($B40)),N40-L40,"") -> 2.14% | N40: =IF(NOT(ISBLANK($B40)),AR40,"") -> 0.14% | O40: =IF(NOT(ISBLANK($B40)),VLOOKUP(YEAR(end_date)&"-"&MONTH(end_date),MData!$A:$NJ,MATCH(INDEX(IdxMapTable,MATCH($B40,IdxNames,0)+1,MATCH("Price / EPS",IdxFields,0)+1),MData!$7:$7,0),FALSE),"") -> 30.5 | P40: 20.5 | Q40: =IF(NOT(ISBLANK($B40)),AS40,"") -> -3.00% | R40: 1.80% | S40: 0.00% | T40: =IF(NOT(ISBLANK($B40)),AT40,"") -> 4.09% | U40: y | V40: =IF(NOT(ISBLANK($B40)),AJ40/AM40,"") -> 0.31 | W40: 0.28 | X40: =IF(NOT(ISBLANK($B40)),W40/V40-1,"") -> -9.4% | Y40: =IF(NOT(ISBLANK($B40)),AM40/AN40,"") -> 5.07 | Z40: 4.75 | AA40: =IF(NOT(ISBLANK($B40)),Z40/Y40-1,"") -> -6.4% | AB40: =IF(NOT(ISBLANK($B40)),AK40/AN40,"") -> 12.77% | AC40: =IF(NOT(ISBLANK($B40)),J40*W40*Z40,"") -> 10.97% | AD40: =IF(NOT(ISBLANK($B40)),AC40/AB40-1,"") -> -14.1% | AF40: =IF(NOT(ISBLANK($B40)),INDEX(IdxMapTable,MATCH($B40,IdxNames,0)+1,MATCH(E$6,IdxFields,0)+1),"") -> S111NGDP@G10*4 | AG40: =IF(NOT(ISBLANK($B40)),INDEX(IdxMapTable,MATCH($B40,IdxNames,0)+1,MATCH("GDP factor",IdxFields,0)+1),"") -> 1 | AH40: =IF(NOT(ISBLANK($B40)),IFERROR(VLOOKUP(end_date,QData!$B:$AC,MATCH(AF40,QData!$3:$3,0)-1,FALSE),IFERROR(VLOOKUP(EOMONTH(end_date,-1),QData!$B:$AC,MATCH(AF40,QData!$3:$3,0)-1,FALSE)*(1+E40)^(1/12),IFERROR(VLOOKUP(EOMONTH(end_date,-2),QData!$B:$AC,MATCH(AF40,QData!$3:$3,0)-1,FALSE)*(1+E40)^(2/12),IFERROR(VLOOKUP(EOMONTH(end_date,-3),QData!$B:$AC,MATCH(AF40,QData!$3:$3,0)-1,FALSE)*(1+E40)^(3/12),#N/A))))*AG40,"") -> 19702.9 | AI40: =IF(NOT(ISBLANK($B40)),VLOOKUP(YEAR(end_date)&"-"&MONTH(end_date),MData!$A:$NJ,MATCH(INDEX(IdxMapTable,MATCH($B40,IdxNames,0)+1,MATCH(AI$39,IdxFields,0)+1),MData!$7:$7,0),FALSE),"") -> 1.6 | AJ40: =IF(NOT(ISBLANK($B40)),VLOOKUP(YEAR(end_date)&"-"&MONTH(end_date),MData!$A:$NJ,MATCH(INDEX(IdxMapTable,MATCH($B40,IdxNames,0)+1,MATCH(AJ$39,IdxFields,0)+1),MData!$7:$7,0),FALSE),"") -> 13702860000 | AK40: =IF(NOT(ISBLANK($B40)),AL40/O40*1000,"") -> 1115559846 | AL40: =IF(NOT(ISBLANK($B40)),VLOOKUP(YEAR(end_date)&"-"&MONTH(end_date),MData!$A:$NJ,MATCH(INDEX(IdxMapTable,MATCH($B40,IdxNames,0)+1,MATCH(AL$39,IdxFields,0)+1),MData!$7:$7,0),FALSE),"") -> 33971140 | AM40: =IF(NOT(ISBLANK($B40)),VLOOKUP(YEAR(end_date)&"-"&MONTH(end_date),MData!$A:$NJ,MATCH(INDEX(IdxMapTable,MATCH($B40,IdxNames,0)+1,MATCH(AM$39,IdxFields,0)+1),MData!$7:$7,0),FALSE),"") -> 44315480000 | AN40: =IF(NOT(ISBLANK($B40)),VLOOKUP(YEAR(end_date)&"-"&MONTH(end_date),MData!$A:$NJ,MATCH(INDEX(IdxMapTable,MATCH($B40,IdxNames,0)+1,MATCH(AN$39,IdxFields,0)+1),MData!$7:$7,0),FALSE),"") -> 8733671000 | AP40: =IF(ISBLANK(B40),"",B40) -> U.S. large | AQ40: 0.1% | AR40: 0.1% | AS40: -3.0% | AT40: 4.09%
B41: U.S. mid | C41: DM | D41: 13 | E41: =INDEX(nGDP_values,MATCH(VLOOKUP(B41,IdxCountryMap,2,FALSE),econ_countries,0),MATCH(ltcma_year,nGDP_years,0))/100 -> 3.80% | F41: 0.20% | G41: 2.00% | H41: =IF(NOT(ISBLANK($B41)),(1+E41)*(1+F41)*(1+G41)-1,"") -> 6.09% | I41: =IF(NOT(ISBLANK($B41)),IFERROR(AK41/AJ41,#N/A),"") -> 7.18% | J41: 7.00% | K41: -0.20% | L41: -2.50% | M41: =IF(NOT(ISBLANK($B41)),N41-L41,"") -> 1.84% | N41: =IF(NOT(ISBLANK($B41)),AR41,"") -> -0.66% | O41: =IF(NOT(ISBLANK($B41)),VLOOKUP(YEAR(end_date)&"-"&MONTH(end_date),MData!$A:$NJ,MATCH(INDEX(IdxMapTable,MATCH($B41,IdxNames,0)+1,MATCH("Price / EPS",IdxFields,0)+1),MData!$7:$7,0),FALSE),"") -> 26.2 | P41: 19.0 | Q41: -2.44% | R41: 1.75% | S41: 0.00% | T41: 4.42% | U41: y | V41: 0.33 | W41: 0.28 | X41: =IF(NOT(ISBLANK($B41)),W41/V41-1,"") -> -15.5% | Y41: 4.82 | Z41: 4.50 | AA41: =IF(NOT(ISBLANK($B41)),Z41/Y41-1,"") -> -6.6% | AB41: 11.47% | AC41: 8.82% | AD41: =IF(NOT(ISBLANK($B41)),AC41/AB41-1,"") -> -23.1% | AF41: S111NGDP@G10*4 | AG41: 1 | AH41: =IF(NOT(ISBLANK($B41)),IFERROR(VLOOKUP(end_date,QData!$B:$AC,MATCH(AF41,QData!$3:$3,0)-1,FALSE),IFERROR(VLOOKUP(EOMONTH(end_date,-1),QData!$B:$AC,MATCH(AF41,QData!$3:$3,0)-1,FALSE)*(1+E41)^(1/12),IFERROR(VLOOKUP(EOMONTH(end_date,-2),QData!$B:$AC,MATCH(AF41,QData!$3:$3,0)-1,FALSE)*(1+E41)^(2/12),IFERROR(VLOOKUP(EOMONTH(end_date,-3),QData!$B:$AC,MATCH(AF41,QData!$3:$3,0)-1,FALSE)*(1+E41)^(3/12),#N/A))))*AG41,"") -> 19702.9 | AI41: =IF(NOT(ISBLANK($B41)),VLOOKUP(YEAR(end_date)&"-"&MONTH(end_date),MData!$A:$NJ,MATCH(INDEX(IdxMapTable,MATCH($B41,IdxNames,0)+1,MATCH(AI$39,IdxFields,0)+1),MData!$7:$7,0),FALSE),"") -> 1.8 | AJ41: =IF(NOT(ISBLANK($B41)),VLOOKUP(YEAR(end_date)&"-"&MONTH(end_date),MData!$A:$NJ,MATCH(INDEX(IdxMapTable,MATCH($B41,IdxNames,0)+1,MATCH(AJ$39,IdxFields,0)+1),MData!$7:$7,0),FALSE),"") -> 4550050312 | AK41: =IF(NOT(ISBLANK($B41)),AL41/O41*1000,"") -> 326747485 | AL41: =IF(NOT(ISBLANK($B41)),VLOOKUP(YEAR(end_date)&"-"&MONTH(end_date),MData!$A:$NJ,MATCH(INDEX(IdxMapTable,MATCH($B41,IdxNames,0)+1,MATCH(AL$39,IdxFields,0)+1),MData!$7:$7,0),FALSE),"") -> 8561520.188 | AM41: =IF(NOT(ISBLANK($B41)),VLOOKUP(YEAR(end_date)&"-"&MONTH(end_date),MData!$A:$NJ,MATCH(INDEX(IdxMapTable,MATCH($B41,IdxNames,0)+1,MATCH(AM$39,IdxFields,0)+1),MData!$7:$7,0),FALSE),"") -> 1.372564287e+10 | AN41: =IF(NOT(ISBLANK($B41)),VLOOKUP(YEAR(end_date)&"-"&MONTH(end_date),MData!$A:$NJ,MATCH(INDEX(IdxMapTable,MATCH($B41,IdxNames,0)+1,MATCH(AN$39,IdxFields,0)+1),MData!$7:$7,0),FALSE),"") -> 2847946264 | AP41: =IF(ISBLANK(B41),"",B41) -> U.S. mid | AQ41: -0.2% | AR41: -0.7% | AS41: -2.4% | AT41: 4.42%
B42: U.S. small | C42: DM | D42: 13 | E42: 3.80% | F42: 0.10% | G42: 1.75% | H42: 5.72% | I42: 2.29% | J42: 4.00% | K42: 4.39% | L42: -2.50% | M42: 0.92% | N42: -1.58% | O42: =IF(NOT(ISBLANK($B42)),VLOOKUP(YEAR(end_date)&"-"&MONTH(end_date),MData!$A:$NJ,MATCH(INDEX(IdxMapTable,MATCH($B42,IdxNames,0)+1,MATCH("Price / EPS",IdxFields,0)+1),MData!$7:$7,0),FALSE),"") -> 59.8 | P42: 30.0 | Q42: -5.17% | R42: 1.50% | S42: 0.00% | T42: 4.58% | U42: y | V42: 0.35 | W42: 0.40 | X42: 14.6% | Y42: 4.65 | Z42: 4.00 | AA42: -13.9% | AB42: 3.71% | AC42: 6.40% | AD42: 72.6% | AF42: S111NGDP@G10*4 | AG42: 1 | AH42: =IF(NOT(ISBLANK($B42)),IFERROR(VLOOKUP(end_date,QData!$B:$AC,MATCH(AF42,QData!$3:$3,0)-1,FALSE),IFERROR(VLOOKUP(EOMONTH(end_date,-1),QData!$B:$AC,MATCH(AF42,QData!$3:$3,0)-1,FALSE)*(1+E42)^(1/12),IFERROR(VLOOKUP(EOMONTH(end_date,-2),QData!$B:$AC,MATCH(AF42,QData!$3:$3,0)-1,FALSE)*(1+E42)^(2/12),IFERROR(VLOOKUP(EOMONTH(end_date,-3),QData!$B:$AC,MATCH(AF42,QData!$3:$3,0)-1,FALSE)*(1+E42)^(3/12),#N/A))))*AG42,"") -> 19702.9 | AI42: =IF(NOT(ISBLANK($B42)),VLOOKUP(YEAR(end_date)&"-"&MONTH(end_date),MData!$A:$NJ,MATCH(INDEX(IdxMapTable,MATCH($B42,IdxNames,0)+1,MATCH(AI$39,IdxFields,0)+1),MData!$7:$7,0),FALSE),"") -> 1.7 | AJ42: =IF(NOT(ISBLANK($B42)),VLOOKUP(YEAR(end_date)&"-"&MONTH(end_date),MData!$A:$NJ,MATCH(INDEX(IdxMapTable,MATCH($B42,IdxNames,0)+1,MATCH(AJ$39,IdxFields,0)+1),MData!$7:$7,0),FALSE),"") -> 1609817406 | AK42: 36818815 | AL42: =IF(NOT(ISBLANK($B42)),VLOOKUP(YEAR(end_date)&"-"&MONTH(end_date),MData!$A:$NJ,MATCH(INDEX(IdxMapTable,MATCH($B42,IdxNames,0)+1,MATCH(AL$39,IdxFields,0)+1),MData!$7:$7,0),FALSE),"") -> 2201195.649 | AM42: =IF(NOT(ISBLANK($B42)),VLOOKUP(YEAR(end_date)&"-"&MONTH(end_date),MData!$A:$NJ,MATCH(INDEX(IdxMapTable,MATCH($B42,IdxNames,0)+1,MATCH(AM$39,IdxFields,0)+1),MData!$7:$7,0),FALSE),"") -> 4613765903 | AN42: =IF(NOT(ISBLANK($B42)),VLOOKUP(YEAR(end_date)&"-"&MONTH(end_date),MData!$A:$NJ,MATCH(INDEX(IdxMapTable,MATCH($B42,IdxNames,0)+1,MATCH(AN$39,IdxFields,0)+1),MData!$7:$7,0),FALSE),"") -> 992823252.5 | AP42: U.S. small | AQ42: 4.4% | AR42: -1.6% | AS42: -5.2% | AT42: 4.58%
B43: Eurozone | C43: DM | D43: 13 | E43: 2.60% | F43: 0.70% | G43: 1.00% | H43: 4.35% | I43: 4.52% | J43: 5.50% | K43: 1.52% | L43: -2.00% | M43: 1.07% | N43: -0.93% | O43: =IF(NOT(ISBLANK($B43)),VLOOKUP(YEAR(end_date)&"-"&MONTH(end_date),MData!$A:$NJ,MATCH(INDEX(IdxMapTable,MATCH($B43,IdxNames,0)+1,MATCH("Price / EPS",IdxFields,0)+1),MData!$7:$7,0),FALSE),"") -> 21.4 | P43: 16.0 | Q43: -2.23% | R43: 2.50% | S43: 0.00% | T43: 5.20% | U43: y | V43: 0.20 | W43: 0.21 | X43: 7.1% | Y43: 8.10 | Z43: 6.50 | AA43: -19.8% | AB43: 7.19% | AC43: 7.51% | AD43: 4.4% | AF43: S025NGDP@G10*4 | AG43: 1 | AH43: =IF(NOT(ISBLANK($B43)),IFERROR(VLOOKUP(end_date,QData!$B:$AC,MATCH(AF43,QData!$3:$3,0)-1,FALSE),IFERROR(VLOOKUP(EOMONTH(end_date,-1),QData!$B:$AC,MATCH(AF43,QData!$3:$3,0)-1,FALSE)*(1+E43)^(1/12),IFERROR(VLOOKUP(EOMONTH(end_date,-2),QData!$B:$AC,MATCH(AF43,QData!$3:$3,0)-1,FALSE)*(1+E43)^(2/12),IFERROR(VLOOKUP(EOMONTH(end_date,-3),QData!$B:$AC,MATCH(AF43,QData!$3:$3,0)-1,FALSE)*(1+E43)^(3/12),#N/A))))*AG43,"") -> 10461.7 | AI43: =IF(NOT(ISBLANK($B43)),VLOOKUP(YEAR(end_date)&"-"&MONTH(end_date),MData!$A:$NJ,MATCH(INDEX(IdxMapTable,MATCH($B43,IdxNames,0)+1,MATCH(AI$39,IdxFields,0)+1),MData!$7:$7,0),FALSE),"") -> 2.4 | AJ43: =IF(NOT(ISBLANK($B43)),VLOOKUP(YEAR(end_date)&"-"&MONTH(end_date),MData!$A:$NJ,MATCH(INDEX(IdxMapTable,MATCH($B43,IdxNames,0)+1,MATCH(AJ$39,IdxFields,0)+1),MData!$7:$7,0),FALSE),"") -> 6636559433 | AK43: 300170503 | AL43: =IF(NOT(ISBLANK($B43)),VLOOKUP(YEAR(end_date)&"-"&MONTH(end_date),MData!$A:$NJ,MATCH(INDEX(IdxMapTable,MATCH($B43,IdxNames,0)+1,MATCH(AL$39,IdxFields,0)+1),MData!$7:$7,0),FALSE),"") -> 6438147 | AM43: =IF(NOT(ISBLANK($B43)),VLOOKUP(YEAR(end_date)&"-"&MONTH(end_date),MData!$A:$NJ,MATCH(INDEX(IdxMapTable,MATCH($B43,IdxNames,0)+1,MATCH(AM$39,IdxFields,0)+1),MData!$7:$7,0),FALSE),"") -> 33831064739 | AN43: =IF(NOT(ISBLANK($B43)),VLOOKUP(YEAR(end_date)&"-"&MONTH(end_date),MData!$A:$NJ,MATCH(INDEX(IdxMapTable,MATCH($B43,IdxNames,0)+1,MATCH(AN$39,IdxFields,0)+1),MData!$7:$7,0),FALSE),"") -> 4174919884 | AP43: Eurozone | AQ43: 1.5% | AR43: -0.9% | AS43: -2.2% | AT43: 5.20%
B44: Eurozone Small Cap | C44: DM | D44: 13 | E44: =INDEX(nGDP_values,MATCH(VLOOKUP(B44,IdxCountryMap,2,FALSE),econ_countries,0),MATCH(ltcma_year,nGDP_years,0))/100 -> 2.60% | F44: 0.50% | G44: 2.50% | H44: =IF(NOT(ISBLANK($B44)),(1+E44)*(1+F44)*(1+G44)-1,"") -> 5.69% | I44: =IF(NOT(ISBLANK($B44)),IFERROR(AK44/AJ44,#N/A),"") -> 5.79% | J44: 6.50% | K44: 0.89% | L44: -2.00% | M44: =IF(NOT(ISBLANK($B44)),N44-L44,"") -> 0.86% | N44: -1.14% | O44: =IF(NOT(ISBLANK($B44)),VLOOKUP(YEAR(end_date)&"-"&MONTH(end_date),MData!$A:$NJ,MATCH(INDEX(IdxMapTable,MATCH($B44,IdxNames,0)+1,MATCH("Price / EPS",IdxFields,0)+1),MData!$7:$7,0),FALSE),"") -> 26.1 | P44: 20.0 | Q44: -2.04% | R44: 3.00% | S44: 0.00% | T44: 6.40% | U44: y | V44: =IF(NOT(ISBLANK($B44)),AJ44/AM44,"") -> 0.26 | W44: 0.21 | X44: =IF(NOT(ISBLANK($B44)),W44/V44-1,"") -> -19.8% | Y44: =IF(NOT(ISBLANK($B44)),AM44/AN44,"") -> 5.55 | Z44: 7.00 | AA44: =IF(NOT(ISBLANK($B44)),Z44/Y44-1,"") -> 26.0% | AB44: =IF(NOT(ISBLANK($B44)),AK44/AN44,"") -> 8.42% | AC44: =IF(NOT(ISBLANK($B44)),J44*W44*Z44,"") -> 9.56% | AD44: =IF(NOT(ISBLANK($B44)),AC44/AB44-1,"") -> 13.4% | AF44: =IF(NOT(ISBLANK($B44)),INDEX(IdxMapTable,MATCH($B44,IdxNames,0)+1,MATCH(E$6,IdxFields,0)+1),"") -> S112NGDP@G10*4 | AG44: 1 | AH44: =IF(NOT(ISBLANK($B44)),IFERROR(VLOOKUP(end_date,QData!$B:$AC,MATCH(AF44,QData!$3:$3,0)-1,FALSE),IFERROR(VLOOKUP(EOMONTH(end_date,-1),QData!$B:$AC,MATCH(AF44,QData!$3:$3,0)-1,FALSE)*(1+E44)^(1/12),IFERROR(VLOOKUP(EOMONTH(end_date,-2),QData!$B:$AC,MATCH(AF44,QData!$3:$3,0)-1,FALSE)*(1+E44)^(2/12),IFERROR(VLOOKUP(EOMONTH(end_date,-3),QData!$B:$AC,MATCH(AF44,QData!$3:$3,0)-1,FALSE)*(1+E44)^(3/12),#N/A))))*AG44,"") -> 1914.3 | AI44: =IF(NOT(ISBLANK($B44)),VLOOKUP(YEAR(end_date)&"-"&MONTH(end_date),MData!$A:$NJ,MATCH(INDEX(IdxMapTable,MATCH($B44,IdxNames,0)+1,MATCH(AI$39,IdxFields,0)+1),MData!$7:$7,0),FALSE),"") -> 2.4 | AJ44: =IF(NOT(ISBLANK($B44)),VLOOKUP(YEAR(end_date)&"-"&MONTH(end_date),MData!$A:$NJ,MATCH(INDEX(IdxMapTable,MATCH($B44,IdxNames,0)+1,MATCH(AJ$39,IdxFields,0)+1),MData!$7:$7,0),FALSE),"") -> 1163503434 | AK44: =IF(NOT(ISBLANK($B44)),AL44/O44*1000,"") -> 67401645 | AL44: =IF(NOT(ISBLANK($B44)),VLOOKUP(YEAR(end_date)&"-"&MONTH(end_date),MData!$A:$NJ,MATCH(INDEX(IdxMapTable,MATCH($B44,IdxNames,0)+1,MATCH(AL$39,IdxFields,0)+1),MData!$7:$7,0),FALSE),"") -> 1761827.297 | AM44: =IF(NOT(ISBLANK($B44)),VLOOKUP(YEAR(end_date)&"-"&MONTH(end_date),MData!$A:$NJ,MATCH(INDEX(IdxMapTable,MATCH($B44,IdxNames,0)+1,MATCH(AM$39,IdxFields,0)+1),MData!$7:$7,0),FALSE),"") -> 4445116253 | AN44: =IF(NOT(ISBLANK($B44)),VLOOKUP(YEAR(end_date)&"-"&MONTH(end_date),MData!$A:$NJ,MATCH(INDEX(IdxMapTable,MATCH($B44,IdxNames,0)+1,MATCH(AN$39,IdxFields,0)+1),MData!$7:$7,0),FALSE),"") -> 800276347.9 | AP44: Eurozone Small Cap | AQ44: 0.9% | AR44: -1.1% | AS44: -2.0% | AT44: 6.40%
B45: U.K. | C45: DM | D45: 13 | E45: 3.60% | F45: 0.60% | G45: 1.00% | H45: 5.26% | I45: 5.60% | J45: 5.75% | K45: 0.20% | L45: -2.00% | M45: 1.23% | N45: -0.77% | O45: =IF(NOT(ISBLANK($B45)),VLOOKUP(YEAR(end_date)&"-"&MONTH(end_date),MData!$A:$NJ,MATCH(INDEX(IdxMapTable,MATCH($B45,IdxNames,0)+1,MATCH("Price / EPS",IdxFields,0)+1),MData!$7:$7,0),FALSE),"") -> 17.7 | P45: 14.5 | Q45: -1.54% | R45: 3.50% | S45: 0.00% | T45: 6.68% | U45: y | V45: 0.17 | W45: 0.19 | X45: 13.5% | Y45: 8.12 | Z45: 7.60 | AA45: -6.4% | AB45: 7.62% | AC45: 8.30% | AD45: 9.0% | AF45: S112NGDP@G10*4 | AG45: 1 | AH45: =IF(NOT(ISBLANK($B45)),IFERROR(VLOOKUP(end_date,QData!$B:$AC,MATCH(AF45,QData!$3:$3,0)-1,FALSE),IFERROR(VLOOKUP(EOMONTH(end_date,-1),QData!$B:$AC,MATCH(AF45,QData!$3:$3,0)-1,FALSE)*(1+E45)^(1/12),IFERROR(VLOOKUP(EOMONTH(end_date,-2),QData!$B:$AC,MATCH(AF45,QData!$3:$3,0)-1,FALSE)*(1+E45)^(2/12),IFERROR(VLOOKUP(EOMONTH(end_date,-3),QData!$B:$AC,MATCH(AF45,QData!$3:$3,0)-1,FALSE)*(1+E45)^(3/12),#N/A))))*AG45,"") -> 1919.0 | AI45: =IF(NOT(ISBLANK($B45)),VLOOKUP(YEAR(end_date)&"-"&MONTH(end_date),MData!$A:$NJ,MATCH(INDEX(IdxMapTable,MATCH($B45,IdxNames,0)+1,MATCH(AI$39,IdxFields,0)+1),MData!$7:$7,0),FALSE),"") -> 3.5 | AJ45: =IF(NOT(ISBLANK($B45)),VLOOKUP(YEAR(end_date)&"-"&MONTH(end_date),MData!$A:$NJ,MATCH(INDEX(IdxMapTable,MATCH($B45,IdxNames,0)+1,MATCH(AJ$39,IdxFields,0)+1),MData!$7:$7,0),FALSE),"") -> 2026785000 | AK45: 113563181 | AL45: =IF(NOT(ISBLANK($B45)),VLOOKUP(YEAR(end_date)&"-"&MONTH(end_date),MData!$A:$NJ,MATCH(INDEX(IdxMapTable,MATCH($B45,IdxNames,0)+1,MATCH(AL$39,IdxFields,0)+1),MData!$7:$7,0),FALSE),"") -> 2015349 | AM45: =IF(NOT(ISBLANK($B45)),VLOOKUP(YEAR(end_date)&"-"&MONTH(end_date),MData!$A:$NJ,MATCH(INDEX(IdxMapTable,MATCH($B45,IdxNames,0)+1,MATCH(AM$39,IdxFields,0)+1),MData!$7:$7,0),FALSE),"") -> 12110080000 | AN45: =IF(NOT(ISBLANK($B45)),VLOOKUP(YEAR(end_date)&"-"&MONTH(end_date),MData!$A:$NJ,MATCH(INDEX(IdxMapTable,MATCH($B45,IdxNames,0)+1,MATCH(AN$39,IdxFields,0)+1),MData!$7:$7,0),FALSE),"") -> 1491215000 | AP45: U.K. | AQ45: 0.2% | AR45: -0.8% | AS45: -1.5% | AT45: 6.68%
B46: UK Small Cap | C46: DM | D46: 13 | E46: =INDEX(nGDP_values,MATCH(VLOOKUP(B46,IdxCountryMap,2,FALSE),econ_countries,0),MATCH(ltcma_year,nGDP_years,0))/100 -> 3.60% | F46: 0.20% | G46: 2.50% | H46: =IF(NOT(ISBLANK($B46)),(1+E46)*(1+F46)*(1+G46)-1,"") -> 6.40% | I46: =IF(NOT(ISBLANK($B46)),IFERROR(AK46/AJ46,#N/A),"") -> 5.77% | J46: 6.25% | K46: 0.62% | L46: -2.50% | M46: =IF(NOT(ISBLANK($B46)),N46-L46,"") -> 2.16% | N46: -0.34% | O46: =IF(NOT(ISBLANK($B46)),VLOOKUP(YEAR(end_date)&"-"&MONTH(end_date),MData!$A:$NJ,MATCH(INDEX(IdxMapTable,MATCH($B46,IdxNames,0)+1,MATCH("Price / EPS",IdxFields,0)+1),MData!$7:$7,0),FALSE),"") -> 20.9 | P46: 15.0 | Q46: -2.51% | R46: 3.00% | S46: 0.00% | T46: =IF(NOT(ISBLANK($B46)),AT46,"") -> 7.14% | U46: y | V46: =IF(NOT(ISBLANK($B46)),AJ46/AM46,"") -> 0.32 | W46: 0.40 | X46: =IF(NOT(ISBLANK($B46)),W46/V46-1,"") -> 24.5% | Y46: =IF(NOT(ISBLANK($B46)),AM46/AN46,"") -> 4.73 | Z46: 4.20 | AA46: =IF(NOT(ISBLANK($B46)),Z46/Y46-1,"") -> -11.2% | AB46: =IF(NOT(ISBLANK($B46)),AK46/AN46,"") -> 8.76% | AC46: =IF(NOT(ISBLANK($B46)),J46*W46*Z46,"") -> 10.50% | AD46: =IF(NOT(ISBLANK($B46)),AC46/AB46-1,"") -> 19.8% | AF46: =IF(NOT(ISBLANK($B46)),INDEX(IdxMapTable,MATCH($B46,IdxNames,0)+1,MATCH(E$6,IdxFields,0)+1),"") -> S112NGDP@G10*4 | AG46: 1 | AH46: =IF(NOT(ISBLANK($B46)),IFERROR(VLOOKUP(end_date,QData!$B:$AC,MATCH(AF46,QData!$3:$3,0)-1,FALSE),IFERROR(VLOOKUP(EOMONTH(end_date,-1),QData!$B:$AC,MATCH(AF46,QData!$3:$3,0)-1,FALSE)*(1+E46)^(1/12),IFERROR(VLOOKUP(EOMONTH(end_date,-2),QData!$B:$AC,MATCH(AF46,QData!$3:$3,0)-1,FALSE)*(1+E46)^(2/12),IFERROR(VLOOKUP(EOMONTH(end_date,-3),QData!$B:$AC,MATCH(AF46,QData!$3:$3,0)-1,FALSE)*(1+E46)^(3/12),#N/A))))*AG46,"") -> 1919.0 | AI46: =IF(NOT(ISBLANK($B46)),VLOOKUP(YEAR(end_date)&"-"&MONTH(end_date),MData!$A:$NJ,MATCH(INDEX(IdxMapTable,MATCH($B46,IdxNames,0)+1,MATCH(AI$39,IdxFields,0)+1),MData!$7:$7,0),FALSE),"") -> 2.3 | AJ46: =IF(NOT(ISBLANK($B46)),VLOOKUP(YEAR(end_date)&"-"&MONTH(end_date),MData!$A:$NJ,MATCH(INDEX(IdxMapTable,MATCH($B46,IdxNames,0)+1,MATCH(AJ$39,IdxFields,0)+1),MData!$7:$7,0),FALSE),"") -> 280530971 | AK46: =IF(NOT(ISBLANK($B46)),AL46/O46*1000,"") -> 16184252 | AL46: =IF(NOT(ISBLANK($B46)),VLOOKUP(YEAR(end_date)&"-"&MONTH(end_date),MData!$A:$NJ,MATCH(INDEX(IdxMapTable,MATCH($B46,IdxNames,0)+1,MATCH(AL$39,IdxFields,0)+1),MData!$7:$7,0),FALSE),"") -> 337896.5284 | AM46: =IF(NOT(ISBLANK($B46)),VLOOKUP(YEAR(end_date)&"-"&MONTH(end_date),MData!$A:$NJ,MATCH(INDEX(IdxMapTable,MATCH($B46,IdxNames,0)+1,MATCH(AM$39,IdxFields,0)+1),MData!$7:$7,0),FALSE),"") -> 873160866.8 | AN46: =IF(NOT(ISBLANK($B46)),VLOOKUP(YEAR(end_date)&"-"&MONTH(end_date),MData!$A:$NJ,MATCH(INDEX(IdxMapTable,MATCH($B46,IdxNames,0)+1,MATCH(AN$39,IdxFields,0)+1),MData!$7:$7,0),FALSE),"") -> 184682344.1 | AP46: UK Small Cap | AQ46: 0.6% | AR46: -0.3% | AS46: -2.5% | AT46: 7.14%
B47: Japan | C47: DM | D47: 13 | E47: 1.70% | F47: 0.70% | G47: 1.00% | H47: 3.44% | I47: 4.35% | J47: 5.25% | K47: 1.47% | L47: -2.00% | M47: 1.51% | N47: -0.49% | O47: =IF(NOT(ISBLANK($B47)),VLOOKUP(YEAR(end_date)&"-"&MONTH(end_date),MData!$A:$NJ,MATCH(INDEX(IdxMapTable,MATCH($B47,IdxNames,0)+1,MATCH("Price / EPS",IdxFields,0)+1),MData!$7:$7,0),FALSE),"") -> 20.4 | P47: 16.0 | Q47: -1.87% | R47: 2.50% | S47: 0.00% | T47: 5.06% | U47: y | V47: 0.23 | W47: 0.24 | X47: 4.3% | Y47: 6.74 | Z47: 5.60 | AA47: -16.9% | AB47: 6.62% | AC47: =IF(NOT(ISBLANK($B47)),J47*W47*Z47,"") -> 6.93% | AD47: 4.7% | AF47: S158NGDP@G10*4 | AG47: 1 | AH47: =IF(NOT(ISBLANK($B47)),IFERROR(VLOOKUP(end_date,QData!$B:$AC,MATCH(AF47,QData!$3:$3,0)-1,FALSE),IFERROR(VLOOKUP(EOMONTH(end_date,-1),QData!$B:$AC,MATCH(AF47,QData!$3:$3,0)-1,FALSE)*(1+E47)^(1/12),IFERROR(VLOOKUP(EOMONTH(end_date,-2),QData!$B:$AC,MATCH(AF47,QData!$3:$3,0)-1,FALSE)*(1+E47)^(2/12),IFERROR(VLOOKUP(EOMONTH(end_date,-3),QData!$B:$AC,MATCH(AF47,QData!$3:$3,0)-1,FALSE)*(1+E47)^(3/12),#N/A))))*AG47,"") -> 507526.4 | AI47: =IF(NOT(ISBLANK($B47)),VLOOKUP(YEAR(end_date)&"-"&MONTH(end_date),MData!$A:$NJ,MATCH(INDEX(IdxMapTable,MATCH($B47,IdxNames,0)+1,MATCH(AI$39,IdxFields,0)+1),MData!$7:$7,0),FALSE),"") -> 2.3 | AJ47: =IF(NOT(ISBLANK($B47)),VLOOKUP(YEAR(end_date)&"-"&MONTH(end_date),MData!$A:$NJ,MATCH(INDEX(IdxMapTable,MATCH($B47,IdxNames,0)+1,MATCH(AJ$39,IdxFields,0)+1),MData!$7:$7,0),FALSE),"") -> 690946000000 | AK47: 30024939595 | AL47: =IF(NOT(ISBLANK($B47)),VLOOKUP(YEAR(end_date)&"-"&MONTH(end_date),MData!$A:$NJ,MATCH(INDEX(IdxMapTable,MATCH($B47,IdxNames,0)+1,MATCH(AL$39,IdxFields,0)+1),MData!$7:$7,0),FALSE),"") -> 613871900 | AM47: =IF(NOT(ISBLANK($B47)),VLOOKUP(YEAR(end_date)&"-"&MONTH(end_date),MData!$A:$NJ,MATCH(INDEX(IdxMapTable,MATCH($B47,IdxNames,0)+1,MATCH(AM$39,IdxFields,0)+1),MData!$7:$7,0),FALSE),"") -> 3056432000000 | AN47: =IF(NOT(ISBLANK($B47)),VLOOKUP(YEAR(end_date)&"-"&MONTH(end_date),MData!$A:$NJ,MATCH(INDEX(IdxMapTable,MATCH($B47,IdxNames,0)+1,MATCH(AN$39,IdxFields,0)+1),MData!$7:$7,0),FALSE),"") -> 453458800000 | AP47: Japan | AQ47: 1.5% | AR47: -0.5% | AS47: -1.9% | AT47: 5.06%
B48: Japan Small Cap | C48: DM | D48: 13 | E48: =INDEX(nGDP_values,MATCH(VLOOKUP(B48,IdxCountryMap,2,FALSE),econ_countries,0),MATCH(ltcma_year,nGDP_years,0))/100 -> 1.70% | F48: 0.40% | G48: 2.00% | H48: =IF(NOT(ISBLANK($B48)),(1+E48)*(1+F48)*(1+G48)-1,"") -> 4.15% | I48: =IF(NOT(ISBLANK($B48)),IFERROR(AK48/AJ48,#N/A),"") -> 5.71% | J48: 6.00% | K48: 0.38% | L48: -2.00% | M48: =IF(NOT(ISBLANK($B48)),N48-L48,"") -> 1.99% | N48: -0.01% | O48: =IF(NOT(ISBLANK($B48)),VLOOKUP(YEAR(end_date)&"-"&MONTH(end_date),MData!$A:$NJ,MATCH(INDEX(IdxMapTable,MATCH($B48,IdxNames,0)+1,MATCH("Price / EPS",IdxFields,0)+1),MData!$7:$7,0),FALSE),"") -> 21.6 | P48: 18.0 | Q48: -1.39% | R48: 2.25% | S48: 0.00% | T48: 5.40% | U48: y | V48: =IF(NOT(ISBLANK($B48)),AJ48/AM48,"") -> 0.27 | W48: 0.26 | X48: =IF(NOT(ISBLANK($B48)),W48/V48-1,"") -> -3.5% | Y48: =IF(NOT(ISBLANK($B48)),AM48/AN48,"") -> 5.11 | Z48: 5.00 | AA48: =IF(NOT(ISBLANK($B48)),Z48/Y48-1,"") -> -2.1% | AB48: =IF(NOT(ISBLANK($B48)),AK48/AN48,"") -> 7.86% | AC48: =IF(NOT(ISBLANK($B48)),J48*W48*Z48,"") -> 7.80% | AD48: =IF(NOT(ISBLANK($B48)),AC48/AB48-1,"") -> -0.8% | AF48: =IF(NOT(ISBLANK($B48)),INDEX(IdxMapTable,MATCH($B48,IdxNames,0)+1,MATCH(E$6,IdxFields,0)+1),"") -> S158NGDP@G10*4 | AG48: 1 | AH48: =IF(NOT(ISBLANK($B48)),IFERROR(VLOOKUP(end_date,QData!$B:$AC,MATCH(AF48,QData!$3:$3,0)-1,FALSE),IFERROR(VLOOKUP(EOMONTH(end_date,-1),QData!$B:$AC,MATCH(AF48,QData!$3:$3,0)-1,FALSE)*(1+E48)^(1/12),IFERROR(VLOOKUP(EOMONTH(end_date,-2),QData!$B:$AC,MATCH(AF48,QData!$3:$3,0)-1,FALSE)*(1+E48)^(2/12),IFERROR(VLOOKUP(EOMONTH(end_date,-3),QData!$B:$AC,MATCH(AF48,QData!$3:$3,0)-1,FALSE)*(1+E48)^(3/12),#N/A))))*AG48,"") -> 507526.4 | AI48: =IF(NOT(ISBLANK($B48)),VLOOKUP(YEAR(end_date)&"-"&MONTH(end_date),MData!$A:$NJ,MATCH(INDEX(IdxMapTable,MATCH($B48,IdxNames,0)+1,MATCH(AI$39,IdxFields,0)+1),MData!$7:$7,0),FALSE),"") -> 2.2 | AJ48: =IF(NOT(ISBLANK($B48)),VLOOKUP(YEAR(end_date)&"-"&MONTH(end_date),MData!$A:$NJ,MATCH(INDEX(IdxMapTable,MATCH($B48,IdxNames,0)+1,MATCH(AJ$39,IdxFields,0)+1),MData!$7:$7,0),FALSE),"") -> 96332947543 | AK48: =IF(NOT(ISBLANK($B48)),AL48/O48*1000,"") -> 5503906149 | AL48: =IF(NOT(ISBLANK($B48)),VLOOKUP(YEAR(end_date)&"-"&MONTH(end_date),MData!$A:$NJ,MATCH(INDEX(IdxMapTable,MATCH($B48,IdxNames,0)+1,MATCH(AL$39,IdxFields,0)+1),MData!$7:$7,0),FALSE),"") -> 118846941.4 | AM48: =IF(NOT(ISBLANK($B48)),VLOOKUP(YEAR(end_date)&"-"&MONTH(end_date),MData!$A:$NJ,MATCH(INDEX(IdxMapTable,MATCH($B48,IdxNames,0)+1,MATCH(AM$39,IdxFields,0)+1),MData!$7:$7,0),FALSE),"") -> 3.574159991e+11 | AN48: =IF(NOT(ISBLANK($B48)),VLOOKUP(YEAR(end_date)&"-"&MONTH(end_date),MData!$A:$NJ,MATCH(INDEX(IdxMapTable,MATCH($B48,IdxNames,0)+1,MATCH(AN$39,IdxFields,0)+1),MData!$7:$7,0),FALSE),"") -> 6.999078826e+10 | AP48: Japan Small Cap | AQ48: 0.4% | AR48: -0.0% | AS48: -1.4% | AT48: 5.40%
B49: Australia | C49: DM | D49: 13 | E49: 4.70% | F49: 0.20% | G49: 0.25% | H49: 5.17% | I49: 8.13% | J49: 9.00% | K49: 0.79% | L49: -2.00% | M49: 0.37% | N49: -1.63% | O49: =IF(NOT(ISBLANK($B49)),VLOOKUP(YEAR(end_date)&"-"&MONTH(end_date),MData!$A:$NJ,MATCH(INDEX(IdxMapTable,MATCH($B49,IdxNames,0)+1,MATCH("Price / EPS",IdxFields,0)+1),MData!$7:$7,0),FALSE),"") -> 22.1 | P49: 17.0 | Q49: -2.01% | R49: 4.00% | S49: 0.00% | T49: 6.34% | U49: y | V49: 0.16 | W49: 0.16 | X49: 3.0% | Y49: 6.33 | Z49: 6.30 | AA49: -0.4% | AB49: 7.98% | AC49: 9.07% | AD49: 13.6% | AF49: S193NGDP@G10*4 | AG49: 1 | AH49: =IF(NOT(ISBLANK($B49)),IFERROR(VLOOKUP(end_date,QData!$B:$AC,MATCH(AF49,QData!$3:$3,0)-1,FALSE),IFERROR(VLOOKUP(EOMONTH(end_date,-1),QData!$B:$AC,MATCH(AF49,QData!$3:$3,0)-1,FALSE)*(1+E49)^(1/12),IFERROR(VLOOKUP(EOMONTH(end_date,-2),QData!$B:$AC,MATCH(AF49,QData!$3:$3,0)-1,FALSE)*(1+E49)^(2/12),IFERROR(VLOOKUP(EOMONTH(end_date,-3),QData!$B:$AC,MATCH(AF49,QData!$3:$3,0)-1,FALSE)*(1+E49)^(3/12),#N/A))))*AG49,"") -> 1895.3 | AI49: =IF(NOT(ISBLANK($B49)),VLOOKUP(YEAR(end_date)&"-"&MONTH(end_date),MData!$A:$NJ,MATCH(INDEX(IdxMapTable,MATCH($B49,IdxNames,0)+1,MATCH(AI$39,IdxFields,0)+1),MData!$7:$7,0),FALSE),"") -> 3.8 | AJ49: =IF(NOT(ISBLANK($B49)),VLOOKUP(YEAR(end_date)&"-"&MONTH(end_date),MData!$A:$NJ,MATCH(INDEX(IdxMapTable,MATCH($B49,IdxNames,0)+1,MATCH(AJ$39,IdxFields,0)+1),MData!$7:$7,0),FALSE),"") -> 932567300 | AK49: 75775071 | AL49: =IF(NOT(ISBLANK($B49)),VLOOKUP(YEAR(end_date)&"-"&MONTH(end_date),MData!$A:$NJ,MATCH(INDEX(IdxMapTable,MATCH($B49,IdxNames,0)+1,MATCH(AL$39,IdxFields,0)+1),MData!$7:$7,0),FALSE),"") -> 1676675 | AM49: =IF(NOT(ISBLANK($B49)),VLOOKUP(YEAR(end_date)&"-"&MONTH(end_date),MData!$A:$NJ,MATCH(INDEX(IdxMapTable,MATCH($B49,IdxNames,0)+1,MATCH(AM$39,IdxFields,0)+1),MData!$7:$7,0),FALSE),"") -> 6006276000 | AN49: =IF(NOT(ISBLANK($B49)),VLOOKUP(YEAR(end_date)&"-"&MONTH(end_date),MData!$A:$NJ,MATCH(INDEX(IdxMapTable,MATCH($B49,IdxNames,0)+1,MATCH(AN$39,IdxFields,0)+1),MData!$7:$7,0),FALSE),"") -> 949164000 | AP49: Australia | AQ49: 0.8% | AR49: -1.6% | AS49: -2.0% | AT49: 6.34%
B50: Canada | C50: DM | D50: 13 | E50: 3.50% | F50: 0.20% | G50: 0.50% | H50: 4.23% | I50: 7.80% | J50: 8.00% | K50: 0.20% | L50: -2.00% | M50: 1.33% | N50: -0.67% | O50: =IF(NOT(ISBLANK($B50)),VLOOKUP(YEAR(end_date)&"-"&MONTH(end_date),MData!$A:$NJ,MATCH(INDEX(IdxMapTable,MATCH($B50,IdxNames,0)+1,MATCH("Price / EPS",IdxFields,0)+1),MData!$7:$7,0),FALSE),"") -> 19.4 | P50: 18.0 | Q50: -0.58% | R50: 3.00% | S50: 0.00% | T50: 6.24% | U50: y | V50: 0.13 | W50: 0.13 | X50: 0.8% | Y50: 8.62 | Z50: 7.80 | AA50: -9.5% | AB50: 8.67% | AC50: 8.11% | AD50: -6.4% | AF50: S156NGDP@G10*4 | AG50: 1 | AH50: =IF(NOT(ISBLANK($B50)),IFERROR(VLOOKUP(end_date,QData!$B:$AC,MATCH(AF50,QData!$3:$3,0)-1,FALSE),IFERROR(VLOOKUP(EOMONTH(end_date,-1),QData!$B:$AC,MATCH(AF50,QData!$3:$3,0)-1,FALSE)*(1+E50)^(1/12),IFERROR(VLOOKUP(EOMONTH(end_date,-2),QData!$B:$AC,MATCH(AF50,QData!$3:$3,0)-1,FALSE)*(1+E50)^(2/12),IFERROR(VLOOKUP(EOMONTH(end_date,-3),QData!$B:$AC,MATCH(AF50,QData!$3:$3,0)-1,FALSE)*(1+E50)^(3/12),#N/A))))*AG50,"") -> 2007.0 | AI50: =IF(NOT(ISBLANK($B50)),VLOOKUP(YEAR(end_date)&"-"&MONTH(end_date),MData!$A:$NJ,MATCH(INDEX(IdxMapTable,MATCH($B50,IdxNames,0)+1,MATCH(AI$39,IdxFields,0)+1),MData!$7:$7,0),FALSE),"") -> 3.3 | AJ50: =IF(NOT(ISBLANK($B50)),VLOOKUP(YEAR(end_date)&"-"&MONTH(end_date),MData!$A:$NJ,MATCH(INDEX(IdxMapTable,MATCH($B50,IdxNames,0)+1,MATCH(AJ$39,IdxFields,0)+1),MData!$7:$7,0),FALSE),"") -> 1452721000 | AK50: 113296955 | AL50: =IF(NOT(ISBLANK($B50)),VLOOKUP(YEAR(end_date)&"-"&MONTH(end_date),MData!$A:$NJ,MATCH(INDEX(IdxMapTable,MATCH($B50,IdxNames,0)+1,MATCH(AL$39,IdxFields,0)+1),MData!$7:$7,0),FALSE),"") -> 2199819 | AM50: =IF(NOT(ISBLANK($B50)),VLOOKUP(YEAR(end_date)&"-"&MONTH(end_date),MData!$A:$NJ,MATCH(INDEX(IdxMapTable,MATCH($B50,IdxNames,0)+1,MATCH(AM$39,IdxFields,0)+1),MData!$7:$7,0),FALSE),"") -> 11266440000 | AN50: =IF(NOT(ISBLANK($B50)),VLOOKUP(YEAR(end_date)&"-"&MONTH(end_date),MData!$A:$NJ,MATCH(INDEX(IdxMapTable,MATCH($B50,IdxNames,0)+1,MATCH(AN$39,IdxFields,0)+1),MData!$7:$7,0),FALSE),"") -> 1306669000 | AP50: Canada | AQ50: 0.2% | AR50: -0.7% | AS50: -0.6% | AT50: 6.24%
B51: Sweden | C51: DM | D51: 13 | E51: 3.60% | F51: 0.00% | G51: 0.75% | H51: 4.38% | I51: 12.08% | J51: 9.25% | K51: -2.03% | L51: -2.00% | M51: 2.65% | N51: 0.65% | O51: =IF(NOT(ISBLANK($B51)),VLOOKUP(YEAR(end_date)&"-"&MONTH(end_date),MData!$A:$NJ,MATCH(INDEX(IdxMapTable,MATCH($B51,IdxNames,0)+1,MATCH("Price / EPS",IdxFields,0)+1),MData!$7:$7,0),FALSE),"") -> 18.8 | P51: 17.0 | Q51: -0.76% | R51: 1.80% | S51: 0.00% | T51: 3.96% | U51: y | V51: 0.20 | W51: 0.18 | X51: -9.6% | Y51: 5.39 | Z51: 4.90 | AA51: -9.1% | AB51: 12.96% | AC51: 8.16% | AD51: -37.0% | AF51: H144NGDP@G10*4 | AG51: 1 | AH51: =IF(NOT(ISBLANK($B51)),IFERROR(VLOOKUP(end_date,QData!$B:$AC,MATCH(AF51,QData!$3:$3,0)-1,FALSE),IFERROR(VLOOKUP(EOMONTH(end_date,-1),QData!$B:$AC,MATCH(AF51,QData!$3:$3,0)-1,FALSE)*(1+E51)^(1/12),IFERROR(VLOOKUP(EOMONTH(end_date,-2),QData!$B:$AC,MATCH(AF51,QData!$3:$3,0)-1,FALSE)*(1+E51)^(2/12),IFERROR(VLOOKUP(EOMONTH(end_date,-3),QData!$B:$AC,MATCH(AF51,QData!$3:$3,0)-1,FALSE)*(1+E51)^(3/12),#N/A))))*AG51,"") -> 4747.4 | AI51: =IF(NOT(ISBLANK($B51)),VLOOKUP(YEAR(end_date)&"-"&MONTH(end_date),MData!$A:$NJ,MATCH(INDEX(IdxMapTable,MATCH($B51,IdxNames,0)+1,MATCH(AI$39,IdxFields,0)+1),MData!$7:$7,0),FALSE),"") -> 1.6 | AJ51: =IF(NOT(ISBLANK($B51)),VLOOKUP(YEAR(end_date)&"-"&MONTH(end_date),MData!$A:$NJ,MATCH(INDEX(IdxMapTable,MATCH($B51,IdxNames,0)+1,MATCH(AJ$39,IdxFields,0)+1),MData!$7:$7,0),FALSE),"") -> 2843711000 | AK51: 343569150 | AL51: =IF(NOT(ISBLANK($B51)),VLOOKUP(YEAR(end_date)&"-"&MONTH(end_date),MData!$A:$NJ,MATCH(INDEX(IdxMapTable,MATCH($B51,IdxNames,0)+1,MATCH(AL$39,IdxFields,0)+1),MData!$7:$7,0),FALSE),"") -> 6452744 | AM51: =IF(NOT(ISBLANK($B51)),VLOOKUP(YEAR(end_date)&"-"&MONTH(end_date),MData!$A:$NJ,MATCH(INDEX(IdxMapTable,MATCH($B51,IdxNames,0)+1,MATCH(AM$39,IdxFields,0)+1),MData!$7:$7,0),FALSE),"") -> 14287430000 | AN51: =IF(NOT(ISBLANK($B51)),VLOOKUP(YEAR(end_date)&"-"&MONTH(end_date),MData!$A:$NJ,MATCH(INDEX(IdxMapTable,MATCH($B51,IdxNames,0)+1,MATCH(AN$39,IdxFields,0)+1),MData!$7:$7,0),FALSE),"") -> 2651084000 | AP51: Sweden | AQ51: -2.0% | AR51: 0.6% | AS51: -0.8% | AT51: 3.96%
B52: Switzerland | C52: DM | D52: 13 | E52: 2.00% | F52: 0.60% | G52: 0.25% | H52: 2.87% | I52: 10.13% | J52: 9.50% | K52: -0.49% | L52: -2.00% | M52: 1.90% | N52: -0.10% | O52: =IF(NOT(ISBLANK($B52)),VLOOKUP(YEAR(end_date)&"-"&MONTH(end_date),MData!$A:$NJ,MATCH(INDEX(IdxMapTable,MATCH($B52,IdxNames,0)+1,MATCH("Price / EPS",IdxFields,0)+1),MData!$7:$7,0),FALSE),"") -> 21.9 | P52: 18.5 | Q52: -1.30% | R52: 2.75% | S52: 0.00% | T52: 3.71% | U52: y | V52: 0.15 | W52: 0.14 | X52: -3.7% | Y52: 7.17 | Z52: 6.10 | AA52: -14.9% | AB52: 10.56% | AC52: 8.11% | AD52: -23.2% | AF52: S146NGDP@G10*4 | AG52: 0.001 | AH52: =IF(NOT(ISBLANK($B52)),IFERROR(VLOOKUP(end_date,QData!$B:$AC,MATCH(AF52,QData!$3:$3,0)-1,FALSE),IFERROR(VLOOKUP(EOMONTH(end_date,-1),QData!$B:$AC,MATCH(AF52,QData!$3:$3,0)-1,FALSE)*(1+E52)^(1/12),IFERROR(VLOOKUP(EOMONTH(end_date,-2),QData!$B:$AC,MATCH(AF52,QData!$3:$3,0)-1,FALSE)*(1+E52)^(2/12),IFERROR(VLOOKUP(EOMONTH(end_date,-3),QData!$B:$AC,MATCH(AF52,QData!$3:$3,0)-1,FALSE)*(1+E52)^(3/12),#N/A))))*AG52,"") -> 665.7 | AI52: =IF(NOT(ISBLANK($B52)),VLOOKUP(YEAR(end_date)&"-"&MONTH(end_date),MData!$A:$NJ,MATCH(INDEX(IdxMapTable,MATCH($B52,IdxNames,0)+1,MATCH(AI$39,IdxFields,0)+1),MData!$7:$7,0),FALSE),"") -> 2.7 | AJ52: =IF(NOT(ISBLANK($B52)),VLOOKUP(YEAR(end_date)&"-"&MONTH(end_date),MData!$A:$NJ,MATCH(INDEX(IdxMapTable,MATCH($B52,IdxNames,0)+1,MATCH(AJ$39,IdxFields,0)+1),MData!$7:$7,0),FALSE),"") -> 759108900 | AK52: 76870423 | AL52: =IF(NOT(ISBLANK($B52)),VLOOKUP(YEAR(end_date)&"-"&MONTH(end_date),MData!$A:$NJ,MATCH(INDEX(IdxMapTable,MATCH($B52,IdxNames,0)+1,MATCH(AL$39,IdxFields,0)+1),MData!$7:$7,0),FALSE),"") -> 1685753 | AM52: =IF(NOT(ISBLANK($B52)),VLOOKUP(YEAR(end_date)&"-"&MONTH(end_date),MData!$A:$NJ,MATCH(INDEX(IdxMapTable,MATCH($B52,IdxNames,0)+1,MATCH(AM$39,IdxFields,0)+1),MData!$7:$7,0),FALSE),"") -> 5219463000 | AN52: =IF(NOT(ISBLANK($B52)),VLOOKUP(YEAR(end_date)&"-"&MONTH(end_date),MData!$A:$NJ,MATCH(INDEX(IdxMapTable,MATCH($B52,IdxNames,0)+1,MATCH(AN$39,IdxFields,0)+1),MData!$7:$7,0),FALSE),"") -> 727922200 | AP52: Switzerland | AQ52: -0.5% | AR52: -0.1% | AS52: -1.3% | AT52: 3.71%
B53: Singapore | C53: DM | D53: 13 | E53: 4.20% | F53: 0.10% | G53: 0.75% | H53: 5.09% | I53: 7.20% | J53: 10.75% | K53: 3.13% | L53: -2.00% | M53: 0.22% | N53: -1.78% | O53: =IF(NOT(ISBLANK($B53)),VLOOKUP(YEAR(end_date)&"-"&MONTH(end_date),MData!$A:$NJ,MATCH(INDEX(IdxMapTable,MATCH($B53,IdxNames,0)+1,MATCH("Price / EPS",IdxFields,0)+1),MData!$7:$7,0),FALSE),"") -> 16.0 | P53: 13.5 | Q53: -1.32% | R53: 3.25% | S53: 0.00% | T53: 8.51% | U53: y | V53: 0.17 | W53: 0.18 | X53: 7.0% | Y53: 4.66 | Z53: 4.00 | AA53: -14.1% | AB53: 5.64% | AC53: 7.74% | AD53: 37.1% | AF53: S576NGDP@EMERGE*4 | AG53: 0.001 | AH53: =IF(NOT(ISBLANK($B53)),IFERROR(VLOOKUP(end_date,QData!$B:$AC,MATCH(AF53,QData!$3:$3,0)-1,FALSE),IFERROR(VLOOKUP(EOMONTH(end_date,-1),QData!$B:$AC,MATCH(AF53,QData!$3:$3,0)-1,FALSE)*(1+E53)^(1/12),IFERROR(VLOOKUP(EOMONTH(end_date,-2),QData!$B:$AC,MATCH(AF53,QData!$3:$3,0)-1,FALSE)*(1+E53)^(2/12),IFERROR(VLOOKUP(EOMONTH(end_date,-3),QData!$B:$AC,MATCH(AF53,QData!$3:$3,0)-1,FALSE)*(1+E53)^(3/12),#N/A))))*AG53,"") -> 421.3 | AI53: =IF(NOT(ISBLANK($B53)),VLOOKUP(YEAR(end_date)&"-"&MONTH(end_date),MData!$A:$NJ,MATCH(INDEX(IdxMapTable,MATCH($B53,IdxNames,0)+1,MATCH(AI$39,IdxFields,0)+1),MData!$7:$7,0),FALSE),"") -> 4.4 | AJ53: =IF(NOT(ISBLANK($B53)),VLOOKUP(YEAR(end_date)&"-"&MONTH(end_date),MData!$A:$NJ,MATCH(INDEX(IdxMapTable,MATCH($B53,IdxNames,0)+1,MATCH(AJ$39,IdxFields,0)+1),MData!$7:$7,0),FALSE),"") -> 477897200 | AK53: 34407128 | AL53: =IF(NOT(ISBLANK($B53)),VLOOKUP(YEAR(end_date)&"-"&MONTH(end_date),MData!$A:$NJ,MATCH(INDEX(IdxMapTable,MATCH($B53,IdxNames,0)+1,MATCH(AL$39,IdxFields,0)+1),MData!$7:$7,0),FALSE),"") -> 552200 | AM53: =IF(NOT(ISBLANK($B53)),VLOOKUP(YEAR(end_date)&"-"&MONTH(end_date),MData!$A:$NJ,MATCH(INDEX(IdxMapTable,MATCH($B53,IdxNames,0)+1,MATCH(AM$39,IdxFields,0)+1),MData!$7:$7,0),FALSE),"") -> 2840394000 | AN53: =IF(NOT(ISBLANK($B53)),VLOOKUP(YEAR(end_date)&"-"&MONTH(end_date),MData!$A:$NJ,MATCH(INDEX(IdxMapTable,MATCH($B53,IdxNames,0)+1,MATCH(AN$39,IdxFields,0)+1),MData!$7:$7,0),FALSE),"") -> 609633500 | AP53: Singapore | AQ53: 3.1% | AR53: -1.8% | AS53: -1.3% | AT53: 8.51%
B54: Hong Kong (MSCI) | C54: DM | D54: 13 | E54: 4.50% | F54: 0.60% | G54: 1.00% | H54: 6.18% | I54: 24.29% | J54: 28.00% | K54: 1.10% | L54: -2.00% | M54: 0.78% | N54: -1.22% | O54: =IF(NOT(ISBLANK($B54)),VLOOKUP(YEAR(end_date)&"-"&MONTH(end_date),MData!$A:$NJ,MATCH(INDEX(IdxMapTable,MATCH($B54,IdxNames,0)+1,MATCH("Price / EPS",IdxFields,0)+1),MData!$7:$7,0),FALSE),"") -> 18.9 | P54: 15.5 | Q54: -1.53% | R54: 3.00% | S54: 0.00% | T54: 7.58% | U54: y | V54: 0.15 | W54: 0.14 | X54: -6.8% | Y54: 3.00 | Z54: 2.60 | AA54: -13.3% | AB54: 10.94% | AC54: 10.19% | AD54: -6.8% | AF54: H532NGDP@EMERGE*4 | AG54: 1 | AH54: =IF(NOT(ISBLANK($B54)),IFERROR(VLOOKUP(end_date,QData!$B:$AC,MATCH(AF54,QData!$3:$3,0)-1,FALSE),IFERROR(VLOOKUP(EOMONTH(end_date,-1),QData!$B:$AC,MATCH(AF54,QData!$3:$3,0)-1,FALSE)*(1+E54)^(1/12),IFERROR(VLOOKUP(EOMONTH(end_date,-2),QData!$B:$AC,MATCH(AF54,QData!$3:$3,0)-1,FALSE)*(1+E54)^(2/12),IFERROR(VLOOKUP(EOMONTH(end_date,-3),QData!$B:$AC,MATCH(AF54,QData!$3:$3,0)-1,FALSE)*(1+E54)^(3/12),#N/A))))*AG54,"") -> 2687.8 | AI54: =IF(NOT(ISBLANK($B54)),VLOOKUP(YEAR(end_date)&"-"&MONTH(end_date),MData!$A:$NJ,MATCH(INDEX(IdxMapTable,MATCH($B54,IdxNames,0)+1,MATCH(AI$39,IdxFields,0)+1),MData!$7:$7,0),FALSE),"") -> 3.1 | AJ54: =IF(NOT(ISBLANK($B54)),VLOOKUP(YEAR(end_date)&"-"&MONTH(end_date),MData!$A:$NJ,MATCH(INDEX(IdxMapTable,MATCH($B54,IdxNames,0)+1,MATCH(AJ$39,IdxFields,0)+1),MData!$7:$7,0),FALSE),"") -> 1356442932 | AK54: 329511114 | AL54: =IF(NOT(ISBLANK($B54)),VLOOKUP(YEAR(end_date)&"-"&MONTH(end_date),MData!$A:$NJ,MATCH(INDEX(IdxMapTable,MATCH($B54,IdxNames,0)+1,MATCH(AL$39,IdxFields,0)+1),MData!$7:$7,0),FALSE),"") -> 6242330.611 | AM54: =IF(NOT(ISBLANK($B54)),VLOOKUP(YEAR(end_date)&"-"&MONTH(end_date),MData!$A:$NJ,MATCH(INDEX(IdxMapTable,MATCH($B54,IdxNames,0)+1,MATCH(AM$39,IdxFields,0)+1),MData!$7:$7,0),FALSE),"") -> 9030602224 | AN54: =IF(NOT(ISBLANK($B54)),VLOOKUP(YEAR(end_date)&"-"&MONTH(end_date),MData!$A:$NJ,MATCH(INDEX(IdxMapTable,MATCH($B54,IdxNames,0)+1,MATCH(AN$39,IdxFields,0)+1),MData!$7:$7,0),FALSE),"") -> 3012170523 | AP54: Hong Kong (MSCI) | AQ54: 1.1% | AR54: -1.2% | AS54: -1.5% | AT54: 7.58%
B55: Brazil | C55: EM | D55: 13 | E55: 6.70% | F55: 0.10% | G55: 1.25% | H55: 8.14% | I55: 5.35% | J55: 7.75% | K55: 2.89% | L55: =IF(NOT(ISBLANK($B55)),N55-M55,"") -> -3.96% | M55: 0.75% | N55: -3.21% | O55: =IF(NOT(ISBLANK($B55)),VLOOKUP(YEAR(end_date)&"-"&MONTH(end_date),MData!$A:$NJ,MATCH(INDEX(IdxMapTable,MATCH($B55,IdxNames,0)+1,MATCH("Price / EPS",IdxFields,0)+1),MData!$7:$7,0),FALSE),"") -> 21.7 | P55: 12.8 | Q55: -4.02% | R55: 3.50% | S55: 0.00% | T55: 7.10% | U55: y | V55: 0.28 | W55: 0.28 | X55: 0.3% | Y55: 5.39 | Z55: 4.50 | AA55: -16.5% | AB55: 8.05% | AC55: 9.77% | AD55: 21.4% | AF55: H223NGDP@EMERGE*4 | AG55: 1 | AH55: =IF(NOT(ISBLANK($B55)),IFERROR(VLOOKUP(end_date,QData!$B:$AC,MATCH(AF55,QData!$3:$3,0)-1,FALSE),IFERROR(VLOOKUP(EOMONTH(end_date,-1),QData!$B:$AC,MATCH(AF55,QData!$3:$3,0)-1,FALSE)*(1+E55)^(1/12),IFERROR(VLOOKUP(EOMONTH(end_date,-2),QData!$B:$AC,MATCH(AF55,QData!$3:$3,0)-1,FALSE)*(1+E55)^(2/12),IFERROR(VLOOKUP(EOMONTH(end_date,-3),QData!$B:$AC,MATCH(AF55,QData!$3:$3,0)-1,FALSE)*(1+E55)^(3/12),#N/A))))*AG55,"") -> 6757.6 | AI55: =IF(NOT(ISBLANK($B55)),VLOOKUP(YEAR(end_date)&"-"&MONTH(end_date),MData!$A:$NJ,MATCH(INDEX(IdxMapTable,MATCH($B55,IdxNames,0)+1,MATCH(AI$39,IdxFields,0)+1),MData!$7:$7,0),FALSE),"") -> 3.2 | AJ55: =IF(NOT(ISBLANK($B55)),VLOOKUP(YEAR(end_date)&"-"&MONTH(end_date),MData!$A:$NJ,MATCH(INDEX(IdxMapTable,MATCH($B55,IdxNames,0)+1,MATCH(AJ$39,IdxFields,0)+1),MData!$7:$7,0),FALSE),"") -> 2639921000 | AK55: 141252852 | AL55: =IF(NOT(ISBLANK($B55)),VLOOKUP(YEAR(end_date)&"-"&MONTH(end_date),MData!$A:$NJ,MATCH(INDEX(IdxMapTable,MATCH($B55,IdxNames,0)+1,MATCH(AL$39,IdxFields,0)+1),MData!$7:$7,0),FALSE),"") -> 3070950 | AM55: =IF(NOT(ISBLANK($B55)),VLOOKUP(YEAR(end_date)&"-"&MONTH(end_date),MData!$A:$NJ,MATCH(INDEX(IdxMapTable,MATCH($B55,IdxNames,0)+1,MATCH(AM$39,IdxFields,0)+1),MData!$7:$7,0),FALSE),"") -> 9459950000 | AN55: =IF(NOT(ISBLANK($B55)),VLOOKUP(YEAR(end_date)&"-"&MONTH(end_date),MData!$A:$NJ,MATCH(INDEX(IdxMapTable,MATCH($B55,IdxNames,0)+1,MATCH(AN$39,IdxFields,0)+1),MData!$7:$7,0),FALSE),"") -> 1755625000 | AP55: Brazil | AQ55: 2.9% | AR55: -3.2% | AS55: -4.0% | AT55: 7.10%
B56: Russia | C56: EM | D56: 13 | E56: 6.40% | F56: 0.40% | G56: 1.25% | H56: 8.16% | I56: 9.23% | J56: 8.75% | K56: -0.41% | L56: -6.30% | M56: 0.80% | N56: -5.50% | O56: =IF(NOT(ISBLANK($B56)),VLOOKUP(YEAR(end_date)&"-"&MONTH(end_date),MData!$A:$NJ,MATCH(INDEX(IdxMapTable,MATCH($B56,IdxNames,0)+1,MATCH("Price / EPS",IdxFields,0)+1),MData!$7:$7,0),FALSE),"") -> 9.9 | P56: 8.0 | Q56: -1.66% | R56: 6.00% | S56: 0.00% | T56: 6.45% | U56: y | V56: 0.32 | W56: 0.30 | X56: -7.0% | Y56: 2.89 | Z56: 3.00 | AA56: 3.9% | AB56: 8.60% | AC56: 7.88% | AD56: -8.4% | AF56: H922NGDP@EMERGE*4 | AG56: 1 | AH56: =IF(NOT(ISBLANK($B56)),IFERROR(VLOOKUP(end_date,QData!$B:$AC,MATCH(AF56,QData!$3:$3,0)-1,FALSE),IFERROR(VLOOKUP(EOMONTH(end_date,-1),QData!$B:$AC,MATCH(AF56,QData!$3:$3,0)-1,FALSE)*(1+E56)^(1/12),IFERROR(VLOOKUP(EOMONTH(end_date,-2),QData!$B:$AC,MATCH(AF56,QData!$3:$3,0)-1,FALSE)*(1+E56)^(2/12),IFERROR(VLOOKUP(EOMONTH(end_date,-3),QData!$B:$AC,MATCH(AF56,QData!$3:$3,0)-1,FALSE)*(1+E56)^(3/12),#N/A))))*AG56,"") -> 98189.1 | AI56: =IF(NOT(ISBLANK($B56)),VLOOKUP(YEAR(end_date)&"-"&MONTH(end_date),MData!$A:$NJ,MATCH(INDEX(IdxMapTable,MATCH($B56,IdxNames,0)+1,MATCH(AI$39,IdxFields,0)+1),MData!$7:$7,0),FALSE),"") -> 7.5 | AJ56: =IF(NOT(ISBLANK($B56)),VLOOKUP(YEAR(end_date)&"-"&MONTH(end_date),MData!$A:$NJ,MATCH(INDEX(IdxMapTable,MATCH($B56,IdxNames,0)+1,MATCH(AJ$39,IdxFields,0)+1),MData!$7:$7,0),FALSE),"") -> 43100920000 | AK56: 3979072596 | AL56: =IF(NOT(ISBLANK($B56)),VLOOKUP(YEAR(end_date)&"-"&MONTH(end_date),MData!$A:$NJ,MATCH(INDEX(IdxMapTable,MATCH($B56,IdxNames,0)+1,MATCH(AL$39,IdxFields,0)+1),MData!$7:$7,0),FALSE),"") -> 39584610 | AM56: =IF(NOT(ISBLANK($B56)),VLOOKUP(YEAR(end_date)&"-"&MONTH(end_date),MData!$A:$NJ,MATCH(INDEX(IdxMapTable,MATCH($B56,IdxNames,0)+1,MATCH(AM$39,IdxFields,0)+1),MData!$7:$7,0),FALSE),"") -> 133658800000 | AN56: =IF(NOT(ISBLANK($B56)),VLOOKUP(YEAR(end_date)&"-"&MONTH(end_date),MData!$A:$NJ,MATCH(INDEX(IdxMapTable,MATCH($B56,IdxNames,0)+1,MATCH(AN$39,IdxFields,0)+1),MData!$7:$7,0),FALSE),"") -> 46280000000 | AP56: Russia | AQ56: -0.4% | AR56: -5.5% | AS56: -1.7% | AT56: 6.45%
B57: India | C57: EM | D57: 13 | E57: 11.90% | F57: -1.70% | G57: 2.00% | H57: 12.20% | I57: 7.16% | J57: 8.00% | K57: 0.85% | L57: -2.67% | M57: 0.50% | N57: -2.17% | O57: =IF(NOT(ISBLANK($B57)),VLOOKUP(YEAR(end_date)&"-"&MONTH(end_date),MData!$A:$NJ,MATCH(INDEX(IdxMapTable,MATCH($B57,IdxNames,0)+1,MATCH("Price / EPS",IdxFields,0)+1),MData!$7:$7,0),FALSE),"") -> 25.7 | P57: 17.0 | Q57: -3.13% | R57: 1.50% | S57: 0.00% | T57: 8.87% | U57: y | V57: 0.27 | W57: 0.27 | X57: -0.0% | Y57: 5.62 | Z57: 4.80 | AA57: -14.6% | AB57: 10.88% | AC57: 10.37% | AD57: -4.7% | AF57: H534NGDP@EMERGE*4 | AG57: 1 | AH57: =IF(NOT(ISBLANK($B57)),IFERROR(VLOOKUP(end_date,QData!$B:$AC,MATCH(AF57,QData!$3:$3,0)-1,FALSE),IFERROR(VLOOKUP(EOMONTH(end_date,-1),QData!$B:$AC,MATCH(AF57,QData!$3:$3,0)-1,FALSE)*(1+E57)^(1/12),IFERROR(VLOOKUP(EOMONTH(end_date,-2),QData!$B:$AC,MATCH(AF57,QData!$3:$3,0)-1,FALSE)*(1+E57)^(2/12),IFERROR(VLOOKUP(EOMONTH(end_date,-3),QData!$B:$AC,MATCH(AF57,QData!$3:$3,0)-1,FALSE)*(1+E57)^(3/12),#N/A))))*AG57,"") -> 158165.5 | AI57: =IF(NOT(ISBLANK($B57)),VLOOKUP(YEAR(end_date)&"-"&MONTH(end_date),MData!$A:$NJ,MATCH(INDEX(IdxMapTable,MATCH($B57,IdxNames,0)+1,MATCH(AI$39,IdxFields,0)+1),MData!$7:$7,0),FALSE),"") -> 1.5 | AJ57: =IF(NOT(ISBLANK($B57)),VLOOKUP(YEAR(end_date)&"-"&MONTH(end_date),MData!$A:$NJ,MATCH(INDEX(IdxMapTable,MATCH($B57,IdxNames,0)+1,MATCH(AJ$39,IdxFields,0)+1),MData!$7:$7,0),FALSE),"") -> 71580060000 | AK57: 5127793353 | AL57: =IF(NOT(ISBLANK($B57)),VLOOKUP(YEAR(end_date)&"-"&MONTH(end_date),MData!$A:$NJ,MATCH(INDEX(IdxMapTable,MATCH($B57,IdxNames,0)+1,MATCH(AL$39,IdxFields,0)+1),MData!$7:$7,0),FALSE),"") -> 131873000 | AM57: =IF(NOT(ISBLANK($B57)),VLOOKUP(YEAR(end_date)&"-"&MONTH(end_date),MData!$A:$NJ,MATCH(INDEX(IdxMapTable,MATCH($B57,IdxNames,0)+1,MATCH(AM$39,IdxFields,0)+1),MData!$7:$7,0),FALSE),"") -> 265082900000 | AN57: =IF(NOT(ISBLANK($B57)),VLOOKUP(YEAR(end_date)&"-"&MONTH(end_date),MData!$A:$NJ,MATCH(INDEX(IdxMapTable,MATCH($B57,IdxNames,0)+1,MATCH(AN$39,IdxFields,0)+1),MData!$7:$7,0),FALSE),"") -> 47138980000 | AP57: India | AQ57: 0.9% | AR57: -2.2% | AS57: -3.1% | AT57: 8.87%
B58: China (MSCI) | C58: EM | D58: 13 | E58: =INDEX(nGDP_values,MATCH(VLOOKUP(B58,IdxCountryMap,2,FALSE),econ_countries,0),MATCH(ltcma_year,nGDP_years,0))/100 -> 6.90% | F58: -0.20% | G58: 2.50% | H58: 9.35% | I58: 12.88% | J58: 12.25% | K58: -0.39% | L58: =IF(NOT(ISBLANK($B58)),N58-M58,"") -> -3.43% | M58: 0.25% | N58: -3.18% | O58: =IF(NOT(ISBLANK($B58)),VLOOKUP(YEAR(end_date)&"-"&MONTH(end_date),MData!$A:$NJ,MATCH(INDEX(IdxMapTable,MATCH($B58,IdxNames,0)+1,MATCH("Price / EPS",IdxFields,0)+1),MData!$7:$7,0),FALSE),"") -> 15.8 | P58: 13.8 | Q58: -1.02% | R58: 2.50% | S58: -0.50% | T58: 6.59% | U58: y | V58: 0.17 | W58: 0.13 | X58: -25.1% | Y58: 6.62 | Z58: 5.60 | AA58: -15.4% | AB58: 14.80% | AC58: 8.92% | AD58: -39.7% | AF58: H924NGDP@EMERGE*4 | AG58: 1 | AH58: =IF(NOT(ISBLANK($B58)),IFERROR(VLOOKUP(end_date,QData!$B:$AC,MATCH(AF58,QData!$3:$3,0)-1,FALSE),IFERROR(VLOOKUP(EOMONTH(end_date,-1),QData!$B:$AC,MATCH(AF58,QData!$3:$3,0)-1,FALSE)*(1+E58)^(1/12),IFERROR(VLOOKUP(EOMONTH(end_date,-2),QData!$B:$AC,MATCH(AF58,QData!$3:$3,0)-1,FALSE)*(1+E58)^(2/12),IFERROR(VLOOKUP(EOMONTH(end_date,-3),QData!$B:$AC,MATCH(AF58,QData!$3:$3,0)-1,FALSE)*(1+E58)^(3/12),#N/A))))*AG58,"") -> 102841.5 | AI58: =IF(NOT(ISBLANK($B58)),VLOOKUP(YEAR(end_date)&"-"&MONTH(end_date),MData!$A:$NJ,MATCH(INDEX(IdxMapTable,MATCH($B58,IdxNames,0)+1,MATCH(AI$39,IdxFields,0)+1),MData!$7:$7,0),FALSE),"") -> 1.8 | AJ58: =IF(NOT(ISBLANK($B58)),VLOOKUP(YEAR(end_date)&"-"&MONTH(end_date),MData!$A:$NJ,MATCH(INDEX(IdxMapTable,MATCH($B58,IdxNames,0)+1,MATCH(AJ$39,IdxFields,0)+1),MData!$7:$7,0),FALSE),"") -> 10196091356 | AK58: 1313448884 | AL58: =IF(NOT(ISBLANK($B58)),VLOOKUP(YEAR(end_date)&"-"&MONTH(end_date),MData!$A:$NJ,MATCH(INDEX(IdxMapTable,MATCH($B58,IdxNames,0)+1,MATCH(AL$39,IdxFields,0)+1),MData!$7:$7,0),FALSE),"") -> 20704859.86 | AM58: =IF(NOT(ISBLANK($B58)),VLOOKUP(YEAR(end_date)&"-"&MONTH(end_date),MData!$A:$NJ,MATCH(INDEX(IdxMapTable,MATCH($B58,IdxNames,0)+1,MATCH(AM$39,IdxFields,0)+1),MData!$7:$7,0),FALSE),"") -> 5.871751124e+10 | AN58: =IF(NOT(ISBLANK($B58)),VLOOKUP(YEAR(end_date)&"-"&MONTH(end_date),MData!$A:$NJ,MATCH(INDEX(IdxMapTable,MATCH($B58,IdxNames,0)+1,MATCH(AN$39,IdxFields,0)+1),MData!$7:$7,0),FALSE),"") -> 8873778014 | AP58: China (MSCI) | AQ58: -0.4% | AR58: -3.2% | AS58: -1.0% | AT58: 6.59%
B59: China A (DS) | C59: EM | D59: 13 | E59: =E58 -> 6.90% | F59: -0.20% | G59: 2.00% | H59: 8.82% | I59: =IF(NOT(ISBLANK($B59)),IFERROR(AK59/AJ59,#N/A),"") -> 7.46% | J59: 7.70% | K59: 0.24% | L59: -3.27% | M59: 0.25% | N59: -3.02% | O59: =IF(NOT(ISBLANK($B59)),VLOOKUP(YEAR(end_date)&"-"&MONTH(end_date),MData!$A:$NJ,MATCH(INDEX(IdxMapTable,MATCH($B59,IdxNames,0)+1,MATCH("Price / EPS",IdxFields,0)+1),MData!$7:$7,0),FALSE),"") -> 17.9 | P59: 15.5 | Q59: -1.12% | R59: 2.25% | S59: -0.75% | T59: 6.28% | U59: y | V59: 0.15 | W59: 0.15 | X59: =IF(NOT(ISBLANK($B59)),W59/V59-1,"") -> 2.6% | Y59: =IF(NOT(ISBLANK($B59)),AM59/AN59,"") -> 8.74 | Z59: 6.90 | AA59: =IF(NOT(ISBLANK($B59)),Z59/Y59-1,"") -> -21.1% | AB59: =IF(NOT(ISBLANK($B59)),AK59/AN59,"") -> 9.53% | AC59: 7.97% | AD59: =IF(NOT(ISBLANK($B59)),AC59/AB59-1,"") -> -16.4% | AF59: =IF(NOT(ISBLANK($B59)),INDEX(IdxMapTable,MATCH($B59,IdxNames,0)+1,MATCH(E$6,IdxFields,0)+1),"") -> H924NGDP@EMERGE*4 | AG59: 1 | AH59: =IF(NOT(ISBLANK($B59)),IFERROR(VLOOKUP(end_date,QData!$B:$AC,MATCH(AF59,QData!$3:$3,0)-1,FALSE),IFERROR(VLOOKUP(EOMONTH(end_date,-1),QData!$B:$AC,MATCH(AF59,QData!$3:$3,0)-1,FALSE)*(1+E59)^(1/12),IFERROR(VLOOKUP(EOMONTH(end_date,-2),QData!$B:$AC,MATCH(AF59,QData!$3:$3,0)-1,FALSE)*(1+E59)^(2/12),IFERROR(VLOOKUP(EOMONTH(end_date,-3),QData!$B:$AC,MATCH(AF59,QData!$3:$3,0)-1,FALSE)*(1+E59)^(3/12),#N/A))))*AG59,"") -> 102841.5 | AI59: =IF(NOT(ISBLANK($B59)),VLOOKUP(YEAR(end_date)&"-"&MONTH(end_date),MData!$A:$NJ,MATCH(INDEX(IdxMapTable,MATCH($B59,IdxNames,0)+1,MATCH(AI$39,IdxFields,0)+1),MData!$7:$7,0),FALSE),"") -> 2.0 | AJ59: =IF(NOT(ISBLANK($B59)),VLOOKUP(YEAR(end_date)&"-"&MONTH(end_date),MData!$A:$NJ,MATCH(INDEX(IdxMapTable,MATCH($B59,IdxNames,0)+1,MATCH(AJ$39,IdxFields,0)+1),MData!$7:$7,0),FALSE),"") -> 31525960000 | AK59: =IF(NOT(ISBLANK($B59)),AL59/O59*1000,"") -> 2352615319 | AL59: =IF(NOT(ISBLANK($B59)),VLOOKUP(YEAR(end_date)&"-"&MONTH(end_date),MData!$A:$NJ,MATCH(INDEX(IdxMapTable,MATCH($B59,IdxNames,0)+1,MATCH(AL$39,IdxFields,0)+1),MData!$7:$7,0),FALSE),"") -> 42188980 | AM59: =IF(NOT(ISBLANK($B59)),VLOOKUP(YEAR(end_date)&"-"&MONTH(end_date),MData!$A:$NJ,MATCH(INDEX(IdxMapTable,MATCH($B59,IdxNames,0)+1,MATCH(AM$39,IdxFields,0)+1),MData!$7:$7,0),FALSE),"") -> 215693000000 | AN59: =IF(NOT(ISBLANK($B59)),VLOOKUP(YEAR(end_date)&"-"&MONTH(end_date),MData!$A:$NJ,MATCH(INDEX(IdxMapTable,MATCH($B59,IdxNames,0)+1,MATCH(AN$39,IdxFields,0)+1),MData!$7:$7,0),FALSE),"") -> 24677010000 | AP59: China A (DS) | AQ59: 0.2% | AR59: -3.0% | AS59: -1.1% | AT59: 6.28%
B60: South Africa | C60: EM | D60: 13 | E60: =INDEX(nGDP_values,MATCH(VLOOKUP(B60,IdxCountryMap,2,FALSE),econ_countries,0),MATCH(ltcma_year,nGDP_years,0))/100 -> 7.80% | F60: -0.30% | G60: 1.50% | H60: =IF(NOT(ISBLANK($B60)),(1+E60)*(1+F60)*(1+G60)-1,"") -> 9.09% | I60: 9.25% | J60: 9.00% | K60: -0.21% | L60: -2.31% | M60: 0.50% | N60: -1.81% | O60: =IF(NOT(ISBLANK($B60)),VLOOKUP(YEAR(end_date)&"-"&MONTH(end_date),MData!$A:$NJ,MATCH(INDEX(IdxMapTable,MATCH($B60,IdxNames,0)+1,MATCH("Price / EPS",IdxFields,0)+1),MData!$7:$7,0),FALSE),"") -> 15.4 | P60: 15.0 | Q60: -0.19% | R60: 3.50% | S60: 0.00% | T60: 10.48% | U60: y | V60: =IF(NOT(ISBLANK($B60)),AJ60/AM60,"") -> 0.23 | W60: 0.25 | X60: 7.7% | Y60: =IF(NOT(ISBLANK($B60)),AM60/AN60,"") -> 5.55 | Z60: 5.00 | AA60: =IF(NOT(ISBLANK($B60)),Z60/Y60-1,"") -> -10.0% | AB60: =IF(NOT(ISBLANK($B60)),AK60/AN60,"") -> 11.93% | AC60: =IF(NOT(ISBLANK($B60)),J60*W60*Z60,"") -> 11.25% | AD60: -5.7% | AF60: S199NGDP@EMERGE*4 | AG60: 1 | AH60: =IF(NOT(ISBLANK($B60)),IFERROR(VLOOKUP(end_date,QData!$B:$AC,MATCH(AF60,QData!$3:$3,0)-1,FALSE),IFERROR(VLOOKUP(EOMONTH(end_date,-1),QData!$B:$AC,MATCH(AF60,QData!$3:$3,0)-1,FALSE)*(1+E60)^(1/12),IFERROR(VLOOKUP(EOMONTH(end_date,-2),QData!$B:$AC,MATCH(AF60,QData!$3:$3,0)-1,FALSE)*(1+E60)^(2/12),IFERROR(VLOOKUP(EOMONTH(end_date,-3),QData!$B:$AC,MATCH(AF60,QData!$3:$3,0)-1,FALSE)*(1+E60)^(3/12),#N/A))))*AG60,"") -> 4379.2 | AI60: =IF(NOT(ISBLANK($B60)),VLOOKUP(YEAR(end_date)&"-"&MONTH(end_date),MData!$A:$NJ,MATCH(INDEX(IdxMapTable,MATCH($B60,IdxNames,0)+1,MATCH(AI$39,IdxFields,0)+1),MData!$7:$7,0),FALSE),"") -> 3.0 | AJ60: =IF(NOT(ISBLANK($B60)),VLOOKUP(YEAR(end_date)&"-"&MONTH(end_date),MData!$A:$NJ,MATCH(INDEX(IdxMapTable,MATCH($B60,IdxNames,0)+1,MATCH(AJ$39,IdxFields,0)+1),MData!$7:$7,0),FALSE),"") -> 3602648000 | AK60: 333415002 | AL60: =IF(NOT(ISBLANK($B60)),VLOOKUP(YEAR(end_date)&"-"&MONTH(end_date),MData!$A:$NJ,MATCH(INDEX(IdxMapTable,MATCH($B60,IdxNames,0)+1,MATCH(AL$39,IdxFields,0)+1),MData!$7:$7,0),FALSE),"") -> 5129023 | AM60: =IF(NOT(ISBLANK($B60)),VLOOKUP(YEAR(end_date)&"-"&MONTH(end_date),MData!$A:$NJ,MATCH(INDEX(IdxMapTable,MATCH($B60,IdxNames,0)+1,MATCH(AM$39,IdxFields,0)+1),MData!$7:$7,0),FALSE),"") -> 15522220000 | AN60: =IF(NOT(ISBLANK($B60)),VLOOKUP(YEAR(end_date)&"-"&MONTH(end_date),MData!$A:$NJ,MATCH(INDEX(IdxMapTable,MATCH($B60,IdxNames,0)+1,MATCH(AN$39,IdxFields,0)+1),MData!$7:$7,0),FALSE),"") -> 2795146000 | AP60: South Africa | AQ60: -0.2% | AR60: -1.8% | AS60: -0.2% | AT60: 10.5%
B61: Korea | C61: EM | D61: 13 | E61: 3.90% | F61: 0.30% | G61: 0.50% | H61: =IF(NOT(ISBLANK($B61)),(1+E61)*(1+F61)*(1+G61)-1,"") -> 4.73% | I61: 3.93% | J61: 5.50% | K61: 2.62% | L61: -1.49% | M61: 1.00% | N61: -0.49% | O61: =IF(NOT(ISBLANK($B61)),VLOOKUP(YEAR(end_date)&"-"&MONTH(end_date),MData!$A:$NJ,MATCH(INDEX(IdxMapTable,MATCH($B61,IdxNames,0)+1,MATCH("Price / EPS",IdxFields,0)+1),MData!$7:$7,0),FALSE),"") -> 20.7 | P61: 13.5 | Q61: -3.23% | R61: 2.00% | S61: 0.00% | T61: 5.57% | U61: y | V61: =IF(NOT(ISBLANK($B61)),AJ61/AM61,"") -> 0.30 | W61: 0.32 | X61: 6.3% | Y61: =IF(NOT(ISBLANK($B61)),AM61/AN61,"") -> 4.39 | Z61: 4.00 | AA61: =IF(NOT(ISBLANK($B61)),Z61/Y61-1,"") -> -8.8% | AB61: =IF(NOT(ISBLANK($B61)),AK61/AN61,"") -> 5.19% | AC61: =IF(NOT(ISBLANK($B61)),J61*W61*Z61,"") -> 7.04% | AD61: 35.6% | AF61: S542NGDP@EMERGE*4 | AG61: 1000 | AH61: =IF(NOT(ISBLANK($B61)),IFERROR(VLOOKUP(end_date,QData!$B:$AC,MATCH(AF61,QData!$3:$3,0)-1,FALSE),IFERROR(VLOOKUP(EOMONTH(end_date,-1),QData!$B:$AC,MATCH(AF61,QData!$3:$3,0)-1,FALSE)*(1+E61)^(1/12),IFERROR(VLOOKUP(EOMONTH(end_date,-2),QData!$B:$AC,MATCH(AF61,QData!$3:$3,0)-1,FALSE)*(1+E61)^(2/12),IFERROR(VLOOKUP(EOMONTH(end_date,-3),QData!$B:$AC,MATCH(AF61,QData!$3:$3,0)-1,FALSE)*(1+E61)^(3/12),#N/A))))*AG61,"") -> 1907043.7 | AI61: =IF(NOT(ISBLANK($B61)),VLOOKUP(YEAR(end_date)&"-"&MONTH(end_date),MData!$A:$NJ,MATCH(INDEX(IdxMapTable,MATCH($B61,IdxNames,0)+1,MATCH(AI$39,IdxFields,0)+1),MData!$7:$7,0),FALSE),"") -> 1.9 | AJ61: =IF(NOT(ISBLANK($B61)),VLOOKUP(YEAR(end_date)&"-"&MONTH(end_date),MData!$A:$NJ,MATCH(INDEX(IdxMapTable,MATCH($B61,IdxNames,0)+1,MATCH(AJ$39,IdxFields,0)+1),MData!$7:$7,0),FALSE),"") -> 1581813000000 | AK61: 62172971091 | AL61: =IF(NOT(ISBLANK($B61)),VLOOKUP(YEAR(end_date)&"-"&MONTH(end_date),MData!$A:$NJ,MATCH(INDEX(IdxMapTable,MATCH($B61,IdxNames,0)+1,MATCH(AL$39,IdxFields,0)+1),MData!$7:$7,0),FALSE),"") -> 1285650000 | AM61: =IF(NOT(ISBLANK($B61)),VLOOKUP(YEAR(end_date)&"-"&MONTH(end_date),MData!$A:$NJ,MATCH(INDEX(IdxMapTable,MATCH($B61,IdxNames,0)+1,MATCH(AM$39,IdxFields,0)+1),MData!$7:$7,0),FALSE),"") -> 5253380000000 | AN61: =IF(NOT(ISBLANK($B61)),VLOOKUP(YEAR(end_date)&"-"&MONTH(end_date),MData!$A:$NJ,MATCH(INDEX(IdxMapTable,MATCH($B61,IdxNames,0)+1,MATCH(AN$39,IdxFields,0)+1),MData!$7:$7,0),FALSE),"") -> 1197267000000 | AP61: Korea | AQ61: 2.6% | AR61: -0.5% | AS61: -3.2% | AT61: 5.6%
B62: Taiwan | C62: EM | D62: 13 | E62: 2.60% | F62: 0.70% | G62: 0.50% | H62: =IF(NOT(ISBLANK($B62)),(1+E62)*(1+F62)*(1+G62)-1,"") -> 3.83% | I62: 7.12% | J62: 7.25% | K62: 0.14% | L62: -0.72% | M62: 0.25% | N62: -0.47% | O62: =IF(NOT(ISBLANK($B62)),VLOOKUP(YEAR(end_date)&"-"&MONTH(end_date),MData!$A:$NJ,MATCH(INDEX(IdxMapTable,MATCH($B62,IdxNames,0)+1,MATCH("Price / EPS",IdxFields,0)+1),MData!$7:$7,0),FALSE),"") -> 19.6 | P62: 15.5 | Q62: -1.78% | R62: 3.75% | S62: 0.00% | T62: 5.47% | U62: y | V62: =IF(NOT(ISBLANK($B62)),AJ62/AM62,"") -> 0.25 | W62: 0.26 | X62: 2.3% | Y62: =IF(NOT(ISBLANK($B62)),AM62/AN62,"") -> 6.51 | Z62: 5.50 | AA62: =IF(NOT(ISBLANK($B62)),Z62/Y62-1,"") -> -15.6% | AB62: =IF(NOT(ISBLANK($B62)),AK62/AN62,"") -> 11.79% | AC62: =IF(NOT(ISBLANK($B62)),J62*W62*Z62,"") -> 10.37% | AD62: -12.1% | AF62: S528NGDP@EMERGE*4 | AG62: 1 | AH62: =IF(NOT(ISBLANK($B62)),IFERROR(VLOOKUP(end_date,QData!$B:$AC,MATCH(AF62,QData!$3:$3,0)-1,FALSE),IFERROR(VLOOKUP(EOMONTH(end_date,-1),QData!$B:$AC,MATCH(AF62,QData!$3:$3,0)-1,FALSE)*(1+E62)^(1/12),IFERROR(VLOOKUP(EOMONTH(end_date,-2),QData!$B:$AC,MATCH(AF62,QData!$3:$3,0)-1,FALSE)*(1+E62)^(2/12),IFERROR(VLOOKUP(EOMONTH(end_date,-3),QData!$B:$AC,MATCH(AF62,QData!$3:$3,0)-1,FALSE)*(1+E62)^(3/12),#N/A))))*AG62,"") -> 18978.7 | AI62: =IF(NOT(ISBLANK($B62)),VLOOKUP(YEAR(end_date)&"-"&MONTH(end_date),MData!$A:$NJ,MATCH(INDEX(IdxMapTable,MATCH($B62,IdxNames,0)+1,MATCH(AI$39,IdxFields,0)+1),MData!$7:$7,0),FALSE),"") -> 3.3 | AJ62: =IF(NOT(ISBLANK($B62)),VLOOKUP(YEAR(end_date)&"-"&MONTH(end_date),MData!$A:$NJ,MATCH(INDEX(IdxMapTable,MATCH($B62,IdxNames,0)+1,MATCH(AJ$39,IdxFields,0)+1),MData!$7:$7,0),FALSE),"") -> 20541160000 | AK62: 1462881335 | AL62: =IF(NOT(ISBLANK($B62)),VLOOKUP(YEAR(end_date)&"-"&MONTH(end_date),MData!$A:$NJ,MATCH(INDEX(IdxMapTable,MATCH($B62,IdxNames,0)+1,MATCH(AL$39,IdxFields,0)+1),MData!$7:$7,0),FALSE),"") -> 28627710 | AM62: =IF(NOT(ISBLANK($B62)),VLOOKUP(YEAR(end_date)&"-"&MONTH(end_date),MData!$A:$NJ,MATCH(INDEX(IdxMapTable,MATCH($B62,IdxNames,0)+1,MATCH(AM$39,IdxFields,0)+1),MData!$7:$7,0),FALSE),"") -> 80821420000 | AN62: =IF(NOT(ISBLANK($B62)),VLOOKUP(YEAR(end_date)&"-"&MONTH(end_date),MData!$A:$NJ,MATCH(INDEX(IdxMapTable,MATCH($B62,IdxNames,0)+1,MATCH(AN$39,IdxFields,0)+1),MData!$7:$7,0),FALSE),"") -> 12409180000 | AP62: Taiwan | AQ62: 0.1% | AR62: -0.5% | AS62: -1.8% | AT62: 5.5%
B63: Mexico | C63: EM | D63: 13 | E63: 6.20% | F63: -0.20% | G63: 1.75% | H63: =IF(NOT(ISBLANK($B63)),(1+E63)*(1+F63)*(1+G63)-1,"") -> 7.84% | I63: 4.83% | J63: 7.50% | K63: 3.44% | L63: -3.21% | M63: 1.50% | N63: -1.71% | O63: =IF(NOT(ISBLANK($B63)),VLOOKUP(YEAR(end_date)&"-"&MONTH(end_date),MData!$A:$NJ,MATCH(INDEX(IdxMapTable,MATCH($B63,IdxNames,0)+1,MATCH("Price / EPS",IdxFields,0)+1),MData!$7:$7,0),FALSE),"") -> 19.5 | P63: 15.3 | Q63: -1.88% | R63: 2.75% | S63: 0.00% | T63: 10.59% | U63: y | V63: =IF(NOT(ISBLANK($B63)),AJ63/AM63,"") -> 0.42 | W63: 0.42 | X63: -1.0% | Y63: =IF(NOT(ISBLANK($B63)),AM63/AN63,"") -> 3.69 | Z63: 3.40 | AA63: =IF(NOT(ISBLANK($B63)),Z63/Y63-1,"") -> -7.8% | AB63: =IF(NOT(ISBLANK($B63)),AK63/AN63,"") -> 7.56% | AC63: =IF(NOT(ISBLANK($B63)),J63*W63*Z63,"") -> 10.71% | AD63: 41.6% | AF63: S273NGDP@EMERGE*4 | AG63: 1 | AH63: =IF(NOT(ISBLANK($B63)),IFERROR(VLOOKUP(end_date,QData!$B:$AC,MATCH(AF63,QData!$3:$3,0)-1,FALSE),IFERROR(VLOOKUP(EOMONTH(end_date,-1),QData!$B:$AC,MATCH(AF63,QData!$3:$3,0)-1,FALSE)*(1+E63)^(1/12),IFERROR(VLOOKUP(EOMONTH(end_date,-2),QData!$B:$AC,MATCH(AF63,QData!$3:$3,0)-1,FALSE)*(1+E63)^(2/12),IFERROR(VLOOKUP(EOMONTH(end_date,-3),QData!$B:$AC,MATCH(AF63,QData!$3:$3,0)-1,FALSE)*(1+E63)^(3/12),#N/A))))*AG63,"") -> 20181.9 | AI63: =IF(NOT(ISBLANK($B63)),VLOOKUP(YEAR(end_date)&"-"&MONTH(end_date),MData!$A:$NJ,MATCH(INDEX(IdxMapTable,MATCH($B63,IdxNames,0)+1,MATCH(AI$39,IdxFields,0)+1),MData!$7:$7,0),FALSE),"") -> 3.4 | AJ63: =IF(NOT(ISBLANK($B63)),VLOOKUP(YEAR(end_date)&"-"&MONTH(end_date),MData!$A:$NJ,MATCH(INDEX(IdxMapTable,MATCH($B63,IdxNames,0)+1,MATCH(AJ$39,IdxFields,0)+1),MData!$7:$7,0),FALSE),"") -> 6596248000 | AK63: 318903362 | AL63: =IF(NOT(ISBLANK($B63)),VLOOKUP(YEAR(end_date)&"-"&MONTH(end_date),MData!$A:$NJ,MATCH(INDEX(IdxMapTable,MATCH($B63,IdxNames,0)+1,MATCH(AL$39,IdxFields,0)+1),MData!$7:$7,0),FALSE),"") -> 6220816 | AM63: =IF(NOT(ISBLANK($B63)),VLOOKUP(YEAR(end_date)&"-"&MONTH(end_date),MData!$A:$NJ,MATCH(INDEX(IdxMapTable,MATCH($B63,IdxNames,0)+1,MATCH(AM$39,IdxFields,0)+1),MData!$7:$7,0),FALSE),"") -> 15548890000 | AN63: =IF(NOT(ISBLANK($B63)),VLOOKUP(YEAR(end_date)&"-"&MONTH(end_date),MData!$A:$NJ,MATCH(INDEX(IdxMapTable,MATCH($B63,IdxNames,0)+1,MATCH(AN$39,IdxFields,0)+1),MData!$7:$7,0),FALSE),"") -> 4215862000 | AP63: Mexico | AQ63: 3.4% | AR63: -1.7% | AS63: -1.9% | AT63: 10.6%
B64: Malaysia | C64: EM | D64: 13 | E64: 5.30% | F64: =VLOOKUP(B64,[4]Compare!$B$3:$E$26,4,0) ->  | G64: 0.50% | H64: =IF(NOT(ISBLANK($B64)),(1+E64)*(1+F64)*(1+G64)-1,"") ->  | I64: 9.14% | J64: 12.00% | M64: 1.75% | O64: =IF(NOT(ISBLANK($B64)),VLOOKUP(YEAR(end_date)&"-"&MONTH(end_date),MData!$A:$NJ,MATCH(INDEX(IdxMapTable,MATCH($B64,IdxNames,0)+1,MATCH("Price / EPS",IdxFields,0)+1),MData!$7:$7,0),FALSE),"") -> 22.1 | P64: =O64 -> 22.1 | R64: 3.00% | S64: 0.00% | U64: y | V64: =IF(NOT(ISBLANK($B64)),AJ64/AM64,"") -> 0.15 | W64: 0.16 | X64: 8.7% | Y64: =IF(NOT(ISBLANK($B64)),AM64/AN64,"") -> 5.07 | Z64: 4.50 | AA64: =IF(NOT(ISBLANK($B64)),Z64/Y64-1,"") -> -11.3% | AB64: =IF(NOT(ISBLANK($B64)),AK64/AN64,"") -> 6.83% | AC64: =IF(NOT(ISBLANK($B64)),J64*W64*Z64,"") -> 8.64% | AD64: 26.6% | AF64: H548NGDP@EMERGE*4 | AG64: 1 | AH64: =IF(NOT(ISBLANK($B64)),IFERROR(VLOOKUP(end_date,QData!$B:$AC,MATCH(AF64,QData!$3:$3,0)-1,FALSE),IFERROR(VLOOKUP(EOMONTH(end_date,-1),QData!$B:$AC,MATCH(AF64,QData!$3:$3,0)-1,FALSE)*(1+E64)^(1/12),IFERROR(VLOOKUP(EOMONTH(end_date,-2),QData!$B:$AC,MATCH(AF64,QData!$3:$3,0)-1,FALSE)*(1+E64)^(2/12),IFERROR(VLOOKUP(EOMONTH(end_date,-3),QData!$B:$AC,MATCH(AF64,QData!$3:$3,0)-1,FALSE)*(1+E64)^(3/12),#N/A))))*AG64,"") -> 1241.2 | AI64: =IF(NOT(ISBLANK($B64)),VLOOKUP(YEAR(end_date)&"-"&MONTH(end_date),MData!$A:$NJ,MATCH(INDEX(IdxMapTable,MATCH($B64,IdxNames,0)+1,MATCH(AI$39,IdxFields,0)+1),MData!$7:$7,0),FALSE),"") -> 3.3 | AJ64: =IF(NOT(ISBLANK($B64)),VLOOKUP(YEAR(end_date)&"-"&MONTH(end_date),MData!$A:$NJ,MATCH(INDEX(IdxMapTable,MATCH($B64,IdxNames,0)+1,MATCH(AJ$39,IdxFields,0)+1),MData!$7:$7,0),FALSE),"") -> 652796900 | AK64: 59670469 | AL64: =IF(NOT(ISBLANK($B64)),VLOOKUP(YEAR(end_date)&"-"&MONTH(end_date),MData!$A:$NJ,MATCH(INDEX(IdxMapTable,MATCH($B64,IdxNames,0)+1,MATCH(AL$39,IdxFields,0)+1),MData!$7:$7,0),FALSE),"") -> 1320955 | AM64: =IF(NOT(ISBLANK($B64)),VLOOKUP(YEAR(end_date)&"-"&MONTH(end_date),MData!$A:$NJ,MATCH(INDEX(IdxMapTable,MATCH($B64,IdxNames,0)+1,MATCH(AM$39,IdxFields,0)+1),MData!$7:$7,0),FALSE),"") -> 4435100000 | AN64: =IF(NOT(ISBLANK($B64)),VLOOKUP(YEAR(end_date)&"-"&MONTH(end_date),MData!$A:$NJ,MATCH(INDEX(IdxMapTable,MATCH($B64,IdxNames,0)+1,MATCH(AN$39,IdxFields,0)+1),MData!$7:$7,0),FALSE),"") -> 873996500 | AP64: Malaysia
B65: Thailand | C65: EM | D65: 13 | E65: 3.70% | F65: =VLOOKUP(B65,[4]Compare!$B$3:$E$26,4,0) ->  | G65: 0.50% | I65: =IF(NOT(ISBLANK($B65)),IFERROR(AK65/AJ65,#N/A),"") -> 7.03% | J65: 8.00% | M65: 1.75% | O65: =IF(NOT(ISBLANK($B65)),VLOOKUP(YEAR(end_date)&"-"&MONTH(end_date),MData!$A:$NJ,MATCH(INDEX(IdxMapTable,MATCH($B65,IdxNames,0)+1,MATCH("Price / EPS",IdxFields,0)+1),MData!$7:$7,0),FALSE),"") -> 17.5 | P65: =O65 -> 17.5 | R65: 2.75% | S65: 0.00% | U65: n | V65: =IF(NOT(ISBLANK($B65)),AJ65/AM65,"") -> 0.26 | W65: =V65 -> 0.26 | X65: =IF(NOT(ISBLANK($B65)),W65/V65-1,"") -> 0.0% | Y65: =IF(NOT(ISBLANK($B65)),AM65/AN65,"") -> 4.83 | Z65: 4.25 | AA65: =IF(NOT(ISBLANK($B65)),Z65/Y65-1,"") -> -12.0% | AB65: =IF(NOT(ISBLANK($B65)),AK65/AN65,"") -> 8.85% | AC65: =IF(NOT(ISBLANK($B65)),J65*W65*Z65,"") -> 8.87% | AD65: =IF(NOT(ISBLANK($B65)),AC65/AB65-1,"") -> 0.1% | AF65: =IF(NOT(ISBLANK($B65)),INDEX(IdxMapTable,MATCH($B65,IdxNames,0)+1,MATCH(E$6,IdxFields,0)+1),"") -> S578NGDP@EMERGE*4 | AG65: =IF(NOT(ISBLANK($B65)),INDEX(IdxMapTable,MATCH($B65,IdxNames,0)+1,MATCH("GDP factor",IdxFields,0)+1),"") -> 1 | AH65: =IF(NOT(ISBLANK($B65)),IFERROR(VLOOKUP(end_date,QData!$B:$AC,MATCH(AF65,QData!$3:$3,0)-1,FALSE),IFERROR(VLOOKUP(EOMONTH(end_date,-1),QData!$B:$AC,MATCH(AF65,QData!$3:$3,0)-1,FALSE)*(1+E65)^(1/12),IFERROR(VLOOKUP(EOMONTH(end_date,-2),QData!$B:$AC,MATCH(AF65,QData!$3:$3,0)-1,FALSE)*(1+E65)^(2/12),IFERROR(VLOOKUP(EOMONTH(end_date,-3),QData!$B:$AC,MATCH(AF65,QData!$3:$3,0)-1,FALSE)*(1+E65)^(3/12),#N/A))))*AG65,"") -> 14659.4 | AI65: =IF(NOT(ISBLANK($B65)),VLOOKUP(YEAR(end_date)&"-"&MONTH(end_date),MData!$A:$NJ,MATCH(INDEX(IdxMapTable,MATCH($B65,IdxNames,0)+1,MATCH(AI$39,IdxFields,0)+1),MData!$7:$7,0),FALSE),"") -> 3.3 | AJ65: =IF(NOT(ISBLANK($B65)),VLOOKUP(YEAR(end_date)&"-"&MONTH(end_date),MData!$A:$NJ,MATCH(INDEX(IdxMapTable,MATCH($B65,IdxNames,0)+1,MATCH(AJ$39,IdxFields,0)+1),MData!$7:$7,0),FALSE),"") -> 7612277000 | AK65: =IF(NOT(ISBLANK($B65)),AL65/O65*1000,"") -> 535489201 | AL65: =IF(NOT(ISBLANK($B65)),VLOOKUP(YEAR(end_date)&"-"&MONTH(end_date),MData!$A:$NJ,MATCH(INDEX(IdxMapTable,MATCH($B65,IdxNames,0)+1,MATCH(AL$39,IdxFields,0)+1),MData!$7:$7,0),FALSE),"") -> 9359548 | AM65: =IF(NOT(ISBLANK($B65)),VLOOKUP(YEAR(end_date)&"-"&MONTH(end_date),MData!$A:$NJ,MATCH(INDEX(IdxMapTable,MATCH($B65,IdxNames,0)+1,MATCH(AM$39,IdxFields,0)+1),MData!$7:$7,0),FALSE),"") -> 29194950000 | AN65: =IF(NOT(ISBLANK($B65)),VLOOKUP(YEAR(end_date)&"-"&MONTH(end_date),MData!$A:$NJ,MATCH(INDEX(IdxMapTable,MATCH($B65,IdxNames,0)+1,MATCH(AN$39,IdxFields,0)+1),MData!$7:$7,0),FALSE),"") -> 6048174000 | AP65: Thailand
B67: Hong Kong (DS) | C67: DM | D67: 13 | E67: =INDEX(nGDP_values,MATCH(VLOOKUP(B67,IdxCountryMap,2,FALSE),econ_countries,0),MATCH(ltcma_year,nGDP_years,0))/100 -> 6.90% | F67: 1.70% | G67: 0.00% | H67: =IF(NOT(ISBLANK($B67)),(1+E67)*(1+F67)*(1+G67)-1,"") -> 8.72% | I67: =IF(NOT(ISBLANK($B67)),IFERROR(AK67/AJ67,#N/A),"") -> 10.05% | J67: 12.00% | K67: =IF(NOT(ISBLANK($B67)),AQ64,"") ->  | L67: -2.50% | M67: =IF(NOT(ISBLANK($B67)),N67-L67,"") ->  | N67: =IF(NOT(ISBLANK($B67)),AR64,"") ->  | O67: =IF(NOT(ISBLANK($B67)),VLOOKUP(YEAR(end_date)&"-"&MONTH(end_date),MData!$A:$NJ,MATCH(INDEX(IdxMapTable,MATCH($B67,IdxNames,0)+1,MATCH("Price / EPS",IdxFields,0)+1),MData!$7:$7,0),FALSE),"") -> 19.8 | P67: 13.0 | Q67: =IF(NOT(ISBLANK($B67)),AS64,"") ->  | R67: 3.50% | S67: 0.75% | T67: 6.69% | V67: =IF(NOT(ISBLANK($B67)),AJ67/AM67,"") -> 0.16 | W67: 0.14 | X67: =IF(NOT(ISBLANK($B67)),W67/V67-1,"") -> -15.3% | Y67: =IF(NOT(ISBLANK($B67)),AM67/AN67,"") -> 5.19 | Z67: 5.11 | AA67: =IF(NOT(ISBLANK($B67)),Z67/Y67-1,"") -> -1.6% | AB67: =IF(NOT(ISBLANK($B67)),AK67/AN67,"") -> 8.39% | AC67: =IF(NOT(ISBLANK($B67)),J67*W67*Z67,"") -> 8.36% | AD67: =IF(NOT(ISBLANK($B67)),AC67/AB67-1,"") -> -0.4% | AF67: =IF(NOT(ISBLANK($B67)),INDEX(IdxMapTable,MATCH($B67,IdxNames,0)+1,MATCH(E$6,IdxFields,0)+1),"") -> H532NGDP@EMERGE*4 | AG67: =IF(NOT(ISBLANK($B67)),INDEX(IdxMapTable,MATCH($B67,IdxNames,0)+1,MATCH("GDP factor",IdxFields,0)+1),"") -> 1 | AH67: =IF(NOT(ISBLANK($B67)),IFERROR(VLOOKUP(end_date,QData!$B:$AC,MATCH(AF67,QData!$3:$3,0)-1,FALSE),IFERROR(VLOOKUP(EOMONTH(end_date,-1),QData!$B:$AC,MATCH(AF67,QData!$3:$3,0)-1,FALSE)*(1+E67)^(1/12),IFERROR(VLOOKUP(EOMONTH(end_date,-2),QData!$B:$AC,MATCH(AF67,QData!$3:$3,0)-1,FALSE)*(1+E67)^(2/12),IFERROR(VLOOKUP(EOMONTH(end_date,-3),QData!$B:$AC,MATCH(AF67,QData!$3:$3,0)-1,FALSE)*(1+E67)^(3/12),#N/A))))*AG67,"") -> 2703.1 | AI67: =IF(NOT(ISBLANK($B67)),VLOOKUP(YEAR(end_date)&"-"&MONTH(end_date),MData!$A:$NJ,MATCH(INDEX(IdxMapTable,MATCH($B67,IdxNames,0)+1,MATCH(AI$39,IdxFields,0)+1),MData!$7:$7,0),FALSE),"") -> 2.2 | AJ67: =IF(NOT(ISBLANK($B67)),VLOOKUP(YEAR(end_date)&"-"&MONTH(end_date),MData!$A:$NJ,MATCH(INDEX(IdxMapTable,MATCH($B67,IdxNames,0)+1,MATCH(AJ$39,IdxFields,0)+1),MData!$7:$7,0),FALSE),"") -> 11186150000 | AK67: =IF(NOT(ISBLANK($B67)),AL67/O67*1000,"") -> 1124184015 | AL67: =IF(NOT(ISBLANK($B67)),VLOOKUP(YEAR(end_date)&"-"&MONTH(end_date),MData!$A:$NJ,MATCH(INDEX(IdxMapTable,MATCH($B67,IdxNames,0)+1,MATCH(AL$39,IdxFields,0)+1),MData!$7:$7,0),FALSE),"") -> 22291220 | AM67: =IF(NOT(ISBLANK($B67)),VLOOKUP(YEAR(end_date)&"-"&MONTH(end_date),MData!$A:$NJ,MATCH(INDEX(IdxMapTable,MATCH($B67,IdxNames,0)+1,MATCH(AM$39,IdxFields,0)+1),MData!$7:$7,0),FALSE),"") -> 69516660000 | AN67: =IF(NOT(ISBLANK($B67)),VLOOKUP(YEAR(end_date)&"-"&MONTH(end_date),MData!$A:$NJ,MATCH(INDEX(IdxMapTable,MATCH($B67,IdxNames,0)+1,MATCH(AN$39,IdxFields,0)+1),MData!$7:$7,0),FALSE),"") -> 13401830000 | AP67: Hong Kong (DS) | AQ67: 1.4% | AR67: -4.2% | AS67: -3.2% | AT67: 6.7%
B68: EM (MSCI) | C68: EM | D68: 13 | E68: =#REF!/100 ->  | F68: =#REF!/100 ->  | G68: =#REF!/100 ->  | H68: =IF(NOT(ISBLANK($B68)),(1+E68)*(1+F68)*(1+G68)-1,"") ->  | J68: 9.46% | L68: =IF(NOT(ISBLANK($B68)),N68-M68,"") ->  | M68: =#REF!/100 ->  | O68: =IF(NOT(ISBLANK($B68)),VLOOKUP(YEAR(end_date)&"-"&MONTH(end_date),MData!$A:$NJ,MATCH(INDEX(IdxMapTable,MATCH($B68,IdxNames,0)+1,MATCH("Price / EPS",IdxFields,0)+1),MData!$7:$7,0),FALSE),"") ->  | P68: 12.6 | R68: =#REF!/100 ->  | S68: =#REF!/100 ->  | W68: 0.15 | Z68: 7.00 | AC68: 9.60% | AF68: A200NGPD@EMERGE | AG68: 1 | AH68: =IF(NOT(ISBLANK($B68)),IFERROR(VLOOKUP(end_date,QData!$B:$AC,MATCH(AF68,QData!$3:$3,0)-1,FALSE),IFERROR(VLOOKUP(EOMONTH(end_date,-1),QData!$B:$AC,MATCH(AF68,QData!$3:$3,0)-1,FALSE)*(1+E68)^(1/12),IFERROR(VLOOKUP(EOMONTH(end_date,-2),QData!$B:$AC,MATCH(AF68,QData!$3:$3,0)-1,FALSE)*(1+E68)^(2/12),IFERROR(VLOOKUP(EOMONTH(end_date,-3),QData!$B:$AC,MATCH(AF68,QData!$3:$3,0)-1,FALSE)*(1+E68)^(3/12),#N/A))))*AG68,"") ->  | AI68: =IF(NOT(ISBLANK($B68)),VLOOKUP(YEAR(end_date)&"-"&MONTH(end_date),MData!$A:$NJ,MATCH(INDEX(IdxMapTable,MATCH($B68,IdxNames,0)+1,MATCH(AI$39,IdxFields,0)+1),MData!$7:$7,0),FALSE),"") ->  | AJ68: =IF(NOT(ISBLANK($B68)),VLOOKUP(YEAR(end_date)&"-"&MONTH(end_date),MData!$A:$NJ,MATCH(INDEX(IdxMapTable,MATCH($B68,IdxNames,0)+1,MATCH(AJ$39,IdxFields,0)+1),MData!$7:$7,0),FALSE),"") ->  | AL68: =IF(NOT(ISBLANK($B68)),VLOOKUP(YEAR(end_date)&"-"&MONTH(end_date),MData!$A:$NJ,MATCH(INDEX(IdxMapTable,MATCH($B68,IdxNames,0)+1,MATCH(AL$39,IdxFields,0)+1),MData!$7:$7,0),FALSE),"") ->  | AM68: =IF(NOT(ISBLANK($B68)),VLOOKUP(YEAR(end_date)&"-"&MONTH(end_date),MData!$A:$NJ,MATCH(INDEX(IdxMapTable,MATCH($B68,IdxNames,0)+1,MATCH(AM$39,IdxFields,0)+1),MData!$7:$7,0),FALSE),"") ->  | AN68: =IF(NOT(ISBLANK($B68)),VLOOKUP(YEAR(end_date)&"-"&MONTH(end_date),MData!$A:$NJ,MATCH(INDEX(IdxMapTable,MATCH($B68,IdxNames,0)+1,MATCH(AN$39,IdxFields,0)+1),MData!$7:$7,0),FALSE),"") ->  | AP68: EM (MSCI)
B69: EM (DS) | C69: EM | D69: 13 | E69: =#REF!/100 ->  | F69: =#REF!/100 ->  | G69: =#REF!/100 ->  | H69: =IF(NOT(ISBLANK($B69)),(1+E69)*(1+F69)*(1+G69)-1,"") ->  | I69: 8.47% | J69: 7.09% | L69: =IF(NOT(ISBLANK($B69)),N69-M69,"") ->  | M69: =#REF!/100 ->  | O69: =IF(NOT(ISBLANK($B69)),VLOOKUP(YEAR(end_date)&"-"&MONTH(end_date),MData!$A:$NJ,MATCH(INDEX(IdxMapTable,MATCH($B69,IdxNames,0)+1,MATCH("Price / EPS",IdxFields,0)+1),MData!$7:$7,0),FALSE),"") -> 18.9 | P69: 13.3 | R69: =#REF!/100 ->  | S69: =#REF!/100 ->  | V69: 0.21 | W69: 0.19 | X69: -6.5% | Y69: 5.64 | Z69: 7.00 | AA69: 24.2% | AB69: 9.88% | AC69: 9.60% | AD69: -2.8% | AF69: A200NGPD@EMERGE | AG69: 1 | AH69: =IF(NOT(ISBLANK($B69)),IFERROR(VLOOKUP(end_date,QData!$B:$AC,MATCH(AF69,QData!$3:$3,0)-1,FALSE),IFERROR(VLOOKUP(EOMONTH(end_date,-1),QData!$B:$AC,MATCH(AF69,QData!$3:$3,0)-1,FALSE)*(1+E69)^(1/12),IFERROR(VLOOKUP(EOMONTH(end_date,-2),QData!$B:$AC,MATCH(AF69,QData!$3:$3,0)-1,FALSE)*(1+E69)^(2/12),IFERROR(VLOOKUP(EOMONTH(end_date,-3),QData!$B:$AC,MATCH(AF69,QData!$3:$3,0)-1,FALSE)*(1+E69)^(3/12),#N/A))))*AG69,"") ->  | AI69: =IF(NOT(ISBLANK($B69)),VLOOKUP(YEAR(end_date)&"-"&MONTH(end_date),MData!$A:$NJ,MATCH(INDEX(IdxMapTable,MATCH($B69,IdxNames,0)+1,MATCH(AI$39,IdxFields,0)+1),MData!$7:$7,0),FALSE),"") -> 2.4 | AJ69: =IF(NOT(ISBLANK($B69)),VLOOKUP(YEAR(end_date)&"-"&MONTH(end_date),MData!$A:$NJ,MATCH(INDEX(IdxMapTable,MATCH($B69,IdxNames,0)+1,MATCH(AJ$39,IdxFields,0)+1),MData!$7:$7,0),FALSE),"") -> 6836138000 | AK69: 578753060 | AL69: =IF(NOT(ISBLANK($B69)),VLOOKUP(YEAR(end_date)&"-"&MONTH(end_date),MData!$A:$NJ,MATCH(INDEX(IdxMapTable,MATCH($B69,IdxNames,0)+1,MATCH(AL$39,IdxFields,0)+1),MData!$7:$7,0),FALSE),"") -> 10945320 | AM69: =IF(NOT(ISBLANK($B69)),VLOOKUP(YEAR(end_date)&"-"&MONTH(end_date),MData!$A:$NJ,MATCH(INDEX(IdxMapTable,MATCH($B69,IdxNames,0)+1,MATCH(AM$39,IdxFields,0)+1),MData!$7:$7,0),FALSE),"") -> 33016770000 | AN69: =IF(NOT(ISBLANK($B69)),VLOOKUP(YEAR(end_date)&"-"&MONTH(end_date),MData!$A:$NJ,MATCH(INDEX(IdxMapTable,MATCH($B69,IdxNames,0)+1,MATCH(AN$39,IdxFields,0)+1),MData!$7:$7,0),FALSE),"") -> 5857939000 | AP69: EM (DS)
B70: Turkey | C70: EM | D70: 13 | E70: =INDEX(nGDP_values,MATCH(VLOOKUP(B70,IdxCountryMap,2,FALSE),econ_countries,0),MATCH(ltcma_year,nGDP_years,0))/100 -> 11.60% | F70: -1.10% | G70: 1.25% | H70: =IF(NOT(ISBLANK($B70)),(1+E70)*(1+F70)*(1+G70)-1,"") -> 11.75% | I70: 7.75% | J70: 7.25% | K70: 1.37% | L70: =IF(NOT(ISBLANK($B70)),N70-M70,"") -> -4.45% | M70: 0.25% | N70: -4.20% | O70: =IF(NOT(ISBLANK($B70)),VLOOKUP(YEAR(end_date)&"-"&MONTH(end_date),MData!$A:$NJ,MATCH(INDEX(IdxMapTable,MATCH($B70,IdxNames,0)+1,MATCH("Price / EPS",IdxFields,0)+1),MData!$7:$7,0),FALSE),"") -> 12.0 | P70: 12.0 | Q70: -3.20% | R70: 2.50% | S70: 0.00% | T70: 0.00% | V70: 0.22 | W70: 0.19 | X70: -13.9% | Y70: 7.14 | Z70: 7.00 | AA70: -1.9% | AB70: 12.21% | AC70: 9.64% | AD70: -21.0% | AF70: H186NGDP@EMERGE*4 | AG70: 1 | AH70: =IF(NOT(ISBLANK($B70)),IFERROR(VLOOKUP(end_date,QData!$B:$AC,MATCH(AF70,QData!$3:$3,0)-1,FALSE),IFERROR(VLOOKUP(EOMONTH(end_date,-1),QData!$B:$AC,MATCH(AF70,QData!$3:$3,0)-1,FALSE)*(1+E70)^(1/12),IFERROR(VLOOKUP(EOMONTH(end_date,-2),QData!$B:$AC,MATCH(AF70,QData!$3:$3,0)-1,FALSE)*(1+E70)^(2/12),IFERROR(VLOOKUP(EOMONTH(end_date,-3),QData!$B:$AC,MATCH(AF70,QData!$3:$3,0)-1,FALSE)*(1+E70)^(3/12),#N/A))))*AG70,"") -> 4459.0 | AI70: =IF(NOT(ISBLANK($B70)),VLOOKUP(YEAR(end_date)&"-"&MONTH(end_date),MData!$A:$NJ,MATCH(INDEX(IdxMapTable,MATCH($B70,IdxNames,0)+1,MATCH(AI$39,IdxFields,0)+1),MData!$7:$7,0),FALSE),"") -> 1.1 | AJ70: =IF(NOT(ISBLANK($B70)),VLOOKUP(YEAR(end_date)&"-"&MONTH(end_date),MData!$A:$NJ,MATCH(INDEX(IdxMapTable,MATCH($B70,IdxNames,0)+1,MATCH(AJ$39,IdxFields,0)+1),MData!$7:$7,0),FALSE),"") -> 1174818000 | AK70: 91062864 | AL70: =IF(NOT(ISBLANK($B70)),VLOOKUP(YEAR(end_date)&"-"&MONTH(end_date),MData!$A:$NJ,MATCH(INDEX(IdxMapTable,MATCH($B70,IdxNames,0)+1,MATCH(AL$39,IdxFields,0)+1),MData!$7:$7,0),FALSE),"") -> 1093665 | AM70: =IF(NOT(ISBLANK($B70)),VLOOKUP(YEAR(end_date)&"-"&MONTH(end_date),MData!$A:$NJ,MATCH(INDEX(IdxMapTable,MATCH($B70,IdxNames,0)+1,MATCH(AM$39,IdxFields,0)+1),MData!$7:$7,0),FALSE),"") -> 5324153000 | AN70: =IF(NOT(ISBLANK($B70)),VLOOKUP(YEAR(end_date)&"-"&MONTH(end_date),MData!$A:$NJ,MATCH(INDEX(IdxMapTable,MATCH($B70,IdxNames,0)+1,MATCH(AN$39,IdxFields,0)+1),MData!$7:$7,0),FALSE),"") -> 745830900
L71: =IF(NOT(ISBLANK($B71)),N71-M71,"") ->  | O71: =IF(NOT(ISBLANK($B71)),VLOOKUP(YEAR(end_date)&"-"&MONTH(end_date),MData!$A:$NJ,MATCH(INDEX(IdxMapTable,MATCH($B71,IdxNames,0)+1,MATCH("Price / EPS",IdxFields,0)+1),MData!$7:$7,0),FALSE),"") ->  | T71: =IF(NOT(ISBLANK($B71)),AT68,"") ->  | AH71: =IF(NOT(ISBLANK($B71)),IFERROR(VLOOKUP(end_date,QData!$B:$AC,MATCH(AF71,QData!$3:$3,0)-1,FALSE),IFERROR(VLOOKUP(EOMONTH(end_date,-1),QData!$B:$AC,MATCH(AF71,QData!$3:$3,0)-1,FALSE)*(1+E71)^(1/12),IFERROR(VLOOKUP(EOMONTH(end_date,-2),QData!$B:$AC,MATCH(AF71,QData!$3:$3,0)-1,FALSE)*(1+E71)^(2/12),IFERROR(VLOOKUP(EOMONTH(end_date,-3),QData!$B:$AC,MATCH(AF71,QData!$3:$3,0)-1,FALSE)*(1+E71)^(3/12),#N/A))))*AG71,"") ->  | AI71: =IF(NOT(ISBLANK($B71)),VLOOKUP(YEAR(end_date)&"-"&MONTH(end_date),MData!$A:$NJ,MATCH(INDEX(IdxMapTable,MATCH($B71,IdxNames,0)+1,MATCH(AI$39,IdxFields,0)+1),MData!$7:$7,0),FALSE),"") ->  | AJ71: =IF(NOT(ISBLANK($B71)),VLOOKUP(YEAR(end_date)&"-"&MONTH(end_date),MData!$A:$NJ,MATCH(INDEX(IdxMapTable,MATCH($B71,IdxNames,0)+1,MATCH(AJ$39,IdxFields,0)+1),MData!$7:$7,0),FALSE),"") ->  | AL71: =IF(NOT(ISBLANK($B71)),VLOOKUP(YEAR(end_date)&"-"&MONTH(end_date),MData!$A:$NJ,MATCH(INDEX(IdxMapTable,MATCH($B71,IdxNames,0)+1,MATCH(AL$39,IdxFields,0)+1),MData!$7:$7,0),FALSE),"") ->  | AM71: =IF(NOT(ISBLANK($B71)),VLOOKUP(YEAR(end_date)&"-"&MONTH(end_date),MData!$A:$NJ,MATCH(INDEX(IdxMapTable,MATCH($B71,IdxNames,0)+1,MATCH(AM$39,IdxFields,0)+1),MData!$7:$7,0),FALSE),"") ->  | AN71: =IF(NOT(ISBLANK($B71)),VLOOKUP(YEAR(end_date)&"-"&MONTH(end_date),MData!$A:$NJ,MATCH(INDEX(IdxMapTable,MATCH($B71,IdxNames,0)+1,MATCH(AN$39,IdxFields,0)+1),MData!$7:$7,0),FALSE),"") -> 
L72: =IF(NOT(ISBLANK($B72)),N72-M72,"") ->  | O72: =IF(NOT(ISBLANK($B72)),VLOOKUP(YEAR(end_date)&"-"&MONTH(end_date),MData!$A:$NJ,MATCH(INDEX(IdxMapTable,MATCH($B72,IdxNames,0)+1,MATCH("Price / EPS",IdxFields,0)+1),MData!$7:$7,0),FALSE),"") ->  | AH72: =IF(NOT(ISBLANK($B72)),IFERROR(VLOOKUP(end_date,QData!$B:$AC,MATCH(AF72,QData!$3:$3,0)-1,FALSE),IFERROR(VLOOKUP(EOMONTH(end_date,-1),QData!$B:$AC,MATCH(AF72,QData!$3:$3,0)-1,FALSE)*(1+E72)^(1/12),IFERROR(VLOOKUP(EOMONTH(end_date,-2),QData!$B:$AC,MATCH(AF72,QData!$3:$3,0)-1,FALSE)*(1+E72)^(2/12),IFERROR(VLOOKUP(EOMONTH(end_date,-3),QData!$B:$AC,MATCH(AF72,QData!$3:$3,0)-1,FALSE)*(1+E72)^(3/12),#N/A))))*AG72,"") ->  | AI72: =IF(NOT(ISBLANK($B72)),VLOOKUP(YEAR(end_date)&"-"&MONTH(end_date),MData!$A:$NJ,MATCH(INDEX(IdxMapTable,MATCH($B72,IdxNames,0)+1,MATCH(AI$39,IdxFields,0)+1),MData!$7:$7,0),FALSE),"") ->  | AJ72: =IF(NOT(ISBLANK($B72)),VLOOKUP(YEAR(end_date)&"-"&MONTH(end_date),MData!$A:$NJ,MATCH(INDEX(IdxMapTable,MATCH($B72,IdxNames,0)+1,MATCH(AJ$39,IdxFields,0)+1),MData!$7:$7,0),FALSE),"") ->  | AL72: =IF(NOT(ISBLANK($B72)),VLOOKUP(YEAR(end_date)&"-"&MONTH(end_date),MData!$A:$NJ,MATCH(INDEX(IdxMapTable,MATCH($B72,IdxNames,0)+1,MATCH(AL$39,IdxFields,0)+1),MData!$7:$7,0),FALSE),"") ->  | AM72: =IF(NOT(ISBLANK($B41)),VLOOKUP(YEAR(end_date)&"-"&MONTH(end_date),MData!$A:$NJ,MATCH(INDEX(IdxMapTable,3,13),MData!$7:$7,0),FALSE),"") -> 1.372564287e+10 | AN72: =IF(NOT(ISBLANK($B72)),VLOOKUP(YEAR(end_date)&"-"&MONTH(end_date),MData!$A:$NJ,MATCH(INDEX(IdxMapTable,MATCH($B72,IdxNames,0)+1,MATCH(AN$39,IdxFields,0)+1),MData!$7:$7,0),FALSE),"") -> 
AM73: IF(NOT(ISBLANK($B41)),VLOOKUP(YEAR(end_date)&"-"&MONTH(end_date),MData!$A:$PH,MATCH(INDEX(IdxMapTable,MATCH($B41,IdxNames,0)+1,MATCH(AM$39,IdxFields,0)+1),MData!$7:$7,0),FALSE),"")
AM74: MATCH(AM$39,IdxFields,0)+1 | AN74: =MATCH(AM$39,IdxFields,0)+1 -> 13
AM75: MATCH($B41,IdxNames,0)+1 | AN75: =MATCH($B41,IdxNames,0)+1 -> 3
AM76: MATCH(INDEX(IdxMapTable,3,13),MData!$7:$7,0

Sheet Factors (hidden)
A1: Selected factors across markets
B3: Factor | C3: PE
C5: TOTMKUS | D5: TOTMKEM | E5: TOTMKUK | F5: TOTMKJP | G5: TOTMKAU | H5: TOTMKCN | I5: TOTMKSD | J5: TOTMKSW | K5: TOTMKBR | L5: TOTMKRS | M5: TOTMKIN | N5: TOTMKCH | O5: TOTMKSA | P5: TOTMKKO | Q5: TOTMKTA | R5: TOTMKTK
B6: Date | C6: United States | D6: Eurozone | E6: United Kingdom | F6: Japan | G6: Australia | H6: Canada | I6: Sweden | J6: Switzerland | K6: Brazil | L6: Russia | M6: India | N6: China | O6: South Africa | P6: Korea | Q6: Taiwan | R6: Turkey
B7: 1980-01-31 | C7: =VLOOKUP(YEAR($B7)&"-"&MONTH($B7),MData!$A:$NJ,MATCH(C$5&"("&factor_selected&")",MData!$7:$7,0),FALSE) ->  | D7: =VLOOKUP(YEAR($B7)&"-"&MONTH($B7),MData!$A:$NJ,MATCH(D$5&"("&factor_selected&")",MData!$7:$7,0),FALSE) ->  | E7: =VLOOKUP(YEAR($B7)&"-"&MONTH($B7),MData!$A:$NJ,MATCH(E$5&"("&factor_selected&")",MData!$7:$7,0),FALSE) ->  | F7: =VLOOKUP(YEAR($B7)&"-"&MONTH($B7),MData!$A:$NJ,MATCH(F$5&"("&factor_selected&")",MData!$7:$7,0),FALSE) ->  | G7: =VLOOKUP(YEAR($B7)&"-"&MONTH($B7),MData!$A:$NJ,MATCH(G$5&"("&factor_selected&")",MData!$7:$7,0),FALSE) ->  | H7: =VLOOKUP(YEAR($B7)&"-"&MONTH($B7),MData!$A:$NJ,MATCH(H$5&"("&factor_selected&")",MData!$7:$7,0),FALSE) ->  | I7: =VLOOKUP(YEAR($B7)&"-"&MONTH($B7),MData!$A:$NJ,MATCH(I$5&"("&factor_selected&")",MData!$7:$7,0),FALSE) ->  | J7: =VLOOKUP(YEAR($B7)&"-"&MONTH($B7),MData!$A:$NJ,MATCH(J$5&"("&factor_selected&")",MData!$7:$7,0),FALSE) ->  | K7: =VLOOKUP(YEAR($B7)&"-"&MONTH($B7),MData!$A:$NJ,MATCH(K$5&"("&factor_selected&")",MData!$7:$7,0),FALSE) ->  | L7: =VLOOKUP(YEAR($B7)&"-"&MONTH($B7),MData!$A:$NJ,MATCH(L$5&"("&factor_selected&")",MData!$7:$7,0),FALSE) ->  | M7: =VLOOKUP(YEAR($B7)&"-"&MONTH($B7),MData!$A:$NJ,MATCH(M$5&"("&factor_selected&")",MData!$7:$7,0),FALSE) ->  | N7: =VLOOKUP(YEAR($B7)&"-"&MONTH($B7),MData!$A:$NJ,MATCH(N$5&"("&factor_selected&")",MData!$7:$7,0),FALSE) ->  | O7: =VLOOKUP(YEAR($B7)&"-"&MONTH($B7),MData!$A:$NJ,MATCH(O$5&"("&factor_selected&")",MData!$7:$7,0),FALSE) ->  | P7: =VLOOKUP(YEAR($B7)&"-"&MONTH($B7),MData!$A:$NJ,MATCH(P$5&"("&factor_selected&")",MData!$7:$7,0),FALSE) ->  | Q7: =VLOOKUP(YEAR($B7)&"-"&MONTH($B7),MData!$A:$NJ,MATCH(Q$5&"("&factor_selected&")",MData!$7:$7,0),FALSE) ->  | R7: =VLOOKUP(YEAR($B7)&"-"&MONTH($B7),MData!$A:$NJ,MATCH(R$5&"("&factor_selected&")",MData!$7:$7,0),FALSE) -> 
B8: =EOMONTH(B7,1) -> 1980-02-29 | C8: =VLOOKUP(YEAR($B8)&"-"&MONTH($B8),MData!$A:$NJ,MATCH(C$5&"("&factor_selected&")",MData!$7:$7,0),FALSE) ->  | D8: =VLOOKUP(YEAR($B8)&"-"&MONTH($B8),MData!$A:$NJ,MATCH(D$5&"("&factor_selected&")",MData!$7:$7,0),FALSE) ->  | E8: =VLOOKUP(YEAR($B8)&"-"&MONTH($B8),MData!$A:$NJ,MATCH(E$5&"("&factor_selected&")",MData!$7:$7,0),FALSE) ->  | F8: =VLOOKUP(YEAR($B8)&"-"&MONTH($B8),MData!$A:$NJ,MATCH(F$5&"("&factor_selected&")",MData!$7:$7,0),FALSE) ->  | G8: =VLOOKUP(YEAR($B8)&"-"&MONTH($B8),MData!$A:$NJ,MATCH(G$5&"("&factor_selected&")",MData!$7:$7,0),FALSE) ->  | H8: =VLOOKUP(YEAR($B8)&"-"&MONTH($B8),MData!$A:$NJ,MATCH(H$5&"("&factor_selected&")",MData!$7:$7,0),FALSE) ->  | I8: =VLOOKUP(YEAR($B8)&"-"&MONTH($B8),MData!$A:$NJ,MATCH(I$5&"("&factor_selected&")",MData!$7:$7,0),FALSE) ->  | J8: =VLOOKUP(YEAR($B8)&"-"&MONTH($B8),MData!$A:$NJ,MATCH(J$5&"("&factor_selected&")",MData!$7:$7,0),FALSE) ->  | K8: =VLOOKUP(YEAR($B8)&"-"&MONTH($B8),MData!$A:$NJ,MATCH(K$5&"("&factor_selected&")",MData!$7:$7,0),FALSE) ->  | L8: =VLOOKUP(YEAR($B8)&"-"&MONTH($B8),MData!$A:$NJ,MATCH(L$5&"("&factor_selected&")",MData!$7:$7,0),FALSE) ->  | M8: =VLOOKUP(YEAR($B8)&"-"&MONTH($B8),MData!$A:$NJ,MATCH(M$5&"("&factor_selected&")",MData!$7:$7,0),FALSE) ->  | N8: =VLOOKUP(YEAR($B8)&"-"&MONTH($B8),MData!$A:$NJ,MATCH(N$5&"("&factor_selected&")",MData!$7:$7,0),FALSE) ->  | O8: =VLOOKUP(YEAR($B8)&"-"&MONTH($B8),MData!$A:$NJ,MATCH(O$5&"("&factor_selected&")",MData!$7:$7,0),FALSE) ->  | P8: =VLOOKUP(YEAR($B8)&"-"&MONTH($B8),MData!$A:$NJ,MATCH(P$5&"("&factor_selected&")",MData!$7:$7,0),FALSE) ->  | Q8: =VLOOKUP(YEAR($B8)&"-"&MONTH($B8),MData!$A:$NJ,MATCH(Q$5&"("&factor_selected&")",MData!$7:$7,0),FALSE) ->  | R8: =VLOOKUP(YEAR($B8)&"-"&MONTH($B8),MData!$A:$NJ,MATCH(R$5&"("&factor_selected&")",MData!$7:$7,0),FALSE) -> 
B9: =EOMONTH(B8,1) -> 1980-03-31 | C9: =VLOOKUP(YEAR($B9)&"-"&MONTH($B9),MData!$A:$NJ,MATCH(C$5&"("&factor_selected&")",MData!$7:$7,0),FALSE) ->  | D9: =VLOOKUP(YEAR($B9)&"-"&MONTH($B9),MData!$A:$NJ,MATCH(D$5&"("&factor_selected&")",MData!$7:$7,0),FALSE) ->  | E9: =VLOOKUP(YEAR($B9)&"-"&MONTH($B9),MData!$A:$NJ,MATCH(E$5&"("&factor_selected&")",MData!$7:$7,0),FALSE) ->  | F9: =VLOOKUP(YEAR($B9)&"-"&MONTH($B9),MData!$A:$NJ,MATCH(F$5&"("&factor_selected&")",MData!$7:$7,0),FALSE) ->  | G9: =VLOOKUP(YEAR($B9)&"-"&MONTH($B9),MData!$A:$NJ,MATCH(G$5&"("&factor_selected&")",MData!$7:$7,0),FALSE) ->  | H9: =VLOOKUP(YEAR($B9)&"-"&MONTH($B9),MData!$A:$NJ,MATCH(H$5&"("&factor_selected&")",MData!$7:$7,0),FALSE) ->  | I9: =VLOOKUP(YEAR($B9)&"-"&MONTH($B9),MData!$A:$NJ,MATCH(I$5&"("&factor_selected&")",MData!$7:$7,0),FALSE) ->  | J9: =VLOOKUP(YEAR($B9)&"-"&MONTH($B9),MData!$A:$NJ,MATCH(J$5&"("&factor_selected&")",MData!$7:$7,0),FALSE) ->  | K9: =VLOOKUP(YEAR($B9)&"-"&MONTH($B9),MData!$A:$NJ,MATCH(K$5&"("&factor_selected&")",MData!$7:$7,0),FALSE) ->  | L9: =VLOOKUP(YEAR($B9)&"-"&MONTH($B9),MData!$A:$NJ,MATCH(L$5&"("&factor_selected&")",MData!$7:$7,0),FALSE) ->  | M9: =VLOOKUP(YEAR($B9)&"-"&MONTH($B9),MData!$A:$NJ,MATCH(M$5&"("&factor_selected&")",MData!$7:$7,0),FALSE) ->  | N9: =VLOOKUP(YEAR($B9)&"-"&MONTH($B9),MData!$A:$NJ,MATCH(N$5&"("&factor_selected&")",MData!$7:$7,0),FALSE) ->  | O9: =VLOOKUP(YEAR($B9)&"-"&MONTH($B9),MData!$A:$NJ,MATCH(O$5&"("&factor_selected&")",MData!$7:$7,0),FALSE) ->  | P9: =VLOOKUP(YEAR($B9)&"-"&MONTH($B9),MData!$A:$NJ,MATCH(P$5&"("&factor_selected&")",MData!$7:$7,0),FALSE) ->  | Q9: =VLOOKUP(YEAR($B9)&"-"&MONTH($B9),MData!$A:$NJ,MATCH(Q$5&"("&factor_selected&")",MData!$7:$7,0),FALSE) ->  | R9: =VLOOKUP(YEAR($B9)&"-"&MONTH($B9),MData!$A:$NJ,MATCH(R$5&"("&factor_selected&")",MData!$7:$7,0),FALSE) -> 
B10: 1980-04-30 | C10: =VLOOKUP(YEAR($B10)&"-"&MONTH($B10),MData!$A:$NJ,MATCH(C$5&"("&factor_selected&")",MData!$7:$7,0),FALSE) ->  | D10: =VLOOKUP(YEAR($B10)&"-"&MONTH($B10),MData!$A:$NJ,MATCH(D$5&"("&factor_selected&")",MData!$7:$7,0),FALSE) ->  | E10: =VLOOKUP(YEAR($B10)&"-"&MONTH($B10),MData!$A:$NJ,MATCH(E$5&"("&factor_selected&")",MData!$7:$7,0),FALSE) ->  | F10: =VLOOKUP(YEAR($B10)&"-"&MONTH($B10),MData!$A:$NJ,MATCH(F$5&"("&factor_selected&")",MData!$7:$7,0),FALSE) ->  | G10: =VLOOKUP(YEAR($B10)&"-"&MONTH($B10),MData!$A:$NJ,MATCH(G$5&"("&factor_selected&")",MData!$7:$7,0),FALSE) ->  | H10: =VLOOKUP(YEAR($B10)&"-"&MONTH($B10),MData!$A:$NJ,MATCH(H$5&"("&factor_selected&")",MData!$7:$7,0),FALSE) ->  | I10: =VLOOKUP(YEAR($B10)&"-"&MONTH($B10),MData!$A:$NJ,MATCH(I$5&"("&factor_selected&")",MData!$7:$7,0),FALSE) ->  | J10: =VLOOKUP(YEAR($B10)&"-"&MONTH($B10),MData!$A:$NJ,MATCH(J$5&"("&factor_selected&")",MData!$7:$7,0),FALSE) ->  | K10: =VLOOKUP(YEAR($B10)&"-"&MONTH($B10),MData!$A:$NJ,MATCH(K$5&"("&factor_selected&")",MData!$7:$7,0),FALSE) ->  | L10: =VLOOKUP(YEAR($B10)&"-"&MONTH($B10),MData!$A:$NJ,MATCH(L$5&"("&factor_selected&")",MData!$7:$7,0),FALSE) ->  | M10: =VLOOKUP(YEAR($B10)&"-"&MONTH($B10),MData!$A:$NJ,MATCH(M$5&"("&factor_selected&")",MData!$7:$7,0),FALSE) ->  | N10: =VLOOKUP(YEAR($B10)&"-"&MONTH($B10),MData!$A:$NJ,MATCH(N$5&"("&factor_selected&")",MData!$7:$7,0),FALSE) ->  | O10: =VLOOKUP(YEAR($B10)&"-"&MONTH($B10),MData!$A:$NJ,MATCH(O$5&"("&factor_selected&")",MData!$7:$7,0),FALSE) ->  | P10: =VLOOKUP(YEAR($B10)&"-"&MONTH($B10),MData!$A:$NJ,MATCH(P$5&"("&factor_selected&")",MData!$7:$7,0),FALSE) ->  | Q10: =VLOOKUP(YEAR($B10)&"-"&MONTH($B10),MData!$A:$NJ,MATCH(Q$5&"("&factor_selected&")",MData!$7:$7,0),FALSE) ->  | R10: =VLOOKUP(YEAR($B10)&"-"&MONTH($B10),MData!$A:$NJ,MATCH(R$5&"("&factor_selected&")",MData!$7:$7,0),FALSE) -> 
B11: 1980-05-31 | C11: =VLOOKUP(YEAR($B11)&"-"&MONTH($B11),MData!$A:$NJ,MATCH(C$5&"("&factor_selected&")",MData!$7:$7,0),FALSE) ->  | D11: =VLOOKUP(YEAR($B11)&"-"&MONTH($B11),MData!$A:$NJ,MATCH(D$5&"("&factor_selected&")",MData!$7:$7,0),FALSE) ->  | E11: =VLOOKUP(YEAR($B11)&"-"&MONTH($B11),MData!$A:$NJ,MATCH(E$5&"("&factor_selected&")",MData!$7:$7,0),FALSE) ->  | F11: =VLOOKUP(YEAR($B11)&"-"&MONTH($B11),MData!$A:$NJ,MATCH(F$5&"("&factor_selected&")",MData!$7:$7,0),FALSE) ->  | G11: =VLOOKUP(YEAR($B11)&"-"&MONTH($B11),MData!$A:$NJ,MATCH(G$5&"("&factor_selected&")",MData!$7:$7,0),FALSE) ->  | H11: =VLOOKUP(YEAR($B11)&"-"&MONTH($B11),MData!$A:$NJ,MATCH(H$5&"("&factor_selected&")",MData!$7:$7,0),FALSE) ->  | I11: =VLOOKUP(YEAR($B11)&"-"&MONTH($B11),MData!$A:$NJ,MATCH(I$5&"("&factor_selected&")",MData!$7:$7,0),FALSE) ->  | J11: =VLOOKUP(YEAR($B11)&"-"&MONTH($B11),MData!$A:$NJ,MATCH(J$5&"("&factor_selected&")",MData!$7:$7,0),FALSE) ->  | K11: =VLOOKUP(YEAR($B11)&"-"&MONTH($B11),MData!$A:$NJ,MATCH(K$5&"("&factor_selected&")",MData!$7:$7,0),FALSE) ->  | L11: =VLOOKUP(YEAR($B11)&"-"&MONTH($B11),MData!$A:$NJ,MATCH(L$5&"("&factor_selected&")",MData!$7:$7,0),FALSE) ->  | M11: =VLOOKUP(YEAR($B11)&"-"&MONTH($B11),MData!$A:$NJ,MATCH(M$5&"("&factor_selected&")",MData!$7:$7,0),FALSE) ->  | N11: =VLOOKUP(YEAR($B11)&"-"&MONTH($B11),MData!$A:$NJ,MATCH(N$5&"("&factor_selected&")",MData!$7:$7,0),FALSE) ->  | O11: =VLOOKUP(YEAR($B11)&"-"&MONTH($B11),MData!$A:$NJ,MATCH(O$5&"("&factor_selected&")",MData!$7:$7,0),FALSE) ->  | P11: =VLOOKUP(YEAR($B11)&"-"&MONTH($B11),MData!$A:$NJ,MATCH(P$5&"("&factor_selected&")",MData!$7:$7,0),FALSE) ->  | Q11: =VLOOKUP(YEAR($B11)&"-"&MONTH($B11),MData!$A:$NJ,MATCH(Q$5&"("&factor_selected&")",MData!$7:$7,0),FALSE) ->  | R11: =VLOOKUP(YEAR($B11)&"-"&MONTH($B11),MData!$A:$NJ,MATCH(R$5&"("&factor_selected&")",MData!$7:$7,0),FALSE) -> 
B12: 1980-06-30 | C12: =VLOOKUP(YEAR($B12)&"-"&MONTH($B12),MData!$A:$NJ,MATCH(C$5&"("&factor_selected&")",MData!$7:$7,0),FALSE) ->  | D12: =VLOOKUP(YEAR($B12)&"-"&MONTH($B12),MData!$A:$NJ,MATCH(D$5&"("&factor_selected&")",MData!$7:$7,0),FALSE) ->  | E12: =VLOOKUP(YEAR($B12)&"-"&MONTH($B12),MData!$A:$NJ,MATCH(E$5&"("&factor_selected&")",MData!$7:$7,0),FALSE) ->  | F12: =VLOOKUP(YEAR($B12)&"-"&MONTH($B12),MData!$A:$NJ,MATCH(F$5&"("&factor_selected&")",MData!$7:$7,0),FALSE) ->  | G12: =VLOOKUP(YEAR($B12)&"-"&MONTH($B12),MData!$A:$NJ,MATCH(G$5&"("&factor_selected&")",MData!$7:$7,0),FALSE) ->  | H12: =VLOOKUP(YEAR($B12)&"-"&MONTH($B12),MData!$A:$NJ,MATCH(H$5&"("&factor_selected&")",MData!$7:$7,0),FALSE) ->  | I12: =VLOOKUP(YEAR($B12)&"-"&MONTH($B12),MData!$A:$NJ,MATCH(I$5&"("&factor_selected&")",MData!$7:$7,0),FALSE) ->  | J12: =VLOOKUP(YEAR($B12)&"-"&MONTH($B12),MData!$A:$NJ,MATCH(J$5&"("&factor_selected&")",MData!$7:$7,0),FALSE) ->  | K12: =VLOOKUP(YEAR($B12)&"-"&MONTH($B12),MData!$A:$NJ,MATCH(K$5&"("&factor_selected&")",MData!$7:$7,0),FALSE) ->  | L12: =VLOOKUP(YEAR($B12)&"-"&MONTH($B12),MData!$A:$NJ,MATCH(L$5&"("&factor_selected&")",MData!$7:$7,0),FALSE) ->  | M12: =VLOOKUP(YEAR($B12)&"-"&MONTH($B12),MData!$A:$NJ,MATCH(M$5&"("&factor_selected&")",MData!$7:$7,0),FALSE) ->  | N12: =VLOOKUP(YEAR($B12)&"-"&MONTH($B12),MData!$A:$NJ,MATCH(N$5&"("&factor_selected&")",MData!$7:$7,0),FALSE) ->  | O12: =VLOOKUP(YEAR($B12)&"-"&MONTH($B12),MData!$A:$NJ,MATCH(O$5&"("&factor_selected&")",MData!$7:$7,0),FALSE) ->  | P12: =VLOOKUP(YEAR($B12)&"-"&MONTH($B12),MData!$A:$NJ,MATCH(P$5&"("&factor_selected&")",MData!$7:$7,0),FALSE) ->  | Q12: =VLOOKUP(YEAR($B12)&"-"&MONTH($B12),MData!$A:$NJ,MATCH(Q$5&"("&factor_selected&")",MData!$7:$7,0),FALSE) ->  | R12: =VLOOKUP(YEAR($B12)&"-"&MONTH($B12),MData!$A:$NJ,MATCH(R$5&"("&factor_selected&")",MData!$7:$7,0),FALSE) -> 
B13: 1980-07-31 | C13: =VLOOKUP(YEAR($B13)&"-"&MONTH($B13),MData!$A:$NJ,MATCH(C$5&"("&factor_selected&")",MData!$7:$7,0),FALSE) ->  | D13: =VLOOKUP(YEAR($B13)&"-"&MONTH($B13),MData!$A:$NJ,MATCH(D$5&"("&factor_selected&")",MData!$7:$7,0),FALSE) ->  | E13: =VLOOKUP(YEAR($B13)&"-"&MONTH($B13),MData!$A:$NJ,MATCH(E$5&"("&factor_selected&")",MData!$7:$7,0),FALSE) ->  | F13: =VLOOKUP(YEAR($B13)&"-"&MONTH($B13),MData!$A:$NJ,MATCH(F$5&"("&factor_selected&")",MData!$7:$7,0),FALSE) ->  | G13: =VLOOKUP(YEAR($B13)&"-"&MONTH($B13),MData!$A:$NJ,MATCH(G$5&"("&factor_selected&")",MData!$7:$7,0),FALSE) ->  | H13: =VLOOKUP(YEAR($B13)&"-"&MONTH($B13),MData!$A:$NJ,MATCH(H$5&"("&factor_selected&")",MData!$7:$7,0),FALSE) ->  | I13: =VLOOKUP(YEAR($B13)&"-"&MONTH($B13),MData!$A:$NJ,MATCH(I$5&"("&factor_selected&")",MData!$7:$7,0),FALSE) ->  | J13: =VLOOKUP(YEAR($B13)&"-"&MONTH($B13),MData!$A:$NJ,MATCH(J$5&"("&factor_selected&")",MData!$7:$7,0),FALSE) ->  | K13: =VLOOKUP(YEAR($B13)&"-"&MONTH($B13),MData!$A:$NJ,MATCH(K$5&"("&factor_selected&")",MData!$7:$7,0),FALSE) ->  | L13: =VLOOKUP(YEAR($B13)&"-"&MONTH($B13),MData!$A:$NJ,MATCH(L$5&"("&factor_selected&")",MData!$7:$7,0),FALSE) ->  | M13: =VLOOKUP(YEAR($B13)&"-"&MONTH($B13),MData!$A:$NJ,MATCH(M$5&"("&factor_selected&")",MData!$7:$7,0),FALSE) ->  | N13: =VLOOKUP(YEAR($B13)&"-"&MONTH($B13),MData!$A:$NJ,MATCH(N$5&"("&factor_selected&")",MData!$7:$7,0),FALSE) ->  | O13: =VLOOKUP(YEAR($B13)&"-"&MONTH($B13),MData!$A:$NJ,MATCH(O$5&"("&factor_selected&")",MData!$7:$7,0),FALSE) ->  | P13: =VLOOKUP(YEAR($B13)&"-"&MONTH($B13),MData!$A:$NJ,MATCH(P$5&"("&factor_selected&")",MData!$7:$7,0),FALSE) ->  | Q13: =VLOOKUP(YEAR($B13)&"-"&MONTH($B13),MData!$A:$NJ,MATCH(Q$5&"("&factor_selected&")",MData!$7:$7,0),FALSE) ->  | R13: =VLOOKUP(YEAR($B13)&"-"&MONTH($B13),MData!$A:$NJ,MATCH(R$5&"("&factor_selected&")",MData!$7:$7,0),FALSE) -> 
B14: 1980-08-31 | C14: =VLOOKUP(YEAR($B14)&"-"&MONTH($B14),MData!$A:$NJ,MATCH(C$5&"("&factor_selected&")",MData!$7:$7,0),FALSE) ->  | D14: =VLOOKUP(YEAR($B14)&"-"&MONTH($B14),MData!$A:$NJ,MATCH(D$5&"("&factor_selected&")",MData!$7:$7,0),FALSE) ->  | E14: =VLOOKUP(YEAR($B14)&"-"&MONTH($B14),MData!$A:$NJ,MATCH(E$5&"("&factor_selected&")",MData!$7:$7,0),FALSE) ->  | F14: =VLOOKUP(YEAR($B14)&"-"&MONTH($B14),MData!$A:$NJ,MATCH(F$5&"("&factor_selected&")",MData!$7:$7,0),FALSE) ->  | G14: =VLOOKUP(YEAR($B14)&"-"&MONTH($B14),MData!$A:$NJ,MATCH(G$5&"("&factor_selected&")",MData!$7:$7,0),FALSE) ->  | H14: =VLOOKUP(YEAR($B14)&"-"&MONTH($B14),MData!$A:$NJ,MATCH(H$5&"("&factor_selected&")",MData!$7:$7,0),FALSE) ->  | I14: =VLOOKUP(YEAR($B14)&"-"&MONTH($B14),MData!$A:$NJ,MATCH(I$5&"("&factor_selected&")",MData!$7:$7,0),FALSE) ->  | J14: =VLOOKUP(YEAR($B14)&"-"&MONTH($B14),MData!$A:$NJ,MATCH(J$5&"("&factor_selected&")",MData!$7:$7,0),FALSE) ->  | K14: =VLOOKUP(YEAR($B14)&"-"&MONTH($B14),MData!$A:$NJ,MATCH(K$5&"("&factor_selected&")",MData!$7:$7,0),FALSE) ->  | L14: =VLOOKUP(YEAR($B14)&"-"&MONTH($B14),MData!$A:$NJ,MATCH(L$5&"("&factor_selected&")",MData!$7:$7,0),FALSE) ->  | M14: =VLOOKUP(YEAR($B14)&"-"&MONTH($B14),MData!$A:$NJ,MATCH(M$5&"("&factor_selected&")",MData!$7:$7,0),FALSE) ->  | N14: =VLOOKUP(YEAR($B14)&"-"&MONTH($B14),MData!$A:$NJ,MATCH(N$5&"("&factor_selected&")",MData!$7:$7,0),FALSE) ->  | O14: =VLOOKUP(YEAR($B14)&"-"&MONTH($B14),MData!$A:$NJ,MATCH(O$5&"("&factor_selected&")",MData!$7:$7,0),FALSE) ->  | P14: =VLOOKUP(YEAR($B14)&"-"&MONTH($B14),MData!$A:$NJ,MATCH(P$5&"("&factor_selected&")",MData!$7:$7,0),FALSE) ->  | Q14: =VLOOKUP(YEAR($B14)&"-"&MONTH($B14),MData!$A:$NJ,MATCH(Q$5&"("&factor_selected&")",MData!$7:$7,0),FALSE) ->  | R14: =VLOOKUP(YEAR($B14)&"-"&MONTH($B14),MData!$A:$NJ,MATCH(R$5&"("&factor_selected&")",MData!$7:$7,0),FALSE) -> 
B15: 1980-09-30 | C15: =VLOOKUP(YEAR($B15)&"-"&MONTH($B15),MData!$A:$NJ,MATCH(C$5&"("&factor_selected&")",MData!$7:$7,0),FALSE) ->  | D15: =VLOOKUP(YEAR($B15)&"-"&MONTH($B15),MData!$A:$NJ,MATCH(D$5&"("&factor_selected&")",MData!$7:$7,0),FALSE) ->  | E15: =VLOOKUP(YEAR($B15)&"-"&MONTH($B15),MData!$A:$NJ,MATCH(E$5&"("&factor_selected&")",MData!$7:$7,0),FALSE) ->  | F15: =VLOOKUP(YEAR($B15)&"-"&MONTH($B15),MData!$A:$NJ,MATCH(F$5&"("&factor_selected&")",MData!$7:$7,0),FALSE) ->  | G15: =VLOOKUP(YEAR($B15)&"-"&MONTH($B15),MData!$A:$NJ,MATCH(G$5&"("&factor_selected&")",MData!$7:$7,0),FALSE) ->  | H15: =VLOOKUP(YEAR($B15)&"-"&MONTH($B15),MData!$A:$NJ,MATCH(H$5&"("&factor_selected&")",MData!$7:$7,0),FALSE) ->  | I15: =VLOOKUP(YEAR($B15)&"-"&MONTH($B15),MData!$A:$NJ,MATCH(I$5&"("&factor_selected&")",MData!$7:$7,0),FALSE) ->  | J15: =VLOOKUP(YEAR($B15)&"-"&MONTH($B15),MData!$A:$NJ,MATCH(J$5&"("&factor_selected&")",MData!$7:$7,0),FALSE) ->  | K15: =VLOOKUP(YEAR($B15)&"-"&MONTH($B15),MData!$A:$NJ,MATCH(K$5&"("&factor_selected&")",MData!$7:$7,0),FALSE) ->  | L15: =VLOOKUP(YEAR($B15)&"-"&MONTH($B15),MData!$A:$NJ,MATCH(L$5&"("&factor_selected&")",MData!$7:$7,0),FALSE) ->  | M15: =VLOOKUP(YEAR($B15)&"-"&MONTH($B15),MData!$A:$NJ,MATCH(M$5&"("&factor_selected&")",MData!$7:$7,0),FALSE) ->  | N15: =VLOOKUP(YEAR($B15)&"-"&MONTH($B15),MData!$A:$NJ,MATCH(N$5&"("&factor_selected&")",MData!$7:$7,0),FALSE) ->  | O15: =VLOOKUP(YEAR($B15)&"-"&MONTH($B15),MData!$A:$NJ,MATCH(O$5&"("&factor_selected&")",MData!$7:$7,0),FALSE) ->  | P15: =VLOOKUP(YEAR($B15)&"-"&MONTH($B15),MData!$A:$NJ,MATCH(P$5&"("&factor_selected&")",MData!$7:$7,0),FALSE) ->  | Q15: =VLOOKUP(YEAR($B15)&"-"&MONTH($B15),MData!$A:$NJ,MATCH(Q$5&"("&factor_selected&")",MData!$7:$7,0),FALSE) ->  | R15: =VLOOKUP(YEAR($B15)&"-"&MONTH($B15),MData!$A:$NJ,MATCH(R$5&"("&factor_selected&")",MData!$7:$7,0),FALSE) -> 
B16: 1980-10-31 | C16: =VLOOKUP(YEAR($B16)&"-"&MONTH($B16),MData!$A:$NJ,MATCH(C$5&"("&factor_selected&")",MData!$7:$7,0),FALSE) ->  | D16: =VLOOKUP(YEAR($B16)&"-"&MONTH($B16),MData!$A:$NJ,MATCH(D$5&"("&factor_selected&")",MData!$7:$7,0),FALSE) ->  | E16: =VLOOKUP(YEAR($B16)&"-"&MONTH($B16),MData!$A:$NJ,MATCH(E$5&"("&factor_selected&")",MData!$7:$7,0),FALSE) ->  | F16: =VLOOKUP(YEAR($B16)&"-"&MONTH($B16),MData!$A:$NJ,MATCH(F$5&"("&factor_selected&")",MData!$7:$7,0),FALSE) ->  | G16: =VLOOKUP(YEAR($B16)&"-"&MONTH($B16),MData!$A:$NJ,MATCH(G$5&"("&factor_selected&")",MData!$7:$7,0),FALSE) ->  | H16: =VLOOKUP(YEAR($B16)&"-"&MONTH($B16),MData!$A:$NJ,MATCH(H$5&"("&factor_selected&")",MData!$7:$7,0),FALSE) ->  | I16: =VLOOKUP(YEAR($B16)&"-"&MONTH($B16),MData!$A:$NJ,MATCH(I$5&"("&factor_selected&")",MData!$7:$7,0),FALSE) ->  | J16: =VLOOKUP(YEAR($B16)&"-"&MONTH($B16),MData!$A:$NJ,MATCH(J$5&"("&factor_selected&")",MData!$7:$7,0),FALSE) ->  | K16: =VLOOKUP(YEAR($B16)&"-"&MONTH($B16),MData!$A:$NJ,MATCH(K$5&"("&factor_selected&")",MData!$7:$7,0),FALSE) ->  | L16: =VLOOKUP(YEAR($B16)&"-"&MONTH($B16),MData!$A:$NJ,MATCH(L$5&"("&factor_selected&")",MData!$7:$7,0),FALSE) ->  | M16: =VLOOKUP(YEAR($B16)&"-"&MONTH($B16),MData!$A:$NJ,MATCH(M$5&"("&factor_selected&")",MData!$7:$7,0),FALSE) ->  | N16: =VLOOKUP(YEAR($B16)&"-"&MONTH($B16),MData!$A:$NJ,MATCH(N$5&"("&factor_selected&")",MData!$7:$7,0),FALSE) ->  | O16: =VLOOKUP(YEAR($B16)&"-"&MONTH($B16),MData!$A:$NJ,MATCH(O$5&"("&factor_selected&")",MData!$7:$7,0),FALSE) ->  | P16: =VLOOKUP(YEAR($B16)&"-"&MONTH($B16),MData!$A:$NJ,MATCH(P$5&"("&factor_selected&")",MData!$7:$7,0),FALSE) ->  | Q16: =VLOOKUP(YEAR($B16)&"-"&MONTH($B16),MData!$A:$NJ,MATCH(Q$5&"("&factor_selected&")",MData!$7:$7,0),FALSE) ->  | R16: =VLOOKUP(YEAR($B16)&"-"&MONTH($B16),MData!$A:$NJ,MATCH(R$5&"("&factor_selected&")",MData!$7:$7,0),FALSE) -> 
B17: 1980-11-30 | C17: =VLOOKUP(YEAR($B17)&"-"&MONTH($B17),MData!$A:$NJ,MATCH(C$5&"("&factor_selected&")",MData!$7:$7,0),FALSE) ->  | D17: =VLOOKUP(YEAR($B17)&"-"&MONTH($B17),MData!$A:$NJ,MATCH(D$5&"("&factor_selected&")",MData!$7:$7,0),FALSE) ->  | E17: =VLOOKUP(YEAR($B17)&"-"&MONTH($B17),MData!$A:$NJ,MATCH(E$5&"("&factor_selected&")",MData!$7:$7,0),FALSE) ->  | F17: =VLOOKUP(YEAR($B17)&"-"&MONTH($B17),MData!$A:$NJ,MATCH(F$5&"("&factor_selected&")",MData!$7:$7,0),FALSE) ->  | G17: =VLOOKUP(YEAR($B17)&"-"&MONTH($B17),MData!$A:$NJ,MATCH(G$5&"("&factor_selected&")",MData!$7:$7,0),FALSE) ->  | H17: =VLOOKUP(YEAR($B17)&"-"&MONTH($B17),MData!$A:$NJ,MATCH(H$5&"("&factor_selected&")",MData!$7:$7,0),FALSE) ->  | I17: =VLOOKUP(YEAR($B17)&"-"&MONTH($B17),MData!$A:$NJ,MATCH(I$5&"("&factor_selected&")",MData!$7:$7,0),FALSE) ->  | J17: =VLOOKUP(YEAR($B17)&"-"&MONTH($B17),MData!$A:$NJ,MATCH(J$5&"("&factor_selected&")",MData!$7:$7,0),FALSE) ->  | K17: =VLOOKUP(YEAR($B17)&"-"&MONTH($B17),MData!$A:$NJ,MATCH(K$5&"("&factor_selected&")",MData!$7:$7,0),FALSE) ->  | L17: =VLOOKUP(YEAR($B17)&"-"&MONTH($B17),MData!$A:$NJ,MATCH(L$5&"("&factor_selected&")",MData!$7:$7,0),FALSE) ->  | M17: =VLOOKUP(YEAR($B17)&"-"&MONTH($B17),MData!$A:$NJ,MATCH(M$5&"("&factor_selected&")",MData!$7:$7,0),FALSE) ->  | N17: =VLOOKUP(YEAR($B17)&"-"&MONTH($B17),MData!$A:$NJ,MATCH(N$5&"("&factor_selected&")",MData!$7:$7,0),FALSE) ->  | O17: =VLOOKUP(YEAR($B17)&"-"&MONTH($B17),MData!$A:$NJ,MATCH(O$5&"("&factor_selected&")",MData!$7:$7,0),FALSE) ->  | P17: =VLOOKUP(YEAR($B17)&"-"&MONTH($B17),MData!$A:$NJ,MATCH(P$5&"("&factor_selected&")",MData!$7:$7,0),FALSE) ->  | Q17: =VLOOKUP(YEAR($B17)&"-"&MONTH($B17),MData!$A:$NJ,MATCH(Q$5&"("&factor_selected&")",MData!$7:$7,0),FALSE) ->  | R17: =VLOOKUP(YEAR($B17)&"-"&MONTH($B17),MData!$A:$NJ,MATCH(R$5&"("&factor_selected&")",MData!$7:$7,0),FALSE) -> 
B18: 1980-12-31 | C18: =VLOOKUP(YEAR($B18)&"-"&MONTH($B18),MData!$A:$NJ,MATCH(C$5&"("&factor_selected&")",MData!$7:$7,0),FALSE) ->  | D18: =VLOOKUP(YEAR($B18)&"-"&MONTH($B18),MData!$A:$NJ,MATCH(D$5&"("&factor_selected&")",MData!$7:$7,0),FALSE) ->  | E18: =VLOOKUP(YEAR($B18)&"-"&MONTH($B18),MData!$A:$NJ,MATCH(E$5&"("&factor_selected&")",MData!$7:$7,0),FALSE) ->  | F18: =VLOOKUP(YEAR($B18)&"-"&MONTH($B18),MData!$A:$NJ,MATCH(F$5&"("&factor_selected&")",MData!$7:$7,0),FALSE) ->  | G18: =VLOOKUP(YEAR($B18)&"-"&MONTH($B18),MData!$A:$NJ,MATCH(G$5&"("&factor_selected&")",MData!$7:$7,0),FALSE) ->  | H18: =VLOOKUP(YEAR($B18)&"-"&MONTH($B18),MData!$A:$NJ,MATCH(H$5&"("&factor_selected&")",MData!$7:$7,0),FALSE) ->  | I18: =VLOOKUP(YEAR($B18)&"-"&MONTH($B18),MData!$A:$NJ,MATCH(I$5&"("&factor_selected&")",MData!$7:$7,0),FALSE) ->  | J18: =VLOOKUP(YEAR($B18)&"-"&MONTH($B18),MData!$A:$NJ,MATCH(J$5&"("&factor_selected&")",MData!$7:$7,0),FALSE) ->  | K18: =VLOOKUP(YEAR($B18)&"-"&MONTH($B18),MData!$A:$NJ,MATCH(K$5&"("&factor_selected&")",MData!$7:$7,0),FALSE) ->  | L18: =VLOOKUP(YEAR($B18)&"-"&MONTH($B18),MData!$A:$NJ,MATCH(L$5&"("&factor_selected&")",MData!$7:$7,0),FALSE) ->  | M18: =VLOOKUP(YEAR($B18)&"-"&MONTH($B18),MData!$A:$NJ,MATCH(M$5&"("&factor_selected&")",MData!$7:$7,0),FALSE) ->  | N18: =VLOOKUP(YEAR($B18)&"-"&MONTH($B18),MData!$A:$NJ,MATCH(N$5&"("&factor_selected&")",MData!$7:$7,0),FALSE) ->  | O18: =VLOOKUP(YEAR($B18)&"-"&MONTH($B18),MData!$A:$NJ,MATCH(O$5&"("&factor_selected&")",MData!$7:$7,0),FALSE) ->  | P18: =VLOOKUP(YEAR($B18)&"-"&MONTH($B18),MData!$A:$NJ,MATCH(P$5&"("&factor_selected&")",MData!$7:$7,0),FALSE) ->  | Q18: =VLOOKUP(YEAR($B18)&"-"&MONTH($B18),MData!$A:$NJ,MATCH(Q$5&"("&factor_selected&")",MData!$7:$7,0),FALSE) ->  | R18: =VLOOKUP(YEAR($B18)&"-"&MONTH($B18),MData!$A:$NJ,MATCH(R$5&"("&factor_selected&")",MData!$7:$7,0),FALSE) -> 
B19: 1981-01-31 | C19: =VLOOKUP(YEAR($B19)&"-"&MONTH($B19),MData!$A:$NJ,MATCH(C$5&"("&factor_selected&")",MData!$7:$7,0),FALSE) ->  | D19: =VLOOKUP(YEAR($B19)&"-"&MONTH($B19),MData!$A:$NJ,MATCH(D$5&"("&factor_selected&")",MData!$7:$7,0),FALSE) ->  | E19: =VLOOKUP(YEAR($B19)&"-"&MONTH($B19),MData!$A:$NJ,MATCH(E$5&"("&factor_selected&")",MData!$7:$7,0),FALSE) ->  | F19: =VLOOKUP(YEAR($B19)&"-"&MONTH($B19),MData!$A:$NJ,MATCH(F$5&"("&factor_selected&")",MData!$7:$7,0),FALSE) ->  | G19: =VLOOKUP(YEAR($B19)&"-"&MONTH($B19),MData!$A:$NJ,MATCH(G$5&"("&factor_selected&")",MData!$7:$7,0),FALSE) ->  | H19: =VLOOKUP(YEAR($B19)&"-"&MONTH($B19),MData!$A:$NJ,MATCH(H$5&"("&factor_selected&")",MData!$7:$7,0),FALSE) ->  | I19: =VLOOKUP(YEAR($B19)&"-"&MONTH($B19),MData!$A:$NJ,MATCH(I$5&"("&factor_selected&")",MData!$7:$7,0),FALSE) ->  | J19: =VLOOKUP(YEAR($B19)&"-"&MONTH($B19),MData!$A:$NJ,MATCH(J$5&"("&factor_selected&")",MData!$7:$7,0),FALSE) ->  | K19: =VLOOKUP(YEAR($B19)&"-"&MONTH($B19),MData!$A:$NJ,MATCH(K$5&"("&factor_selected&")",MData!$7:$7,0),FALSE) ->  | L19: =VLOOKUP(YEAR($B19)&"-"&MONTH($B19),MData!$A:$NJ,MATCH(L$5&"("&factor_selected&")",MData!$7:$7,0),FALSE) ->  | M19: =VLOOKUP(YEAR($B19)&"-"&MONTH($B19),MData!$A:$NJ,MATCH(M$5&"("&factor_selected&")",MData!$7:$7,0),FALSE) ->  | N19: =VLOOKUP(YEAR($B19)&"-"&MONTH($B19),MData!$A:$NJ,MATCH(N$5&"("&factor_selected&")",MData!$7:$7,0),FALSE) ->  | O19: =VLOOKUP(YEAR($B19)&"-"&MONTH($B19),MData!$A:$NJ,MATCH(O$5&"("&factor_selected&")",MData!$7:$7,0),FALSE) ->  | P19: =VLOOKUP(YEAR($B19)&"-"&MONTH($B19),MData!$A:$NJ,MATCH(P$5&"("&factor_selected&")",MData!$7:$7,0),FALSE) ->  | Q19: =VLOOKUP(YEAR($B19)&"-"&MONTH($B19),MData!$A:$NJ,MATCH(Q$5&"("&factor_selected&")",MData!$7:$7,0),FALSE) ->  | R19: =VLOOKUP(YEAR($B19)&"-"&MONTH($B19),MData!$A:$NJ,MATCH(R$5&"("&factor_selected&")",MData!$7:$7,0),FALSE) -> 
B20: 1981-02-28 | C20: =VLOOKUP(YEAR($B20)&"-"&MONTH($B20),MData!$A:$NJ,MATCH(C$5&"("&factor_selected&")",MData!$7:$7,0),FALSE) ->  | D20: =VLOOKUP(YEAR($B20)&"-"&MONTH($B20),MData!$A:$NJ,MATCH(D$5&"("&factor_selected&")",MData!$7:$7,0),FALSE) ->  | E20: =VLOOKUP(YEAR($B20)&"-"&MONTH($B20),MData!$A:$NJ,MATCH(E$5&"("&factor_selected&")",MData!$7:$7,0),FALSE) ->  | F20: =VLOOKUP(YEAR($B20)&"-"&MONTH($B20),MData!$A:$NJ,MATCH(F$5&"("&factor_selected&")",MData!$7:$7,0),FALSE) ->  | G20: =VLOOKUP(YEAR($B20)&"-"&MONTH($B20),MData!$A:$NJ,MATCH(G$5&"("&factor_selected&")",MData!$7:$7,0),FALSE) ->  | H20: =VLOOKUP(YEAR($B20)&"-"&MONTH($B20),MData!$A:$NJ,MATCH(H$5&"("&factor_selected&")",MData!$7:$7,0),FALSE) ->  | I20: =VLOOKUP(YEAR($B20)&"-"&MONTH($B20),MData!$A:$NJ,MATCH(I$5&"("&factor_selected&")",MData!$7:$7,0),FALSE) ->  | J20: =VLOOKUP(YEAR($B20)&"-"&MONTH($B20),MData!$A:$NJ,MATCH(J$5&"("&factor_selected&")",MData!$7:$7,0),FALSE) ->  | K20: =VLOOKUP(YEAR($B20)&"-"&MONTH($B20),MData!$A:$NJ,MATCH(K$5&"("&factor_selected&")",MData!$7:$7,0),FALSE) ->  | L20: =VLOOKUP(YEAR($B20)&"-"&MONTH($B20),MData!$A:$NJ,MATCH(L$5&"("&factor_selected&")",MData!$7:$7,0),FALSE) ->  | M20: =VLOOKUP(YEAR($B20)&"-"&MONTH($B20),MData!$A:$NJ,MATCH(M$5&"("&factor_selected&")",MData!$7:$7,0),FALSE) ->  | N20: =VLOOKUP(YEAR($B20)&"-"&MONTH($B20),MData!$A:$NJ,MATCH(N$5&"("&factor_selected&")",MData!$7:$7,0),FALSE) ->  | O20: =VLOOKUP(YEAR($B20)&"-"&MONTH($B20),MData!$A:$NJ,MATCH(O$5&"("&factor_selected&")",MData!$7:$7,0),FALSE) ->  | P20: =VLOOKUP(YEAR($B20)&"-"&MONTH($B20),MData!$A:$NJ,MATCH(P$5&"("&factor_selected&")",MData!$7:$7,0),FALSE) ->  | Q20: =VLOOKUP(YEAR($B20)&"-"&MONTH($B20),MData!$A:$NJ,MATCH(Q$5&"("&factor_selected&")",MData!$7:$7,0),FALSE) ->  | R20: =VLOOKUP(YEAR($B20)&"-"&MONTH($B20),MData!$A:$NJ,MATCH(R$5&"("&factor_selected&")",MData!$7:$7,0),FALSE) -> 
B21: 1981-03-31 | C21: =VLOOKUP(YEAR($B21)&"-"&MONTH($B21),MData!$A:$NJ,MATCH(C$5&"("&factor_selected&")",MData!$7:$7,0),FALSE) ->  | D21: =VLOOKUP(YEAR($B21)&"-"&MONTH($B21),MData!$A:$NJ,MATCH(D$5&"("&factor_selected&")",MData!$7:$7,0),FALSE) ->  | E21: =VLOOKUP(YEAR($B21)&"-"&MONTH($B21),MData!$A:$NJ,MATCH(E$5&"("&factor_selected&")",MData!$7:$7,0),FALSE) ->  | F21: =VLOOKUP(YEAR($B21)&"-"&MONTH($B21),MData!$A:$NJ,MATCH(F$5&"("&factor_selected&")",MData!$7:$7,0),FALSE) ->  | G21: =VLOOKUP(YEAR($B21)&"-"&MONTH($B21),MData!$A:$NJ,MATCH(G$5&"("&factor_selected&")",MData!$7:$7,0),FALSE) ->  | H21: =VLOOKUP(YEAR($B21)&"-"&MONTH($B21),MData!$A:$NJ,MATCH(H$5&"("&factor_selected&")",MData!$7:$7,0),FALSE) ->  | I21: =VLOOKUP(YEAR($B21)&"-"&MONTH($B21),MData!$A:$NJ,MATCH(I$5&"("&factor_selected&")",MData!$7:$7,0),FALSE) ->  | J21: =VLOOKUP(YEAR($B21)&"-"&MONTH($B21),MData!$A:$NJ,MATCH(J$5&"("&factor_selected&")",MData!$7:$7,0),FALSE) ->  | K21: =VLOOKUP(YEAR($B21)&"-"&MONTH($B21),MData!$A:$NJ,MATCH(K$5&"("&factor_selected&")",MData!$7:$7,0),FALSE) ->  | L21: =VLOOKUP(YEAR($B21)&"-"&MONTH($B21),MData!$A:$NJ,MATCH(L$5&"("&factor_selected&")",MData!$7:$7,0),FALSE) ->  | M21: =VLOOKUP(YEAR($B21)&"-"&MONTH($B21),MData!$A:$NJ,MATCH(M$5&"("&factor_selected&")",MData!$7:$7,0),FALSE) ->  | N21: =VLOOKUP(YEAR($B21)&"-"&MONTH($B21),MData!$A:$NJ,MATCH(N$5&"("&factor_selected&")",MData!$7:$7,0),FALSE) ->  | O21: =VLOOKUP(YEAR($B21)&"-"&MONTH($B21),MData!$A:$NJ,MATCH(O$5&"("&factor_selected&")",MData!$7:$7,0),FALSE) ->  | P21: =VLOOKUP(YEAR($B21)&"-"&MONTH($B21),MData!$A:$NJ,MATCH(P$5&"("&factor_selected&")",MData!$7:$7,0),FALSE) ->  | Q21: =VLOOKUP(YEAR($B21)&"-"&MONTH($B21),MData!$A:$NJ,MATCH(Q$5&"("&factor_selected&")",MData!$7:$7,0),FALSE) ->  | R21: =VLOOKUP(YEAR($B21)&"-"&MONTH($B21),MData!$A:$NJ,MATCH(R$5&"("&factor_selected&")",MData!$7:$7,0),FALSE) -> 
B22: 1981-04-30 | C22: =VLOOKUP(YEAR($B22)&"-"&MONTH($B22),MData!$A:$NJ,MATCH(C$5&"("&factor_selected&")",MData!$7:$7,0),FALSE) ->  | D22: =VLOOKUP(YEAR($B22)&"-"&MONTH($B22),MData!$A:$NJ,MATCH(D$5&"("&factor_selected&")",MData!$7:$7,0),FALSE) ->  | E22: =VLOOKUP(YEAR($B22)&"-"&MONTH($B22),MData!$A:$NJ,MATCH(E$5&"("&factor_selected&")",MData!$7:$7,0),FALSE) ->  | F22: =VLOOKUP(YEAR($B22)&"-"&MONTH($B22),MData!$A:$NJ,MATCH(F$5&"("&factor_selected&")",MData!$7:$7,0),FALSE) ->  | G22: =VLOOKUP(YEAR($B22)&"-"&MONTH($B22),MData!$A:$NJ,MATCH(G$5&"("&factor_selected&")",MData!$7:$7,0),FALSE) ->  | H22: =VLOOKUP(YEAR($B22)&"-"&MONTH($B22),MData!$A:$NJ,MATCH(H$5&"("&factor_selected&")",MData!$7:$7,0),FALSE) ->  | I22: =VLOOKUP(YEAR($B22)&"-"&MONTH($B22),MData!$A:$NJ,MATCH(I$5&"("&factor_selected&")",MData!$7:$7,0),FALSE) ->  | J22: =VLOOKUP(YEAR($B22)&"-"&MONTH($B22),MData!$A:$NJ,MATCH(J$5&"("&factor_selected&")",MData!$7:$7,0),FALSE) ->  | K22: =VLOOKUP(YEAR($B22)&"-"&MONTH($B22),MData!$A:$NJ,MATCH(K$5&"("&factor_selected&")",MData!$7:$7,0),FALSE) ->  | L22: =VLOOKUP(YEAR($B22)&"-"&MONTH($B22),MData!$A:$NJ,MATCH(L$5&"("&factor_selected&")",MData!$7:$7,0),FALSE) ->  | M22: =VLOOKUP(YEAR($B22)&"-"&MONTH($B22),MData!$A:$NJ,MATCH(M$5&"("&factor_selected&")",MData!$7:$7,0),FALSE) ->  | N22: =VLOOKUP(YEAR($B22)&"-"&MONTH($B22),MData!$A:$NJ,MATCH(N$5&"("&factor_selected&")",MData!$7:$7,0),FALSE) ->  | O22: =VLOOKUP(YEAR($B22)&"-"&MONTH($B22),MData!$A:$NJ,MATCH(O$5&"("&factor_selected&")",MData!$7:$7,0),FALSE) ->  | P22: =VLOOKUP(YEAR($B22)&"-"&MONTH($B22),MData!$A:$NJ,MATCH(P$5&"("&factor_selected&")",MData!$7:$7,0),FALSE) ->  | Q22: =VLOOKUP(YEAR($B22)&"-"&MONTH($B22),MData!$A:$NJ,MATCH(Q$5&"("&factor_selected&")",MData!$7:$7,0),FALSE) ->  | R22: =VLOOKUP(YEAR($B22)&"-"&MONTH($B22),MData!$A:$NJ,MATCH(R$5&"("&factor_selected&")",MData!$7:$7,0),FALSE) -> 
B23: 1981-05-31 | C23: =VLOOKUP(YEAR($B23)&"-"&MONTH($B23),MData!$A:$NJ,MATCH(C$5&"("&factor_selected&")",MData!$7:$7,0),FALSE) ->  | D23: =VLOOKUP(YEAR($B23)&"-"&MONTH($B23),MData!$A:$NJ,MATCH(D$5&"("&factor_selected&")",MData!$7:$7,0),FALSE) ->  | E23: =VLOOKUP(YEAR($B23)&"-"&MONTH($B23),MData!$A:$NJ,MATCH(E$5&"("&factor_selected&")",MData!$7:$7,0),FALSE) ->  | F23: =VLOOKUP(YEAR($B23)&"-"&MONTH($B23),MData!$A:$NJ,MATCH(F$5&"("&factor_selected&")",MData!$7:$7,0),FALSE) ->  | G23: =VLOOKUP(YEAR($B23)&"-"&MONTH($B23),MData!$A:$NJ,MATCH(G$5&"("&factor_selected&")",MData!$7:$7,0),FALSE) ->  | H23: =VLOOKUP(YEAR($B23)&"-"&MONTH($B23),MData!$A:$NJ,MATCH(H$5&"("&factor_selected&")",MData!$7:$7,0),FALSE) ->  | I23: =VLOOKUP(YEAR($B23)&"-"&MONTH($B23),MData!$A:$NJ,MATCH(I$5&"("&factor_selected&")",MData!$7:$7,0),FALSE) ->  | J23: =VLOOKUP(YEAR($B23)&"-"&MONTH($B23),MData!$A:$NJ,MATCH(J$5&"("&factor_selected&")",MData!$7:$7,0),FALSE) ->  | K23: =VLOOKUP(YEAR($B23)&"-"&MONTH($B23),MData!$A:$NJ,MATCH(K$5&"("&factor_selected&")",MData!$7:$7,0),FALSE) ->  | L23: =VLOOKUP(YEAR($B23)&"-"&MONTH($B23),MData!$A:$NJ,MATCH(L$5&"("&factor_selected&")",MData!$7:$7,0),FALSE) ->  | M23: =VLOOKUP(YEAR($B23)&"-"&MONTH($B23),MData!$A:$NJ,MATCH(M$5&"("&factor_selected&")",MData!$7:$7,0),FALSE) ->  | N23: =VLOOKUP(YEAR($B23)&"-"&MONTH($B23),MData!$A:$NJ,MATCH(N$5&"("&factor_selected&")",MData!$7:$7,0),FALSE) ->  | O23: =VLOOKUP(YEAR($B23)&"-"&MONTH($B23),MData!$A:$NJ,MATCH(O$5&"("&factor_selected&")",MData!$7:$7,0),FALSE) ->  | P23: =VLOOKUP(YEAR($B23)&"-"&MONTH($B23),MData!$A:$NJ,MATCH(P$5&"("&factor_selected&")",MData!$7:$7,0),FALSE) ->  | Q23: =VLOOKUP(YEAR($B23)&"-"&MONTH($B23),MData!$A:$NJ,MATCH(Q$5&"("&factor_selected&")",MData!$7:$7,0),FALSE) ->  | R23: =VLOOKUP(YEAR($B23)&"-"&MONTH($B23),MData!$A:$NJ,MATCH(R$5&"("&factor_selected&")",MData!$7:$7,0),FALSE) -> 
B24: 1981-06-30 | C24: =VLOOKUP(YEAR($B24)&"-"&MONTH($B24),MData!$A:$NJ,MATCH(C$5&"("&factor_selected&")",MData!$7:$7,0),FALSE) ->  | D24: =VLOOKUP(YEAR($B24)&"-"&MONTH($B24),MData!$A:$NJ,MATCH(D$5&"("&factor_selected&")",MData!$7:$7,0),FALSE) ->  | E24: =VLOOKUP(YEAR($B24)&"-"&MONTH($B24),MData!$A:$NJ,MATCH(E$5&"("&factor_selected&")",MData!$7:$7,0),FALSE) ->  | F24: =VLOOKUP(YEAR($B24)&"-"&MONTH($B24),MData!$A:$NJ,MATCH(F$5&"("&factor_selected&")",MData!$7:$7,0),FALSE) ->  | G24: =VLOOKUP(YEAR($B24)&"-"&MONTH($B24),MData!$A:$NJ,MATCH(G$5&"("&factor_selected&")",MData!$7:$7,0),FALSE) ->  | H24: =VLOOKUP(YEAR($B24)&"-"&MONTH($B24),MData!$A:$NJ,MATCH(H$5&"("&factor_selected&")",MData!$7:$7,0),FALSE) ->  | I24: =VLOOKUP(YEAR($B24)&"-"&MONTH($B24),MData!$A:$NJ,MATCH(I$5&"("&factor_selected&")",MData!$7:$7,0),FALSE) ->  | J24: =VLOOKUP(YEAR($B24)&"-"&MONTH($B24),MData!$A:$NJ,MATCH(J$5&"("&factor_selected&")",MData!$7:$7,0),FALSE) ->  | K24: =VLOOKUP(YEAR($B24)&"-"&MONTH($B24),MData!$A:$NJ,MATCH(K$5&"("&factor_selected&")",MData!$7:$7,0),FALSE) ->  | L24: =VLOOKUP(YEAR($B24)&"-"&MONTH($B24),MData!$A:$NJ,MATCH(L$5&"("&factor_selected&")",MData!$7:$7,0),FALSE) ->  | M24: =VLOOKUP(YEAR($B24)&"-"&MONTH($B24),MData!$A:$NJ,MATCH(M$5&"("&factor_selected&")",MData!$7:$7,0),FALSE) ->  | N24: =VLOOKUP(YEAR($B24)&"-"&MONTH($B24),MData!$A:$NJ,MATCH(N$5&"("&factor_selected&")",MData!$7:$7,0),FALSE) ->  | O24: =VLOOKUP(YEAR($B24)&"-"&MONTH($B24),MData!$A:$NJ,MATCH(O$5&"("&factor_selected&")",MData!$7:$7,0),FALSE) ->  | P24: =VLOOKUP(YEAR($B24)&"-"&MONTH($B24),MData!$A:$NJ,MATCH(P$5&"("&factor_selected&")",MData!$7:$7,0),FALSE) ->  | Q24: =VLOOKUP(YEAR($B24)&"-"&MONTH($B24),MData!$A:$NJ,MATCH(Q$5&"("&factor_selected&")",MData!$7:$7,0),FALSE) ->  | R24: =VLOOKUP(YEAR($B24)&"-"&MONTH($B24),MData!$A:$NJ,MATCH(R$5&"("&factor_selected&")",MData!$7:$7,0),FALSE) -> 
B25: 1981-07-31 | C25: =VLOOKUP(YEAR($B25)&"-"&MONTH($B25),MData!$A:$NJ,MATCH(C$5&"("&factor_selected&")",MData!$7:$7,0),FALSE) ->  | D25: =VLOOKUP(YEAR($B25)&"-"&MONTH($B25),MData!$A:$NJ,MATCH(D$5&"("&factor_selected&")",MData!$7:$7,0),FALSE) ->  | E25: =VLOOKUP(YEAR($B25)&"-"&MONTH($B25),MData!$A:$NJ,MATCH(E$5&"("&factor_selected&")",MData!$7:$7,0),FALSE) ->  | F25: =VLOOKUP(YEAR($B25)&"-"&MONTH($B25),MData!$A:$NJ,MATCH(F$5&"("&factor_selected&")",MData!$7:$7,0),FALSE) ->  | G25: =VLOOKUP(YEAR($B25)&"-"&MONTH($B25),MData!$A:$NJ,MATCH(G$5&"("&factor_selected&")",MData!$7:$7,0),FALSE) ->  | H25: =VLOOKUP(YEAR($B25)&"-"&MONTH($B25),MData!$A:$NJ,MATCH(H$5&"("&factor_selected&")",MData!$7:$7,0),FALSE) ->  | I25: =VLOOKUP(YEAR($B25)&"-"&MONTH($B25),MData!$A:$NJ,MATCH(I$5&"("&factor_selected&")",MData!$7:$7,0),FALSE) ->  | J25: =VLOOKUP(YEAR($B25)&"-"&MONTH($B25),MData!$A:$NJ,MATCH(J$5&"("&factor_selected&")",MData!$7:$7,0),FALSE) ->  | K25: =VLOOKUP(YEAR($B25)&"-"&MONTH($B25),MData!$A:$NJ,MATCH(K$5&"("&factor_selected&")",MData!$7:$7,0),FALSE) ->  | L25: =VLOOKUP(YEAR($B25)&"-"&MONTH($B25),MData!$A:$NJ,MATCH(L$5&"("&factor_selected&")",MData!$7:$7,0),FALSE) ->  | M25: =VLOOKUP(YEAR($B25)&"-"&MONTH($B25),MData!$A:$NJ,MATCH(M$5&"("&factor_selected&")",MData!$7:$7,0),FALSE) ->  | N25: =VLOOKUP(YEAR($B25)&"-"&MONTH($B25),MData!$A:$NJ,MATCH(N$5&"("&factor_selected&")",MData!$7:$7,0),FALSE) ->  | O25: =VLOOKUP(YEAR($B25)&"-"&MONTH($B25),MData!$A:$NJ,MATCH(O$5&"("&factor_selected&")",MData!$7:$7,0),FALSE) ->  | P25: =VLOOKUP(YEAR($B25)&"-"&MONTH($B25),MData!$A:$NJ,MATCH(P$5&"("&factor_selected&")",MData!$7:$7,0),FALSE) ->  | Q25: =VLOOKUP(YEAR($B25)&"-"&MONTH($B25),MData!$A:$NJ,MATCH(Q$5&"("&factor_selected&")",MData!$7:$7,0),FALSE) ->  | R25: =VLOOKUP(YEAR($B25)&"-"&MONTH($B25),MData!$A:$NJ,MATCH(R$5&"("&factor_selected&")",MData!$7:$7,0),FALSE) -> 
B26: 1981-08-31 | C26: =VLOOKUP(YEAR($B26)&"-"&MONTH($B26),MData!$A:$NJ,MATCH(C$5&"("&factor_selected&")",MData!$7:$7,0),FALSE) ->  | D26: =VLOOKUP(YEAR($B26)&"-"&MONTH($B26),MData!$A:$NJ,MATCH(D$5&"("&factor_selected&")",MData!$7:$7,0),FALSE) ->  | E26: =VLOOKUP(YEAR($B26)&"-"&MONTH($B26),MData!$A:$NJ,MATCH(E$5&"("&factor_selected&")",MData!$7:$7,0),FALSE) ->  | F26: =VLOOKUP(YEAR($B26)&"-"&MONTH($B26),MData!$A:$NJ,MATCH(F$5&"("&factor_selected&")",MData!$7:$7,0),FALSE) ->  | G26: =VLOOKUP(YEAR($B26)&"-"&MONTH($B26),MData!$A:$NJ,MATCH(G$5&"("&factor_selected&")",MData!$7:$7,0),FALSE) ->  | H26: =VLOOKUP(YEAR($B26)&"-"&MONTH($B26),MData!$A:$NJ,MATCH(H$5&"("&factor_selected&")",MData!$7:$7,0),FALSE) ->  | I26: =VLOOKUP(YEAR($B26)&"-"&MONTH($B26),MData!$A:$NJ,MATCH(I$5&"("&factor_selected&")",MData!$7:$7,0),FALSE) ->  | J26: =VLOOKUP(YEAR($B26)&"-"&MONTH($B26),MData!$A:$NJ,MATCH(J$5&"("&factor_selected&")",MData!$7:$7,0),FALSE) ->  | K26: =VLOOKUP(YEAR($B26)&"-"&MONTH($B26),MData!$A:$NJ,MATCH(K$5&"("&factor_selected&")",MData!$7:$7,0),FALSE) ->  | L26: =VLOOKUP(YEAR($B26)&"-"&MONTH($B26),MData!$A:$NJ,MATCH(L$5&"("&factor_selected&")",MData!$7:$7,0),FALSE) ->  | M26: =VLOOKUP(YEAR($B26)&"-"&MONTH($B26),MData!$A:$NJ,MATCH(M$5&"("&factor_selected&")",MData!$7:$7,0),FALSE) ->  | N26: =VLOOKUP(YEAR($B26)&"-"&MONTH($B26),MData!$A:$NJ,MATCH(N$5&"("&factor_selected&")",MData!$7:$7,0),FALSE) ->  | O26: =VLOOKUP(YEAR($B26)&"-"&MONTH($B26),MData!$A:$NJ,MATCH(O$5&"("&factor_selected&")",MData!$7:$7,0),FALSE) ->  | P26: =VLOOKUP(YEAR($B26)&"-"&MONTH($B26),MData!$A:$NJ,MATCH(P$5&"("&factor_selected&")",MData!$7:$7,0),FALSE) ->  | Q26: =VLOOKUP(YEAR($B26)&"-"&MONTH($B26),MData!$A:$NJ,MATCH(Q$5&"("&factor_selected&")",MData!$7:$7,0),FALSE) ->  | R26: =VLOOKUP(YEAR($B26)&"-"&MONTH($B26),MData!$A:$NJ,MATCH(R$5&"("&factor_selected&")",MData!$7:$7,0),FALSE) -> 
B27: 1981-09-30 | C27: =VLOOKUP(YEAR($B27)&"-"&MONTH($B27),MData!$A:$NJ,MATCH(C$5&"("&factor_selected&")",MData!$7:$7,0),FALSE) ->  | D27: =VLOOKUP(YEAR($B27)&"-"&MONTH($B27),MData!$A:$NJ,MATCH(D$5&"("&factor_selected&")",MData!$7:$7,0),FALSE) ->  | E27: =VLOOKUP(YEAR($B27)&"-"&MONTH($B27),MData!$A:$NJ,MATCH(E$5&"("&factor_selected&")",MData!$7:$7,0),FALSE) ->  | F27: =VLOOKUP(YEAR($B27)&"-"&MONTH($B27),MData!$A:$NJ,MATCH(F$5&"("&factor_selected&")",MData!$7:$7,0),FALSE) ->  | G27: =VLOOKUP(YEAR($B27)&"-"&MONTH($B27),MData!$A:$NJ,MATCH(G$5&"("&factor_selected&")",MData!$7:$7,0),FALSE) ->  | H27: =VLOOKUP(YEAR($B27)&"-"&MONTH($B27),MData!$A:$NJ,MATCH(H$5&"("&factor_selected&")",MData!$7:$7,0),FALSE) ->  | I27: =VLOOKUP(YEAR($B27)&"-"&MONTH($B27),MData!$A:$NJ,MATCH(I$5&"("&factor_selected&")",MData!$7:$7,0),FALSE) ->  | J27: =VLOOKUP(YEAR($B27)&"-"&MONTH($B27),MData!$A:$NJ,MATCH(J$5&"("&factor_selected&")",MData!$7:$7,0),FALSE) ->  | K27: =VLOOKUP(YEAR($B27)&"-"&MONTH($B27),MData!$A:$NJ,MATCH(K$5&"("&factor_selected&")",MData!$7:$7,0),FALSE) ->  | L27: =VLOOKUP(YEAR($B27)&"-"&MONTH($B27),MData!$A:$NJ,MATCH(L$5&"("&factor_selected&")",MData!$7:$7,0),FALSE) ->  | M27: =VLOOKUP(YEAR($B27)&"-"&MONTH($B27),MData!$A:$NJ,MATCH(M$5&"("&factor_selected&")",MData!$7:$7,0),FALSE) ->  | N27: =VLOOKUP(YEAR($B27)&"-"&MONTH($B27),MData!$A:$NJ,MATCH(N$5&"("&factor_selected&")",MData!$7:$7,0),FALSE) ->  | O27: =VLOOKUP(YEAR($B27)&"-"&MONTH($B27),MData!$A:$NJ,MATCH(O$5&"("&factor_selected&")",MData!$7:$7,0),FALSE) ->  | P27: =VLOOKUP(YEAR($B27)&"-"&MONTH($B27),MData!$A:$NJ,MATCH(P$5&"("&factor_selected&")",MData!$7:$7,0),FALSE) ->  | Q27: =VLOOKUP(YEAR($B27)&"-"&MONTH($B27),MData!$A:$NJ,MATCH(Q$5&"("&factor_selected&")",MData!$7:$7,0),FALSE) ->  | R27: =VLOOKUP(YEAR($B27)&"-"&MONTH($B27),MData!$A:$NJ,MATCH(R$5&"("&factor_selected&")",MData!$7:$7,0),FALSE) -> 
B28: 1981-10-31 | C28: =VLOOKUP(YEAR($B28)&"-"&MONTH($B28),MData!$A:$NJ,MATCH(C$5&"("&factor_selected&")",MData!$7:$7,0),FALSE) ->  | D28: =VLOOKUP(YEAR($B28)&"-"&MONTH($B28),MData!$A:$NJ,MATCH(D$5&"("&factor_selected&")",MData!$7:$7,0),FALSE) ->  | E28: =VLOOKUP(YEAR($B28)&"-"&MONTH($B28),MData!$A:$NJ,MATCH(E$5&"("&factor_selected&")",MData!$7:$7,0),FALSE) ->  | F28: =VLOOKUP(YEAR($B28)&"-"&MONTH($B28),MData!$A:$NJ,MATCH(F$5&"("&factor_selected&")",MData!$7:$7,0),FALSE) ->  | G28: =VLOOKUP(YEAR($B28)&"-"&MONTH($B28),MData!$A:$NJ,MATCH(G$5&"("&factor_selected&")",MData!$7:$7,0),FALSE) ->  | H28: =VLOOKUP(YEAR($B28)&"-"&MONTH($B28),MData!$A:$NJ,MATCH(H$5&"("&factor_selected&")",MData!$7:$7,0),FALSE) ->  | I28: =VLOOKUP(YEAR($B28)&"-"&MONTH($B28),MData!$A:$NJ,MATCH(I$5&"("&factor_selected&")",MData!$7:$7,0),FALSE) ->  | J28: =VLOOKUP(YEAR($B28)&"-"&MONTH($B28),MData!$A:$NJ,MATCH(J$5&"("&factor_selected&")",MData!$7:$7,0),FALSE) ->  | K28: =VLOOKUP(YEAR($B28)&"-"&MONTH($B28),MData!$A:$NJ,MATCH(K$5&"("&factor_selected&")",MData!$7:$7,0),FALSE) ->  | L28: =VLOOKUP(YEAR($B28)&"-"&MONTH($B28),MData!$A:$NJ,MATCH(L$5&"("&factor_selected&")",MData!$7:$7,0),FALSE) ->  | M28: =VLOOKUP(YEAR($B28)&"-"&MONTH($B28),MData!$A:$NJ,MATCH(M$5&"("&factor_selected&")",MData!$7:$7,0),FALSE) ->  | N28: =VLOOKUP(YEAR($B28)&"-"&MONTH($B28),MData!$A:$NJ,MATCH(N$5&"("&factor_selected&")",MData!$7:$7,0),FALSE) ->  | O28: =VLOOKUP(YEAR($B28)&"-"&MONTH($B28),MData!$A:$NJ,MATCH(O$5&"("&factor_selected&")",MData!$7:$7,0),FALSE) ->  | P28: =VLOOKUP(YEAR($B28)&"-"&MONTH($B28),MData!$A:$NJ,MATCH(P$5&"("&factor_selected&")",MData!$7:$7,0),FALSE) ->  | Q28: =VLOOKUP(YEAR($B28)&"-"&MONTH($B28),MData!$A:$NJ,MATCH(Q$5&"("&factor_selected&")",MData!$7:$7,0),FALSE) ->  | R28: =VLOOKUP(YEAR($B28)&"-"&MONTH($B28),MData!$A:$NJ,MATCH(R$5&"("&factor_selected&")",MData!$7:$7,0),FALSE) -> 
B29: 1981-11-30 | C29: =VLOOKUP(YEAR($B29)&"-"&MONTH($B29),MData!$A:$NJ,MATCH(C$5&"("&factor_selected&")",MData!$7:$7,0),FALSE) ->  | D29: =VLOOKUP(YEAR($B29)&"-"&MONTH($B29),MData!$A:$NJ,MATCH(D$5&"("&factor_selected&")",MData!$7:$7,0),FALSE) ->  | E29: =VLOOKUP(YEAR($B29)&"-"&MONTH($B29),MData!$A:$NJ,MATCH(E$5&"("&factor_selected&")",MData!$7:$7,0),FALSE) ->  | F29: =VLOOKUP(YEAR($B29)&"-"&MONTH($B29),MData!$A:$NJ,MATCH(F$5&"("&factor_selected&")",MData!$7:$7,0),FALSE) ->  | G29: =VLOOKUP(YEAR($B29)&"-"&MONTH($B29),MData!$A:$NJ,MATCH(G$5&"("&factor_selected&")",MData!$7:$7,0),FALSE) ->  | H29: =VLOOKUP(YEAR($B29)&"-"&MONTH($B29),MData!$A:$NJ,MATCH(H$5&"("&factor_selected&")",MData!$7:$7,0),FALSE) ->  | I29: =VLOOKUP(YEAR($B29)&"-"&MONTH($B29),MData!$A:$NJ,MATCH(I$5&"("&factor_selected&")",MData!$7:$7,0),FALSE) ->  | J29: =VLOOKUP(YEAR($B29)&"-"&MONTH($B29),MData!$A:$NJ,MATCH(J$5&"("&factor_selected&")",MData!$7:$7,0),FALSE) ->  | K29: =VLOOKUP(YEAR($B29)&"-"&MONTH($B29),MData!$A:$NJ,MATCH(K$5&"("&factor_selected&")",MData!$7:$7,0),FALSE) ->  | L29: =VLOOKUP(YEAR($B29)&"-"&MONTH($B29),MData!$A:$NJ,MATCH(L$5&"("&factor_selected&")",MData!$7:$7,0),FALSE) ->  | M29: =VLOOKUP(YEAR($B29)&"-"&MONTH($B29),MData!$A:$NJ,MATCH(M$5&"("&factor_selected&")",MData!$7:$7,0),FALSE) ->  | N29: =VLOOKUP(YEAR($B29)&"-"&MONTH($B29),MData!$A:$NJ,MATCH(N$5&"("&factor_selected&")",MData!$7:$7,0),FALSE) ->  | O29: =VLOOKUP(YEAR($B29)&"-"&MONTH($B29),MData!$A:$NJ,MATCH(O$5&"("&factor_selected&")",MData!$7:$7,0),FALSE) ->  | P29: =VLOOKUP(YEAR($B29)&"-"&MONTH($B29),MData!$A:$NJ,MATCH(P$5&"("&factor_selected&")",MData!$7:$7,0),FALSE) ->  | Q29: =VLOOKUP(YEAR($B29)&"-"&MONTH($B29),MData!$A:$NJ,MATCH(Q$5&"("&factor_selected&")",MData!$7:$7,0),FALSE) ->  | R29: =VLOOKUP(YEAR($B29)&"-"&MONTH($B29),MData!$A:$NJ,MATCH(R$5&"("&factor_selected&")",MData!$7:$7,0),FALSE) -> 
B30: 1981-12-31 | C30: =VLOOKUP(YEAR($B30)&"-"&MONTH($B30),MData!$A:$NJ,MATCH(C$5&"("&factor_selected&")",MData!$7:$7,0),FALSE) ->  | D30: =VLOOKUP(YEAR($B30)&"-"&MONTH($B30),MData!$A:$NJ,MATCH(D$5&"("&factor_selected&")",MData!$7:$7,0),FALSE) ->  | E30: =VLOOKUP(YEAR($B30)&"-"&MONTH($B30),MData!$A:$NJ,MATCH(E$5&"("&factor_selected&")",MData!$7:$7,0),FALSE) ->  | F30: =VLOOKUP(YEAR($B30)&"-"&MONTH($B30),MData!$A:$NJ,MATCH(F$5&"("&factor_selected&")",MData!$7:$7,0),FALSE) ->  | G30: =VLOOKUP(YEAR($B30)&"-"&MONTH($B30),MData!$A:$NJ,MATCH(G$5&"("&factor_selected&")",MData!$7:$7,0),FALSE) ->  | H30: =VLOOKUP(YEAR($B30)&"-"&MONTH($B30),MData!$A:$NJ,MATCH(H$5&"("&factor_selected&")",MData!$7:$7,0),FALSE) ->  | I30: =VLOOKUP(YEAR($B30)&"-"&MONTH($B30),MData!$A:$NJ,MATCH(I$5&"("&factor_selected&")",MData!$7:$7,0),FALSE) ->  | J30: =VLOOKUP(YEAR($B30)&"-"&MONTH($B30),MData!$A:$NJ,MATCH(J$5&"("&factor_selected&")",MData!$7:$7,0),FALSE) ->  | K30: =VLOOKUP(YEAR($B30)&"-"&MONTH($B30),MData!$A:$NJ,MATCH(K$5&"("&factor_selected&")",MData!$7:$7,0),FALSE) ->  | L30: =VLOOKUP(YEAR($B30)&"-"&MONTH($B30),MData!$A:$NJ,MATCH(L$5&"("&factor_selected&")",MData!$7:$7,0),FALSE) ->  | M30: =VLOOKUP(YEAR($B30)&"-"&MONTH($B30),MData!$A:$NJ,MATCH(M$5&"("&factor_selected&")",MData!$7:$7,0),FALSE) ->  | N30: =VLOOKUP(YEAR($B30)&"-"&MONTH($B30),MData!$A:$NJ,MATCH(N$5&"("&factor_selected&")",MData!$7:$7,0),FALSE) ->  | O30: =VLOOKUP(YEAR($B30)&"-"&MONTH($B30),MData!$A:$NJ,MATCH(O$5&"("&factor_selected&")",MData!$7:$7,0),FALSE) ->  | P30: =VLOOKUP(YEAR($B30)&"-"&MONTH($B30),MData!$A:$NJ,MATCH(P$5&"("&factor_selected&")",MData!$7:$7,0),FALSE) ->  | Q30: =VLOOKUP(YEAR($B30)&"-"&MONTH($B30),MData!$A:$NJ,MATCH(Q$5&"("&factor_selected&")",MData!$7:$7,0),FALSE) ->  | R30: =VLOOKUP(YEAR($B30)&"-"&MONTH($B30),MData!$A:$NJ,MATCH(R$5&"("&factor_selected&")",MData!$7:$7,0),FALSE) -> 
B31: 1982-01-31 | C31: =VLOOKUP(YEAR($B31)&"-"&MONTH($B31),MData!$A:$NJ,MATCH(C$5&"("&factor_selected&")",MData!$7:$7,0),FALSE) ->  | D31: =VLOOKUP(YEAR($B31)&"-"&MONTH($B31),MData!$A:$NJ,MATCH(D$5&"("&factor_selected&")",MData!$7:$7,0),FALSE) ->  | E31: =VLOOKUP(YEAR($B31)&"-"&MONTH($B31),MData!$A:$NJ,MATCH(E$5&"("&factor_selected&")",MData!$7:$7,0),FALSE) ->  | F31: =VLOOKUP(YEAR($B31)&"-"&MONTH($B31),MData!$A:$NJ,MATCH(F$5&"("&factor_selected&")",MData!$7:$7,0),FALSE) ->  | G31: =VLOOKUP(YEAR($B31)&"-"&MONTH($B31),MData!$A:$NJ,MATCH(G$5&"("&factor_selected&")",MData!$7:$7,0),FALSE) ->  | H31: =VLOOKUP(YEAR($B31)&"-"&MONTH($B31),MData!$A:$NJ,MATCH(H$5&"("&factor_selected&")",MData!$7:$7,0),FALSE) ->  | I31: =VLOOKUP(YEAR($B31)&"-"&MONTH($B31),MData!$A:$NJ,MATCH(I$5&"("&factor_selected&")",MData!$7:$7,0),FALSE) ->  | J31: =VLOOKUP(YEAR($B31)&"-"&MONTH($B31),MData!$A:$NJ,MATCH(J$5&"("&factor_selected&")",MData!$7:$7,0),FALSE) ->  | K31: =VLOOKUP(YEAR($B31)&"-"&MONTH($B31),MData!$A:$NJ,MATCH(K$5&"("&factor_selected&")",MData!$7:$7,0),FALSE) ->  | L31: =VLOOKUP(YEAR($B31)&"-"&MONTH($B31),MData!$A:$NJ,MATCH(L$5&"("&factor_selected&")",MData!$7:$7,0),FALSE) ->  | M31: =VLOOKUP(YEAR($B31)&"-"&MONTH($B31),MData!$A:$NJ,MATCH(M$5&"("&factor_selected&")",MData!$7:$7,0),FALSE) ->  | N31: =VLOOKUP(YEAR($B31)&"-"&MONTH($B31),MData!$A:$NJ,MATCH(N$5&"("&factor_selected&")",MData!$7:$7,0),FALSE) ->  | O31: =VLOOKUP(YEAR($B31)&"-"&MONTH($B31),MData!$A:$NJ,MATCH(O$5&"("&factor_selected&")",MData!$7:$7,0),FALSE) ->  | P31: =VLOOKUP(YEAR($B31)&"-"&MONTH($B31),MData!$A:$NJ,MATCH(P$5&"("&factor_selected&")",MData!$7:$7,0),FALSE) ->  | Q31: =VLOOKUP(YEAR($B31)&"-"&MONTH($B31),MData!$A:$NJ,MATCH(Q$5&"("&factor_selected&")",MData!$7:$7,0),FALSE) ->  | R31: =VLOOKUP(YEAR($B31)&"-"&MONTH($B31),MData!$A:$NJ,MATCH(R$5&"("&factor_selected&")",MData!$7:$7,0),FALSE) -> 
B32: 1982-02-28 | C32: =VLOOKUP(YEAR($B32)&"-"&MONTH($B32),MData!$A:$NJ,MATCH(C$5&"("&factor_selected&")",MData!$7:$7,0),FALSE) ->  | D32: =VLOOKUP(YEAR($B32)&"-"&MONTH($B32),MData!$A:$NJ,MATCH(D$5&"("&factor_selected&")",MData!$7:$7,0),FALSE) ->  | E32: =VLOOKUP(YEAR($B32)&"-"&MONTH($B32),MData!$A:$NJ,MATCH(E$5&"("&factor_selected&")",MData!$7:$7,0),FALSE) ->  | F32: =VLOOKUP(YEAR($B32)&"-"&MONTH($B32),MData!$A:$NJ,MATCH(F$5&"("&factor_selected&")",MData!$7:$7,0),FALSE) ->  | G32: =VLOOKUP(YEAR($B32)&"-"&MONTH($B32),MData!$A:$NJ,MATCH(G$5&"("&factor_selected&")",MData!$7:$7,0),FALSE) ->  | H32: =VLOOKUP(YEAR($B32)&"-"&MONTH($B32),MData!$A:$NJ,MATCH(H$5&"("&factor_selected&")",MData!$7:$7,0),FALSE) ->  | I32: =VLOOKUP(YEAR($B32)&"-"&MONTH($B32),MData!$A:$NJ,MATCH(I$5&"("&factor_selected&")",MData!$7:$7,0),FALSE) ->  | J32: =VLOOKUP(YEAR($B32)&"-"&MONTH($B32),MData!$A:$NJ,MATCH(J$5&"("&factor_selected&")",MData!$7:$7,0),FALSE) ->  | K32: =VLOOKUP(YEAR($B32)&"-"&MONTH($B32),MData!$A:$NJ,MATCH(K$5&"("&factor_selected&")",MData!$7:$7,0),FALSE) ->  | L32: =VLOOKUP(YEAR($B32)&"-"&MONTH($B32),MData!$A:$NJ,MATCH(L$5&"("&factor_selected&")",MData!$7:$7,0),FALSE) ->  | M32: =VLOOKUP(YEAR($B32)&"-"&MONTH($B32),MData!$A:$NJ,MATCH(M$5&"("&factor_selected&")",MData!$7:$7,0),FALSE) ->  | N32: =VLOOKUP(YEAR($B32)&"-"&MONTH($B32),MData!$A:$NJ,MATCH(N$5&"("&factor_selected&")",MData!$7:$7,0),FALSE) ->  | O32: =VLOOKUP(YEAR($B32)&"-"&MONTH($B32),MData!$A:$NJ,MATCH(O$5&"("&factor_selected&")",MData!$7:$7,0),FALSE) ->  | P32: =VLOOKUP(YEAR($B32)&"-"&MONTH($B32),MData!$A:$NJ,MATCH(P$5&"("&factor_selected&")",MData!$7:$7,0),FALSE) ->  | Q32: =VLOOKUP(YEAR($B32)&"-"&MONTH($B32),MData!$A:$NJ,MATCH(Q$5&"("&factor_selected&")",MData!$7:$7,0),FALSE) ->  | R32: =VLOOKUP(YEAR($B32)&"-"&MONTH($B32),MData!$A:$NJ,MATCH(R$5&"("&factor_selected&")",MData!$7:$7,0),FALSE) -> 
B33: 1982-03-31 | C33: =VLOOKUP(YEAR($B33)&"-"&MONTH($B33),MData!$A:$NJ,MATCH(C$5&"("&factor_selected&")",MData!$7:$7,0),FALSE) ->  | D33: =VLOOKUP(YEAR($B33)&"-"&MONTH($B33),MData!$A:$NJ,MATCH(D$5&"("&factor_selected&")",MData!$7:$7,0),FALSE) ->  | E33: =VLOOKUP(YEAR($B33)&"-"&MONTH($B33),MData!$A:$NJ,MATCH(E$5&"("&factor_selected&")",MData!$7:$7,0),FALSE) ->  | F33: =VLOOKUP(YEAR($B33)&"-"&MONTH($B33),MData!$A:$NJ,MATCH(F$5&"("&factor_selected&")",MData!$7:$7,0),FALSE) ->  | G33: =VLOOKUP(YEAR($B33)&"-"&MONTH($B33),MData!$A:$NJ,MATCH(G$5&"("&factor_selected&")",MData!$7:$7,0),FALSE) ->  | H33: =VLOOKUP(YEAR($B33)&"-"&MONTH($B33),MData!$A:$NJ,MATCH(H$5&"("&factor_selected&")",MData!$7:$7,0),FALSE) ->  | I33: =VLOOKUP(YEAR($B33)&"-"&MONTH($B33),MData!$A:$NJ,MATCH(I$5&"("&factor_selected&")",MData!$7:$7,0),FALSE) ->  | J33: =VLOOKUP(YEAR($B33)&"-"&MONTH($B33),MData!$A:$NJ,MATCH(J$5&"("&factor_selected&")",MData!$7:$7,0),FALSE) ->  | K33: =VLOOKUP(YEAR($B33)&"-"&MONTH($B33),MData!$A:$NJ,MATCH(K$5&"("&factor_selected&")",MData!$7:$7,0),FALSE) ->  | L33: =VLOOKUP(YEAR($B33)&"-"&MONTH($B33),MData!$A:$NJ,MATCH(L$5&"("&factor_selected&")",MData!$7:$7,0),FALSE) ->  | M33: =VLOOKUP(YEAR($B33)&"-"&MONTH($B33),MData!$A:$NJ,MATCH(M$5&"("&factor_selected&")",MData!$7:$7,0),FALSE) ->  | N33: =VLOOKUP(YEAR($B33)&"-"&MONTH($B33),MData!$A:$NJ,MATCH(N$5&"("&factor_selected&")",MData!$7:$7,0),FALSE) ->  | O33: =VLOOKUP(YEAR($B33)&"-"&MONTH($B33),MData!$A:$NJ,MATCH(O$5&"("&factor_selected&")",MData!$7:$7,0),FALSE) ->  | P33: =VLOOKUP(YEAR($B33)&"-"&MONTH($B33),MData!$A:$NJ,MATCH(P$5&"("&factor_selected&")",MData!$7:$7,0),FALSE) ->  | Q33: =VLOOKUP(YEAR($B33)&"-"&MONTH($B33),MData!$A:$NJ,MATCH(Q$5&"("&factor_selected&")",MData!$7:$7,0),FALSE) ->  | R33: =VLOOKUP(YEAR($B33)&"-"&MONTH($B33),MData!$A:$NJ,MATCH(R$5&"("&factor_selected&")",MData!$7:$7,0),FALSE) -> 
B34: 1982-04-30 | C34: =VLOOKUP(YEAR($B34)&"-"&MONTH($B34),MData!$A:$NJ,MATCH(C$5&"("&factor_selected&")",MData!$7:$7,0),FALSE) ->  | D34: =VLOOKUP(YEAR($B34)&"-"&MONTH($B34),MData!$A:$NJ,MATCH(D$5&"("&factor_selected&")",MData!$7:$7,0),FALSE) ->  | E34: =VLOOKUP(YEAR($B34)&"-"&MONTH($B34),MData!$A:$NJ,MATCH(E$5&"("&factor_selected&")",MData!$7:$7,0),FALSE) ->  | F34: =VLOOKUP(YEAR($B34)&"-"&MONTH($B34),MData!$A:$NJ,MATCH(F$5&"("&factor_selected&")",MData!$7:$7,0),FALSE) ->  | G34: =VLOOKUP(YEAR($B34)&"-"&MONTH($B34),MData!$A:$NJ,MATCH(G$5&"("&factor_selected&")",MData!$7:$7,0),FALSE) ->  | H34: =VLOOKUP(YEAR($B34)&"-"&MONTH($B34),MData!$A:$NJ,MATCH(H$5&"("&factor_selected&")",MData!$7:$7,0),FALSE) ->  | I34: =VLOOKUP(YEAR($B34)&"-"&MONTH($B34),MData!$A:$NJ,MATCH(I$5&"("&factor_selected&")",MData!$7:$7,0),FALSE) ->  | J34: =VLOOKUP(YEAR($B34)&"-"&MONTH($B34),MData!$A:$NJ,MATCH(J$5&"("&factor_selected&")",MData!$7:$7,0),FALSE) ->  | K34: =VLOOKUP(YEAR($B34)&"-"&MONTH($B34),MData!$A:$NJ,MATCH(K$5&"("&factor_selected&")",MData!$7:$7,0),FALSE) ->  | L34: =VLOOKUP(YEAR($B34)&"-"&MONTH($B34),MData!$A:$NJ,MATCH(L$5&"("&factor_selected&")",MData!$7:$7,0),FALSE) ->  | M34: =VLOOKUP(YEAR($B34)&"-"&MONTH($B34),MData!$A:$NJ,MATCH(M$5&"("&factor_selected&")",MData!$7:$7,0),FALSE) ->  | N34: =VLOOKUP(YEAR($B34)&"-"&MONTH($B34),MData!$A:$NJ,MATCH(N$5&"("&factor_selected&")",MData!$7:$7,0),FALSE) ->  | O34: =VLOOKUP(YEAR($B34)&"-"&MONTH($B34),MData!$A:$NJ,MATCH(O$5&"("&factor_selected&")",MData!$7:$7,0),FALSE) ->  | P34: =VLOOKUP(YEAR($B34)&"-"&MONTH($B34),MData!$A:$NJ,MATCH(P$5&"("&factor_selected&")",MData!$7:$7,0),FALSE) ->  | Q34: =VLOOKUP(YEAR($B34)&"-"&MONTH($B34),MData!$A:$NJ,MATCH(Q$5&"("&factor_selected&")",MData!$7:$7,0),FALSE) ->  | R34: =VLOOKUP(YEAR($B34)&"-"&MONTH($B34),MData!$A:$NJ,MATCH(R$5&"("&factor_selected&")",MData!$7:$7,0),FALSE) -> 
B35: 1982-05-31 | C35: =VLOOKUP(YEAR($B35)&"-"&MONTH($B35),MData!$A:$NJ,MATCH(C$5&"("&factor_selected&")",MData!$7:$7,0),FALSE) ->  | D35: =VLOOKUP(YEAR($B35)&"-"&MONTH($B35),MData!$A:$NJ,MATCH(D$5&"("&factor_selected&")",MData!$7:$7,0),FALSE) ->  | E35: =VLOOKUP(YEAR($B35)&"-"&MONTH($B35),MData!$A:$NJ,MATCH(E$5&"("&factor_selected&")",MData!$7:$7,0),FALSE) ->  | F35: =VLOOKUP(YEAR($B35)&"-"&MONTH($B35),MData!$A:$NJ,MATCH(F$5&"("&factor_selected&")",MData!$7:$7,0),FALSE) ->  | G35: =VLOOKUP(YEAR($B35)&"-"&MONTH($B35),MData!$A:$NJ,MATCH(G$5&"("&factor_selected&")",MData!$7:$7,0),FALSE) ->  | H35: =VLOOKUP(YEAR($B35)&"-"&MONTH($B35),MData!$A:$NJ,MATCH(H$5&"("&factor_selected&")",MData!$7:$7,0),FALSE) ->  | I35: =VLOOKUP(YEAR($B35)&"-"&MONTH($B35),MData!$A:$NJ,MATCH(I$5&"("&factor_selected&")",MData!$7:$7,0),FALSE) ->  | J35: =VLOOKUP(YEAR($B35)&"-"&MONTH($B35),MData!$A:$NJ,MATCH(J$5&"("&factor_selected&")",MData!$7:$7,0),FALSE) ->  | K35: =VLOOKUP(YEAR($B35)&"-"&MONTH($B35),MData!$A:$NJ,MATCH(K$5&"("&factor_selected&")",MData!$7:$7,0),FALSE) ->  | L35: =VLOOKUP(YEAR($B35)&"-"&MONTH($B35),MData!$A:$NJ,MATCH(L$5&"("&factor_selected&")",MData!$7:$7,0),FALSE) ->  | M35: =VLOOKUP(YEAR($B35)&"-"&MONTH($B35),MData!$A:$NJ,MATCH(M$5&"("&factor_selected&")",MData!$7:$7,0),FALSE) ->  | N35: =VLOOKUP(YEAR($B35)&"-"&MONTH($B35),MData!$A:$NJ,MATCH(N$5&"("&factor_selected&")",MData!$7:$7,0),FALSE) ->  | O35: =VLOOKUP(YEAR($B35)&"-"&MONTH($B35),MData!$A:$NJ,MATCH(O$5&"("&factor_selected&")",MData!$7:$7,0),FALSE) ->  | P35: =VLOOKUP(YEAR($B35)&"-"&MONTH($B35),MData!$A:$NJ,MATCH(P$5&"("&factor_selected&")",MData!$7:$7,0),FALSE) ->  | Q35: =VLOOKUP(YEAR($B35)&"-"&MONTH($B35),MData!$A:$NJ,MATCH(Q$5&"("&factor_selected&")",MData!$7:$7,0),FALSE) ->  | R35: =VLOOKUP(YEAR($B35)&"-"&MONTH($B35),MData!$A:$NJ,MATCH(R$5&"("&factor_selected&")",MData!$7:$7,0),FALSE) -> 
B36: 1982-06-30 | C36: =VLOOKUP(YEAR($B36)&"-"&MONTH($B36),MData!$A:$NJ,MATCH(C$5&"("&factor_selected&")",MData!$7:$7,0),FALSE) ->  | D36: =VLOOKUP(YEAR($B36)&"-"&MONTH($B36),MData!$A:$NJ,MATCH(D$5&"("&factor_selected&")",MData!$7:$7,0),FALSE) ->  | E36: =VLOOKUP(YEAR($B36)&"-"&MONTH($B36),MData!$A:$NJ,MATCH(E$5&"("&factor_selected&")",MData!$7:$7,0),FALSE) ->  | F36: =VLOOKUP(YEAR($B36)&"-"&MONTH($B36),MData!$A:$NJ,MATCH(F$5&"("&factor_selected&")",MData!$7:$7,0),FALSE) ->  | G36: =VLOOKUP(YEAR($B36)&"-"&MONTH($B36),MData!$A:$NJ,MATCH(G$5&"("&factor_selected&")",MData!$7:$7,0),FALSE) ->  | H36: =VLOOKUP(YEAR($B36)&"-"&MONTH($B36),MData!$A:$NJ,MATCH(H$5&"("&factor_selected&")",MData!$7:$7,0),FALSE) ->  | I36: =VLOOKUP(YEAR($B36)&"-"&MONTH($B36),MData!$A:$NJ,MATCH(I$5&"("&factor_selected&")",MData!$7:$7,0),FALSE) ->  | J36: =VLOOKUP(YEAR($B36)&"-"&MONTH($B36),MData!$A:$NJ,MATCH(J$5&"("&factor_selected&")",MData!$7:$7,0),FALSE) ->  | K36: =VLOOKUP(YEAR($B36)&"-"&MONTH($B36),MData!$A:$NJ,MATCH(K$5&"("&factor_selected&")",MData!$7:$7,0),FALSE) ->  | L36: =VLOOKUP(YEAR($B36)&"-"&MONTH($B36),MData!$A:$NJ,MATCH(L$5&"("&factor_selected&")",MData!$7:$7,0),FALSE) ->  | M36: =VLOOKUP(YEAR($B36)&"-"&MONTH($B36),MData!$A:$NJ,MATCH(M$5&"("&factor_selected&")",MData!$7:$7,0),FALSE) ->  | N36: =VLOOKUP(YEAR($B36)&"-"&MONTH($B36),MData!$A:$NJ,MATCH(N$5&"("&factor_selected&")",MData!$7:$7,0),FALSE) ->  | O36: =VLOOKUP(YEAR($B36)&"-"&MONTH($B36),MData!$A:$NJ,MATCH(O$5&"("&factor_selected&")",MData!$7:$7,0),FALSE) ->  | P36: =VLOOKUP(YEAR($B36)&"-"&MONTH($B36),MData!$A:$NJ,MATCH(P$5&"("&factor_selected&")",MData!$7:$7,0),FALSE) ->  | Q36: =VLOOKUP(YEAR($B36)&"-"&MONTH($B36),MData!$A:$NJ,MATCH(Q$5&"("&factor_selected&")",MData!$7:$7,0),FALSE) ->  | R36: =VLOOKUP(YEAR($B36)&"-"&MONTH($B36),MData!$A:$NJ,MATCH(R$5&"("&factor_selected&")",MData!$7:$7,0),FALSE) -> 
B37: 1982-07-31 | C37: =VLOOKUP(YEAR($B37)&"-"&MONTH($B37),MData!$A:$NJ,MATCH(C$5&"("&factor_selected&")",MData!$7:$7,0),FALSE) ->  | D37: =VLOOKUP(YEAR($B37)&"-"&MONTH($B37),MData!$A:$NJ,MATCH(D$5&"("&factor_selected&")",MData!$7:$7,0),FALSE) ->  | E37: =VLOOKUP(YEAR($B37)&"-"&MONTH($B37),MData!$A:$NJ,MATCH(E$5&"("&factor_selected&")",MData!$7:$7,0),FALSE) ->  | F37: =VLOOKUP(YEAR($B37)&"-"&MONTH($B37),MData!$A:$NJ,MATCH(F$5&"("&factor_selected&")",MData!$7:$7,0),FALSE) ->  | G37: =VLOOKUP(YEAR($B37)&"-"&MONTH($B37),MData!$A:$NJ,MATCH(G$5&"("&factor_selected&")",MData!$7:$7,0),FALSE) ->  | H37: =VLOOKUP(YEAR($B37)&"-"&MONTH($B37),MData!$A:$NJ,MATCH(H$5&"("&factor_selected&")",MData!$7:$7,0),FALSE) ->  | I37: =VLOOKUP(YEAR($B37)&"-"&MONTH($B37),MData!$A:$NJ,MATCH(I$5&"("&factor_selected&")",MData!$7:$7,0),FALSE) ->  | J37: =VLOOKUP(YEAR($B37)&"-"&MONTH($B37),MData!$A:$NJ,MATCH(J$5&"("&factor_selected&")",MData!$7:$7,0),FALSE) ->  | K37: =VLOOKUP(YEAR($B37)&"-"&MONTH($B37),MData!$A:$NJ,MATCH(K$5&"("&factor_selected&")",MData!$7:$7,0),FALSE) ->  | L37: =VLOOKUP(YEAR($B37)&"-"&MONTH($B37),MData!$A:$NJ,MATCH(L$5&"("&factor_selected&")",MData!$7:$7,0),FALSE) ->  | M37: =VLOOKUP(YEAR($B37)&"-"&MONTH($B37),MData!$A:$NJ,MATCH(M$5&"("&factor_selected&")",MData!$7:$7,0),FALSE) ->  | N37: =VLOOKUP(YEAR($B37)&"-"&MONTH($B37),MData!$A:$NJ,MATCH(N$5&"("&factor_selected&")",MData!$7:$7,0),FALSE) ->  | O37: =VLOOKUP(YEAR($B37)&"-"&MONTH($B37),MData!$A:$NJ,MATCH(O$5&"("&factor_selected&")",MData!$7:$7,0),FALSE) ->  | P37: =VLOOKUP(YEAR($B37)&"-"&MONTH($B37),MData!$A:$NJ,MATCH(P$5&"("&factor_selected&")",MData!$7:$7,0),FALSE) ->  | Q37: =VLOOKUP(YEAR($B37)&"-"&MONTH($B37),MData!$A:$NJ,MATCH(Q$5&"("&factor_selected&")",MData!$7:$7,0),FALSE) ->  | R37: =VLOOKUP(YEAR($B37)&"-"&MONTH($B37),MData!$A:$NJ,MATCH(R$5&"("&factor_selected&")",MData!$7:$7,0),FALSE) -> 
B38: 1982-08-31 | C38: =VLOOKUP(YEAR($B38)&"-"&MONTH($B38),MData!$A:$NJ,MATCH(C$5&"("&factor_selected&")",MData!$7:$7,0),FALSE) ->  | D38: =VLOOKUP(YEAR($B38)&"-"&MONTH($B38),MData!$A:$NJ,MATCH(D$5&"("&factor_selected&")",MData!$7:$7,0),FALSE) ->  | E38: =VLOOKUP(YEAR($B38)&"-"&MONTH($B38),MData!$A:$NJ,MATCH(E$5&"("&factor_selected&")",MData!$7:$7,0),FALSE) ->  | F38: =VLOOKUP(YEAR($B38)&"-"&MONTH($B38),MData!$A:$NJ,MATCH(F$5&"("&factor_selected&")",MData!$7:$7,0),FALSE) ->  | G38: =VLOOKUP(YEAR($B38)&"-"&MONTH($B38),MData!$A:$NJ,MATCH(G$5&"("&factor_selected&")",MData!$7:$7,0),FALSE) ->  | H38: =VLOOKUP(YEAR($B38)&"-"&MONTH($B38),MData!$A:$NJ,MATCH(H$5&"("&factor_selected&")",MData!$7:$7,0),FALSE) ->  | I38: =VLOOKUP(YEAR($B38)&"-"&MONTH($B38),MData!$A:$NJ,MATCH(I$5&"("&factor_selected&")",MData!$7:$7,0),FALSE) ->  | J38: =VLOOKUP(YEAR($B38)&"-"&MONTH($B38),MData!$A:$NJ,MATCH(J$5&"("&factor_selected&")",MData!$7:$7,0),FALSE) ->  | K38: =VLOOKUP(YEAR($B38)&"-"&MONTH($B38),MData!$A:$NJ,MATCH(K$5&"("&factor_selected&")",MData!$7:$7,0),FALSE) ->  | L38: =VLOOKUP(YEAR($B38)&"-"&MONTH($B38),MData!$A:$NJ,MATCH(L$5&"("&factor_selected&")",MData!$7:$7,0),FALSE) ->  | M38: =VLOOKUP(YEAR($B38)&"-"&MONTH($B38),MData!$A:$NJ,MATCH(M$5&"("&factor_selected&")",MData!$7:$7,0),FALSE) ->  | N38: =VLOOKUP(YEAR($B38)&"-"&MONTH($B38),MData!$A:$NJ,MATCH(N$5&"("&factor_selected&")",MData!$7:$7,0),FALSE) ->  | O38: =VLOOKUP(YEAR($B38)&"-"&MONTH($B38),MData!$A:$NJ,MATCH(O$5&"("&factor_selected&")",MData!$7:$7,0),FALSE) ->  | P38: =VLOOKUP(YEAR($B38)&"-"&MONTH($B38),MData!$A:$NJ,MATCH(P$5&"("&factor_selected&")",MData!$7:$7,0),FALSE) ->  | Q38: =VLOOKUP(YEAR($B38)&"-"&MONTH($B38),MData!$A:$NJ,MATCH(Q$5&"("&factor_selected&")",MData!$7:$7,0),FALSE) ->  | R38: =VLOOKUP(YEAR($B38)&"-"&MONTH($B38),MData!$A:$NJ,MATCH(R$5&"("&factor_selected&")",MData!$7:$7,0),FALSE) -> 
B39: 1982-09-30 | C39: =VLOOKUP(YEAR($B39)&"-"&MONTH($B39),MData!$A:$NJ,MATCH(C$5&"("&factor_selected&")",MData!$7:$7,0),FALSE) ->  | D39: =VLOOKUP(YEAR($B39)&"-"&MONTH($B39),MData!$A:$NJ,MATCH(D$5&"("&factor_selected&")",MData!$7:$7,0),FALSE) ->  | E39: =VLOOKUP(YEAR($B39)&"-"&MONTH($B39),MData!$A:$NJ,MATCH(E$5&"("&factor_selected&")",MData!$7:$7,0),FALSE) ->  | F39: =VLOOKUP(YEAR($B39)&"-"&MONTH($B39),MData!$A:$NJ,MATCH(F$5&"("&factor_selected&")",MData!$7:$7,0),FALSE) ->  | G39: =VLOOKUP(YEAR($B39)&"-"&MONTH($B39),MData!$A:$NJ,MATCH(G$5&"("&factor_selected&")",MData!$7:$7,0),FALSE) ->  | H39: =VLOOKUP(YEAR($B39)&"-"&MONTH($B39),MData!$A:$NJ,MATCH(H$5&"("&factor_selected&")",MData!$7:$7,0),FALSE) ->  | I39: =VLOOKUP(YEAR($B39)&"-"&MONTH($B39),MData!$A:$NJ,MATCH(I$5&"("&factor_selected&")",MData!$7:$7,0),FALSE) ->  | J39: =VLOOKUP(YEAR($B39)&"-"&MONTH($B39),MData!$A:$NJ,MATCH(J$5&"("&factor_selected&")",MData!$7:$7,0),FALSE) ->  | K39: =VLOOKUP(YEAR($B39)&"-"&MONTH($B39),MData!$A:$NJ,MATCH(K$5&"("&factor_selected&")",MData!$7:$7,0),FALSE) ->  | L39: =VLOOKUP(YEAR($B39)&"-"&MONTH($B39),MData!$A:$NJ,MATCH(L$5&"("&factor_selected&")",MData!$7:$7,0),FALSE) ->  | M39: =VLOOKUP(YEAR($B39)&"-"&MONTH($B39),MData!$A:$NJ,MATCH(M$5&"("&factor_selected&")",MData!$7:$7,0),FALSE) ->  | N39: =VLOOKUP(YEAR($B39)&"-"&MONTH($B39),MData!$A:$NJ,MATCH(N$5&"("&factor_selected&")",MData!$7:$7,0),FALSE) ->  | O39: =VLOOKUP(YEAR($B39)&"-"&MONTH($B39),MData!$A:$NJ,MATCH(O$5&"("&factor_selected&")",MData!$7:$7,0),FALSE) ->  | P39: =VLOOKUP(YEAR($B39)&"-"&MONTH($B39),MData!$A:$NJ,MATCH(P$5&"("&factor_selected&")",MData!$7:$7,0),FALSE) ->  | Q39: =VLOOKUP(YEAR($B39)&"-"&MONTH($B39),MData!$A:$NJ,MATCH(Q$5&"("&factor_selected&")",MData!$7:$7,0),FALSE) ->  | R39: =VLOOKUP(YEAR($B39)&"-"&MONTH($B39),MData!$A:$NJ,MATCH(R$5&"("&factor_selected&")",MData!$7:$7,0),FALSE) -> 
B40: 1982-10-31 | C40: =VLOOKUP(YEAR($B40)&"-"&MONTH($B40),MData!$A:$NJ,MATCH(C$5&"("&factor_selected&")",MData!$7:$7,0),FALSE) ->  | D40: =VLOOKUP(YEAR($B40)&"-"&MONTH($B40),MData!$A:$NJ,MATCH(D$5&"("&factor_selected&")",MData!$7:$7,0),FALSE) ->  | E40: =VLOOKUP(YEAR($B40)&"-"&MONTH($B40),MData!$A:$NJ,MATCH(E$5&"("&factor_selected&")",MData!$7:$7,0),FALSE) ->  | F40: =VLOOKUP(YEAR($B40)&"-"&MONTH($B40),MData!$A:$NJ,MATCH(F$5&"("&factor_selected&")",MData!$7:$7,0),FALSE) ->  | G40: =VLOOKUP(YEAR($B40)&"-"&MONTH($B40),MData!$A:$NJ,MATCH(G$5&"("&factor_selected&")",MData!$7:$7,0),FALSE) ->  | H40: =VLOOKUP(YEAR($B40)&"-"&MONTH($B40),MData!$A:$NJ,MATCH(H$5&"("&factor_selected&")",MData!$7:$7,0),FALSE) ->  | I40: =VLOOKUP(YEAR($B40)&"-"&MONTH($B40),MData!$A:$NJ,MATCH(I$5&"("&factor_selected&")",MData!$7:$7,0),FALSE) ->  | J40: =VLOOKUP(YEAR($B40)&"-"&MONTH($B40),MData!$A:$NJ,MATCH(J$5&"("&factor_selected&")",MData!$7:$7,0),FALSE) ->  | K40: =VLOOKUP(YEAR($B40)&"-"&MONTH($B40),MData!$A:$NJ,MATCH(K$5&"("&factor_selected&")",MData!$7:$7,0),FALSE) ->  | L40: =VLOOKUP(YEAR($B40)&"-"&MONTH($B40),MData!$A:$NJ,MATCH(L$5&"("&factor_selected&")",MData!$7:$7,0),FALSE) ->  | M40: =VLOOKUP(YEAR($B40)&"-"&MONTH($B40),MData!$A:$NJ,MATCH(M$5&"("&factor_selected&")",MData!$7:$7,0),FALSE) ->  | N40: =VLOOKUP(YEAR($B40)&"-"&MONTH($B40),MData!$A:$NJ,MATCH(N$5&"("&factor_selected&")",MData!$7:$7,0),FALSE) ->  | O40: =VLOOKUP(YEAR($B40)&"-"&MONTH($B40),MData!$A:$NJ,MATCH(O$5&"("&factor_selected&")",MData!$7:$7,0),FALSE) ->  | P40: =VLOOKUP(YEAR($B40)&"-"&MONTH($B40),MData!$A:$NJ,MATCH(P$5&"("&factor_selected&")",MData!$7:$7,0),FALSE) ->  | Q40: =VLOOKUP(YEAR($B40)&"-"&MONTH($B40),MData!$A:$NJ,MATCH(Q$5&"("&factor_selected&")",MData!$7:$7,0),FALSE) ->  | R40: =VLOOKUP(YEAR($B40)&"-"&MONTH($B40),MData!$A:$NJ,MATCH(R$5&"("&factor_selected&")",MData!$7:$7,0),FALSE) -> 
B41: 1982-11-30 | C41: =VLOOKUP(YEAR($B41)&"-"&MONTH($B41),MData!$A:$NJ,MATCH(C$5&"("&factor_selected&")",MData!$7:$7,0),FALSE) ->  | D41: =VLOOKUP(YEAR($B41)&"-"&MONTH($B41),MData!$A:$NJ,MATCH(D$5&"("&factor_selected&")",MData!$7:$7,0),FALSE) ->  | E41: =VLOOKUP(YEAR($B41)&"-"&MONTH($B41),MData!$A:$NJ,MATCH(E$5&"("&factor_selected&")",MData!$7:$7,0),FALSE) ->  | F41: =VLOOKUP(YEAR($B41)&"-"&MONTH($B41),MData!$A:$NJ,MATCH(F$5&"("&factor_selected&")",MData!$7:$7,0),FALSE) ->  | G41: =VLOOKUP(YEAR($B41)&"-"&MONTH($B41),MData!$A:$NJ,MATCH(G$5&"("&factor_selected&")",MData!$7:$7,0),FALSE) ->  | H41: =VLOOKUP(YEAR($B41)&"-"&MONTH($B41),MData!$A:$NJ,MATCH(H$5&"("&factor_selected&")",MData!$7:$7,0),FALSE) ->  | I41: =VLOOKUP(YEAR($B41)&"-"&MONTH($B41),MData!$A:$NJ,MATCH(I$5&"("&factor_selected&")",MData!$7:$7,0),FALSE) ->  | J41: =VLOOKUP(YEAR($B41)&"-"&MONTH($B41),MData!$A:$NJ,MATCH(J$5&"("&factor_selected&")",MData!$7:$7,0),FALSE) ->  | K41: =VLOOKUP(YEAR($B41)&"-"&MONTH($B41),MData!$A:$NJ,MATCH(K$5&"("&factor_selected&")",MData!$7:$7,0),FALSE) ->  | L41: =VLOOKUP(YEAR($B41)&"-"&MONTH($B41),MData!$A:$NJ,MATCH(L$5&"("&factor_selected&")",MData!$7:$7,0),FALSE) ->  | M41: =VLOOKUP(YEAR($B41)&"-"&MONTH($B41),MData!$A:$NJ,MATCH(M$5&"("&factor_selected&")",MData!$7:$7,0),FALSE) ->  | N41: =VLOOKUP(YEAR($B41)&"-"&MONTH($B41),MData!$A:$NJ,MATCH(N$5&"("&factor_selected&")",MData!$7:$7,0),FALSE) ->  | O41: =VLOOKUP(YEAR($B41)&"-"&MONTH($B41),MData!$A:$NJ,MATCH(O$5&"("&factor_selected&")",MData!$7:$7,0),FALSE) ->  | P41: =VLOOKUP(YEAR($B41)&"-"&MONTH($B41),MData!$A:$NJ,MATCH(P$5&"("&factor_selected&")",MData!$7:$7,0),FALSE) ->  | Q41: =VLOOKUP(YEAR($B41)&"-"&MONTH($B41),MData!$A:$NJ,MATCH(Q$5&"("&factor_selected&")",MData!$7:$7,0),FALSE) ->  | R41: =VLOOKUP(YEAR($B41)&"-"&MONTH($B41),MData!$A:$NJ,MATCH(R$5&"("&factor_selected&")",MData!$7:$7,0),FALSE) -> 
B42: 1982-12-31 | C42: =VLOOKUP(YEAR($B42)&"-"&MONTH($B42),MData!$A:$NJ,MATCH(C$5&"("&factor_selected&")",MData!$7:$7,0),FALSE) ->  | D42: =VLOOKUP(YEAR($B42)&"-"&MONTH($B42),MData!$A:$NJ,MATCH(D$5&"("&factor_selected&")",MData!$7:$7,0),FALSE) ->  | E42: =VLOOKUP(YEAR($B42)&"-"&MONTH($B42),MData!$A:$NJ,MATCH(E$5&"("&factor_selected&")",MData!$7:$7,0),FALSE) ->  | F42: =VLOOKUP(YEAR($B42)&"-"&MONTH($B42),MData!$A:$NJ,MATCH(F$5&"("&factor_selected&")",MData!$7:$7,0),FALSE) ->  | G42: =VLOOKUP(YEAR($B42)&"-"&MONTH($B42),MData!$A:$NJ,MATCH(G$5&"("&factor_selected&")",MData!$7:$7,0),FALSE) ->  | H42: =VLOOKUP(YEAR($B42)&"-"&MONTH($B42),MData!$A:$NJ,MATCH(H$5&"("&factor_selected&")",MData!$7:$7,0),FALSE) ->  | I42: =VLOOKUP(YEAR($B42)&"-"&MONTH($B42),MData!$A:$NJ,MATCH(I$5&"("&factor_selected&")",MData!$7:$7,0),FALSE) ->  | J42: =VLOOKUP(YEAR($B42)&"-"&MONTH($B42),MData!$A:$NJ,MATCH(J$5&"("&factor_selected&")",MData!$7:$7,0),FALSE) ->  | K42: =VLOOKUP(YEAR($B42)&"-"&MONTH($B42),MData!$A:$NJ,MATCH(K$5&"("&factor_selected&")",MData!$7:$7,0),FALSE) ->  | L42: =VLOOKUP(YEAR($B42)&"-"&MONTH($B42),MData!$A:$NJ,MATCH(L$5&"("&factor_selected&")",MData!$7:$7,0),FALSE) ->  | M42: =VLOOKUP(YEAR($B42)&"-"&MONTH($B42),MData!$A:$NJ,MATCH(M$5&"("&factor_selected&")",MData!$7:$7,0),FALSE) ->  | N42: =VLOOKUP(YEAR($B42)&"-"&MONTH($B42),MData!$A:$NJ,MATCH(N$5&"("&factor_selected&")",MData!$7:$7,0),FALSE) ->  | O42: =VLOOKUP(YEAR($B42)&"-"&MONTH($B42),MData!$A:$NJ,MATCH(O$5&"("&factor_selected&")",MData!$7:$7,0),FALSE) ->  | P42: =VLOOKUP(YEAR($B42)&"-"&MONTH($B42),MData!$A:$NJ,MATCH(P$5&"("&factor_selected&")",MData!$7:$7,0),FALSE) ->  | Q42: =VLOOKUP(YEAR($B42)&"-"&MONTH($B42),MData!$A:$NJ,MATCH(Q$5&"("&factor_selected&")",MData!$7:$7,0),FALSE) ->  | R42: =VLOOKUP(YEAR($B42)&"-"&MONTH($B42),MData!$A:$NJ,MATCH(R$5&"("&factor_selected&")",MData!$7:$7,0),FALSE) -> 
B43: 1983-01-31 | C43: =VLOOKUP(YEAR($B43)&"-"&MONTH($B43),MData!$A:$NJ,MATCH(C$5&"("&factor_selected&")",MData!$7:$7,0),FALSE) ->  | D43: =VLOOKUP(YEAR($B43)&"-"&MONTH($B43),MData!$A:$NJ,MATCH(D$5&"("&factor_selected&")",MData!$7:$7,0),FALSE) ->  | E43: =VLOOKUP(YEAR($B43)&"-"&MONTH($B43),MData!$A:$NJ,MATCH(E$5&"("&factor_selected&")",MData!$7:$7,0),FALSE) ->  | F43: =VLOOKUP(YEAR($B43)&"-"&MONTH($B43),MData!$A:$NJ,MATCH(F$5&"("&factor_selected&")",MData!$7:$7,0),FALSE) ->  | G43: =VLOOKUP(YEAR($B43)&"-"&MONTH($B43),MData!$A:$NJ,MATCH(G$5&"("&factor_selected&")",MData!$7:$7,0),FALSE) ->  | H43: =VLOOKUP(YEAR($B43)&"-"&MONTH($B43),MData!$A:$NJ,MATCH(H$5&"("&factor_selected&")",MData!$7:$7,0),FALSE) ->  | I43: =VLOOKUP(YEAR($B43)&"-"&MONTH($B43),MData!$A:$NJ,MATCH(I$5&"("&factor_selected&")",MData!$7:$7,0),FALSE) ->  | J43: =VLOOKUP(YEAR($B43)&"-"&MONTH($B43),MData!$A:$NJ,MATCH(J$5&"("&factor_selected&")",MData!$7:$7,0),FALSE) ->  | K43: =VLOOKUP(YEAR($B43)&"-"&MONTH($B43),MData!$A:$NJ,MATCH(K$5&"("&factor_selected&")",MData!$7:$7,0),FALSE) ->  | L43: =VLOOKUP(YEAR($B43)&"-"&MONTH($B43),MData!$A:$NJ,MATCH(L$5&"("&factor_selected&")",MData!$7:$7,0),FALSE) ->  | M43: =VLOOKUP(YEAR($B43)&"-"&MONTH($B43),MData!$A:$NJ,MATCH(M$5&"("&factor_selected&")",MData!$7:$7,0),FALSE) ->  | N43: =VLOOKUP(YEAR($B43)&"-"&MONTH($B43),MData!$A:$NJ,MATCH(N$5&"("&factor_selected&")",MData!$7:$7,0),FALSE) ->  | O43: =VLOOKUP(YEAR($B43)&"-"&MONTH($B43),MData!$A:$NJ,MATCH(O$5&"("&factor_selected&")",MData!$7:$7,0),FALSE) ->  | P43: =VLOOKUP(YEAR($B43)&"-"&MONTH($B43),MData!$A:$NJ,MATCH(P$5&"("&factor_selected&")",MData!$7:$7,0),FALSE) ->  | Q43: =VLOOKUP(YEAR($B43)&"-"&MONTH($B43),MData!$A:$NJ,MATCH(Q$5&"("&factor_selected&")",MData!$7:$7,0),FALSE) ->  | R43: =VLOOKUP(YEAR($B43)&"-"&MONTH($B43),MData!$A:$NJ,MATCH(R$5&"("&factor_selected&")",MData!$7:$7,0),FALSE) -> 
B44: 1983-02-28 | C44: =VLOOKUP(YEAR($B44)&"-"&MONTH($B44),MData!$A:$NJ,MATCH(C$5&"("&factor_selected&")",MData!$7:$7,0),FALSE) ->  | D44: =VLOOKUP(YEAR($B44)&"-"&MONTH($B44),MData!$A:$NJ,MATCH(D$5&"("&factor_selected&")",MData!$7:$7,0),FALSE) ->  | E44: =VLOOKUP(YEAR($B44)&"-"&MONTH($B44),MData!$A:$NJ,MATCH(E$5&"("&factor_selected&")",MData!$7:$7,0),FALSE) ->  | F44: =VLOOKUP(YEAR($B44)&"-"&MONTH($B44),MData!$A:$NJ,MATCH(F$5&"("&factor_selected&")",MData!$7:$7,0),FALSE) ->  | G44: =VLOOKUP(YEAR($B44)&"-"&MONTH($B44),MData!$A:$NJ,MATCH(G$5&"("&factor_selected&")",MData!$7:$7,0),FALSE) ->  | H44: =VLOOKUP(YEAR($B44)&"-"&MONTH($B44),MData!$A:$NJ,MATCH(H$5&"("&factor_selected&")",MData!$7:$7,0),FALSE) ->  | I44: =VLOOKUP(YEAR($B44)&"-"&MONTH($B44),MData!$A:$NJ,MATCH(I$5&"("&factor_selected&")",MData!$7:$7,0),FALSE) ->  | J44: =VLOOKUP(YEAR($B44)&"-"&MONTH($B44),MData!$A:$NJ,MATCH(J$5&"("&factor_selected&")",MData!$7:$7,0),FALSE) ->  | K44: =VLOOKUP(YEAR($B44)&"-"&MONTH($B44),MData!$A:$NJ,MATCH(K$5&"("&factor_selected&")",MData!$7:$7,0),FALSE) ->  | L44: =VLOOKUP(YEAR($B44)&"-"&MONTH($B44),MData!$A:$NJ,MATCH(L$5&"("&factor_selected&")",MData!$7:$7,0),FALSE) ->  | M44: =VLOOKUP(YEAR($B44)&"-"&MONTH($B44),MData!$A:$NJ,MATCH(M$5&"("&factor_selected&")",MData!$7:$7,0),FALSE) ->  | N44: =VLOOKUP(YEAR($B44)&"-"&MONTH($B44),MData!$A:$NJ,MATCH(N$5&"("&factor_selected&")",MData!$7:$7,0),FALSE) ->  | O44: =VLOOKUP(YEAR($B44)&"-"&MONTH($B44),MData!$A:$NJ,MATCH(O$5&"("&factor_selected&")",MData!$7:$7,0),FALSE) ->  | P44: =VLOOKUP(YEAR($B44)&"-"&MONTH($B44),MData!$A:$NJ,MATCH(P$5&"("&factor_selected&")",MData!$7:$7,0),FALSE) ->  | Q44: =VLOOKUP(YEAR($B44)&"-"&MONTH($B44),MData!$A:$NJ,MATCH(Q$5&"("&factor_selected&")",MData!$7:$7,0),FALSE) ->  | R44: =VLOOKUP(YEAR($B44)&"-"&MONTH($B44),MData!$A:$NJ,MATCH(R$5&"("&factor_selected&")",MData!$7:$7,0),FALSE) -> 
B45: 1983-03-31 | C45: =VLOOKUP(YEAR($B45)&"-"&MONTH($B45),MData!$A:$NJ,MATCH(C$5&"("&factor_selected&")",MData!$7:$7,0),FALSE) ->  | D45: =VLOOKUP(YEAR($B45)&"-"&MONTH($B45),MData!$A:$NJ,MATCH(D$5&"("&factor_selected&")",MData!$7:$7,0),FALSE) ->  | E45: =VLOOKUP(YEAR($B45)&"-"&MONTH($B45),MData!$A:$NJ,MATCH(E$5&"("&factor_selected&")",MData!$7:$7,0),FALSE) ->  | F45: =VLOOKUP(YEAR($B45)&"-"&MONTH($B45),MData!$A:$NJ,MATCH(F$5&"("&factor_selected&")",MData!$7:$7,0),FALSE) ->  | G45: =VLOOKUP(YEAR($B45)&"-"&MONTH($B45),MData!$A:$NJ,MATCH(G$5&"("&factor_selected&")",MData!$7:$7,0),FALSE) ->  | H45: =VLOOKUP(YEAR($B45)&"-"&MONTH($B45),MData!$A:$NJ,MATCH(H$5&"("&factor_selected&")",MData!$7:$7,0),FALSE) ->  | I45: =VLOOKUP(YEAR($B45)&"-"&MONTH($B45),MData!$A:$NJ,MATCH(I$5&"("&factor_selected&")",MData!$7:$7,0),FALSE) ->  | J45: =VLOOKUP(YEAR($B45)&"-"&MONTH($B45),MData!$A:$NJ,MATCH(J$5&"("&factor_selected&")",MData!$7:$7,0),FALSE) ->  | K45: =VLOOKUP(YEAR($B45)&"-"&MONTH($B45),MData!$A:$NJ,MATCH(K$5&"("&factor_selected&")",MData!$7:$7,0),FALSE) ->  | L45: =VLOOKUP(YEAR($B45)&"-"&MONTH($B45),MData!$A:$NJ,MATCH(L$5&"("&factor_selected&")",MData!$7:$7,0),FALSE) ->  | M45: =VLOOKUP(YEAR($B45)&"-"&MONTH($B45),MData!$A:$NJ,MATCH(M$5&"("&factor_selected&")",MData!$7:$7,0),FALSE) ->  | N45: =VLOOKUP(YEAR($B45)&"-"&MONTH($B45),MData!$A:$NJ,MATCH(N$5&"("&factor_selected&")",MData!$7:$7,0),FALSE) ->  | O45: =VLOOKUP(YEAR($B45)&"-"&MONTH($B45),MData!$A:$NJ,MATCH(O$5&"("&factor_selected&")",MData!$7:$7,0),FALSE) ->  | P45: =VLOOKUP(YEAR($B45)&"-"&MONTH($B45),MData!$A:$NJ,MATCH(P$5&"("&factor_selected&")",MData!$7:$7,0),FALSE) ->  | Q45: =VLOOKUP(YEAR($B45)&"-"&MONTH($B45),MData!$A:$NJ,MATCH(Q$5&"("&factor_selected&")",MData!$7:$7,0),FALSE) ->  | R45: =VLOOKUP(YEAR($B45)&"-"&MONTH($B45),MData!$A:$NJ,MATCH(R$5&"("&factor_selected&")",MData!$7:$7,0),FALSE) -> 
B46: 1983-04-30 | C46: =VLOOKUP(YEAR($B46)&"-"&MONTH($B46),MData!$A:$NJ,MATCH(C$5&"("&factor_selected&")",MData!$7:$7,0),FALSE) ->  | D46: =VLOOKUP(YEAR($B46)&"-"&MONTH($B46),MData!$A:$NJ,MATCH(D$5&"("&factor_selected&")",MData!$7:$7,0),FALSE) ->  | E46: =VLOOKUP(YEAR($B46)&"-"&MONTH($B46),MData!$A:$NJ,MATCH(E$5&"("&factor_selected&")",MData!$7:$7,0),FALSE) ->  | F46: =VLOOKUP(YEAR($B46)&"-"&MONTH($B46),MData!$A:$NJ,MATCH(F$5&"("&factor_selected&")",MData!$7:$7,0),FALSE) ->  | G46: =VLOOKUP(YEAR($B46)&"-"&MONTH($B46),MData!$A:$NJ,MATCH(G$5&"("&factor_selected&")",MData!$7:$7,0),FALSE) ->  | H46: =VLOOKUP(YEAR($B46)&"-"&MONTH($B46),MData!$A:$NJ,MATCH(H$5&"("&factor_selected&")",MData!$7:$7,0),FALSE) ->  | I46: =VLOOKUP(YEAR($B46)&"-"&MONTH($B46),MData!$A:$NJ,MATCH(I$5&"("&factor_selected&")",MData!$7:$7,0),FALSE) ->  | J46: =VLOOKUP(YEAR($B46)&"-"&MONTH($B46),MData!$A:$NJ,MATCH(J$5&"("&factor_selected&")",MData!$7:$7,0),FALSE) ->  | K46: =VLOOKUP(YEAR($B46)&"-"&MONTH($B46),MData!$A:$NJ,MATCH(K$5&"("&factor_selected&")",MData!$7:$7,0),FALSE) ->  | L46: =VLOOKUP(YEAR($B46)&"-"&MONTH($B46),MData!$A:$NJ,MATCH(L$5&"("&factor_selected&")",MData!$7:$7,0),FALSE) ->  | M46: =VLOOKUP(YEAR($B46)&"-"&MONTH($B46),MData!$A:$NJ,MATCH(M$5&"("&factor_selected&")",MData!$7:$7,0),FALSE) ->  | N46: =VLOOKUP(YEAR($B46)&"-"&MONTH($B46),MData!$A:$NJ,MATCH(N$5&"("&factor_selected&")",MData!$7:$7,0),FALSE) ->  | O46: =VLOOKUP(YEAR($B46)&"-"&MONTH($B46),MData!$A:$NJ,MATCH(O$5&"("&factor_selected&")",MData!$7:$7,0),FALSE) ->  | P46: =VLOOKUP(YEAR($B46)&"-"&MONTH($B46),MData!$A:$NJ,MATCH(P$5&"("&factor_selected&")",MData!$7:$7,0),FALSE) ->  | Q46: =VLOOKUP(YEAR($B46)&"-"&MONTH($B46),MData!$A:$NJ,MATCH(Q$5&"("&factor_selected&")",MData!$7:$7,0),FALSE) ->  | R46: =VLOOKUP(YEAR($B46)&"-"&MONTH($B46),MData!$A:$NJ,MATCH(R$5&"("&factor_selected&")",MData!$7:$7,0),FALSE) -> 
B47: 1983-05-31 | C47: =VLOOKUP(YEAR($B47)&"-"&MONTH($B47),MData!$A:$NJ,MATCH(C$5&"("&factor_selected&")",MData!$7:$7,0),FALSE) ->  | D47: =VLOOKUP(YEAR($B47)&"-"&MONTH($B47),MData!$A:$NJ,MATCH(D$5&"("&factor_selected&")",MData!$7:$7,0),FALSE) ->  | E47: =VLOOKUP(YEAR($B47)&"-"&MONTH($B47),MData!$A:$NJ,MATCH(E$5&"("&factor_selected&")",MData!$7:$7,0),FALSE) ->  | F47: =VLOOKUP(YEAR($B47)&"-"&MONTH($B47),MData!$A:$NJ,MATCH(F$5&"("&factor_selected&")",MData!$7:$7,0),FALSE) ->  | G47: =VLOOKUP(YEAR($B47)&"-"&MONTH($B47),MData!$A:$NJ,MATCH(G$5&"("&factor_selected&")",MData!$7:$7,0),FALSE) ->  | H47: =VLOOKUP(YEAR($B47)&"-"&MONTH($B47),MData!$A:$NJ,MATCH(H$5&"("&factor_selected&")",MData!$7:$7,0),FALSE) ->  | I47: =VLOOKUP(YEAR($B47)&"-"&MONTH($B47),MData!$A:$NJ,MATCH(I$5&"("&factor_selected&")",MData!$7:$7,0),FALSE) ->  | J47: =VLOOKUP(YEAR($B47)&"-"&MONTH($B47),MData!$A:$NJ,MATCH(J$5&"("&factor_selected&")",MData!$7:$7,0),FALSE) ->  | K47: =VLOOKUP(YEAR($B47)&"-"&MONTH($B47),MData!$A:$NJ,MATCH(K$5&"("&factor_selected&")",MData!$7:$7,0),FALSE) ->  | L47: =VLOOKUP(YEAR($B47)&"-"&MONTH($B47),MData!$A:$NJ,MATCH(L$5&"("&factor_selected&")",MData!$7:$7,0),FALSE) ->  | M47: =VLOOKUP(YEAR($B47)&"-"&MONTH($B47),MData!$A:$NJ,MATCH(M$5&"("&factor_selected&")",MData!$7:$7,0),FALSE) ->  | N47: =VLOOKUP(YEAR($B47)&"-"&MONTH($B47),MData!$A:$NJ,MATCH(N$5&"("&factor_selected&")",MData!$7:$7,0),FALSE) ->  | O47: =VLOOKUP(YEAR($B47)&"-"&MONTH($B47),MData!$A:$NJ,MATCH(O$5&"("&factor_selected&")",MData!$7:$7,0),FALSE) ->  | P47: =VLOOKUP(YEAR($B47)&"-"&MONTH($B47),MData!$A:$NJ,MATCH(P$5&"("&factor_selected&")",MData!$7:$7,0),FALSE) ->  | Q47: =VLOOKUP(YEAR($B47)&"-"&MONTH($B47),MData!$A:$NJ,MATCH(Q$5&"("&factor_selected&")",MData!$7:$7,0),FALSE) ->  | R47: =VLOOKUP(YEAR($B47)&"-"&MONTH($B47),MData!$A:$NJ,MATCH(R$5&"("&factor_selected&")",MData!$7:$7,0),FALSE) -> 
B48: 1983-06-30 | C48: =VLOOKUP(YEAR($B48)&"-"&MONTH($B48),MData!$A:$NJ,MATCH(C$5&"("&factor_selected&")",MData!$7:$7,0),FALSE) ->  | D48: =VLOOKUP(YEAR($B48)&"-"&MONTH($B48),MData!$A:$NJ,MATCH(D$5&"("&factor_selected&")",MData!$7:$7,0),FALSE) ->  | E48: =VLOOKUP(YEAR($B48)&"-"&MONTH($B48),MData!$A:$NJ,MATCH(E$5&"("&factor_selected&")",MData!$7:$7,0),FALSE) ->  | F48: =VLOOKUP(YEAR($B48)&"-"&MONTH($B48),MData!$A:$NJ,MATCH(F$5&"("&factor_selected&")",MData!$7:$7,0),FALSE) ->  | G48: =VLOOKUP(YEAR($B48)&"-"&MONTH($B48),MData!$A:$NJ,MATCH(G$5&"("&factor_selected&")",MData!$7:$7,0),FALSE) ->  | H48: =VLOOKUP(YEAR($B48)&"-"&MONTH($B48),MData!$A:$NJ,MATCH(H$5&"("&factor_selected&")",MData!$7:$7,0),FALSE) ->  | I48: =VLOOKUP(YEAR($B48)&"-"&MONTH($B48),MData!$A:$NJ,MATCH(I$5&"("&factor_selected&")",MData!$7:$7,0),FALSE) ->  | J48: =VLOOKUP(YEAR($B48)&"-"&MONTH($B48),MData!$A:$NJ,MATCH(J$5&"("&factor_selected&")",MData!$7:$7,0),FALSE) ->  | K48: =VLOOKUP(YEAR($B48)&"-"&MONTH($B48),MData!$A:$NJ,MATCH(K$5&"("&factor_selected&")",MData!$7:$7,0),FALSE) ->  | L48: =VLOOKUP(YEAR($B48)&"-"&MONTH($B48),MData!$A:$NJ,MATCH(L$5&"("&factor_selected&")",MData!$7:$7,0),FALSE) ->  | M48: =VLOOKUP(YEAR($B48)&"-"&MONTH($B48),MData!$A:$NJ,MATCH(M$5&"("&factor_selected&")",MData!$7:$7,0),FALSE) ->  | N48: =VLOOKUP(YEAR($B48)&"-"&MONTH($B48),MData!$A:$NJ,MATCH(N$5&"("&factor_selected&")",MData!$7:$7,0),FALSE) ->  | O48: =VLOOKUP(YEAR($B48)&"-"&MONTH($B48),MData!$A:$NJ,MATCH(O$5&"("&factor_selected&")",MData!$7:$7,0),FALSE) ->  | P48: =VLOOKUP(YEAR($B48)&"-"&MONTH($B48),MData!$A:$NJ,MATCH(P$5&"("&factor_selected&")",MData!$7:$7,0),FALSE) ->  | Q48: =VLOOKUP(YEAR($B48)&"-"&MONTH($B48),MData!$A:$NJ,MATCH(Q$5&"("&factor_selected&")",MData!$7:$7,0),FALSE) ->  | R48: =VLOOKUP(YEAR($B48)&"-"&MONTH($B48),MData!$A:$NJ,MATCH(R$5&"("&factor_selected&")",MData!$7:$7,0),FALSE) -> 
B49: 1983-07-31 | C49: =VLOOKUP(YEAR($B49)&"-"&MONTH($B49),MData!$A:$NJ,MATCH(C$5&"("&factor_selected&")",MData!$7:$7,0),FALSE) ->  | D49: =VLOOKUP(YEAR($B49)&"-"&MONTH($B49),MData!$A:$NJ,MATCH(D$5&"("&factor_selected&")",MData!$7:$7,0),FALSE) ->  | E49: =VLOOKUP(YEAR($B49)&"-"&MONTH($B49),MData!$A:$NJ,MATCH(E$5&"("&factor_selected&")",MData!$7:$7,0),FALSE) ->  | F49: =VLOOKUP(YEAR($B49)&"-"&MONTH($B49),MData!$A:$NJ,MATCH(F$5&"("&factor_selected&")",MData!$7:$7,0),FALSE) ->  | G49: =VLOOKUP(YEAR($B49)&"-"&MONTH($B49),MData!$A:$NJ,MATCH(G$5&"("&factor_selected&")",MData!$7:$7,0),FALSE) ->  | H49: =VLOOKUP(YEAR($B49)&"-"&MONTH($B49),MData!$A:$NJ,MATCH(H$5&"("&factor_selected&")",MData!$7:$7,0),FALSE) ->  | I49: =VLOOKUP(YEAR($B49)&"-"&MONTH($B49),MData!$A:$NJ,MATCH(I$5&"("&factor_selected&")",MData!$7:$7,0),FALSE) ->  | J49: =VLOOKUP(YEAR($B49)&"-"&MONTH($B49),MData!$A:$NJ,MATCH(J$5&"("&factor_selected&")",MData!$7:$7,0),FALSE) ->  | K49: =VLOOKUP(YEAR($B49)&"-"&MONTH($B49),MData!$A:$NJ,MATCH(K$5&"("&factor_selected&")",MData!$7:$7,0),FALSE) ->  | L49: =VLOOKUP(YEAR($B49)&"-"&MONTH($B49),MData!$A:$NJ,MATCH(L$5&"("&factor_selected&")",MData!$7:$7,0),FALSE) ->  | M49: =VLOOKUP(YEAR($B49)&"-"&MONTH($B49),MData!$A:$NJ,MATCH(M$5&"("&factor_selected&")",MData!$7:$7,0),FALSE) ->  | N49: =VLOOKUP(YEAR($B49)&"-"&MONTH($B49),MData!$A:$NJ,MATCH(N$5&"("&factor_selected&")",MData!$7:$7,0),FALSE) ->  | O49: =VLOOKUP(YEAR($B49)&"-"&MONTH($B49),MData!$A:$NJ,MATCH(O$5&"("&factor_selected&")",MData!$7:$7,0),FALSE) ->  | P49: =VLOOKUP(YEAR($B49)&"-"&MONTH($B49),MData!$A:$NJ,MATCH(P$5&"("&factor_selected&")",MData!$7:$7,0),FALSE) ->  | Q49: =VLOOKUP(YEAR($B49)&"-"&MONTH($B49),MData!$A:$NJ,MATCH(Q$5&"("&factor_selected&")",MData!$7:$7,0),FALSE) ->  | R49: =VLOOKUP(YEAR($B49)&"-"&MONTH($B49),MData!$A:$NJ,MATCH(R$5&"("&factor_selected&")",MData!$7:$7,0),FALSE) -> 
B50: 1983-08-31 | C50: =VLOOKUP(YEAR($B50)&"-"&MONTH($B50),MData!$A:$NJ,MATCH(C$5&"("&factor_selected&")",MData!$7:$7,0),FALSE) ->  | D50: =VLOOKUP(YEAR($B50)&"-"&MONTH($B50),MData!$A:$NJ,MATCH(D$5&"("&factor_selected&")",MData!$7:$7,0),FALSE) ->  | E50: =VLOOKUP(YEAR($B50)&"-"&MONTH($B50),MData!$A:$NJ,MATCH(E$5&"("&factor_selected&")",MData!$7:$7,0),FALSE) ->  | F50: =VLOOKUP(YEAR($B50)&"-"&MONTH($B50),MData!$A:$NJ,MATCH(F$5&"("&factor_selected&")",MData!$7:$7,0),FALSE) ->  | G50: =VLOOKUP(YEAR($B50)&"-"&MONTH($B50),MData!$A:$NJ,MATCH(G$5&"("&factor_selected&")",MData!$7:$7,0),FALSE) ->  | H50: =VLOOKUP(YEAR($B50)&"-"&MONTH($B50),MData!$A:$NJ,MATCH(H$5&"("&factor_selected&")",MData!$7:$7,0),FALSE) ->  | I50: =VLOOKUP(YEAR($B50)&"-"&MONTH($B50),MData!$A:$NJ,MATCH(I$5&"("&factor_selected&")",MData!$7:$7,0),FALSE) ->  | J50: =VLOOKUP(YEAR($B50)&"-"&MONTH($B50),MData!$A:$NJ,MATCH(J$5&"("&factor_selected&")",MData!$7:$7,0),FALSE) ->  | K50: =VLOOKUP(YEAR($B50)&"-"&MONTH($B50),MData!$A:$NJ,MATCH(K$5&"("&factor_selected&")",MData!$7:$7,0),FALSE) ->  | L50: =VLOOKUP(YEAR($B50)&"-"&MONTH($B50),MData!$A:$NJ,MATCH(L$5&"("&factor_selected&")",MData!$7:$7,0),FALSE) ->  | M50: =VLOOKUP(YEAR($B50)&"-"&MONTH($B50),MData!$A:$NJ,MATCH(M$5&"("&factor_selected&")",MData!$7:$7,0),FALSE) ->  | N50: =VLOOKUP(YEAR($B50)&"-"&MONTH($B50),MData!$A:$NJ,MATCH(N$5&"("&factor_selected&")",MData!$7:$7,0),FALSE) ->  | O50: =VLOOKUP(YEAR($B50)&"-"&MONTH($B50),MData!$A:$NJ,MATCH(O$5&"("&factor_selected&")",MData!$7:$7,0),FALSE) ->  | P50: =VLOOKUP(YEAR($B50)&"-"&MONTH($B50),MData!$A:$NJ,MATCH(P$5&"("&factor_selected&")",MData!$7:$7,0),FALSE) ->  | Q50: =VLOOKUP(YEAR($B50)&"-"&MONTH($B50),MData!$A:$NJ,MATCH(Q$5&"("&factor_selected&")",MData!$7:$7,0),FALSE) ->  | R50: =VLOOKUP(YEAR($B50)&"-"&MONTH($B50),MData!$A:$NJ,MATCH(R$5&"("&factor_selected&")",MData!$7:$7,0),FALSE) -> 
B51: 1983-09-30 | C51: =VLOOKUP(YEAR($B51)&"-"&MONTH($B51),MData!$A:$NJ,MATCH(C$5&"("&factor_selected&")",MData!$7:$7,0),FALSE) ->  | D51: =VLOOKUP(YEAR($B51)&"-"&MONTH($B51),MData!$A:$NJ,MATCH(D$5&"("&factor_selected&")",MData!$7:$7,0),FALSE) ->  | E51: =VLOOKUP(YEAR($B51)&"-"&MONTH($B51),MData!$A:$NJ,MATCH(E$5&"("&factor_selected&")",MData!$7:$7,0),FALSE) ->  | F51: =VLOOKUP(YEAR($B51)&"-"&MONTH($B51),MData!$A:$NJ,MATCH(F$5&"("&factor_selected&")",MData!$7:$7,0),FALSE) ->  | G51: =VLOOKUP(YEAR($B51)&"-"&MONTH($B51),MData!$A:$NJ,MATCH(G$5&"("&factor_selected&")",MData!$7:$7,0),FALSE) ->  | H51: =VLOOKUP(YEAR($B51)&"-"&MONTH($B51),MData!$A:$NJ,MATCH(H$5&"("&factor_selected&")",MData!$7:$7,0),FALSE) ->  | I51: =VLOOKUP(YEAR($B51)&"-"&MONTH($B51),MData!$A:$NJ,MATCH(I$5&"("&factor_selected&")",MData!$7:$7,0),FALSE) ->  | J51: =VLOOKUP(YEAR($B51)&"-"&MONTH($B51),MData!$A:$NJ,MATCH(J$5&"("&factor_selected&")",MData!$7:$7,0),FALSE) ->  | K51: =VLOOKUP(YEAR($B51)&"-"&MONTH($B51),MData!$A:$NJ,MATCH(K$5&"("&factor_selected&")",MData!$7:$7,0),FALSE) ->  | L51: =VLOOKUP(YEAR($B51)&"-"&MONTH($B51),MData!$A:$NJ,MATCH(L$5&"("&factor_selected&")",MData!$7:$7,0),FALSE) ->  | M51: =VLOOKUP(YEAR($B51)&"-"&MONTH($B51),MData!$A:$NJ,MATCH(M$5&"("&factor_selected&")",MData!$7:$7,0),FALSE) ->  | N51: =VLOOKUP(YEAR($B51)&"-"&MONTH($B51),MData!$A:$NJ,MATCH(N$5&"("&factor_selected&")",MData!$7:$7,0),FALSE) ->  | O51: =VLOOKUP(YEAR($B51)&"-"&MONTH($B51),MData!$A:$NJ,MATCH(O$5&"("&factor_selected&")",MData!$7:$7,0),FALSE) ->  | P51: =VLOOKUP(YEAR($B51)&"-"&MONTH($B51),MData!$A:$NJ,MATCH(P$5&"("&factor_selected&")",MData!$7:$7,0),FALSE) ->  | Q51: =VLOOKUP(YEAR($B51)&"-"&MONTH($B51),MData!$A:$NJ,MATCH(Q$5&"("&factor_selected&")",MData!$7:$7,0),FALSE) ->  | R51: =VLOOKUP(YEAR($B51)&"-"&MONTH($B51),MData!$A:$NJ,MATCH(R$5&"("&factor_selected&")",MData!$7:$7,0),FALSE) -> 
B52: 1983-10-31 | C52: =VLOOKUP(YEAR($B52)&"-"&MONTH($B52),MData!$A:$NJ,MATCH(C$5&"("&factor_selected&")",MData!$7:$7,0),FALSE) ->  | D52: =VLOOKUP(YEAR($B52)&"-"&MONTH($B52),MData!$A:$NJ,MATCH(D$5&"("&factor_selected&")",MData!$7:$7,0),FALSE) ->  | E52: =VLOOKUP(YEAR($B52)&"-"&MONTH($B52),MData!$A:$NJ,MATCH(E$5&"("&factor_selected&")",MData!$7:$7,0),FALSE) ->  | F52: =VLOOKUP(YEAR($B52)&"-"&MONTH($B52),MData!$A:$NJ,MATCH(F$5&"("&factor_selected&")",MData!$7:$7,0),FALSE) ->  | G52: =VLOOKUP(YEAR($B52)&"-"&MONTH($B52),MData!$A:$NJ,MATCH(G$5&"("&factor_selected&")",MData!$7:$7,0),FALSE) ->  | H52: =VLOOKUP(YEAR($B52)&"-"&MONTH($B52),MData!$A:$NJ,MATCH(H$5&"("&factor_selected&")",MData!$7:$7,0),FALSE) ->  | I52: =VLOOKUP(YEAR($B52)&"-"&MONTH($B52),MData!$A:$NJ,MATCH(I$5&"("&factor_selected&")",MData!$7:$7,0),FALSE) ->  | J52: =VLOOKUP(YEAR($B52)&"-"&MONTH($B52),MData!$A:$NJ,MATCH(J$5&"("&factor_selected&")",MData!$7:$7,0),FALSE) ->  | K52: =VLOOKUP(YEAR($B52)&"-"&MONTH($B52),MData!$A:$NJ,MATCH(K$5&"("&factor_selected&")",MData!$7:$7,0),FALSE) ->  | L52: =VLOOKUP(YEAR($B52)&"-"&MONTH($B52),MData!$A:$NJ,MATCH(L$5&"("&factor_selected&")",MData!$7:$7,0),FALSE) ->  | M52: =VLOOKUP(YEAR($B52)&"-"&MONTH($B52),MData!$A:$NJ,MATCH(M$5&"("&factor_selected&")",MData!$7:$7,0),FALSE) ->  | N52: =VLOOKUP(YEAR($B52)&"-"&MONTH($B52),MData!$A:$NJ,MATCH(N$5&"("&factor_selected&")",MData!$7:$7,0),FALSE) ->  | O52: =VLOOKUP(YEAR($B52)&"-"&MONTH($B52),MData!$A:$NJ,MATCH(O$5&"("&factor_selected&")",MData!$7:$7,0),FALSE) ->  | P52: =VLOOKUP(YEAR($B52)&"-"&MONTH($B52),MData!$A:$NJ,MATCH(P$5&"("&factor_selected&")",MData!$7:$7,0),FALSE) ->  | Q52: =VLOOKUP(YEAR($B52)&"-"&MONTH($B52),MData!$A:$NJ,MATCH(Q$5&"("&factor_selected&")",MData!$7:$7,0),FALSE) ->  | R52: =VLOOKUP(YEAR($B52)&"-"&MONTH($B52),MData!$A:$NJ,MATCH(R$5&"("&factor_selected&")",MData!$7:$7,0),FALSE) -> 
B53: 1983-11-30 | C53: =VLOOKUP(YEAR($B53)&"-"&MONTH($B53),MData!$A:$NJ,MATCH(C$5&"("&factor_selected&")",MData!$7:$7,0),FALSE) ->  | D53: =VLOOKUP(YEAR($B53)&"-"&MONTH($B53),MData!$A:$NJ,MATCH(D$5&"("&factor_selected&")",MData!$7:$7,0),FALSE) ->  | E53: =VLOOKUP(YEAR($B53)&"-"&MONTH($B53),MData!$A:$NJ,MATCH(E$5&"("&factor_selected&")",MData!$7:$7,0),FALSE) ->  | F53: =VLOOKUP(YEAR($B53)&"-"&MONTH($B53),MData!$A:$NJ,MATCH(F$5&"("&factor_selected&")",MData!$7:$7,0),FALSE) ->  | G53: =VLOOKUP(YEAR($B53)&"-"&MONTH($B53),MData!$A:$NJ,MATCH(G$5&"("&factor_selected&")",MData!$7:$7,0),FALSE) ->  | H53: =VLOOKUP(YEAR($B53)&"-"&MONTH($B53),MData!$A:$NJ,MATCH(H$5&"("&factor_selected&")",MData!$7:$7,0),FALSE) ->  | I53: =VLOOKUP(YEAR($B53)&"-"&MONTH($B53),MData!$A:$NJ,MATCH(I$5&"("&factor_selected&")",MData!$7:$7,0),FALSE) ->  | J53: =VLOOKUP(YEAR($B53)&"-"&MONTH($B53),MData!$A:$NJ,MATCH(J$5&"("&factor_selected&")",MData!$7:$7,0),FALSE) ->  | K53: =VLOOKUP(YEAR($B53)&"-"&MONTH($B53),MData!$A:$NJ,MATCH(K$5&"("&factor_selected&")",MData!$7:$7,0),FALSE) ->  | L53: =VLOOKUP(YEAR($B53)&"-"&MONTH($B53),MData!$A:$NJ,MATCH(L$5&"("&factor_selected&")",MData!$7:$7,0),FALSE) ->  | M53: =VLOOKUP(YEAR($B53)&"-"&MONTH($B53),MData!$A:$NJ,MATCH(M$5&"("&factor_selected&")",MData!$7:$7,0),FALSE) ->  | N53: =VLOOKUP(YEAR($B53)&"-"&MONTH($B53),MData!$A:$NJ,MATCH(N$5&"("&factor_selected&")",MData!$7:$7,0),FALSE) ->  | O53: =VLOOKUP(YEAR($B53)&"-"&MONTH($B53),MData!$A:$NJ,MATCH(O$5&"("&factor_selected&")",MData!$7:$7,0),FALSE) ->  | P53: =VLOOKUP(YEAR($B53)&"-"&MONTH($B53),MData!$A:$NJ,MATCH(P$5&"("&factor_selected&")",MData!$7:$7,0),FALSE) ->  | Q53: =VLOOKUP(YEAR($B53)&"-"&MONTH($B53),MData!$A:$NJ,MATCH(Q$5&"("&factor_selected&")",MData!$7:$7,0),FALSE) ->  | R53: =VLOOKUP(YEAR($B53)&"-"&MONTH($B53),MData!$A:$NJ,MATCH(R$5&"("&factor_selected&")",MData!$7:$7,0),FALSE) -> 
B54: 1983-12-31 | C54: =VLOOKUP(YEAR($B54)&"-"&MONTH($B54),MData!$A:$NJ,MATCH(C$5&"("&factor_selected&")",MData!$7:$7,0),FALSE) ->  | D54: =VLOOKUP(YEAR($B54)&"-"&MONTH($B54),MData!$A:$NJ,MATCH(D$5&"("&factor_selected&")",MData!$7:$7,0),FALSE) ->  | E54: =VLOOKUP(YEAR($B54)&"-"&MONTH($B54),MData!$A:$NJ,MATCH(E$5&"("&factor_selected&")",MData!$7:$7,0),FALSE) ->  | F54: =VLOOKUP(YEAR($B54)&"-"&MONTH($B54),MData!$A:$NJ,MATCH(F$5&"("&factor_selected&")",MData!$7:$7,0),FALSE) ->  | G54: =VLOOKUP(YEAR($B54)&"-"&MONTH($B54),MData!$A:$NJ,MATCH(G$5&"("&factor_selected&")",MData!$7:$7,0),FALSE) ->  | H54: =VLOOKUP(YEAR($B54)&"-"&MONTH($B54),MData!$A:$NJ,MATCH(H$5&"("&factor_selected&")",MData!$7:$7,0),FALSE) ->  | I54: =VLOOKUP(YEAR($B54)&"-"&MONTH($B54),MData!$A:$NJ,MATCH(I$5&"("&factor_selected&")",MData!$7:$7,0),FALSE) ->  | J54: =VLOOKUP(YEAR($B54)&"-"&MONTH($B54),MData!$A:$NJ,MATCH(J$5&"("&factor_selected&")",MData!$7:$7,0),FALSE) ->  | K54: =VLOOKUP(YEAR($B54)&"-"&MONTH($B54),MData!$A:$NJ,MATCH(K$5&"("&factor_selected&")",MData!$7:$7,0),FALSE) ->  | L54: =VLOOKUP(YEAR($B54)&"-"&MONTH($B54),MData!$A:$NJ,MATCH(L$5&"("&factor_selected&")",MData!$7:$7,0),FALSE) ->  | M54: =VLOOKUP(YEAR($B54)&"-"&MONTH($B54),MData!$A:$NJ,MATCH(M$5&"("&factor_selected&")",MData!$7:$7,0),FALSE) ->  | N54: =VLOOKUP(YEAR($B54)&"-"&MONTH($B54),MData!$A:$NJ,MATCH(N$5&"("&factor_selected&")",MData!$7:$7,0),FALSE) ->  | O54: =VLOOKUP(YEAR($B54)&"-"&MONTH($B54),MData!$A:$NJ,MATCH(O$5&"("&factor_selected&")",MData!$7:$7,0),FALSE) ->  | P54: =VLOOKUP(YEAR($B54)&"-"&MONTH($B54),MData!$A:$NJ,MATCH(P$5&"("&factor_selected&")",MData!$7:$7,0),FALSE) ->  | Q54: =VLOOKUP(YEAR($B54)&"-"&MONTH($B54),MData!$A:$NJ,MATCH(Q$5&"("&factor_selected&")",MData!$7:$7,0),FALSE) ->  | R54: =VLOOKUP(YEAR($B54)&"-"&MONTH($B54),MData!$A:$NJ,MATCH(R$5&"("&factor_selected&")",MData!$7:$7,0),FALSE) -> 
B55: 1984-01-31 | C55: =VLOOKUP(YEAR($B55)&"-"&MONTH($B55),MData!$A:$NJ,MATCH(C$5&"("&factor_selected&")",MData!$7:$7,0),FALSE) ->  | D55: =VLOOKUP(YEAR($B55)&"-"&MONTH($B55),MData!$A:$NJ,MATCH(D$5&"("&factor_selected&")",MData!$7:$7,0),FALSE) ->  | E55: =VLOOKUP(YEAR($B55)&"-"&MONTH($B55),MData!$A:$NJ,MATCH(E$5&"("&factor_selected&")",MData!$7:$7,0),FALSE) ->  | F55: =VLOOKUP(YEAR($B55)&"-"&MONTH($B55),MData!$A:$NJ,MATCH(F$5&"("&factor_selected&")",MData!$7:$7,0),FALSE) ->  | G55: =VLOOKUP(YEAR($B55)&"-"&MONTH($B55),MData!$A:$NJ,MATCH(G$5&"("&factor_selected&")",MData!$7:$7,0),FALSE) ->  | H55: =VLOOKUP(YEAR($B55)&"-"&MONTH($B55),MData!$A:$NJ,MATCH(H$5&"("&factor_selected&")",MData!$7:$7,0),FALSE) ->  | I55: =VLOOKUP(YEAR($B55)&"-"&MONTH($B55),MData!$A:$NJ,MATCH(I$5&"("&factor_selected&")",MData!$7:$7,0),FALSE) ->  | J55: =VLOOKUP(YEAR($B55)&"-"&MONTH($B55),MData!$A:$NJ,MATCH(J$5&"("&factor_selected&")",MData!$7:$7,0),FALSE) ->  | K55: =VLOOKUP(YEAR($B55)&"-"&MONTH($B55),MData!$A:$NJ,MATCH(K$5&"("&factor_selected&")",MData!$7:$7,0),FALSE) ->  | L55: =VLOOKUP(YEAR($B55)&"-"&MONTH($B55),MData!$A:$NJ,MATCH(L$5&"("&factor_selected&")",MData!$7:$7,0),FALSE) ->  | M55: =VLOOKUP(YEAR($B55)&"-"&MONTH($B55),MData!$A:$NJ,MATCH(M$5&"("&factor_selected&")",MData!$7:$7,0),FALSE) ->  | N55: =VLOOKUP(YEAR($B55)&"-"&MONTH($B55),MData!$A:$NJ,MATCH(N$5&"("&factor_selected&")",MData!$7:$7,0),FALSE) ->  | O55: =VLOOKUP(YEAR($B55)&"-"&MONTH($B55),MData!$A:$NJ,MATCH(O$5&"("&factor_selected&")",MData!$7:$7,0),FALSE) ->  | P55: =VLOOKUP(YEAR($B55)&"-"&MONTH($B55),MData!$A:$NJ,MATCH(P$5&"("&factor_selected&")",MData!$7:$7,0),FALSE) ->  | Q55: =VLOOKUP(YEAR($B55)&"-"&MONTH($B55),MData!$A:$NJ,MATCH(Q$5&"("&factor_selected&")",MData!$7:$7,0),FALSE) ->  | R55: =VLOOKUP(YEAR($B55)&"-"&MONTH($B55),MData!$A:$NJ,MATCH(R$5&"("&factor_selected&")",MData!$7:$7,0),FALSE) -> 
B56: 1984-02-29 | C56: =VLOOKUP(YEAR($B56)&"-"&MONTH($B56),MData!$A:$NJ,MATCH(C$5&"("&factor_selected&")",MData!$7:$7,0),FALSE) ->  | D56: =VLOOKUP(YEAR($B56)&"-"&MONTH($B56),MData!$A:$NJ,MATCH(D$5&"("&factor_selected&")",MData!$7:$7,0),FALSE) ->  | E56: =VLOOKUP(YEAR($B56)&"-"&MONTH($B56),MData!$A:$NJ,MATCH(E$5&"("&factor_selected&")",MData!$7:$7,0),FALSE) ->  | F56: =VLOOKUP(YEAR($B56)&"-"&MONTH($B56),MData!$A:$NJ,MATCH(F$5&"("&factor_selected&")",MData!$7:$7,0),FALSE) ->  | G56: =VLOOKUP(YEAR($B56)&"-"&MONTH($B56),MData!$A:$NJ,MATCH(G$5&"("&factor_selected&")",MData!$7:$7,0),FALSE) ->  | H56: =VLOOKUP(YEAR($B56)&"-"&MONTH($B56),MData!$A:$NJ,MATCH(H$5&"("&factor_selected&")",MData!$7:$7,0),FALSE) ->  | I56: =VLOOKUP(YEAR($B56)&"-"&MONTH($B56),MData!$A:$NJ,MATCH(I$5&"("&factor_selected&")",MData!$7:$7,0),FALSE) ->  | J56: =VLOOKUP(YEAR($B56)&"-"&MONTH($B56),MData!$A:$NJ,MATCH(J$5&"("&factor_selected&")",MData!$7:$7,0),FALSE) ->  | K56: =VLOOKUP(YEAR($B56)&"-"&MONTH($B56),MData!$A:$NJ,MATCH(K$5&"("&factor_selected&")",MData!$7:$7,0),FALSE) ->  | L56: =VLOOKUP(YEAR($B56)&"-"&MONTH($B56),MData!$A:$NJ,MATCH(L$5&"("&factor_selected&")",MData!$7:$7,0),FALSE) ->  | M56: =VLOOKUP(YEAR($B56)&"-"&MONTH($B56),MData!$A:$NJ,MATCH(M$5&"("&factor_selected&")",MData!$7:$7,0),FALSE) ->  | N56: =VLOOKUP(YEAR($B56)&"-"&MONTH($B56),MData!$A:$NJ,MATCH(N$5&"("&factor_selected&")",MData!$7:$7,0),FALSE) ->  | O56: =VLOOKUP(YEAR($B56)&"-"&MONTH($B56),MData!$A:$NJ,MATCH(O$5&"("&factor_selected&")",MData!$7:$7,0),FALSE) ->  | P56: =VLOOKUP(YEAR($B56)&"-"&MONTH($B56),MData!$A:$NJ,MATCH(P$5&"("&factor_selected&")",MData!$7:$7,0),FALSE) ->  | Q56: =VLOOKUP(YEAR($B56)&"-"&MONTH($B56),MData!$A:$NJ,MATCH(Q$5&"("&factor_selected&")",MData!$7:$7,0),FALSE) ->  | R56: =VLOOKUP(YEAR($B56)&"-"&MONTH($B56),MData!$A:$NJ,MATCH(R$5&"("&factor_selected&")",MData!$7:$7,0),FALSE) -> 
